{"text_format":"1","workbook":"xlsx","n_sheets":3,"sheets":["Input","Reference","PPMP"],"not_rendered":{"charts":0,"images":4,"macros":1,"external_links":0,"defined_names":15,"comments":0,"pivot_tables":0},"unopened":[],"bounds":{"document_bytes":16777216,"sheet_cells":100000,"rows_first":2000,"rows_last":500,"rows_between":2000,"halvings":0,"cell_chars":16384,"cell_head_chars":4096},"cells_cut":0,"cells_raw":0,"read":"whole","date_system":"1900"}

{"sheet":"Input","index":0,"n_rows":10004,"n_cols":23,"rows_kept":2250,"cut":true,"hidden":false,"merged":[[2,2,2,5],[2,6,2,11],[0,2,0,5],[1,2,1,5],[0,6,0,11],[1,6,1,11],[4,0,5,0],[4,1,5,1],[4,2,5,2],[4,3,4,18],[4,19,5,19],[4,22,5,22],[4,20,5,20],[4,21,5,21],[0,12,0,16],[1,17,1,22],[0,17,0,22],[1,12,1,16],[2,12,2,19],[2,20,2,22]],"bounds":{"rows_first":1000,"rows_last":250,"rows_between":1000,"halvings":1}}
["NAME OF END USER:",null,"NAME OF SCHOOL HEAD:",null,null,null,null,null,null,null,null,null,"SCHOOL:"]
["POSITION / DESIGNATION:",null,"POSITION / DESIGNATION:",null,null,null,null,null,null,null,null,null,"PROGRAM / ACTIVITY / PROJECT:"]
["CALENDAR YEAR:",null,"SCHOOL BAC SECRETARIAT:",null,null,null,null,null,null,null,null,null,"BUDGET FOR THE PROGRAM / ACTIVITY / PROJECT:"]
["TOTAL AMOUNT",{"$f":"ROUND(SUM(W7:W10004),2)","v":0}]
["CATEGORY","ITEM AND SPECIFICATION","UNIT","QUANTITY REQUIREMENT",null,null,null,null,null,null,null,null,null,null,null,null,null,null,null,"TOTAL QUANTITY","UNIT PRICE","MARKED UP PRICE","TOTAL AMOUNT"]
[null,null,null,"JAN","FEB","MAR","Q1","APR","MAY","JUNE","Q2","JUL","AUG","SEPT","Q3","OCT","NOV","DEC","Q4"]
[null,null,{"$f":"IF($B7<>\"\",VLOOKUP($B7,Tbl_Reference,2,0),\"\")","v":""},null,null,null,{"$f":"SUM(D7:F7)","v":0},null,null,null,{"$f":"SUM(H7:J7)","v":0},null,null,null,{"$f":"SUM(L7:N7)","v":0},null,null,null,{"$f":"SUM(P7:R7)","v":0},{"$f":"G7+K7+O7+S7","v":0},{"$f":"IF($B7<>\"\",VLOOKUP($B7,Tbl_Reference,3,0),\"\")","v":""},{"$f":"IF($B7<>\"\",VLOOKUP($B7,Tbl_Reference,4,0),\"\")","v":""},{"$f":"IF(B7<>\"\",IF(V7<>0,ROUND(T7*V7,2),ROUND(T7*U7,2)),\"\")","v":""}]
[null,null,"",null,null,null,{"$f":"SUM(D8:F8)","v":0},null,null,null,{"$f":"SUM(H8:J8)","v":0},null,null,null,{"$f":"SUM(L8:N8)","v":0},null,null,null,{"$f":"SUM(P8:R8)","v":0},{"$f":"G8+K8+O8+S8","v":0},"","",""]
[null,null,"",null,null,null,0,null,null,null,0,null,null,null,0,null,null,null,0,0,"","",""]
[null,null,"",null,null,null,0,null,null,null,0,null,null,null,0,null,null,null,0,0,"","",""]
[null,null,"",null,null,null,0,null,null,null,0,null,null,null,0,null,null,null,0,0,"","",""]
[null,null,"",null,null,null,0,null,null,null,0,null,null,null,0,null,null,null,0,0,"","",""]
[null,null,"",null,null,null,0,null,null,null,0,null,null,null,0,null,null,null,0,0,"","",""]
[null,null,"",null,null,null,0,null,null,null,0,null,null,null,0,null,null,null,0,0,"","",""]
[null,null,"",null,null,null,0,null,null,null,0,null,null,null,0,null,null,null,0,0,"","",""]
[null,null,"",null,null,null,0,null,null,null,0,null,null,null,0,null,null,null,0,0,"","",""]
[null,null,"",null,null,null,0,null,null,null,0,null,null,null,0,null,null,null,0,0,"","",""]
[null,null,"",null,null,null,0,null,null,null,0,null,null,null,0,null,null,null,0,0,"","",""]
[null,null,"",null,null,null,0,null,null,null,0,null,null,null,0,null,null,null,0,0,"","",""]
[null,null,"",null,null,null,0,null,null,null,0,null,null,null,0,null,null,null,0,0,"","",""]
[null,null,"",null,null,null,0,null,null,null,0,null,null,null,0,null,null,null,0,0,"","",""]
[null,null,"",null,null,null,0,null,null,null,0,null,null,null,0,null,null,null,0,0,"","",""]
[null,null,"",null,null,null,0,null,null,null,0,null,null,null,0,null,null,null,0,0,"","",""]
[null,null,"",null,null,null,0,null,null,null,0,null,null,null,0,null,null,null,0,0,"","",""]
[null,null,"",null,null,null,0,null,null,null,0,null,null,null,0,null,null,null,0,0,"","",""]
[null,null,"",null,null,null,0,null,null,null,0,null,null,null,0,null,null,null,0,0,"","",""]
[null,null,"",null,null,null,0,null,null,null,0,null,null,null,0,null,null,null,0,0,"","",""]
[null,null,"",null,null,null,0,null,null,null,0,null,null,null,0,null,null,null,0,0,"","",""]
[null,null,"",null,null,null,0,null,null,null,0,null,null,null,0,null,null,null,0,0,"","",""]
[null,null,"",null,null,null,0,null,null,null,0,null,null,null,0,null,null,null,0,0,"","",""]
[null,null,"",null,null,null,0,null,null,null,0,null,null,null,0,null,null,null,0,0,"","",""]
[null,null,"",null,null,null,0,null,null,null,0,null,null,null,0,null,null,null,0,0,"","",""]
[null,null,"",null,null,null,0,null,null,null,0,null,null,null,0,null,null,null,0,0,"","",""]
[null,null,"",null,null,null,0,null,null,null,0,null,null,null,0,null,null,null,0,0,"","",""]
[null,null,"",null,null,null,0,null,null,null,0,null,null,null,0,null,null,null,0,0,"","",""]
[null,null,"",null,null,null,0,null,null,null,0,null,null,null,0,null,null,null,0,0,"","",""]
[null,null,"",null,null,null,0,null,null,null,0,null,null,null,0,null,null,null,0,0,"","",""]
[null,null,"",null,null,null,0,null,null,null,0,null,null,null,0,null,null,null,0,0,"","",""]
[null,null,"",null,null,null,0,null,null,null,0,null,null,null,0,null,null,null,0,0,"","",""]
[null,null,"",null,null,null,0,null,null,null,0,null,null,null,0,null,null,null,0,0,"","",""]
[null,null,"",null,null,null,0,null,null,null,0,null,null,null,0,null,null,null,0,0,"","",""]
[null,null,"",null,null,null,0,null,null,null,0,null,null,null,0,null,null,null,0,0,"","",""]
[null,null,"",null,null,null,0,null,null,null,0,null,null,null,0,null,null,null,0,0,"","",""]
[null,null,"",null,null,null,0,null,null,null,0,null,null,null,0,null,null,null,0,0,"","",""]
[null,null,"",null,null,null,0,null,null,null,0,null,null,null,0,null,null,null,0,0,"","",""]
[null,null,"",null,null,null,0,null,null,null,0,null,null,null,0,null,null,null,0,0,"","",""]
[null,null,"",null,null,null,0,null,null,null,0,null,null,null,0,null,null,null,0,0,"","",""]
[null,null,"",null,null,null,0,null,null,null,0,null,null,null,0,null,null,null,0,0,"","",""]
[null,null,"",null,null,null,0,null,null,null,0,null,null,null,0,null,null,null,0,0,"","",""]
[null,null,"",null,null,null,0,null,null,null,0,null,null,null,0,null,null,null,0,0,"","",""]
[null,null,"",null,null,null,0,null,null,null,0,null,null,null,0,null,null,null,0,0,"","",""]
[null,null,"",null,null,null,0,null,null,null,0,null,null,null,0,null,null,null,0,0,"","",""]
[null,null,"",null,null,null,0,null,null,null,0,null,null,null,0,null,null,null,0,0,"","",""]
[null,null,"",null,null,null,0,null,null,null,0,null,null,null,0,null,null,null,0,0,"","",""]
[null,null,"",null,null,null,0,null,null,null,0,null,null,null,0,null,null,null,0,0,"","",""]
[null,null,"",null,null,null,0,null,null,null,0,null,null,null,0,null,null,null,0,0,"","",""]
[null,null,"",null,null,null,0,null,null,null,0,null,null,null,0,null,null,null,0,0,"","",""]
[null,null,"",null,null,null,0,null,null,null,0,null,null,null,0,null,null,null,0,0,"","",""]
[null,null,"",null,null,null,0,null,null,null,0,null,null,null,0,null,null,null,0,0,"","",""]
[null,null,"",null,null,null,0,null,null,null,0,null,null,null,0,null,null,null,0,0,"","",""]
[null,null,"",null,null,null,0,null,null,null,0,null,null,null,0,null,null,null,0,0,"","",""]
[null,null,"",null,null,null,0,null,null,null,0,null,null,null,0,null,null,null,0,0,"","",""]
[null,null,"",null,null,null,0,null,null,null,0,null,null,null,0,null,null,null,0,0,"","",""]
[null,null,"",null,null,null,0,null,null,null,0,null,null,null,0,null,null,null,0,0,"","",""]
[null,null,"",null,null,null,0,null,null,null,0,null,null,null,0,null,null,null,0,0,"","",""]
[null,null,"",null,null,null,0,null,null,null,0,null,null,null,0,null,null,null,0,0,"","",""]
[null,null,"",null,null,null,0,null,null,null,0,null,null,null,0,null,null,null,0,0,"","",""]
[null,null,"",null,null,null,0,null,null,null,0,null,null,null,0,null,null,null,0,0,"","",""]
[null,null,"",null,null,null,0,null,null,null,0,null,null,null,0,null,null,null,0,0,"","",""]
[null,null,"",null,null,null,0,null,null,null,0,null,null,null,0,null,null,null,0,0,"","",""]
[null,null,{"$f":"IF($B71<>\"\",VLOOKUP($B71,Tbl_Reference,2,0),\"\")","v":""},null,null,null,0,null,null,null,0,null,null,null,0,null,null,null,0,0,{"$f":"IF($B71<>\"\",VLOOKUP($B71,Tbl_Reference,3,0),\"\")","v":""},{"$f":"IF($B71<>\"\",VLOOKUP($B71,Tbl_Reference,4,0),\"\")","v":""},""]
[null,null,"",null,null,null,{"$f":"SUM(D72:F72)","v":0},null,null,null,{"$f":"SUM(H72:J72)","v":0},null,null,null,{"$f":"SUM(L72:N72)","v":0},null,null,null,{"$f":"SUM(P72:R72)","v":0},{"$f":"G72+K72+O72+S72","v":0},"","",{"$f":"IF(B72<>\"\",IF(V72<>0,ROUND(T72*V72,2),ROUND(T72*U72,2)),\"\")","v":""}]
[null,null,"",null,null,null,0,null,null,null,0,null,null,null,0,null,null,null,0,0,"","",""]
[null,null,"",null,null,null,0,null,null,null,0,null,null,null,0,null,null,null,0,0,"","",""]
[null,null,"",null,null,null,0,null,null,null,0,null,null,null,0,null,null,null,0,0,"","",""]
[null,null,"",null,null,null,0,null,null,null,0,null,null,null,0,null,null,null,0,0,"","",""]
[null,null,"",null,null,null,0,null,null,null,0,null,null,null,0,null,null,null,0,0,"","",""]
[null,null,"",null,null,null,0,null,null,null,0,null,null,null,0,null,null,null,0,0,"","",""]
[null,null,"",null,null,null,0,null,null,null,0,null,null,null,0,null,null,null,0,0,"","",""]
[null,null,"",null,null,null,0,null,null,null,0,null,null,null,0,null,null,null,0,0,"","",""]
[null,null,"",null,null,null,0,null,null,null,0,null,null,null,0,null,null,null,0,0,"","",""]
[null,null,"",null,null,null,0,null,null,null,0,null,null,null,0,null,null,null,0,0,"","",""]
[null,null,"",null,null,null,0,null,null,null,0,null,null,null,0,null,null,null,0,0,"","",""]
[null,null,"",null,null,null,0,null,null,null,0,null,null,null,0,null,null,null,0,0,"","",""]
[null,null,"",null,null,null,0,null,null,null,0,null,null,null,0,null,null,null,0,0,"","",""]
[null,null,"",null,null,null,0,null,null,null,0,null,null,null,0,null,null,null,0,0,"","",""]
[null,null,"",null,null,null,0,null,null,null,0,null,null,null,0,null,null,null,0,0,"","",""]
[null,null,"",null,null,null,0,null,null,null,0,null,null,null,0,null,null,null,0,0,"","",""]
[null,null,"",null,null,null,0,null,null,null,0,null,null,null,0,null,null,null,0,0,"","",""]
[null,null,"",null,null,null,0,null,null,null,0,null,null,null,0,null,null,null,0,0,"","",""]
[null,null,"",null,null,null,0,null,null,null,0,null,null,null,0,null,null,null,0,0,"","",""]
[null,null,"",null,null,null,0,null,null,null,0,null,null,null,0,null,null,null,0,0,"","",""]
[null,null,"",null,null,null,0,null,null,null,0,null,null,null,0,null,null,null,0,0,"","",""]
[null,null,"",null,null,null,0,null,null,null,0,null,null,null,0,null,null,null,0,0,"","",""]
[null,null,"",null,null,null,0,null,null,null,0,null,null,null,0,null,null,null,0,0,"","",""]
[null,null,"",null,null,null,0,null,null,null,0,null,null,null,0,null,null,null,0,0,"","",""]
[null,null,"",null,null,null,0,null,null,null,0,null,null,null,0,null,null,null,0,0,"","",""]
[null,null,"",null,null,null,0,null,null,null,0,null,null,null,0,null,null,null,0,0,"","",""]
[null,null,"",null,null,null,0,null,null,null,0,null,null,null,0,null,null,null,0,0,"","",""]
[null,null,"",null,null,null,0,null,null,null,0,null,null,null,0,null,null,null,0,0,"","",""]
[null,null,"",null,null,null,0,null,null,null,0,null,null,null,0,null,null,null,0,0,"","",""]
[null,null,"",null,null,null,0,null,null,null,0,null,null,null,0,null,null,null,0,0,"","",""]
[null,null,"",null,null,null,0,null,null,null,0,null,null,null,0,null,null,null,0,0,"","",""]
[null,null,"",null,null,null,0,null,null,null,0,null,null,null,0,null,null,null,0,0,"","",""]
[null,null,"",null,null,null,0,null,null,null,0,null,null,null,0,null,null,null,0,0,"","",""]
[null,null,"",null,null,null,0,null,null,null,0,null,null,null,0,null,null,null,0,0,"","",""]
[null,null,"",null,null,null,0,null,null,null,0,null,null,null,0,null,null,null,0,0,"","",""]
[null,null,"",null,null,null,0,null,null,null,0,null,null,null,0,null,null,null,0,0,"","",""]
[null,null,"",null,null,null,0,null,null,null,0,null,null,null,0,null,null,null,0,0,"","",""]
[null,null,"",null,null,null,0,null,null,null,0,null,null,null,0,null,null,null,0,0,"","",""]
[null,null,"",null,null,null,0,null,null,null,0,null,null,null,0,null,null,null,0,0,"","",""]
[null,null,"",null,null,null,0,null,null,null,0,null,null,null,0,null,null,null,0,0,"","",""]
[null,null,"",null,null,null,0,null,null,null,0,null,null,null,0,null,null,null,0,0,"","",""]
[null,null,"",null,null,null,0,null,null,null,0,null,null,null,0,null,null,null,0,0,"","",""]
[null,null,"",null,null,null,0,null,null,null,0,null,null,null,0,null,null,null,0,0,"","",""]
[null,null,"",null,null,null,0,null,null,null,0,null,null,null,0,null,null,null,0,0,"","",""]
[null,null,"",null,null,null,0,null,null,null,0,null,null,null,0,null,null,null,0,0,"","",""]
[null,null,"",null,null,null,0,null,null,null,0,null,null,null,0,null,null,null,0,0,"","",""]
[null,null,"",null,null,null,0,null,null,null,0,null,null,null,0,null,null,null,0,0,"","",""]
[null,null,"",null,null,null,0,null,null,null,0,null,null,null,0,null,null,null,0,0,"","",""]
[null,null,"",null,null,null,0,null,null,null,0,null,null,null,0,null,null,null,0,0,"","",""]
[null,null,"",null,null,null,0,null,null,null,0,null,null,null,0,null,null,null,0,0,"","",""]
[null,null,"",null,null,null,0,null,null,null,0,null,null,null,0,null,null,null,0,0,"","",""]
[null,null,"",null,null,null,0,null,null,null,0,null,null,null,0,null,null,null,0,0,"","",""]
[null,null,"",null,null,null,0,null,null,null,0,null,null,null,0,null,null,null,0,0,"","",""]
[null,null,"",null,null,null,0,null,null,null,0,null,null,null,0,null,null,null,0,0,"","",""]
[null,null,"",null,null,null,0,null,null,null,0,null,null,null,0,null,null,null,0,0,"","",""]
[null,null,"",null,null,null,0,null,null,null,0,null,null,null,0,null,null,null,0,0,"","",""]
[null,null,"",null,null,null,0,null,null,null,0,null,null,null,0,null,null,null,0,0,"","",""]
[null,null,"",null,null,null,0,null,null,null,0,null,null,null,0,null,null,null,0,0,"","",""]
[null,null,"",null,null,null,0,null,null,null,0,null,null,null,0,null,null,null,0,0,"","",""]
[null,null,"",null,null,null,0,null,null,null,0,null,null,null,0,null,null,null,0,0,"","",""]
[null,null,"",null,null,null,0,null,null,null,0,null,null,null,0,null,null,null,0,0,"","",""]
[null,null,"",null,null,null,0,null,null,null,0,null,null,null,0,null,null,null,0,0,"","",""]
[null,null,{"$f":"IF($B135<>\"\",VLOOKUP($B135,Tbl_Reference,2,0),\"\")","v":""},null,null,null,0,null,null,null,0,null,null,null,0,null,null,null,0,0,{"$f":"IF($B135<>\"\",VLOOKUP($B135,Tbl_Reference,3,0),\"\")","v":""},{"$f":"IF($B135<>\"\",VLOOKUP($B135,Tbl_Reference,4,0),\"\")","v":""},""]
[null,null,"",null,null,null,{"$f":"SUM(D136:F136)","v":0},null,null,null,{"$f":"SUM(H136:J136)","v":0},null,null,null,{"$f":"SUM(L136:N136)","v":0},null,null,null,{"$f":"SUM(P136:R136)","v":0},{"$f":"G136+K136+O136+S136","v":0},"","",{"$f":"IF(B136<>\"\",IF(V136<>0,ROUND(T136*V136,2),ROUND(T136*U136,2)),\"\")","v":""}]
[null,null,"",null,null,null,0,null,null,null,0,null,null,null,0,null,null,null,0,0,"","",""]
[null,null,"",null,null,null,0,null,null,null,0,null,null,null,0,null,null,null,0,0,"","",""]
[null,null,"",null,null,null,0,null,null,null,0,null,null,null,0,null,null,null,0,0,"","",""]
[null,null,"",null,null,null,0,null,null,null,0,null,null,null,0,null,null,null,0,0,"","",""]
[null,null,"",null,null,null,0,null,null,null,0,null,null,null,0,null,null,null,0,0,"","",""]
[null,null,"",null,null,null,0,null,null,null,0,null,null,null,0,null,null,null,0,0,"","",""]
[null,null,"",null,null,null,0,null,null,null,0,null,null,null,0,null,null,null,0,0,"","",""]
[null,null,"",null,null,null,0,null,null,null,0,null,null,null,0,null,null,null,0,0,"","",""]
[null,null,"",null,null,null,0,null,null,null,0,null,null,null,0,null,null,null,0,0,"","",""]
[null,null,"",null,null,null,0,null,null,null,0,null,null,null,0,null,null,null,0,0,"","",""]
[null,null,"",null,null,null,0,null,null,null,0,null,null,null,0,null,null,null,0,0,"","",""]
[null,null,"",null,null,null,0,null,null,null,0,null,null,null,0,null,null,null,0,0,"","",""]
[null,null,"",null,null,null,0,null,null,null,0,null,null,null,0,null,null,null,0,0,"","",""]
[null,null,"",null,null,null,0,null,null,null,0,null,null,null,0,null,null,null,0,0,"","",""]
[null,null,"",null,null,null,0,null,null,null,0,null,null,null,0,null,null,null,0,0,"","",""]
[null,null,"",null,null,null,0,null,null,null,0,null,null,null,0,null,null,null,0,0,"","",""]
[null,null,"",null,null,null,0,null,null,null,0,null,null,null,0,null,null,null,0,0,"","",""]
[null,null,"",null,null,null,0,null,null,null,0,null,null,null,0,null,null,null,0,0,"","",""]
[null,null,"",null,null,null,0,null,null,null,0,null,null,null,0,null,null,null,0,0,"","",""]
[null,null,"",null,null,null,0,null,null,null,0,null,null,null,0,null,null,null,0,0,"","",""]
[null,null,"",null,null,null,0,null,null,null,0,null,null,null,0,null,null,null,0,0,"","",""]
[null,null,"",null,null,null,0,null,null,null,0,null,null,null,0,null,null,null,0,0,"","",""]
[null,null,"",null,null,null,0,null,null,null,0,null,null,null,0,null,null,null,0,0,"","",""]
[null,null,"",null,null,null,0,null,null,null,0,null,null,null,0,null,null,null,0,0,"","",""]
[null,null,"",null,null,null,0,null,null,null,0,null,null,null,0,null,null,null,0,0,"","",""]
[null,null,"",null,null,null,0,null,null,null,0,null,null,null,0,null,null,null,0,0,"","",""]
[null,null,"",null,null,null,0,null,null,null,0,null,null,null,0,null,null,null,0,0,"","",""]
[null,null,"",null,null,null,0,null,null,null,0,null,null,null,0,null,null,null,0,0,"","",""]
[null,null,"",null,null,null,0,null,null,null,0,null,null,null,0,null,null,null,0,0,"","",""]
[null,null,"",null,null,null,0,null,null,null,0,null,null,null,0,null,null,null,0,0,"","",""]
[null,null,"",null,null,null,0,null,null,null,0,null,null,null,0,null,null,null,0,0,"","",""]
[null,null,"",null,null,null,0,null,null,null,0,null,null,null,0,null,null,null,0,0,"","",""]
[null,null,"",null,null,null,0,null,null,null,0,null,null,null,0,null,null,null,0,0,"","",""]
[null,null,"",null,null,null,0,null,null,null,0,null,null,null,0,null,null,null,0,0,"","",""]
[null,null,"",null,null,null,0,null,null,null,0,null,null,null,0,null,null,null,0,0,"","",""]
[null,null,"",null,null,null,0,null,null,null,0,null,null,null,0,null,null,null,0,0,"","",""]
[null,null,"",null,null,null,0,null,null,null,0,null,null,null,0,null,null,null,0,0,"","",""]
[null,null,"",null,null,null,0,null,null,null,0,null,null,null,0,null,null,null,0,0,"","",""]
[null,null,"",null,null,null,0,null,null,null,0,null,null,null,0,null,null,null,0,0,"","",""]
[null,null,"",null,null,null,0,null,null,null,0,null,null,null,0,null,null,null,0,0,"","",""]
[null,null,"",null,null,null,0,null,null,null,0,null,null,null,0,null,null,null,0,0,"","",""]
[null,null,"",null,null,null,0,null,null,null,0,null,null,null,0,null,null,null,0,0,"","",""]
[null,null,"",null,null,null,0,null,null,null,0,null,null,null,0,null,null,null,0,0,"","",""]
[null,null,"",null,null,null,0,null,null,null,0,null,null,null,0,null,null,null,0,0,"","",""]
[null,null,"",null,null,null,0,null,null,null,0,null,null,null,0,null,null,null,0,0,"","",""]
[null,null,"",null,null,null,0,null,null,null,0,null,null,null,0,null,null,null,0,0,"","",""]
[null,null,"",null,null,null,0,null,null,null,0,null,null,null,0,null,null,null,0,0,"","",""]
[null,null,"",null,null,null,0,null,null,null,0,null,null,null,0,null,null,null,0,0,"","",""]
[null,null,"",null,null,null,0,null,null,null,0,null,null,null,0,null,null,null,0,0,"","",""]
[null,null,"",null,null,null,0,null,null,null,0,null,null,null,0,null,null,null,0,0,"","",""]
[null,null,"",null,null,null,0,null,null,null,0,null,null,null,0,null,null,null,0,0,"","",""]
[null,null,"",null,null,null,0,null,null,null,0,null,null,null,0,null,null,null,0,0,"","",""]
[null,null,"",null,null,null,0,null,null,null,0,null,null,null,0,null,null,null,0,0,"","",""]
[null,null,"",null,null,null,0,null,null,null,0,null,null,null,0,null,null,null,0,0,"","",""]
[null,null,"",null,null,null,0,null,null,null,0,null,null,null,0,null,null,null,0,0,"","",""]
[null,null,"",null,null,null,0,null,null,null,0,null,null,null,0,null,null,null,0,0,"","",""]
[null,null,"",null,null,null,0,null,null,null,0,null,null,null,0,null,null,null,0,0,"","",""]
[null,null,"",null,null,null,0,null,null,null,0,null,null,null,0,null,null,null,0,0,"","",""]
[null,null,"",null,null,null,0,null,null,null,0,null,null,null,0,null,null,null,0,0,"","",""]
[null,null,"",null,null,null,0,null,null,null,0,null,null,null,0,null,null,null,0,0,"","",""]
[null,null,"",null,null,null,0,null,null,null,0,null,null,null,0,null,null,null,0,0,"","",""]
[null,null,"",null,null,null,0,null,null,null,0,null,null,null,0,null,null,null,0,0,"","",""]
[null,null,{"$f":"IF($B199<>\"\",VLOOKUP($B199,Tbl_Reference,2,0),\"\")","v":""},null,null,null,0,null,null,null,0,null,null,null,0,null,null,null,0,0,{"$f":"IF($B199<>\"\",VLOOKUP($B199,Tbl_Reference,3,0),\"\")","v":""},{"$f":"IF($B199<>\"\",VLOOKUP($B199,Tbl_Reference,4,0),\"\")","v":""},""]
[null,null,"",null,null,null,{"$f":"SUM(D200:F200)","v":0},null,null,null,{"$f":"SUM(H200:J200)","v":0},null,null,null,{"$f":"SUM(L200:N200)","v":0},null,null,null,{"$f":"SUM(P200:R200)","v":0},{"$f":"G200+K200+O200+S200","v":0},"","",{"$f":"IF(B200<>\"\",IF(V200<>0,ROUND(T200*V200,2),ROUND(T200*U200,2)),\"\")","v":""}]
[null,null,"",null,null,null,0,null,null,null,0,null,null,null,0,null,null,null,0,0,"","",""]
[null,null,"",null,null,null,0,null,null,null,0,null,null,null,0,null,null,null,0,0,"","",""]
[null,null,"",null,null,null,0,null,null,null,0,null,null,null,0,null,null,null,0,0,"","",""]
[null,null,"",null,null,null,0,null,null,null,0,null,null,null,0,null,null,null,0,0,"","",""]
[null,null,"",null,null,null,0,null,null,null,0,null,null,null,0,null,null,null,0,0,"","",""]
[null,null,"",null,null,null,0,null,null,null,0,null,null,null,0,null,null,null,0,0,"","",""]
[null,null,"",null,null,null,0,null,null,null,0,null,null,null,0,null,null,null,0,0,"","",""]
[null,null,"",null,null,null,0,null,null,null,0,null,null,null,0,null,null,null,0,0,"","",""]
[null,null,"",null,null,null,0,null,null,null,0,null,null,null,0,null,null,null,0,0,"","",""]
[null,null,"",null,null,null,0,null,null,null,0,null,null,null,0,null,null,null,0,0,"","",""]
[null,null,"",null,null,null,0,null,null,null,0,null,null,null,0,null,null,null,0,0,"","",""]
[null,null,"",null,null,null,0,null,null,null,0,null,null,null,0,null,null,null,0,0,"","",""]
[null,null,"",null,null,null,0,null,null,null,0,null,null,null,0,null,null,null,0,0,"","",""]
[null,null,"",null,null,null,0,null,null,null,0,null,null,null,0,null,null,null,0,0,"","",""]
[null,null,"",null,null,null,0,null,null,null,0,null,null,null,0,null,null,null,0,0,"","",""]
[null,null,"",null,null,null,0,null,null,null,0,null,null,null,0,null,null,null,0,0,"","",""]
[null,null,"",null,null,null,0,null,null,null,0,null,null,null,0,null,null,null,0,0,"","",""]
[null,null,"",null,null,null,0,null,null,null,0,null,null,null,0,null,null,null,0,0,"","",""]
[null,null,"",null,null,null,0,null,null,null,0,null,null,null,0,null,null,null,0,0,"","",""]
[null,null,"",null,null,null,0,null,null,null,0,null,null,null,0,null,null,null,0,0,"","",""]
[null,null,"",null,null,null,0,null,null,null,0,null,null,null,0,null,null,null,0,0,"","",""]
[null,null,"",null,null,null,0,null,null,null,0,null,null,null,0,null,null,null,0,0,"","",""]
[null,null,"",null,null,null,0,null,null,null,0,null,null,null,0,null,null,null,0,0,"","",""]
[null,null,"",null,null,null,0,null,null,null,0,null,null,null,0,null,null,null,0,0,"","",""]
[null,null,"",null,null,null,0,null,null,null,0,null,null,null,0,null,null,null,0,0,"","",""]
[null,null,"",null,null,null,0,null,null,null,0,null,null,null,0,null,null,null,0,0,"","",""]
[null,null,"",null,null,null,0,null,null,null,0,null,null,null,0,null,null,null,0,0,"","",""]
[null,null,"",null,null,null,0,null,null,null,0,null,null,null,0,null,null,null,0,0,"","",""]
[null,null,"",null,null,null,0,null,null,null,0,null,null,null,0,null,null,null,0,0,"","",""]
[null,null,"",null,null,null,0,null,null,null,0,null,null,null,0,null,null,null,0,0,"","",""]
[null,null,"",null,null,null,0,null,null,null,0,null,null,null,0,null,null,null,0,0,"","",""]
[null,null,"",null,null,null,0,null,null,null,0,null,null,null,0,null,null,null,0,0,"","",""]
[null,null,"",null,null,null,0,null,null,null,0,null,null,null,0,null,null,null,0,0,"","",""]
[null,null,"",null,null,null,0,null,null,null,0,null,null,null,0,null,null,null,0,0,"","",""]
[null,null,"",null,null,null,0,null,null,null,0,null,null,null,0,null,null,null,0,0,"","",""]
[null,null,"",null,null,null,0,null,null,null,0,null,null,null,0,null,null,null,0,0,"","",""]
[null,null,"",null,null,null,0,null,null,null,0,null,null,null,0,null,null,null,0,0,"","",""]
[null,null,"",null,null,null,0,null,null,null,0,null,null,null,0,null,null,null,0,0,"","",""]
[null,null,"",null,null,null,0,null,null,null,0,null,null,null,0,null,null,null,0,0,"","",""]
[null,null,"",null,null,null,0,null,null,null,0,null,null,null,0,null,null,null,0,0,"","",""]
[null,null,"",null,null,null,0,null,null,null,0,null,null,null,0,null,null,null,0,0,"","",""]
[null,null,"",null,null,null,0,null,null,null,0,null,null,null,0,null,null,null,0,0,"","",""]
[null,null,"",null,null,null,0,null,null,null,0,null,null,null,0,null,null,null,0,0,"","",""]
[null,null,"",null,null,null,0,null,null,null,0,null,null,null,0,null,null,null,0,0,"","",""]
[null,null,"",null,null,null,0,null,null,null,0,null,null,null,0,null,null,null,0,0,"","",""]
[null,null,"",null,null,null,0,null,null,null,0,null,null,null,0,null,null,null,0,0,"","",""]
[null,null,"",null,null,null,0,null,null,null,0,null,null,null,0,null,null,null,0,0,"","",""]
[null,null,"",null,null,null,0,null,null,null,0,null,null,null,0,null,null,null,0,0,"","",""]
[null,null,"",null,null,null,0,null,null,null,0,null,null,null,0,null,null,null,0,0,"","",""]
[null,null,"",null,null,null,0,null,null,null,0,null,null,null,0,null,null,null,0,0,"","",""]
[null,null,"",null,null,null,0,null,null,null,0,null,null,null,0,null,null,null,0,0,"","",""]
[null,null,"",null,null,null,0,null,null,null,0,null,null,null,0,null,null,null,0,0,"","",""]
[null,null,"",null,null,null,0,null,null,null,0,null,null,null,0,null,null,null,0,0,"","",""]
[null,null,"",null,null,null,0,null,null,null,0,null,null,null,0,null,null,null,0,0,"","",""]
[null,null,"",null,null,null,0,null,null,null,0,null,null,null,0,null,null,null,0,0,"","",""]
[null,null,"",null,null,null,0,null,null,null,0,null,null,null,0,null,null,null,0,0,"","",""]
[null,null,"",null,null,null,0,null,null,null,0,null,null,null,0,null,null,null,0,0,"","",""]
[null,null,"",null,null,null,0,null,null,null,0,null,null,null,0,null,null,null,0,0,"","",""]
[null,null,"",null,null,null,0,null,null,null,0,null,null,null,0,null,null,null,0,0,"","",""]
[null,null,"",null,null,null,0,null,null,null,0,null,null,null,0,null,null,null,0,0,"","",""]
[null,null,"",null,null,null,0,null,null,null,0,null,null,null,0,null,null,null,0,0,"","",""]
[null,null,"",null,null,null,0,null,null,null,0,null,null,null,0,null,null,null,0,0,"","",""]
[null,null,{"$f":"IF($B263<>\"\",VLOOKUP($B263,Tbl_Reference,2,0),\"\")","v":""},null,null,null,0,null,null,null,0,null,null,null,0,null,null,null,0,0,{"$f":"IF($B263<>\"\",VLOOKUP($B263,Tbl_Reference,3,0),\"\")","v":""},{"$f":"IF($B263<>\"\",VLOOKUP($B263,Tbl_Reference,4,0),\"\")","v":""},""]
[null,null,"",null,null,null,{"$f":"SUM(D264:F264)","v":0},null,null,null,{"$f":"SUM(H264:J264)","v":0},null,null,null,{"$f":"SUM(L264:N264)","v":0},null,null,null,{"$f":"SUM(P264:R264)","v":0},{"$f":"G264+K264+O264+S264","v":0},"","",{"$f":"IF(B264<>\"\",IF(V264<>0,ROUND(T264*V264,2),ROUND(T264*U264,2)),\"\")","v":""}]
[null,null,"",null,null,null,0,null,null,null,0,null,null,null,0,null,null,null,0,0,"","",""]
[null,null,"",null,null,null,0,null,null,null,0,null,null,null,0,null,null,null,0,0,"","",""]
[null,null,"",null,null,null,0,null,null,null,0,null,null,null,0,null,null,null,0,0,"","",""]
[null,null,"",null,null,null,0,null,null,null,0,null,null,null,0,null,null,null,0,0,"","",""]
[null,null,"",null,null,null,0,null,null,null,0,null,null,null,0,null,null,null,0,0,"","",""]
[null,null,"",null,null,null,0,null,null,null,0,null,null,null,0,null,null,null,0,0,"","",""]
[null,null,"",null,null,null,0,null,null,null,0,null,null,null,0,null,null,null,0,0,"","",""]
[null,null,"",null,null,null,0,null,null,null,0,null,null,null,0,null,null,null,0,0,"","",""]
[null,null,"",null,null,null,0,null,null,null,0,null,null,null,0,null,null,null,0,0,"","",""]
[null,null,"",null,null,null,0,null,null,null,0,null,null,null,0,null,null,null,0,0,"","",""]
[null,null,"",null,null,null,0,null,null,null,0,null,null,null,0,null,null,null,0,0,"","",""]
[null,null,"",null,null,null,0,null,null,null,0,null,null,null,0,null,null,null,0,0,"","",""]
[null,null,"",null,null,null,0,null,null,null,0,null,null,null,0,null,null,null,0,0,"","",""]
[null,null,"",null,null,null,0,null,null,null,0,null,null,null,0,null,null,null,0,0,"","",""]
[null,null,"",null,null,null,0,null,null,null,0,null,null,null,0,null,null,null,0,0,"","",""]
[null,null,"",null,null,null,0,null,null,null,0,null,null,null,0,null,null,null,0,0,"","",""]
[null,null,"",null,null,null,0,null,null,null,0,null,null,null,0,null,null,null,0,0,"","",""]
[null,null,"",null,null,null,0,null,null,null,0,null,null,null,0,null,null,null,0,0,"","",""]
[null,null,"",null,null,null,0,null,null,null,0,null,null,null,0,null,null,null,0,0,"","",""]
[null,null,"",null,null,null,0,null,null,null,0,null,null,null,0,null,null,null,0,0,"","",""]
[null,null,"",null,null,null,0,null,null,null,0,null,null,null,0,null,null,null,0,0,"","",""]
[null,null,"",null,null,null,0,null,null,null,0,null,null,null,0,null,null,null,0,0,"","",""]
[null,null,"",null,null,null,0,null,null,null,0,null,null,null,0,null,null,null,0,0,"","",""]
[null,null,"",null,null,null,0,null,null,null,0,null,null,null,0,null,null,null,0,0,"","",""]
[null,null,"",null,null,null,0,null,null,null,0,null,null,null,0,null,null,null,0,0,"","",""]
[null,null,"",null,null,null,0,null,null,null,0,null,null,null,0,null,null,null,0,0,"","",""]
[null,null,"",null,null,null,0,null,null,null,0,null,null,null,0,null,null,null,0,0,"","",""]
[null,null,"",null,null,null,0,null,null,null,0,null,null,null,0,null,null,null,0,0,"","",""]
[null,null,"",null,null,null,0,null,null,null,0,null,null,null,0,null,null,null,0,0,"","",""]
[null,null,"",null,null,null,0,null,null,null,0,null,null,null,0,null,null,null,0,0,"","",""]
[null,null,"",null,null,null,0,null,null,null,0,null,null,null,0,null,null,null,0,0,"","",""]
[null,null,"",null,null,null,0,null,null,null,0,null,null,null,0,null,null,null,0,0,"","",""]
[null,null,"",null,null,null,0,null,null,null,0,null,null,null,0,null,null,null,0,0,"","",""]
[null,null,"",null,null,null,0,null,null,null,0,null,null,null,0,null,null,null,0,0,"","",""]
[null,null,"",null,null,null,0,null,null,null,0,null,null,null,0,null,null,null,0,0,"","",""]
[null,null,"",null,null,null,0,null,null,null,0,null,null,null,0,null,null,null,0,0,"","",""]
[null,null,"",null,null,null,0,null,null,null,0,null,null,null,0,null,null,null,0,0,"","",""]
[null,null,"",null,null,null,0,null,null,null,0,null,null,null,0,null,null,null,0,0,"","",""]
[null,null,"",null,null,null,0,null,null,null,0,null,null,null,0,null,null,null,0,0,"","",""]
[null,null,"",null,null,null,0,null,null,null,0,null,null,null,0,null,null,null,0,0,"","",""]
[null,null,"",null,null,null,0,null,null,null,0,null,null,null,0,null,null,null,0,0,"","",""]
[null,null,"",null,null,null,0,null,null,null,0,null,null,null,0,null,null,null,0,0,"","",""]
[null,null,"",null,null,null,0,null,null,null,0,null,null,null,0,null,null,null,0,0,"","",""]
[null,null,"",null,null,null,0,null,null,null,0,null,null,null,0,null,null,null,0,0,"","",""]
[null,null,"",null,null,null,0,null,null,null,0,null,null,null,0,null,null,null,0,0,"","",""]
[null,null,"",null,null,null,0,null,null,null,0,null,null,null,0,null,null,null,0,0,"","",""]
[null,null,"",null,null,null,0,null,null,null,0,null,null,null,0,null,null,null,0,0,"","",""]
[null,null,"",null,null,null,0,null,null,null,0,null,null,null,0,null,null,null,0,0,"","",""]
[null,null,"",null,null,null,0,null,null,null,0,null,null,null,0,null,null,null,0,0,"","",""]
[null,null,"",null,null,null,0,null,null,null,0,null,null,null,0,null,null,null,0,0,"","",""]
[null,null,"",null,null,null,0,null,null,null,0,null,null,null,0,null,null,null,0,0,"","",""]
[null,null,"",null,null,null,0,null,null,null,0,null,null,null,0,null,null,null,0,0,"","",""]
[null,null,"",null,null,null,0,null,null,null,0,null,null,null,0,null,null,null,0,0,"","",""]
[null,null,"",null,null,null,0,null,null,null,0,null,null,null,0,null,null,null,0,0,"","",""]
[null,null,"",null,null,null,0,null,null,null,0,null,null,null,0,null,null,null,0,0,"","",""]
[null,null,"",null,null,null,0,null,null,null,0,null,null,null,0,null,null,null,0,0,"","",""]
[null,null,"",null,null,null,0,null,null,null,0,null,null,null,0,null,null,null,0,0,"","",""]
[null,null,"",null,null,null,0,null,null,null,0,null,null,null,0,null,null,null,0,0,"","",""]
[null,null,"",null,null,null,0,null,null,null,0,null,null,null,0,null,null,null,0,0,"","",""]
[null,null,"",null,null,null,0,null,null,null,0,null,null,null,0,null,null,null,0,0,"","",""]
[null,null,"",null,null,null,0,null,null,null,0,null,null,null,0,null,null,null,0,0,"","",""]
[null,null,"",null,null,null,0,null,null,null,0,null,null,null,0,null,null,null,0,0,"","",""]
[null,null,{"$f":"IF($B327<>\"\",VLOOKUP($B327,Tbl_Reference,2,0),\"\")","v":""},null,null,null,0,null,null,null,0,null,null,null,0,null,null,null,0,0,{"$f":"IF($B327<>\"\",VLOOKUP($B327,Tbl_Reference,3,0),\"\")","v":""},{"$f":"IF($B327<>\"\",VLOOKUP($B327,Tbl_Reference,4,0),\"\")","v":""},""]
[null,null,"",null,null,null,{"$f":"SUM(D328:F328)","v":0},null,null,null,{"$f":"SUM(H328:J328)","v":0},null,null,null,{"$f":"SUM(L328:N328)","v":0},null,null,null,{"$f":"SUM(P328:R328)","v":0},{"$f":"G328+K328+O328+S328","v":0},"","",{"$f":"IF(B328<>\"\",IF(V328<>0,ROUND(T328*V328,2),ROUND(T328*U328,2)),\"\")","v":""}]
[null,null,"",null,null,null,0,null,null,null,0,null,null,null,0,null,null,null,0,0,"","",""]
[null,null,"",null,null,null,0,null,null,null,0,null,null,null,0,null,null,null,0,0,"","",""]
[null,null,"",null,null,null,0,null,null,null,0,null,null,null,0,null,null,null,0,0,"","",""]
[null,null,"",null,null,null,0,null,null,null,0,null,null,null,0,null,null,null,0,0,"","",""]
[null,null,"",null,null,null,0,null,null,null,0,null,null,null,0,null,null,null,0,0,"","",""]
[null,null,"",null,null,null,0,null,null,null,0,null,null,null,0,null,null,null,0,0,"","",""]
[null,null,"",null,null,null,0,null,null,null,0,null,null,null,0,null,null,null,0,0,"","",""]
[null,null,"",null,null,null,0,null,null,null,0,null,null,null,0,null,null,null,0,0,"","",""]
[null,null,"",null,null,null,0,null,null,null,0,null,null,null,0,null,null,null,0,0,"","",""]
[null,null,"",null,null,null,0,null,null,null,0,null,null,null,0,null,null,null,0,0,"","",""]
[null,null,"",null,null,null,0,null,null,null,0,null,null,null,0,null,null,null,0,0,"","",""]
[null,null,"",null,null,null,0,null,null,null,0,null,null,null,0,null,null,null,0,0,"","",""]
[null,null,"",null,null,null,0,null,null,null,0,null,null,null,0,null,null,null,0,0,"","",""]
[null,null,"",null,null,null,0,null,null,null,0,null,null,null,0,null,null,null,0,0,"","",""]
[null,null,"",null,null,null,0,null,null,null,0,null,null,null,0,null,null,null,0,0,"","",""]
[null,null,"",null,null,null,0,null,null,null,0,null,null,null,0,null,null,null,0,0,"","",""]
[null,null,"",null,null,null,0,null,null,null,0,null,null,null,0,null,null,null,0,0,"","",""]
[null,null,"",null,null,null,0,null,null,null,0,null,null,null,0,null,null,null,0,0,"","",""]
[null,null,"",null,null,null,0,null,null,null,0,null,null,null,0,null,null,null,0,0,"","",""]
[null,null,"",null,null,null,0,null,null,null,0,null,null,null,0,null,null,null,0,0,"","",""]
[null,null,"",null,null,null,0,null,null,null,0,null,null,null,0,null,null,null,0,0,"","",""]
[null,null,"",null,null,null,0,null,null,null,0,null,null,null,0,null,null,null,0,0,"","",""]
[null,null,"",null,null,null,0,null,null,null,0,null,null,null,0,null,null,null,0,0,"","",""]
[null,null,"",null,null,null,0,null,null,null,0,null,null,null,0,null,null,null,0,0,"","",""]
[null,null,"",null,null,null,0,null,null,null,0,null,null,null,0,null,null,null,0,0,"","",""]
[null,null,"",null,null,null,0,null,null,null,0,null,null,null,0,null,null,null,0,0,"","",""]
[null,null,"",null,null,null,0,null,null,null,0,null,null,null,0,null,null,null,0,0,"","",""]
[null,null,"",null,null,null,0,null,null,null,0,null,null,null,0,null,null,null,0,0,"","",""]
[null,null,"",null,null,null,0,null,null,null,0,null,null,null,0,null,null,null,0,0,"","",""]
[null,null,"",null,null,null,0,null,null,null,0,null,null,null,0,null,null,null,0,0,"","",""]
[null,null,"",null,null,null,0,null,null,null,0,null,null,null,0,null,null,null,0,0,"","",""]
[null,null,"",null,null,null,0,null,null,null,0,null,null,null,0,null,null,null,0,0,"","",""]
[null,null,"",null,null,null,0,null,null,null,0,null,null,null,0,null,null,null,0,0,"","",""]
[null,null,"",null,null,null,0,null,null,null,0,null,null,null,0,null,null,null,0,0,"","",""]
[null,null,"",null,null,null,0,null,null,null,0,null,null,null,0,null,null,null,0,0,"","",""]
[null,null,"",null,null,null,0,null,null,null,0,null,null,null,0,null,null,null,0,0,"","",""]
[null,null,"",null,null,null,0,null,null,null,0,null,null,null,0,null,null,null,0,0,"","",""]
[null,null,"",null,null,null,0,null,null,null,0,null,null,null,0,null,null,null,0,0,"","",""]
[null,null,"",null,null,null,0,null,null,null,0,null,null,null,0,null,null,null,0,0,"","",""]
[null,null,"",null,null,null,0,null,null,null,0,null,null,null,0,null,null,null,0,0,"","",""]
[null,null,"",null,null,null,0,null,null,null,0,null,null,null,0,null,null,null,0,0,"","",""]
[null,null,"",null,null,null,0,null,null,null,0,null,null,null,0,null,null,null,0,0,"","",""]
[null,null,"",null,null,null,0,null,null,null,0,null,null,null,0,null,null,null,0,0,"","",""]
[null,null,"",null,null,null,0,null,null,null,0,null,null,null,0,null,null,null,0,0,"","",""]
[null,null,"",null,null,null,0,null,null,null,0,null,null,null,0,null,null,null,0,0,"","",""]
[null,null,"",null,null,null,0,null,null,null,0,null,null,null,0,null,null,null,0,0,"","",""]
[null,null,"",null,null,null,0,null,null,null,0,null,null,null,0,null,null,null,0,0,"","",""]
[null,null,"",null,null,null,0,null,null,null,0,null,null,null,0,null,null,null,0,0,"","",""]
[null,null,"",null,null,null,0,null,null,null,0,null,null,null,0,null,null,null,0,0,"","",""]
[null,null,"",null,null,null,0,null,null,null,0,null,null,null,0,null,null,null,0,0,"","",""]
[null,null,"",null,null,null,0,null,null,null,0,null,null,null,0,null,null,null,0,0,"","",""]
[null,null,"",null,null,null,0,null,null,null,0,null,null,null,0,null,null,null,0,0,"","",""]
[null,null,"",null,null,null,0,null,null,null,0,null,null,null,0,null,null,null,0,0,"","",""]
[null,null,"",null,null,null,0,null,null,null,0,null,null,null,0,null,null,null,0,0,"","",""]
[null,null,"",null,null,null,0,null,null,null,0,null,null,null,0,null,null,null,0,0,"","",""]
[null,null,"",null,null,null,0,null,null,null,0,null,null,null,0,null,null,null,0,0,"","",""]
[null,null,"",null,null,null,0,null,null,null,0,null,null,null,0,null,null,null,0,0,"","",""]
[null,null,"",null,null,null,0,null,null,null,0,null,null,null,0,null,null,null,0,0,"","",""]
[null,null,"",null,null,null,0,null,null,null,0,null,null,null,0,null,null,null,0,0,"","",""]
[null,null,"",null,null,null,0,null,null,null,0,null,null,null,0,null,null,null,0,0,"","",""]
[null,null,"",null,null,null,0,null,null,null,0,null,null,null,0,null,null,null,0,0,"","",""]
[null,null,"",null,null,null,0,null,null,null,0,null,null,null,0,null,null,null,0,0,"","",""]
[null,null,{"$f":"IF($B391<>\"\",VLOOKUP($B391,Tbl_Reference,2,0),\"\")","v":""},null,null,null,0,null,null,null,0,null,null,null,0,null,null,null,0,0,{"$f":"IF($B391<>\"\",VLOOKUP($B391,Tbl_Reference,3,0),\"\")","v":""},{"$f":"IF($B391<>\"\",VLOOKUP($B391,Tbl_Reference,4,0),\"\")","v":""},""]
[null,null,"",null,null,null,{"$f":"SUM(D392:F392)","v":0},null,null,null,{"$f":"SUM(H392:J392)","v":0},null,null,null,{"$f":"SUM(L392:N392)","v":0},null,null,null,{"$f":"SUM(P392:R392)","v":0},{"$f":"G392+K392+O392+S392","v":0},"","",{"$f":"IF(B392<>\"\",IF(V392<>0,ROUND(T392*V392,2),ROUND(T392*U392,2)),\"\")","v":""}]
[null,null,"",null,null,null,0,null,null,null,0,null,null,null,0,null,null,null,0,0,"","",""]
[null,null,"",null,null,null,0,null,null,null,0,null,null,null,0,null,null,null,0,0,"","",""]
[null,null,"",null,null,null,0,null,null,null,0,null,null,null,0,null,null,null,0,0,"","",""]
[null,null,"",null,null,null,0,null,null,null,0,null,null,null,0,null,null,null,0,0,"","",""]
[null,null,"",null,null,null,0,null,null,null,0,null,null,null,0,null,null,null,0,0,"","",""]
[null,null,"",null,null,null,0,null,null,null,0,null,null,null,0,null,null,null,0,0,"","",""]
[null,null,"",null,null,null,0,null,null,null,0,null,null,null,0,null,null,null,0,0,"","",""]
[null,null,"",null,null,null,0,null,null,null,0,null,null,null,0,null,null,null,0,0,"","",""]
[null,null,"",null,null,null,0,null,null,null,0,null,null,null,0,null,null,null,0,0,"","",""]
[null,null,"",null,null,null,0,null,null,null,0,null,null,null,0,null,null,null,0,0,"","",""]
[null,null,"",null,null,null,0,null,null,null,0,null,null,null,0,null,null,null,0,0,"","",""]
[null,null,"",null,null,null,0,null,null,null,0,null,null,null,0,null,null,null,0,0,"","",""]
[null,null,"",null,null,null,0,null,null,null,0,null,null,null,0,null,null,null,0,0,"","",""]
[null,null,"",null,null,null,0,null,null,null,0,null,null,null,0,null,null,null,0,0,"","",""]
[null,null,"",null,null,null,0,null,null,null,0,null,null,null,0,null,null,null,0,0,"","",""]
[null,null,"",null,null,null,0,null,null,null,0,null,null,null,0,null,null,null,0,0,"","",""]
[null,null,"",null,null,null,0,null,null,null,0,null,null,null,0,null,null,null,0,0,"","",""]
[null,null,"",null,null,null,0,null,null,null,0,null,null,null,0,null,null,null,0,0,"","",""]
[null,null,"",null,null,null,0,null,null,null,0,null,null,null,0,null,null,null,0,0,"","",""]
[null,null,"",null,null,null,0,null,null,null,0,null,null,null,0,null,null,null,0,0,"","",""]
[null,null,"",null,null,null,0,null,null,null,0,null,null,null,0,null,null,null,0,0,"","",""]
[null,null,"",null,null,null,0,null,null,null,0,null,null,null,0,null,null,null,0,0,"","",""]
[null,null,"",null,null,null,0,null,null,null,0,null,null,null,0,null,null,null,0,0,"","",""]
[null,null,"",null,null,null,0,null,null,null,0,null,null,null,0,null,null,null,0,0,"","",""]
[null,null,"",null,null,null,0,null,null,null,0,null,null,null,0,null,null,null,0,0,"","",""]
[null,null,"",null,null,null,0,null,null,null,0,null,null,null,0,null,null,null,0,0,"","",""]
[null,null,"",null,null,null,0,null,null,null,0,null,null,null,0,null,null,null,0,0,"","",""]
[null,null,"",null,null,null,0,null,null,null,0,null,null,null,0,null,null,null,0,0,"","",""]
[null,null,"",null,null,null,0,null,null,null,0,null,null,null,0,null,null,null,0,0,"","",""]
[null,null,"",null,null,null,0,null,null,null,0,null,null,null,0,null,null,null,0,0,"","",""]
[null,null,"",null,null,null,0,null,null,null,0,null,null,null,0,null,null,null,0,0,"","",""]
[null,null,"",null,null,null,0,null,null,null,0,null,null,null,0,null,null,null,0,0,"","",""]
[null,null,"",null,null,null,0,null,null,null,0,null,null,null,0,null,null,null,0,0,"","",""]
[null,null,"",null,null,null,0,null,null,null,0,null,null,null,0,null,null,null,0,0,"","",""]
[null,null,"",null,null,null,0,null,null,null,0,null,null,null,0,null,null,null,0,0,"","",""]
[null,null,"",null,null,null,0,null,null,null,0,null,null,null,0,null,null,null,0,0,"","",""]
[null,null,"",null,null,null,0,null,null,null,0,null,null,null,0,null,null,null,0,0,"","",""]
[null,null,"",null,null,null,0,null,null,null,0,null,null,null,0,null,null,null,0,0,"","",""]
[null,null,"",null,null,null,0,null,null,null,0,null,null,null,0,null,null,null,0,0,"","",""]
[null,null,"",null,null,null,0,null,null,null,0,null,null,null,0,null,null,null,0,0,"","",""]
[null,null,"",null,null,null,0,null,null,null,0,null,null,null,0,null,null,null,0,0,"","",""]
[null,null,"",null,null,null,0,null,null,null,0,null,null,null,0,null,null,null,0,0,"","",""]
[null,null,"",null,null,null,0,null,null,null,0,null,null,null,0,null,null,null,0,0,"","",""]
[null,null,"",null,null,null,0,null,null,null,0,null,null,null,0,null,null,null,0,0,"","",""]
[null,null,"",null,null,null,0,null,null,null,0,null,null,null,0,null,null,null,0,0,"","",""]
[null,null,"",null,null,null,0,null,null,null,0,null,null,null,0,null,null,null,0,0,"","",""]
[null,null,"",null,null,null,0,null,null,null,0,null,null,null,0,null,null,null,0,0,"","",""]
[null,null,"",null,null,null,0,null,null,null,0,null,null,null,0,null,null,null,0,0,"","",""]
[null,null,"",null,null,null,0,null,null,null,0,null,null,null,0,null,null,null,0,0,"","",""]
[null,null,"",null,null,null,0,null,null,null,0,null,null,null,0,null,null,null,0,0,"","",""]
[null,null,"",null,null,null,0,null,null,null,0,null,null,null,0,null,null,null,0,0,"","",""]
[null,null,"",null,null,null,0,null,null,null,0,null,null,null,0,null,null,null,0,0,"","",""]
[null,null,"",null,null,null,0,null,null,null,0,null,null,null,0,null,null,null,0,0,"","",""]
[null,null,"",null,null,null,0,null,null,null,0,null,null,null,0,null,null,null,0,0,"","",""]
[null,null,"",null,null,null,0,null,null,null,0,null,null,null,0,null,null,null,0,0,"","",""]
[null,null,"",null,null,null,0,null,null,null,0,null,null,null,0,null,null,null,0,0,"","",""]
[null,null,"",null,null,null,0,null,null,null,0,null,null,null,0,null,null,null,0,0,"","",""]
[null,null,"",null,null,null,0,null,null,null,0,null,null,null,0,null,null,null,0,0,"","",""]
[null,null,"",null,null,null,0,null,null,null,0,null,null,null,0,null,null,null,0,0,"","",""]
[null,null,"",null,null,null,0,null,null,null,0,null,null,null,0,null,null,null,0,0,"","",""]
[null,null,"",null,null,null,0,null,null,null,0,null,null,null,0,null,null,null,0,0,"","",""]
[null,null,"",null,null,null,0,null,null,null,0,null,null,null,0,null,null,null,0,0,"","",""]
[null,null,{"$f":"IF($B455<>\"\",VLOOKUP($B455,Tbl_Reference,2,0),\"\")","v":""},null,null,null,0,null,null,null,0,null,null,null,0,null,null,null,0,0,{"$f":"IF($B455<>\"\",VLOOKUP($B455,Tbl_Reference,3,0),\"\")","v":""},{"$f":"IF($B455<>\"\",VLOOKUP($B455,Tbl_Reference,4,0),\"\")","v":""},""]
[null,null,"",null,null,null,{"$f":"SUM(D456:F456)","v":0},null,null,null,{"$f":"SUM(H456:J456)","v":0},null,null,null,{"$f":"SUM(L456:N456)","v":0},null,null,null,{"$f":"SUM(P456:R456)","v":0},{"$f":"G456+K456+O456+S456","v":0},"","",{"$f":"IF(B456<>\"\",IF(V456<>0,ROUND(T456*V456,2),ROUND(T456*U456,2)),\"\")","v":""}]
[null,null,"",null,null,null,0,null,null,null,0,null,null,null,0,null,null,null,0,0,"","",""]
[null,null,"",null,null,null,0,null,null,null,0,null,null,null,0,null,null,null,0,0,"","",""]
[null,null,"",null,null,null,0,null,null,null,0,null,null,null,0,null,null,null,0,0,"","",""]
[null,null,"",null,null,null,0,null,null,null,0,null,null,null,0,null,null,null,0,0,"","",""]
[null,null,"",null,null,null,0,null,null,null,0,null,null,null,0,null,null,null,0,0,"","",""]
[null,null,"",null,null,null,0,null,null,null,0,null,null,null,0,null,null,null,0,0,"","",""]
[null,null,"",null,null,null,0,null,null,null,0,null,null,null,0,null,null,null,0,0,"","",""]
[null,null,"",null,null,null,0,null,null,null,0,null,null,null,0,null,null,null,0,0,"","",""]
[null,null,"",null,null,null,0,null,null,null,0,null,null,null,0,null,null,null,0,0,"","",""]
[null,null,"",null,null,null,0,null,null,null,0,null,null,null,0,null,null,null,0,0,"","",""]
[null,null,"",null,null,null,0,null,null,null,0,null,null,null,0,null,null,null,0,0,"","",""]
[null,null,"",null,null,null,0,null,null,null,0,null,null,null,0,null,null,null,0,0,"","",""]
[null,null,"",null,null,null,0,null,null,null,0,null,null,null,0,null,null,null,0,0,"","",""]
[null,null,"",null,null,null,0,null,null,null,0,null,null,null,0,null,null,null,0,0,"","",""]
[null,null,"",null,null,null,0,null,null,null,0,null,null,null,0,null,null,null,0,0,"","",""]
[null,null,"",null,null,null,0,null,null,null,0,null,null,null,0,null,null,null,0,0,"","",""]
[null,null,"",null,null,null,0,null,null,null,0,null,null,null,0,null,null,null,0,0,"","",""]
[null,null,"",null,null,null,0,null,null,null,0,null,null,null,0,null,null,null,0,0,"","",""]
[null,null,"",null,null,null,0,null,null,null,0,null,null,null,0,null,null,null,0,0,"","",""]
[null,null,"",null,null,null,0,null,null,null,0,null,null,null,0,null,null,null,0,0,"","",""]
[null,null,"",null,null,null,0,null,null,null,0,null,null,null,0,null,null,null,0,0,"","",""]
[null,null,"",null,null,null,0,null,null,null,0,null,null,null,0,null,null,null,0,0,"","",""]
[null,null,"",null,null,null,0,null,null,null,0,null,null,null,0,null,null,null,0,0,"","",""]
[null,null,"",null,null,null,0,null,null,null,0,null,null,null,0,null,null,null,0,0,"","",""]
[null,null,"",null,null,null,0,null,null,null,0,null,null,null,0,null,null,null,0,0,"","",""]
[null,null,"",null,null,null,0,null,null,null,0,null,null,null,0,null,null,null,0,0,"","",""]
[null,null,"",null,null,null,0,null,null,null,0,null,null,null,0,null,null,null,0,0,"","",""]
[null,null,"",null,null,null,0,null,null,null,0,null,null,null,0,null,null,null,0,0,"","",""]
[null,null,"",null,null,null,0,null,null,null,0,null,null,null,0,null,null,null,0,0,"","",""]
[null,null,"",null,null,null,0,null,null,null,0,null,null,null,0,null,null,null,0,0,"","",""]
[null,null,"",null,null,null,0,null,null,null,0,null,null,null,0,null,null,null,0,0,"","",""]
[null,null,"",null,null,null,0,null,null,null,0,null,null,null,0,null,null,null,0,0,"","",""]
[null,null,"",null,null,null,0,null,null,null,0,null,null,null,0,null,null,null,0,0,"","",""]
[null,null,"",null,null,null,0,null,null,null,0,null,null,null,0,null,null,null,0,0,"","",""]
[null,null,"",null,null,null,0,null,null,null,0,null,null,null,0,null,null,null,0,0,"","",""]
[null,null,"",null,null,null,0,null,null,null,0,null,null,null,0,null,null,null,0,0,"","",""]
[null,null,"",null,null,null,0,null,null,null,0,null,null,null,0,null,null,null,0,0,"","",""]
[null,null,"",null,null,null,0,null,null,null,0,null,null,null,0,null,null,null,0,0,"","",""]
[null,null,"",null,null,null,0,null,null,null,0,null,null,null,0,null,null,null,0,0,"","",""]
[null,null,"",null,null,null,0,null,null,null,0,null,null,null,0,null,null,null,0,0,"","",""]
[null,null,"",null,null,null,0,null,null,null,0,null,null,null,0,null,null,null,0,0,"","",""]
[null,null,"",null,null,null,0,null,null,null,0,null,null,null,0,null,null,null,0,0,"","",""]
[null,null,"",null,null,null,0,null,null,null,0,null,null,null,0,null,null,null,0,0,"","",""]
[null,null,"",null,null,null,0,null,null,null,0,null,null,null,0,null,null,null,0,0,"","",""]
[null,null,"",null,null,null,0,null,null,null,0,null,null,null,0,null,null,null,0,0,"","",""]
[null,null,"",null,null,null,0,null,null,null,0,null,null,null,0,null,null,null,0,0,"","",""]
[null,null,"",null,null,null,0,null,null,null,0,null,null,null,0,null,null,null,0,0,"","",""]
[null,null,"",null,null,null,0,null,null,null,0,null,null,null,0,null,null,null,0,0,"","",""]
[null,null,"",null,null,null,0,null,null,null,0,null,null,null,0,null,null,null,0,0,"","",""]
[null,null,"",null,null,null,0,null,null,null,0,null,null,null,0,null,null,null,0,0,"","",""]
[null,null,"",null,null,null,0,null,null,null,0,null,null,null,0,null,null,null,0,0,"","",""]
[null,null,"",null,null,null,0,null,null,null,0,null,null,null,0,null,null,null,0,0,"","",""]
[null,null,"",null,null,null,0,null,null,null,0,null,null,null,0,null,null,null,0,0,"","",""]
[null,null,"",null,null,null,0,null,null,null,0,null,null,null,0,null,null,null,0,0,"","",""]
[null,null,"",null,null,null,0,null,null,null,0,null,null,null,0,null,null,null,0,0,"","",""]
[null,null,"",null,null,null,0,null,null,null,0,null,null,null,0,null,null,null,0,0,"","",""]
[null,null,"",null,null,null,0,null,null,null,0,null,null,null,0,null,null,null,0,0,"","",""]
[null,null,"",null,null,null,0,null,null,null,0,null,null,null,0,null,null,null,0,0,"","",""]
[null,null,"",null,null,null,0,null,null,null,0,null,null,null,0,null,null,null,0,0,"","",""]
[null,null,"",null,null,null,0,null,null,null,0,null,null,null,0,null,null,null,0,0,"","",""]
[null,null,"",null,null,null,0,null,null,null,0,null,null,null,0,null,null,null,0,0,"","",""]
[null,null,"",null,null,null,0,null,null,null,0,null,null,null,0,null,null,null,0,0,"","",""]
[null,null,{"$f":"IF($B519<>\"\",VLOOKUP($B519,Tbl_Reference,2,0),\"\")","v":""},null,null,null,0,null,null,null,0,null,null,null,0,null,null,null,0,0,{"$f":"IF($B519<>\"\",VLOOKUP($B519,Tbl_Reference,3,0),\"\")","v":""},{"$f":"IF($B519<>\"\",VLOOKUP($B519,Tbl_Reference,4,0),\"\")","v":""},""]
[null,null,"",null,null,null,{"$f":"SUM(D520:F520)","v":0},null,null,null,{"$f":"SUM(H520:J520)","v":0},null,null,null,{"$f":"SUM(L520:N520)","v":0},null,null,null,{"$f":"SUM(P520:R520)","v":0},{"$f":"G520+K520+O520+S520","v":0},"","",{"$f":"IF(B520<>\"\",IF(V520<>0,ROUND(T520*V520,2),ROUND(T520*U520,2)),\"\")","v":""}]
[null,null,"",null,null,null,0,null,null,null,0,null,null,null,0,null,null,null,0,0,"","",""]
[null,null,"",null,null,null,0,null,null,null,0,null,null,null,0,null,null,null,0,0,"","",""]
[null,null,"",null,null,null,0,null,null,null,0,null,null,null,0,null,null,null,0,0,"","",""]
[null,null,"",null,null,null,0,null,null,null,0,null,null,null,0,null,null,null,0,0,"","",""]
[null,null,"",null,null,null,0,null,null,null,0,null,null,null,0,null,null,null,0,0,"","",""]
[null,null,"",null,null,null,0,null,null,null,0,null,null,null,0,null,null,null,0,0,"","",""]
[null,null,"",null,null,null,0,null,null,null,0,null,null,null,0,null,null,null,0,0,"","",""]
[null,null,"",null,null,null,0,null,null,null,0,null,null,null,0,null,null,null,0,0,"","",""]
[null,null,"",null,null,null,0,null,null,null,0,null,null,null,0,null,null,null,0,0,"","",""]
[null,null,"",null,null,null,0,null,null,null,0,null,null,null,0,null,null,null,0,0,"","",""]
[null,null,"",null,null,null,0,null,null,null,0,null,null,null,0,null,null,null,0,0,"","",""]
[null,null,"",null,null,null,0,null,null,null,0,null,null,null,0,null,null,null,0,0,"","",""]
[null,null,"",null,null,null,0,null,null,null,0,null,null,null,0,null,null,null,0,0,"","",""]
[null,null,"",null,null,null,0,null,null,null,0,null,null,null,0,null,null,null,0,0,"","",""]
[null,null,"",null,null,null,0,null,null,null,0,null,null,null,0,null,null,null,0,0,"","",""]
[null,null,"",null,null,null,0,null,null,null,0,null,null,null,0,null,null,null,0,0,"","",""]
[null,null,"",null,null,null,0,null,null,null,0,null,null,null,0,null,null,null,0,0,"","",""]
[null,null,"",null,null,null,0,null,null,null,0,null,null,null,0,null,null,null,0,0,"","",""]
[null,null,"",null,null,null,0,null,null,null,0,null,null,null,0,null,null,null,0,0,"","",""]
[null,null,"",null,null,null,0,null,null,null,0,null,null,null,0,null,null,null,0,0,"","",""]
[null,null,"",null,null,null,0,null,null,null,0,null,null,null,0,null,null,null,0,0,"","",""]
[null,null,"",null,null,null,0,null,null,null,0,null,null,null,0,null,null,null,0,0,"","",""]
[null,null,"",null,null,null,0,null,null,null,0,null,null,null,0,null,null,null,0,0,"","",""]
[null,null,"",null,null,null,0,null,null,null,0,null,null,null,0,null,null,null,0,0,"","",""]
[null,null,"",null,null,null,0,null,null,null,0,null,null,null,0,null,null,null,0,0,"","",""]
[null,null,"",null,null,null,0,null,null,null,0,null,null,null,0,null,null,null,0,0,"","",""]
[null,null,"",null,null,null,0,null,null,null,0,null,null,null,0,null,null,null,0,0,"","",""]
[null,null,"",null,null,null,0,null,null,null,0,null,null,null,0,null,null,null,0,0,"","",""]
[null,null,"",null,null,null,0,null,null,null,0,null,null,null,0,null,null,null,0,0,"","",""]
[null,null,"",null,null,null,0,null,null,null,0,null,null,null,0,null,null,null,0,0,"","",""]
[null,null,"",null,null,null,0,null,null,null,0,null,null,null,0,null,null,null,0,0,"","",""]
[null,null,"",null,null,null,0,null,null,null,0,null,null,null,0,null,null,null,0,0,"","",""]
[null,null,"",null,null,null,0,null,null,null,0,null,null,null,0,null,null,null,0,0,"","",""]
[null,null,"",null,null,null,0,null,null,null,0,null,null,null,0,null,null,null,0,0,"","",""]
[null,null,"",null,null,null,0,null,null,null,0,null,null,null,0,null,null,null,0,0,"","",""]
[null,null,"",null,null,null,0,null,null,null,0,null,null,null,0,null,null,null,0,0,"","",""]
[null,null,"",null,null,null,0,null,null,null,0,null,null,null,0,null,null,null,0,0,"","",""]
[null,null,"",null,null,null,0,null,null,null,0,null,null,null,0,null,null,null,0,0,"","",""]
[null,null,"",null,null,null,0,null,null,null,0,null,null,null,0,null,null,null,0,0,"","",""]
[null,null,"",null,null,null,0,null,null,null,0,null,null,null,0,null,null,null,0,0,"","",""]
[null,null,"",null,null,null,0,null,null,null,0,null,null,null,0,null,null,null,0,0,"","",""]
[null,null,"",null,null,null,0,null,null,null,0,null,null,null,0,null,null,null,0,0,"","",""]
[null,null,"",null,null,null,0,null,null,null,0,null,null,null,0,null,null,null,0,0,"","",""]
[null,null,"",null,null,null,0,null,null,null,0,null,null,null,0,null,null,null,0,0,"","",""]
[null,null,"",null,null,null,0,null,null,null,0,null,null,null,0,null,null,null,0,0,"","",""]
[null,null,"",null,null,null,0,null,null,null,0,null,null,null,0,null,null,null,0,0,"","",""]
[null,null,"",null,null,null,0,null,null,null,0,null,null,null,0,null,null,null,0,0,"","",""]
[null,null,"",null,null,null,0,null,null,null,0,null,null,null,0,null,null,null,0,0,"","",""]
[null,null,"",null,null,null,0,null,null,null,0,null,null,null,0,null,null,null,0,0,"","",""]
[null,null,"",null,null,null,0,null,null,null,0,null,null,null,0,null,null,null,0,0,"","",""]
[null,null,"",null,null,null,0,null,null,null,0,null,null,null,0,null,null,null,0,0,"","",""]
[null,null,"",null,null,null,0,null,null,null,0,null,null,null,0,null,null,null,0,0,"","",""]
[null,null,"",null,null,null,0,null,null,null,0,null,null,null,0,null,null,null,0,0,"","",""]
[null,null,"",null,null,null,0,null,null,null,0,null,null,null,0,null,null,null,0,0,"","",""]
[null,null,"",null,null,null,0,null,null,null,0,null,null,null,0,null,null,null,0,0,"","",""]
[null,null,"",null,null,null,0,null,null,null,0,null,null,null,0,null,null,null,0,0,"","",""]
[null,null,"",null,null,null,0,null,null,null,0,null,null,null,0,null,null,null,0,0,"","",""]
[null,null,"",null,null,null,0,null,null,null,0,null,null,null,0,null,null,null,0,0,"","",""]
[null,null,"",null,null,null,0,null,null,null,0,null,null,null,0,null,null,null,0,0,"","",""]
[null,null,"",null,null,null,0,null,null,null,0,null,null,null,0,null,null,null,0,0,"","",""]
[null,null,"",null,null,null,0,null,null,null,0,null,null,null,0,null,null,null,0,0,"","",""]
[null,null,"",null,null,null,0,null,null,null,0,null,null,null,0,null,null,null,0,0,"","",""]
[null,null,{"$f":"IF($B583<>\"\",VLOOKUP($B583,Tbl_Reference,2,0),\"\")","v":""},null,null,null,0,null,null,null,0,null,null,null,0,null,null,null,0,0,{"$f":"IF($B583<>\"\",VLOOKUP($B583,Tbl_Reference,3,0),\"\")","v":""},{"$f":"IF($B583<>\"\",VLOOKUP($B583,Tbl_Reference,4,0),\"\")","v":""},""]
[null,null,"",null,null,null,{"$f":"SUM(D584:F584)","v":0},null,null,null,{"$f":"SUM(H584:J584)","v":0},null,null,null,{"$f":"SUM(L584:N584)","v":0},null,null,null,{"$f":"SUM(P584:R584)","v":0},{"$f":"G584+K584+O584+S584","v":0},"","",{"$f":"IF(B584<>\"\",IF(V584<>0,ROUND(T584*V584,2),ROUND(T584*U584,2)),\"\")","v":""}]
[null,null,"",null,null,null,0,null,null,null,0,null,null,null,0,null,null,null,0,0,"","",""]
[null,null,"",null,null,null,0,null,null,null,0,null,null,null,0,null,null,null,0,0,"","",""]
[null,null,"",null,null,null,0,null,null,null,0,null,null,null,0,null,null,null,0,0,"","",""]
[null,null,"",null,null,null,0,null,null,null,0,null,null,null,0,null,null,null,0,0,"","",""]
[null,null,"",null,null,null,0,null,null,null,0,null,null,null,0,null,null,null,0,0,"","",""]
[null,null,"",null,null,null,0,null,null,null,0,null,null,null,0,null,null,null,0,0,"","",""]
[null,null,"",null,null,null,0,null,null,null,0,null,null,null,0,null,null,null,0,0,"","",""]
[null,null,"",null,null,null,0,null,null,null,0,null,null,null,0,null,null,null,0,0,"","",""]
[null,null,"",null,null,null,0,null,null,null,0,null,null,null,0,null,null,null,0,0,"","",""]
[null,null,"",null,null,null,0,null,null,null,0,null,null,null,0,null,null,null,0,0,"","",""]
[null,null,"",null,null,null,0,null,null,null,0,null,null,null,0,null,null,null,0,0,"","",""]
[null,null,"",null,null,null,0,null,null,null,0,null,null,null,0,null,null,null,0,0,"","",""]
[null,null,"",null,null,null,0,null,null,null,0,null,null,null,0,null,null,null,0,0,"","",""]
[null,null,"",null,null,null,0,null,null,null,0,null,null,null,0,null,null,null,0,0,"","",""]
[null,null,"",null,null,null,0,null,null,null,0,null,null,null,0,null,null,null,0,0,"","",""]
[null,null,"",null,null,null,0,null,null,null,0,null,null,null,0,null,null,null,0,0,"","",""]
[null,null,"",null,null,null,0,null,null,null,0,null,null,null,0,null,null,null,0,0,"","",""]
[null,null,"",null,null,null,0,null,null,null,0,null,null,null,0,null,null,null,0,0,"","",""]
[null,null,"",null,null,null,0,null,null,null,0,null,null,null,0,null,null,null,0,0,"","",""]
[null,null,"",null,null,null,0,null,null,null,0,null,null,null,0,null,null,null,0,0,"","",""]
[null,null,"",null,null,null,0,null,null,null,0,null,null,null,0,null,null,null,0,0,"","",""]
[null,null,"",null,null,null,0,null,null,null,0,null,null,null,0,null,null,null,0,0,"","",""]
[null,null,"",null,null,null,0,null,null,null,0,null,null,null,0,null,null,null,0,0,"","",""]
[null,null,"",null,null,null,0,null,null,null,0,null,null,null,0,null,null,null,0,0,"","",""]
[null,null,"",null,null,null,0,null,null,null,0,null,null,null,0,null,null,null,0,0,"","",""]
[null,null,"",null,null,null,0,null,null,null,0,null,null,null,0,null,null,null,0,0,"","",""]
[null,null,"",null,null,null,0,null,null,null,0,null,null,null,0,null,null,null,0,0,"","",""]
[null,null,"",null,null,null,0,null,null,null,0,null,null,null,0,null,null,null,0,0,"","",""]
[null,null,"",null,null,null,0,null,null,null,0,null,null,null,0,null,null,null,0,0,"","",""]
[null,null,"",null,null,null,0,null,null,null,0,null,null,null,0,null,null,null,0,0,"","",""]
[null,null,"",null,null,null,0,null,null,null,0,null,null,null,0,null,null,null,0,0,"","",""]
[null,null,"",null,null,null,0,null,null,null,0,null,null,null,0,null,null,null,0,0,"","",""]
[null,null,"",null,null,null,0,null,null,null,0,null,null,null,0,null,null,null,0,0,"","",""]
[null,null,"",null,null,null,0,null,null,null,0,null,null,null,0,null,null,null,0,0,"","",""]
[null,null,"",null,null,null,0,null,null,null,0,null,null,null,0,null,null,null,0,0,"","",""]
[null,null,"",null,null,null,0,null,null,null,0,null,null,null,0,null,null,null,0,0,"","",""]
[null,null,"",null,null,null,0,null,null,null,0,null,null,null,0,null,null,null,0,0,"","",""]
[null,null,"",null,null,null,0,null,null,null,0,null,null,null,0,null,null,null,0,0,"","",""]
[null,null,"",null,null,null,0,null,null,null,0,null,null,null,0,null,null,null,0,0,"","",""]
[null,null,"",null,null,null,0,null,null,null,0,null,null,null,0,null,null,null,0,0,"","",""]
[null,null,"",null,null,null,0,null,null,null,0,null,null,null,0,null,null,null,0,0,"","",""]
[null,null,"",null,null,null,0,null,null,null,0,null,null,null,0,null,null,null,0,0,"","",""]
[null,null,"",null,null,null,0,null,null,null,0,null,null,null,0,null,null,null,0,0,"","",""]
[null,null,"",null,null,null,0,null,null,null,0,null,null,null,0,null,null,null,0,0,"","",""]
[null,null,"",null,null,null,0,null,null,null,0,null,null,null,0,null,null,null,0,0,"","",""]
[null,null,"",null,null,null,0,null,null,null,0,null,null,null,0,null,null,null,0,0,"","",""]
[null,null,"",null,null,null,0,null,null,null,0,null,null,null,0,null,null,null,0,0,"","",""]
[null,null,"",null,null,null,0,null,null,null,0,null,null,null,0,null,null,null,0,0,"","",""]
[null,null,"",null,null,null,0,null,null,null,0,null,null,null,0,null,null,null,0,0,"","",""]
[null,null,"",null,null,null,0,null,null,null,0,null,null,null,0,null,null,null,0,0,"","",""]
[null,null,"",null,null,null,0,null,null,null,0,null,null,null,0,null,null,null,0,0,"","",""]
[null,null,"",null,null,null,0,null,null,null,0,null,null,null,0,null,null,null,0,0,"","",""]
[null,null,"",null,null,null,0,null,null,null,0,null,null,null,0,null,null,null,0,0,"","",""]
[null,null,"",null,null,null,0,null,null,null,0,null,null,null,0,null,null,null,0,0,"","",""]
[null,null,"",null,null,null,0,null,null,null,0,null,null,null,0,null,null,null,0,0,"","",""]
[null,null,"",null,null,null,0,null,null,null,0,null,null,null,0,null,null,null,0,0,"","",""]
[null,null,"",null,null,null,0,null,null,null,0,null,null,null,0,null,null,null,0,0,"","",""]
[null,null,"",null,null,null,0,null,null,null,0,null,null,null,0,null,null,null,0,0,"","",""]
[null,null,"",null,null,null,0,null,null,null,0,null,null,null,0,null,null,null,0,0,"","",""]
[null,null,"",null,null,null,0,null,null,null,0,null,null,null,0,null,null,null,0,0,"","",""]
[null,null,"",null,null,null,0,null,null,null,0,null,null,null,0,null,null,null,0,0,"","",""]
[null,null,"",null,null,null,0,null,null,null,0,null,null,null,0,null,null,null,0,0,"","",""]
[null,null,{"$f":"IF($B647<>\"\",VLOOKUP($B647,Tbl_Reference,2,0),\"\")","v":""},null,null,null,0,null,null,null,0,null,null,null,0,null,null,null,0,0,{"$f":"IF($B647<>\"\",VLOOKUP($B647,Tbl_Reference,3,0),\"\")","v":""},{"$f":"IF($B647<>\"\",VLOOKUP($B647,Tbl_Reference,4,0),\"\")","v":""},""]
[null,null,"",null,null,null,{"$f":"SUM(D648:F648)","v":0},null,null,null,{"$f":"SUM(H648:J648)","v":0},null,null,null,{"$f":"SUM(L648:N648)","v":0},null,null,null,{"$f":"SUM(P648:R648)","v":0},{"$f":"G648+K648+O648+S648","v":0},"","",{"$f":"IF(B648<>\"\",IF(V648<>0,ROUND(T648*V648,2),ROUND(T648*U648,2)),\"\")","v":""}]
[null,null,"",null,null,null,0,null,null,null,0,null,null,null,0,null,null,null,0,0,"","",""]
[null,null,"",null,null,null,0,null,null,null,0,null,null,null,0,null,null,null,0,0,"","",""]
[null,null,"",null,null,null,0,null,null,null,0,null,null,null,0,null,null,null,0,0,"","",""]
[null,null,"",null,null,null,0,null,null,null,0,null,null,null,0,null,null,null,0,0,"","",""]
[null,null,"",null,null,null,0,null,null,null,0,null,null,null,0,null,null,null,0,0,"","",""]
[null,null,"",null,null,null,0,null,null,null,0,null,null,null,0,null,null,null,0,0,"","",""]
[null,null,"",null,null,null,0,null,null,null,0,null,null,null,0,null,null,null,0,0,"","",""]
[null,null,"",null,null,null,0,null,null,null,0,null,null,null,0,null,null,null,0,0,"","",""]
[null,null,"",null,null,null,0,null,null,null,0,null,null,null,0,null,null,null,0,0,"","",""]
[null,null,"",null,null,null,0,null,null,null,0,null,null,null,0,null,null,null,0,0,"","",""]
[null,null,"",null,null,null,0,null,null,null,0,null,null,null,0,null,null,null,0,0,"","",""]
[null,null,"",null,null,null,0,null,null,null,0,null,null,null,0,null,null,null,0,0,"","",""]
[null,null,"",null,null,null,0,null,null,null,0,null,null,null,0,null,null,null,0,0,"","",""]
[null,null,"",null,null,null,0,null,null,null,0,null,null,null,0,null,null,null,0,0,"","",""]
[null,null,"",null,null,null,0,null,null,null,0,null,null,null,0,null,null,null,0,0,"","",""]
[null,null,"",null,null,null,0,null,null,null,0,null,null,null,0,null,null,null,0,0,"","",""]
[null,null,"",null,null,null,0,null,null,null,0,null,null,null,0,null,null,null,0,0,"","",""]
[null,null,"",null,null,null,0,null,null,null,0,null,null,null,0,null,null,null,0,0,"","",""]
[null,null,"",null,null,null,0,null,null,null,0,null,null,null,0,null,null,null,0,0,"","",""]
[null,null,"",null,null,null,0,null,null,null,0,null,null,null,0,null,null,null,0,0,"","",""]
[null,null,"",null,null,null,0,null,null,null,0,null,null,null,0,null,null,null,0,0,"","",""]
[null,null,"",null,null,null,0,null,null,null,0,null,null,null,0,null,null,null,0,0,"","",""]
[null,null,"",null,null,null,0,null,null,null,0,null,null,null,0,null,null,null,0,0,"","",""]
[null,null,"",null,null,null,0,null,null,null,0,null,null,null,0,null,null,null,0,0,"","",""]
[null,null,"",null,null,null,0,null,null,null,0,null,null,null,0,null,null,null,0,0,"","",""]
[null,null,"",null,null,null,0,null,null,null,0,null,null,null,0,null,null,null,0,0,"","",""]
[null,null,"",null,null,null,0,null,null,null,0,null,null,null,0,null,null,null,0,0,"","",""]
[null,null,"",null,null,null,0,null,null,null,0,null,null,null,0,null,null,null,0,0,"","",""]
[null,null,"",null,null,null,0,null,null,null,0,null,null,null,0,null,null,null,0,0,"","",""]
[null,null,"",null,null,null,0,null,null,null,0,null,null,null,0,null,null,null,0,0,"","",""]
[null,null,"",null,null,null,0,null,null,null,0,null,null,null,0,null,null,null,0,0,"","",""]
[null,null,"",null,null,null,0,null,null,null,0,null,null,null,0,null,null,null,0,0,"","",""]
[null,null,"",null,null,null,0,null,null,null,0,null,null,null,0,null,null,null,0,0,"","",""]
[null,null,"",null,null,null,0,null,null,null,0,null,null,null,0,null,null,null,0,0,"","",""]
[null,null,"",null,null,null,0,null,null,null,0,null,null,null,0,null,null,null,0,0,"","",""]
[null,null,"",null,null,null,0,null,null,null,0,null,null,null,0,null,null,null,0,0,"","",""]
[null,null,"",null,null,null,0,null,null,null,0,null,null,null,0,null,null,null,0,0,"","",""]
[null,null,"",null,null,null,0,null,null,null,0,null,null,null,0,null,null,null,0,0,"","",""]
[null,null,"",null,null,null,0,null,null,null,0,null,null,null,0,null,null,null,0,0,"","",""]
[null,null,"",null,null,null,0,null,null,null,0,null,null,null,0,null,null,null,0,0,"","",""]
[null,null,"",null,null,null,0,null,null,null,0,null,null,null,0,null,null,null,0,0,"","",""]
[null,null,"",null,null,null,0,null,null,null,0,null,null,null,0,null,null,null,0,0,"","",""]
[null,null,"",null,null,null,0,null,null,null,0,null,null,null,0,null,null,null,0,0,"","",""]
[null,null,"",null,null,null,0,null,null,null,0,null,null,null,0,null,null,null,0,0,"","",""]
[null,null,"",null,null,null,0,null,null,null,0,null,null,null,0,null,null,null,0,0,"","",""]
[null,null,"",null,null,null,0,null,null,null,0,null,null,null,0,null,null,null,0,0,"","",""]
[null,null,"",null,null,null,0,null,null,null,0,null,null,null,0,null,null,null,0,0,"","",""]
[null,null,"",null,null,null,0,null,null,null,0,null,null,null,0,null,null,null,0,0,"","",""]
[null,null,"",null,null,null,0,null,null,null,0,null,null,null,0,null,null,null,0,0,"","",""]
[null,null,"",null,null,null,0,null,null,null,0,null,null,null,0,null,null,null,0,0,"","",""]
[null,null,"",null,null,null,0,null,null,null,0,null,null,null,0,null,null,null,0,0,"","",""]
[null,null,"",null,null,null,0,null,null,null,0,null,null,null,0,null,null,null,0,0,"","",""]
[null,null,"",null,null,null,0,null,null,null,0,null,null,null,0,null,null,null,0,0,"","",""]
[null,null,"",null,null,null,0,null,null,null,0,null,null,null,0,null,null,null,0,0,"","",""]
[null,null,"",null,null,null,0,null,null,null,0,null,null,null,0,null,null,null,0,0,"","",""]
[null,null,"",null,null,null,0,null,null,null,0,null,null,null,0,null,null,null,0,0,"","",""]
[null,null,"",null,null,null,0,null,null,null,0,null,null,null,0,null,null,null,0,0,"","",""]
[null,null,"",null,null,null,0,null,null,null,0,null,null,null,0,null,null,null,0,0,"","",""]
[null,null,"",null,null,null,0,null,null,null,0,null,null,null,0,null,null,null,0,0,"","",""]
[null,null,"",null,null,null,0,null,null,null,0,null,null,null,0,null,null,null,0,0,"","",""]
[null,null,"",null,null,null,0,null,null,null,0,null,null,null,0,null,null,null,0,0,"","",""]
[null,null,"",null,null,null,0,null,null,null,0,null,null,null,0,null,null,null,0,0,"","",""]
[null,null,{"$f":"IF($B711<>\"\",VLOOKUP($B711,Tbl_Reference,2,0),\"\")","v":""},null,null,null,0,null,null,null,0,null,null,null,0,null,null,null,0,0,{"$f":"IF($B711<>\"\",VLOOKUP($B711,Tbl_Reference,3,0),\"\")","v":""},{"$f":"IF($B711<>\"\",VLOOKUP($B711,Tbl_Reference,4,0),\"\")","v":""},""]
[null,null,"",null,null,null,{"$f":"SUM(D712:F712)","v":0},null,null,null,{"$f":"SUM(H712:J712)","v":0},null,null,null,{"$f":"SUM(L712:N712)","v":0},null,null,null,{"$f":"SUM(P712:R712)","v":0},{"$f":"G712+K712+O712+S712","v":0},"","",{"$f":"IF(B712<>\"\",IF(V712<>0,ROUND(T712*V712,2),ROUND(T712*U712,2)),\"\")","v":""}]
[null,null,"",null,null,null,0,null,null,null,0,null,null,null,0,null,null,null,0,0,"","",""]
[null,null,"",null,null,null,0,null,null,null,0,null,null,null,0,null,null,null,0,0,"","",""]
[null,null,"",null,null,null,0,null,null,null,0,null,null,null,0,null,null,null,0,0,"","",""]
[null,null,"",null,null,null,0,null,null,null,0,null,null,null,0,null,null,null,0,0,"","",""]
[null,null,"",null,null,null,0,null,null,null,0,null,null,null,0,null,null,null,0,0,"","",""]
[null,null,"",null,null,null,0,null,null,null,0,null,null,null,0,null,null,null,0,0,"","",""]
[null,null,"",null,null,null,0,null,null,null,0,null,null,null,0,null,null,null,0,0,"","",""]
[null,null,"",null,null,null,0,null,null,null,0,null,null,null,0,null,null,null,0,0,"","",""]
[null,null,"",null,null,null,0,null,null,null,0,null,null,null,0,null,null,null,0,0,"","",""]
[null,null,"",null,null,null,0,null,null,null,0,null,null,null,0,null,null,null,0,0,"","",""]
[null,null,"",null,null,null,0,null,null,null,0,null,null,null,0,null,null,null,0,0,"","",""]
[null,null,"",null,null,null,0,null,null,null,0,null,null,null,0,null,null,null,0,0,"","",""]
[null,null,"",null,null,null,0,null,null,null,0,null,null,null,0,null,null,null,0,0,"","",""]
[null,null,"",null,null,null,0,null,null,null,0,null,null,null,0,null,null,null,0,0,"","",""]
[null,null,"",null,null,null,0,null,null,null,0,null,null,null,0,null,null,null,0,0,"","",""]
[null,null,"",null,null,null,0,null,null,null,0,null,null,null,0,null,null,null,0,0,"","",""]
[null,null,"",null,null,null,0,null,null,null,0,null,null,null,0,null,null,null,0,0,"","",""]
[null,null,"",null,null,null,0,null,null,null,0,null,null,null,0,null,null,null,0,0,"","",""]
[null,null,"",null,null,null,0,null,null,null,0,null,null,null,0,null,null,null,0,0,"","",""]
[null,null,"",null,null,null,0,null,null,null,0,null,null,null,0,null,null,null,0,0,"","",""]
[null,null,"",null,null,null,0,null,null,null,0,null,null,null,0,null,null,null,0,0,"","",""]
[null,null,"",null,null,null,0,null,null,null,0,null,null,null,0,null,null,null,0,0,"","",""]
[null,null,"",null,null,null,0,null,null,null,0,null,null,null,0,null,null,null,0,0,"","",""]
[null,null,"",null,null,null,0,null,null,null,0,null,null,null,0,null,null,null,0,0,"","",""]
[null,null,"",null,null,null,0,null,null,null,0,null,null,null,0,null,null,null,0,0,"","",""]
[null,null,"",null,null,null,0,null,null,null,0,null,null,null,0,null,null,null,0,0,"","",""]
[null,null,"",null,null,null,0,null,null,null,0,null,null,null,0,null,null,null,0,0,"","",""]
[null,null,"",null,null,null,0,null,null,null,0,null,null,null,0,null,null,null,0,0,"","",""]
[null,null,"",null,null,null,0,null,null,null,0,null,null,null,0,null,null,null,0,0,"","",""]
[null,null,"",null,null,null,0,null,null,null,0,null,null,null,0,null,null,null,0,0,"","",""]
[null,null,"",null,null,null,0,null,null,null,0,null,null,null,0,null,null,null,0,0,"","",""]
[null,null,"",null,null,null,0,null,null,null,0,null,null,null,0,null,null,null,0,0,"","",""]
[null,null,"",null,null,null,0,null,null,null,0,null,null,null,0,null,null,null,0,0,"","",""]
[null,null,"",null,null,null,0,null,null,null,0,null,null,null,0,null,null,null,0,0,"","",""]
[null,null,"",null,null,null,0,null,null,null,0,null,null,null,0,null,null,null,0,0,"","",""]
[null,null,"",null,null,null,0,null,null,null,0,null,null,null,0,null,null,null,0,0,"","",""]
[null,null,"",null,null,null,0,null,null,null,0,null,null,null,0,null,null,null,0,0,"","",""]
[null,null,"",null,null,null,0,null,null,null,0,null,null,null,0,null,null,null,0,0,"","",""]
[null,null,"",null,null,null,0,null,null,null,0,null,null,null,0,null,null,null,0,0,"","",""]
[null,null,"",null,null,null,0,null,null,null,0,null,null,null,0,null,null,null,0,0,"","",""]
[null,null,"",null,null,null,0,null,null,null,0,null,null,null,0,null,null,null,0,0,"","",""]
[null,null,"",null,null,null,0,null,null,null,0,null,null,null,0,null,null,null,0,0,"","",""]
[null,null,"",null,null,null,0,null,null,null,0,null,null,null,0,null,null,null,0,0,"","",""]
[null,null,"",null,null,null,0,null,null,null,0,null,null,null,0,null,null,null,0,0,"","",""]
[null,null,"",null,null,null,0,null,null,null,0,null,null,null,0,null,null,null,0,0,"","",""]
[null,null,"",null,null,null,0,null,null,null,0,null,null,null,0,null,null,null,0,0,"","",""]
[null,null,"",null,null,null,0,null,null,null,0,null,null,null,0,null,null,null,0,0,"","",""]
[null,null,"",null,null,null,0,null,null,null,0,null,null,null,0,null,null,null,0,0,"","",""]
[null,null,"",null,null,null,0,null,null,null,0,null,null,null,0,null,null,null,0,0,"","",""]
[null,null,"",null,null,null,0,null,null,null,0,null,null,null,0,null,null,null,0,0,"","",""]
[null,null,"",null,null,null,0,null,null,null,0,null,null,null,0,null,null,null,0,0,"","",""]
[null,null,"",null,null,null,0,null,null,null,0,null,null,null,0,null,null,null,0,0,"","",""]
[null,null,"",null,null,null,0,null,null,null,0,null,null,null,0,null,null,null,0,0,"","",""]
[null,null,"",null,null,null,0,null,null,null,0,null,null,null,0,null,null,null,0,0,"","",""]
[null,null,"",null,null,null,0,null,null,null,0,null,null,null,0,null,null,null,0,0,"","",""]
[null,null,"",null,null,null,0,null,null,null,0,null,null,null,0,null,null,null,0,0,"","",""]
[null,null,"",null,null,null,0,null,null,null,0,null,null,null,0,null,null,null,0,0,"","",""]
[null,null,"",null,null,null,0,null,null,null,0,null,null,null,0,null,null,null,0,0,"","",""]
[null,null,"",null,null,null,0,null,null,null,0,null,null,null,0,null,null,null,0,0,"","",""]
[null,null,"",null,null,null,0,null,null,null,0,null,null,null,0,null,null,null,0,0,"","",""]
[null,null,"",null,null,null,0,null,null,null,0,null,null,null,0,null,null,null,0,0,"","",""]
[null,null,"",null,null,null,0,null,null,null,0,null,null,null,0,null,null,null,0,0,"","",""]
[null,null,{"$f":"IF($B775<>\"\",VLOOKUP($B775,Tbl_Reference,2,0),\"\")","v":""},null,null,null,0,null,null,null,0,null,null,null,0,null,null,null,0,0,{"$f":"IF($B775<>\"\",VLOOKUP($B775,Tbl_Reference,3,0),\"\")","v":""},{"$f":"IF($B775<>\"\",VLOOKUP($B775,Tbl_Reference,4,0),\"\")","v":""},""]
[null,null,"",null,null,null,{"$f":"SUM(D776:F776)","v":0},null,null,null,{"$f":"SUM(H776:J776)","v":0},null,null,null,{"$f":"SUM(L776:N776)","v":0},null,null,null,{"$f":"SUM(P776:R776)","v":0},{"$f":"G776+K776+O776+S776","v":0},"","",{"$f":"IF(B776<>\"\",IF(V776<>0,ROUND(T776*V776,2),ROUND(T776*U776,2)),\"\")","v":""}]
[null,null,"",null,null,null,0,null,null,null,0,null,null,null,0,null,null,null,0,0,"","",""]
[null,null,"",null,null,null,0,null,null,null,0,null,null,null,0,null,null,null,0,0,"","",""]
[null,null,"",null,null,null,0,null,null,null,0,null,null,null,0,null,null,null,0,0,"","",""]
[null,null,"",null,null,null,0,null,null,null,0,null,null,null,0,null,null,null,0,0,"","",""]
[null,null,"",null,null,null,0,null,null,null,0,null,null,null,0,null,null,null,0,0,"","",""]
[null,null,"",null,null,null,0,null,null,null,0,null,null,null,0,null,null,null,0,0,"","",""]
[null,null,"",null,null,null,0,null,null,null,0,null,null,null,0,null,null,null,0,0,"","",""]
[null,null,"",null,null,null,0,null,null,null,0,null,null,null,0,null,null,null,0,0,"","",""]
[null,null,"",null,null,null,0,null,null,null,0,null,null,null,0,null,null,null,0,0,"","",""]
[null,null,"",null,null,null,0,null,null,null,0,null,null,null,0,null,null,null,0,0,"","",""]
[null,null,"",null,null,null,0,null,null,null,0,null,null,null,0,null,null,null,0,0,"","",""]
[null,null,"",null,null,null,0,null,null,null,0,null,null,null,0,null,null,null,0,0,"","",""]
[null,null,"",null,null,null,0,null,null,null,0,null,null,null,0,null,null,null,0,0,"","",""]
[null,null,"",null,null,null,0,null,null,null,0,null,null,null,0,null,null,null,0,0,"","",""]
[null,null,"",null,null,null,0,null,null,null,0,null,null,null,0,null,null,null,0,0,"","",""]
[null,null,"",null,null,null,0,null,null,null,0,null,null,null,0,null,null,null,0,0,"","",""]
[null,null,"",null,null,null,0,null,null,null,0,null,null,null,0,null,null,null,0,0,"","",""]
[null,null,"",null,null,null,0,null,null,null,0,null,null,null,0,null,null,null,0,0,"","",""]
[null,null,"",null,null,null,0,null,null,null,0,null,null,null,0,null,null,null,0,0,"","",""]
[null,null,"",null,null,null,0,null,null,null,0,null,null,null,0,null,null,null,0,0,"","",""]
[null,null,"",null,null,null,0,null,null,null,0,null,null,null,0,null,null,null,0,0,"","",""]
[null,null,"",null,null,null,0,null,null,null,0,null,null,null,0,null,null,null,0,0,"","",""]
[null,null,"",null,null,null,0,null,null,null,0,null,null,null,0,null,null,null,0,0,"","",""]
[null,null,"",null,null,null,0,null,null,null,0,null,null,null,0,null,null,null,0,0,"","",""]
[null,null,"",null,null,null,0,null,null,null,0,null,null,null,0,null,null,null,0,0,"","",""]
[null,null,"",null,null,null,0,null,null,null,0,null,null,null,0,null,null,null,0,0,"","",""]
[null,null,"",null,null,null,0,null,null,null,0,null,null,null,0,null,null,null,0,0,"","",""]
[null,null,"",null,null,null,0,null,null,null,0,null,null,null,0,null,null,null,0,0,"","",""]
[null,null,"",null,null,null,0,null,null,null,0,null,null,null,0,null,null,null,0,0,"","",""]
[null,null,"",null,null,null,0,null,null,null,0,null,null,null,0,null,null,null,0,0,"","",""]
[null,null,"",null,null,null,0,null,null,null,0,null,null,null,0,null,null,null,0,0,"","",""]
[null,null,"",null,null,null,0,null,null,null,0,null,null,null,0,null,null,null,0,0,"","",""]
[null,null,"",null,null,null,0,null,null,null,0,null,null,null,0,null,null,null,0,0,"","",""]
[null,null,"",null,null,null,0,null,null,null,0,null,null,null,0,null,null,null,0,0,"","",""]
[null,null,"",null,null,null,0,null,null,null,0,null,null,null,0,null,null,null,0,0,"","",""]
[null,null,"",null,null,null,0,null,null,null,0,null,null,null,0,null,null,null,0,0,"","",""]
[null,null,"",null,null,null,0,null,null,null,0,null,null,null,0,null,null,null,0,0,"","",""]
[null,null,"",null,null,null,0,null,null,null,0,null,null,null,0,null,null,null,0,0,"","",""]
[null,null,"",null,null,null,0,null,null,null,0,null,null,null,0,null,null,null,0,0,"","",""]
[null,null,"",null,null,null,0,null,null,null,0,null,null,null,0,null,null,null,0,0,"","",""]
[null,null,"",null,null,null,0,null,null,null,0,null,null,null,0,null,null,null,0,0,"","",""]
[null,null,"",null,null,null,0,null,null,null,0,null,null,null,0,null,null,null,0,0,"","",""]
[null,null,"",null,null,null,0,null,null,null,0,null,null,null,0,null,null,null,0,0,"","",""]
[null,null,"",null,null,null,0,null,null,null,0,null,null,null,0,null,null,null,0,0,"","",""]
[null,null,"",null,null,null,0,null,null,null,0,null,null,null,0,null,null,null,0,0,"","",""]
[null,null,"",null,null,null,0,null,null,null,0,null,null,null,0,null,null,null,0,0,"","",""]
[null,null,"",null,null,null,0,null,null,null,0,null,null,null,0,null,null,null,0,0,"","",""]
[null,null,"",null,null,null,0,null,null,null,0,null,null,null,0,null,null,null,0,0,"","",""]
[null,null,"",null,null,null,0,null,null,null,0,null,null,null,0,null,null,null,0,0,"","",""]
[null,null,"",null,null,null,0,null,null,null,0,null,null,null,0,null,null,null,0,0,"","",""]
[null,null,"",null,null,null,0,null,null,null,0,null,null,null,0,null,null,null,0,0,"","",""]
[null,null,"",null,null,null,0,null,null,null,0,null,null,null,0,null,null,null,0,0,"","",""]
[null,null,"",null,null,null,0,null,null,null,0,null,null,null,0,null,null,null,0,0,"","",""]
[null,null,"",null,null,null,0,null,null,null,0,null,null,null,0,null,null,null,0,0,"","",""]
[null,null,"",null,null,null,0,null,null,null,0,null,null,null,0,null,null,null,0,0,"","",""]
[null,null,"",null,null,null,0,null,null,null,0,null,null,null,0,null,null,null,0,0,"","",""]
[null,null,"",null,null,null,0,null,null,null,0,null,null,null,0,null,null,null,0,0,"","",""]
[null,null,"",null,null,null,0,null,null,null,0,null,null,null,0,null,null,null,0,0,"","",""]
[null,null,"",null,null,null,0,null,null,null,0,null,null,null,0,null,null,null,0,0,"","",""]
[null,null,"",null,null,null,0,null,null,null,0,null,null,null,0,null,null,null,0,0,"","",""]
[null,null,"",null,null,null,0,null,null,null,0,null,null,null,0,null,null,null,0,0,"","",""]
[null,null,"",null,null,null,0,null,null,null,0,null,null,null,0,null,null,null,0,0,"","",""]
[null,null,{"$f":"IF($B839<>\"\",VLOOKUP($B839,Tbl_Reference,2,0),\"\")","v":""},null,null,null,0,null,null,null,0,null,null,null,0,null,null,null,0,0,{"$f":"IF($B839<>\"\",VLOOKUP($B839,Tbl_Reference,3,0),\"\")","v":""},{"$f":"IF($B839<>\"\",VLOOKUP($B839,Tbl_Reference,4,0),\"\")","v":""},""]
[null,null,"",null,null,null,{"$f":"SUM(D840:F840)","v":0},null,null,null,{"$f":"SUM(H840:J840)","v":0},null,null,null,{"$f":"SUM(L840:N840)","v":0},null,null,null,{"$f":"SUM(P840:R840)","v":0},{"$f":"G840+K840+O840+S840","v":0},"","",{"$f":"IF(B840<>\"\",IF(V840<>0,ROUND(T840*V840,2),ROUND(T840*U840,2)),\"\")","v":""}]
[null,null,"",null,null,null,0,null,null,null,0,null,null,null,0,null,null,null,0,0,"","",""]
[null,null,"",null,null,null,0,null,null,null,0,null,null,null,0,null,null,null,0,0,"","",""]
[null,null,"",null,null,null,0,null,null,null,0,null,null,null,0,null,null,null,0,0,"","",""]
[null,null,"",null,null,null,0,null,null,null,0,null,null,null,0,null,null,null,0,0,"","",""]
[null,null,"",null,null,null,0,null,null,null,0,null,null,null,0,null,null,null,0,0,"","",""]
[null,null,"",null,null,null,0,null,null,null,0,null,null,null,0,null,null,null,0,0,"","",""]
[null,null,"",null,null,null,0,null,null,null,0,null,null,null,0,null,null,null,0,0,"","",""]
[null,null,"",null,null,null,0,null,null,null,0,null,null,null,0,null,null,null,0,0,"","",""]
[null,null,"",null,null,null,0,null,null,null,0,null,null,null,0,null,null,null,0,0,"","",""]
[null,null,"",null,null,null,0,null,null,null,0,null,null,null,0,null,null,null,0,0,"","",""]
[null,null,"",null,null,null,0,null,null,null,0,null,null,null,0,null,null,null,0,0,"","",""]
[null,null,"",null,null,null,0,null,null,null,0,null,null,null,0,null,null,null,0,0,"","",""]
[null,null,"",null,null,null,0,null,null,null,0,null,null,null,0,null,null,null,0,0,"","",""]
[null,null,"",null,null,null,0,null,null,null,0,null,null,null,0,null,null,null,0,0,"","",""]
[null,null,"",null,null,null,0,null,null,null,0,null,null,null,0,null,null,null,0,0,"","",""]
[null,null,"",null,null,null,0,null,null,null,0,null,null,null,0,null,null,null,0,0,"","",""]
[null,null,"",null,null,null,0,null,null,null,0,null,null,null,0,null,null,null,0,0,"","",""]
[null,null,"",null,null,null,0,null,null,null,0,null,null,null,0,null,null,null,0,0,"","",""]
[null,null,"",null,null,null,0,null,null,null,0,null,null,null,0,null,null,null,0,0,"","",""]
[null,null,"",null,null,null,0,null,null,null,0,null,null,null,0,null,null,null,0,0,"","",""]
[null,null,"",null,null,null,0,null,null,null,0,null,null,null,0,null,null,null,0,0,"","",""]
[null,null,"",null,null,null,0,null,null,null,0,null,null,null,0,null,null,null,0,0,"","",""]
[null,null,"",null,null,null,0,null,null,null,0,null,null,null,0,null,null,null,0,0,"","",""]
[null,null,"",null,null,null,0,null,null,null,0,null,null,null,0,null,null,null,0,0,"","",""]
[null,null,"",null,null,null,0,null,null,null,0,null,null,null,0,null,null,null,0,0,"","",""]
[null,null,"",null,null,null,0,null,null,null,0,null,null,null,0,null,null,null,0,0,"","",""]
[null,null,"",null,null,null,0,null,null,null,0,null,null,null,0,null,null,null,0,0,"","",""]
[null,null,"",null,null,null,0,null,null,null,0,null,null,null,0,null,null,null,0,0,"","",""]
[null,null,"",null,null,null,0,null,null,null,0,null,null,null,0,null,null,null,0,0,"","",""]
[null,null,"",null,null,null,0,null,null,null,0,null,null,null,0,null,null,null,0,0,"","",""]
[null,null,"",null,null,null,0,null,null,null,0,null,null,null,0,null,null,null,0,0,"","",""]
[null,null,"",null,null,null,0,null,null,null,0,null,null,null,0,null,null,null,0,0,"","",""]
[null,null,"",null,null,null,0,null,null,null,0,null,null,null,0,null,null,null,0,0,"","",""]
[null,null,"",null,null,null,0,null,null,null,0,null,null,null,0,null,null,null,0,0,"","",""]
[null,null,"",null,null,null,0,null,null,null,0,null,null,null,0,null,null,null,0,0,"","",""]
[null,null,"",null,null,null,0,null,null,null,0,null,null,null,0,null,null,null,0,0,"","",""]
[null,null,"",null,null,null,0,null,null,null,0,null,null,null,0,null,null,null,0,0,"","",""]
[null,null,"",null,null,null,0,null,null,null,0,null,null,null,0,null,null,null,0,0,"","",""]
[null,null,"",null,null,null,0,null,null,null,0,null,null,null,0,null,null,null,0,0,"","",""]
[null,null,"",null,null,null,0,null,null,null,0,null,null,null,0,null,null,null,0,0,"","",""]
[null,null,"",null,null,null,0,null,null,null,0,null,null,null,0,null,null,null,0,0,"","",""]
[null,null,"",null,null,null,0,null,null,null,0,null,null,null,0,null,null,null,0,0,"","",""]
[null,null,"",null,null,null,0,null,null,null,0,null,null,null,0,null,null,null,0,0,"","",""]
[null,null,"",null,null,null,0,null,null,null,0,null,null,null,0,null,null,null,0,0,"","",""]
[null,null,"",null,null,null,0,null,null,null,0,null,null,null,0,null,null,null,0,0,"","",""]
[null,null,"",null,null,null,0,null,null,null,0,null,null,null,0,null,null,null,0,0,"","",""]
[null,null,"",null,null,null,0,null,null,null,0,null,null,null,0,null,null,null,0,0,"","",""]
[null,null,"",null,null,null,0,null,null,null,0,null,null,null,0,null,null,null,0,0,"","",""]
[null,null,"",null,null,null,0,null,null,null,0,null,null,null,0,null,null,null,0,0,"","",""]
[null,null,"",null,null,null,0,null,null,null,0,null,null,null,0,null,null,null,0,0,"","",""]
[null,null,"",null,null,null,0,null,null,null,0,null,null,null,0,null,null,null,0,0,"","",""]
[null,null,"",null,null,null,0,null,null,null,0,null,null,null,0,null,null,null,0,0,"","",""]
[null,null,"",null,null,null,0,null,null,null,0,null,null,null,0,null,null,null,0,0,"","",""]
[null,null,"",null,null,null,0,null,null,null,0,null,null,null,0,null,null,null,0,0,"","",""]
[null,null,"",null,null,null,0,null,null,null,0,null,null,null,0,null,null,null,0,0,"","",""]
[null,null,"",null,null,null,0,null,null,null,0,null,null,null,0,null,null,null,0,0,"","",""]
[null,null,"",null,null,null,0,null,null,null,0,null,null,null,0,null,null,null,0,0,"","",""]
[null,null,"",null,null,null,0,null,null,null,0,null,null,null,0,null,null,null,0,0,"","",""]
[null,null,"",null,null,null,0,null,null,null,0,null,null,null,0,null,null,null,0,0,"","",""]
[null,null,"",null,null,null,0,null,null,null,0,null,null,null,0,null,null,null,0,0,"","",""]
[null,null,"",null,null,null,0,null,null,null,0,null,null,null,0,null,null,null,0,0,"","",""]
[null,null,"",null,null,null,0,null,null,null,0,null,null,null,0,null,null,null,0,0,"","",""]
[null,null,{"$f":"IF($B903<>\"\",VLOOKUP($B903,Tbl_Reference,2,0),\"\")","v":""},null,null,null,0,null,null,null,0,null,null,null,0,null,null,null,0,0,{"$f":"IF($B903<>\"\",VLOOKUP($B903,Tbl_Reference,3,0),\"\")","v":""},{"$f":"IF($B903<>\"\",VLOOKUP($B903,Tbl_Reference,4,0),\"\")","v":""},""]
[null,null,"",null,null,null,{"$f":"SUM(D904:F904)","v":0},null,null,null,{"$f":"SUM(H904:J904)","v":0},null,null,null,{"$f":"SUM(L904:N904)","v":0},null,null,null,{"$f":"SUM(P904:R904)","v":0},{"$f":"G904+K904+O904+S904","v":0},"","",{"$f":"IF(B904<>\"\",IF(V904<>0,ROUND(T904*V904,2),ROUND(T904*U904,2)),\"\")","v":""}]
[null,null,"",null,null,null,0,null,null,null,0,null,null,null,0,null,null,null,0,0,"","",""]
[null,null,"",null,null,null,0,null,null,null,0,null,null,null,0,null,null,null,0,0,"","",""]
[null,null,"",null,null,null,0,null,null,null,0,null,null,null,0,null,null,null,0,0,"","",""]
[null,null,"",null,null,null,0,null,null,null,0,null,null,null,0,null,null,null,0,0,"","",""]
[null,null,"",null,null,null,0,null,null,null,0,null,null,null,0,null,null,null,0,0,"","",""]
[null,null,"",null,null,null,0,null,null,null,0,null,null,null,0,null,null,null,0,0,"","",""]
[null,null,"",null,null,null,0,null,null,null,0,null,null,null,0,null,null,null,0,0,"","",""]
[null,null,"",null,null,null,0,null,null,null,0,null,null,null,0,null,null,null,0,0,"","",""]
[null,null,"",null,null,null,0,null,null,null,0,null,null,null,0,null,null,null,0,0,"","",""]
[null,null,"",null,null,null,0,null,null,null,0,null,null,null,0,null,null,null,0,0,"","",""]
[null,null,"",null,null,null,0,null,null,null,0,null,null,null,0,null,null,null,0,0,"","",""]
[null,null,"",null,null,null,0,null,null,null,0,null,null,null,0,null,null,null,0,0,"","",""]
[null,null,"",null,null,null,0,null,null,null,0,null,null,null,0,null,null,null,0,0,"","",""]
[null,null,"",null,null,null,0,null,null,null,0,null,null,null,0,null,null,null,0,0,"","",""]
[null,null,"",null,null,null,0,null,null,null,0,null,null,null,0,null,null,null,0,0,"","",""]
[null,null,"",null,null,null,0,null,null,null,0,null,null,null,0,null,null,null,0,0,"","",""]
[null,null,"",null,null,null,0,null,null,null,0,null,null,null,0,null,null,null,0,0,"","",""]
[null,null,"",null,null,null,0,null,null,null,0,null,null,null,0,null,null,null,0,0,"","",""]
[null,null,"",null,null,null,0,null,null,null,0,null,null,null,0,null,null,null,0,0,"","",""]
[null,null,"",null,null,null,0,null,null,null,0,null,null,null,0,null,null,null,0,0,"","",""]
[null,null,"",null,null,null,0,null,null,null,0,null,null,null,0,null,null,null,0,0,"","",""]
[null,null,"",null,null,null,0,null,null,null,0,null,null,null,0,null,null,null,0,0,"","",""]
[null,null,"",null,null,null,0,null,null,null,0,null,null,null,0,null,null,null,0,0,"","",""]
[null,null,"",null,null,null,0,null,null,null,0,null,null,null,0,null,null,null,0,0,"","",""]
[null,null,"",null,null,null,0,null,null,null,0,null,null,null,0,null,null,null,0,0,"","",""]
[null,null,"",null,null,null,0,null,null,null,0,null,null,null,0,null,null,null,0,0,"","",""]
[null,null,"",null,null,null,0,null,null,null,0,null,null,null,0,null,null,null,0,0,"","",""]
[null,null,"",null,null,null,0,null,null,null,0,null,null,null,0,null,null,null,0,0,"","",""]
[null,null,"",null,null,null,0,null,null,null,0,null,null,null,0,null,null,null,0,0,"","",""]
[null,null,"",null,null,null,0,null,null,null,0,null,null,null,0,null,null,null,0,0,"","",""]
[null,null,"",null,null,null,0,null,null,null,0,null,null,null,0,null,null,null,0,0,"","",""]
[null,null,"",null,null,null,0,null,null,null,0,null,null,null,0,null,null,null,0,0,"","",""]
[null,null,"",null,null,null,0,null,null,null,0,null,null,null,0,null,null,null,0,0,"","",""]
[null,null,"",null,null,null,0,null,null,null,0,null,null,null,0,null,null,null,0,0,"","",""]
[null,null,"",null,null,null,0,null,null,null,0,null,null,null,0,null,null,null,0,0,"","",""]
[null,null,"",null,null,null,0,null,null,null,0,null,null,null,0,null,null,null,0,0,"","",""]
[null,null,"",null,null,null,0,null,null,null,0,null,null,null,0,null,null,null,0,0,"","",""]
[null,null,"",null,null,null,0,null,null,null,0,null,null,null,0,null,null,null,0,0,"","",""]
[null,null,"",null,null,null,0,null,null,null,0,null,null,null,0,null,null,null,0,0,"","",""]
[null,null,"",null,null,null,0,null,null,null,0,null,null,null,0,null,null,null,0,0,"","",""]
[null,null,"",null,null,null,0,null,null,null,0,null,null,null,0,null,null,null,0,0,"","",""]
[null,null,"",null,null,null,0,null,null,null,0,null,null,null,0,null,null,null,0,0,"","",""]
[null,null,"",null,null,null,0,null,null,null,0,null,null,null,0,null,null,null,0,0,"","",""]
[null,null,"",null,null,null,0,null,null,null,0,null,null,null,0,null,null,null,0,0,"","",""]
[null,null,"",null,null,null,0,null,null,null,0,null,null,null,0,null,null,null,0,0,"","",""]
[null,null,"",null,null,null,0,null,null,null,0,null,null,null,0,null,null,null,0,0,"","",""]
[null,null,"",null,null,null,0,null,null,null,0,null,null,null,0,null,null,null,0,0,"","",""]
[null,null,"",null,null,null,0,null,null,null,0,null,null,null,0,null,null,null,0,0,"","",""]
[null,null,"",null,null,null,0,null,null,null,0,null,null,null,0,null,null,null,0,0,"","",""]
[null,null,"",null,null,null,0,null,null,null,0,null,null,null,0,null,null,null,0,0,"","",""]
[null,null,"",null,null,null,0,null,null,null,0,null,null,null,0,null,null,null,0,0,"","",""]
[null,null,"",null,null,null,0,null,null,null,0,null,null,null,0,null,null,null,0,0,"","",""]
[null,null,"",null,null,null,0,null,null,null,0,null,null,null,0,null,null,null,0,0,"","",""]
[null,null,"",null,null,null,0,null,null,null,0,null,null,null,0,null,null,null,0,0,"","",""]
[null,null,"",null,null,null,0,null,null,null,0,null,null,null,0,null,null,null,0,0,"","",""]
[null,null,"",null,null,null,0,null,null,null,0,null,null,null,0,null,null,null,0,0,"","",""]
[null,null,"",null,null,null,0,null,null,null,0,null,null,null,0,null,null,null,0,0,"","",""]
[null,null,"",null,null,null,0,null,null,null,0,null,null,null,0,null,null,null,0,0,"","",""]
[null,null,"",null,null,null,0,null,null,null,0,null,null,null,0,null,null,null,0,0,"","",""]
[null,null,"",null,null,null,0,null,null,null,0,null,null,null,0,null,null,null,0,0,"","",""]
[null,null,"",null,null,null,0,null,null,null,0,null,null,null,0,null,null,null,0,0,"","",""]
[null,null,"",null,null,null,0,null,null,null,0,null,null,null,0,null,null,null,0,0,"","",""]
[null,null,{"$f":"IF($B967<>\"\",VLOOKUP($B967,Tbl_Reference,2,0),\"\")","v":""},null,null,null,0,null,null,null,0,null,null,null,0,null,null,null,0,0,{"$f":"IF($B967<>\"\",VLOOKUP($B967,Tbl_Reference,3,0),\"\")","v":""},{"$f":"IF($B967<>\"\",VLOOKUP($B967,Tbl_Reference,4,0),\"\")","v":""},""]
[null,null,"",null,null,null,{"$f":"SUM(D968:F968)","v":0},null,null,null,{"$f":"SUM(H968:J968)","v":0},null,null,null,{"$f":"SUM(L968:N968)","v":0},null,null,null,{"$f":"SUM(P968:R968)","v":0},{"$f":"G968+K968+O968+S968","v":0},"","",{"$f":"IF(B968<>\"\",IF(V968<>0,ROUND(T968*V968,2),ROUND(T968*U968,2)),\"\")","v":""}]
[null,null,"",null,null,null,0,null,null,null,0,null,null,null,0,null,null,null,0,0,"","",""]
[null,null,"",null,null,null,0,null,null,null,0,null,null,null,0,null,null,null,0,0,"","",""]
[null,null,"",null,null,null,0,null,null,null,0,null,null,null,0,null,null,null,0,0,"","",""]
[null,null,"",null,null,null,0,null,null,null,0,null,null,null,0,null,null,null,0,0,"","",""]
[null,null,"",null,null,null,0,null,null,null,0,null,null,null,0,null,null,null,0,0,"","",""]
[null,null,"",null,null,null,0,null,null,null,0,null,null,null,0,null,null,null,0,0,"","",""]
[null,null,"",null,null,null,0,null,null,null,0,null,null,null,0,null,null,null,0,0,"","",""]
[null,null,"",null,null,null,0,null,null,null,0,null,null,null,0,null,null,null,0,0,"","",""]
[null,null,"",null,null,null,0,null,null,null,0,null,null,null,0,null,null,null,0,0,"","",""]
[null,null,"",null,null,null,0,null,null,null,0,null,null,null,0,null,null,null,0,0,"","",""]
[null,null,"",null,null,null,0,null,null,null,0,null,null,null,0,null,null,null,0,0,"","",""]
[null,null,"",null,null,null,0,null,null,null,0,null,null,null,0,null,null,null,0,0,"","",""]
[null,null,"",null,null,null,0,null,null,null,0,null,null,null,0,null,null,null,0,0,"","",""]
[null,null,"",null,null,null,0,null,null,null,0,null,null,null,0,null,null,null,0,0,"","",""]
[null,null,"",null,null,null,0,null,null,null,0,null,null,null,0,null,null,null,0,0,"","",""]
[null,null,"",null,null,null,0,null,null,null,0,null,null,null,0,null,null,null,0,0,"","",""]
[null,null,"",null,null,null,0,null,null,null,0,null,null,null,0,null,null,null,0,0,"","",""]
[null,null,"",null,null,null,0,null,null,null,0,null,null,null,0,null,null,null,0,0,"","",""]
[null,null,"",null,null,null,0,null,null,null,0,null,null,null,0,null,null,null,0,0,"","",""]
[null,null,"",null,null,null,0,null,null,null,0,null,null,null,0,null,null,null,0,0,"","",""]
[null,null,"",null,null,null,0,null,null,null,0,null,null,null,0,null,null,null,0,0,"","",""]
[null,null,"",null,null,null,0,null,null,null,0,null,null,null,0,null,null,null,0,0,"","",""]
[null,null,"",null,null,null,0,null,null,null,0,null,null,null,0,null,null,null,0,0,"","",""]
[null,null,"",null,null,null,0,null,null,null,0,null,null,null,0,null,null,null,0,0,"","",""]
[null,null,"",null,null,null,0,null,null,null,0,null,null,null,0,null,null,null,0,0,"","",""]
[null,null,"",null,null,null,0,null,null,null,0,null,null,null,0,null,null,null,0,0,"","",""]
[null,null,"",null,null,null,0,null,null,null,0,null,null,null,0,null,null,null,0,0,"","",""]
[null,null,"",null,null,null,0,null,null,null,0,null,null,null,0,null,null,null,0,0,"","",""]
[null,null,"",null,null,null,0,null,null,null,0,null,null,null,0,null,null,null,0,0,"","",""]
[null,null,"",null,null,null,0,null,null,null,0,null,null,null,0,null,null,null,0,0,"","",""]
[null,null,"",null,null,null,0,null,null,null,0,null,null,null,0,null,null,null,0,0,"","",""]
[null,null,"",null,null,null,0,null,null,null,0,null,null,null,0,null,null,null,0,0,"","",""]
[null,null,"",null,null,null,0,null,null,null,0,null,null,null,0,null,null,null,0,0,"","",""]
[null,null,"",null,null,null,0,null,null,null,0,null,null,null,0,null,null,null,0,0,"","",""]
[null,null,"",null,null,null,0,null,null,null,0,null,null,null,0,null,null,null,0,0,"","",""]
[null,null,"",null,null,null,{"$f":"SUM(D1032:F1032)","v":0},null,null,null,{"$f":"SUM(H1032:J1032)","v":0},null,null,null,{"$f":"SUM(L1032:N1032)","v":0},null,null,null,{"$f":"SUM(P1032:R1032)","v":0},{"$f":"G1032+K1032+O1032+S1032","v":0},"","",{"$f":"IF(B1032<>\"\",IF(V1032<>0,ROUND(T1032*V1032,2),ROUND(T1032*U1032,2)),\"\")","v":""}]
[null,null,"",null,null,null,0,null,null,null,0,null,null,null,0,null,null,null,0,0,"","",""]
[null,null,"",null,null,null,0,null,null,null,0,null,null,null,0,null,null,null,0,0,"","",""]
[null,null,"",null,null,null,0,null,null,null,0,null,null,null,0,null,null,null,0,0,"","",""]
[null,null,"",null,null,null,0,null,null,null,0,null,null,null,0,null,null,null,0,0,"","",""]
[null,null,"",null,null,null,0,null,null,null,0,null,null,null,0,null,null,null,0,0,"","",""]
[null,null,"",null,null,null,0,null,null,null,0,null,null,null,0,null,null,null,0,0,"","",""]
[null,null,{"$f":"IF($B1095<>\"\",VLOOKUP($B1095,Tbl_Reference,2,0),\"\")","v":""},null,null,null,0,null,null,null,0,null,null,null,0,null,null,null,0,0,{"$f":"IF($B1095<>\"\",VLOOKUP($B1095,Tbl_Reference,3,0),\"\")","v":""},{"$f":"IF($B1095<>\"\",VLOOKUP($B1095,Tbl_Reference,4,0),\"\")","v":""},""]
[null,null,"",null,null,null,0,null,null,null,0,null,null,null,0,null,null,null,0,0,"","",""]
[null,null,"",null,null,null,0,null,null,null,0,null,null,null,0,null,null,null,0,0,"","",""]
[null,null,"",null,null,null,0,null,null,null,0,null,null,null,0,null,null,null,0,0,"","",""]
[null,null,"",null,null,null,0,null,null,null,0,null,null,null,0,null,null,null,0,0,"","",""]
[null,null,"",null,null,null,0,null,null,null,0,null,null,null,0,null,null,null,0,0,"","",""]
[null,null,"",null,null,null,0,null,null,null,0,null,null,null,0,null,null,null,0,0,"","",""]
[null,null,"",null,null,null,0,null,null,null,0,null,null,null,0,null,null,null,0,0,"","",""]
[null,null,"",null,null,null,0,null,null,null,0,null,null,null,0,null,null,null,0,0,"","",""]
[null,null,"",null,null,null,0,null,null,null,0,null,null,null,0,null,null,null,0,0,"","",""]
[null,null,"",null,null,null,0,null,null,null,0,null,null,null,0,null,null,null,0,0,"","",""]
[null,null,"",null,null,null,0,null,null,null,0,null,null,null,0,null,null,null,0,0,"","",""]
[null,null,"",null,null,null,0,null,null,null,0,null,null,null,0,null,null,null,0,0,"","",""]
[null,null,"",null,null,null,0,null,null,null,0,null,null,null,0,null,null,null,0,0,"","",""]
[null,null,"",null,null,null,0,null,null,null,0,null,null,null,0,null,null,null,0,0,"","",""]
[null,null,{"$f":"IF($B1223<>\"\",VLOOKUP($B1223,Tbl_Reference,2,0),\"\")","v":""},null,null,null,0,null,null,null,0,null,null,null,0,null,null,null,0,0,{"$f":"IF($B1223<>\"\",VLOOKUP($B1223,Tbl_Reference,3,0),\"\")","v":""},{"$f":"IF($B1223<>\"\",VLOOKUP($B1223,Tbl_Reference,4,0),\"\")","v":""},""]
[null,null,"",null,null,null,0,null,null,null,0,null,null,null,0,null,null,null,0,0,"","",""]
[null,null,"",null,null,null,0,null,null,null,0,null,null,null,0,null,null,null,0,0,"","",""]
[null,null,"",null,null,null,0,null,null,null,0,null,null,null,0,null,null,null,0,0,"","",""]
[null,null,"",null,null,null,0,null,null,null,0,null,null,null,0,null,null,null,0,0,"","",""]
[null,null,"",null,null,null,0,null,null,null,0,null,null,null,0,null,null,null,0,0,"","",""]
[null,null,"",null,null,null,0,null,null,null,0,null,null,null,0,null,null,null,0,0,"","",""]
[null,null,"",null,null,null,0,null,null,null,0,null,null,null,0,null,null,null,0,0,"","",""]
[null,null,"",null,null,null,0,null,null,null,0,null,null,null,0,null,null,null,0,0,"","",""]
[null,null,"",null,null,null,0,null,null,null,0,null,null,null,0,null,null,null,0,0,"","",""]
[null,null,"",null,null,null,0,null,null,null,0,null,null,null,0,null,null,null,0,0,"","",""]
[null,null,"",null,null,null,0,null,null,null,0,null,null,null,0,null,null,null,0,0,"","",""]
[null,null,"",null,null,null,0,null,null,null,0,null,null,null,0,null,null,null,0,0,"","",""]
[null,null,"",null,null,null,0,null,null,null,0,null,null,null,0,null,null,null,0,0,"","",""]
[null,null,"",null,null,null,0,null,null,null,0,null,null,null,0,null,null,null,0,0,"","",""]
[null,null,"",null,null,null,{"$f":"SUM(D1352:F1352)","v":0},null,null,null,{"$f":"SUM(H1352:J1352)","v":0},null,null,null,{"$f":"SUM(L1352:N1352)","v":0},null,null,null,{"$f":"SUM(P1352:R1352)","v":0},{"$f":"G1352+K1352+O1352+S1352","v":0},"","",{"$f":"IF(B1352<>\"\",IF(V1352<>0,ROUND(T1352*V1352,2),ROUND(T1352*U1352,2)),\"\")","v":""}]
[null,null,"",null,null,null,0,null,null,null,0,null,null,null,0,null,null,null,0,0,"","",""]
[null,null,"",null,null,null,0,null,null,null,0,null,null,null,0,null,null,null,0,0,"","",""]
[null,null,"",null,null,null,0,null,null,null,0,null,null,null,0,null,null,null,0,0,"","",""]
[null,null,"",null,null,null,0,null,null,null,0,null,null,null,0,null,null,null,0,0,"","",""]
[null,null,"",null,null,null,0,null,null,null,0,null,null,null,0,null,null,null,0,0,"","",""]
[null,null,"",null,null,null,0,null,null,null,0,null,null,null,0,null,null,null,0,0,"","",""]
[null,null,{"$f":"IF($B1415<>\"\",VLOOKUP($B1415,Tbl_Reference,2,0),\"\")","v":""},null,null,null,0,null,null,null,0,null,null,null,0,null,null,null,0,0,{"$f":"IF($B1415<>\"\",VLOOKUP($B1415,Tbl_Reference,3,0),\"\")","v":""},{"$f":"IF($B1415<>\"\",VLOOKUP($B1415,Tbl_Reference,4,0),\"\")","v":""},""]
[null,null,"",null,null,null,0,null,null,null,0,null,null,null,0,null,null,null,0,0,"","",""]
[null,null,"",null,null,null,0,null,null,null,0,null,null,null,0,null,null,null,0,0,"","",""]
[null,null,"",null,null,null,0,null,null,null,0,null,null,null,0,null,null,null,0,0,"","",""]
[null,null,"",null,null,null,0,null,null,null,0,null,null,null,0,null,null,null,0,0,"","",""]
[null,null,"",null,null,null,0,null,null,null,0,null,null,null,0,null,null,null,0,0,"","",""]
[null,null,"",null,null,null,0,null,null,null,0,null,null,null,0,null,null,null,0,0,"","",""]
[null,null,"",null,null,null,0,null,null,null,0,null,null,null,0,null,null,null,0,0,"","",""]
[null,null,"",null,null,null,0,null,null,null,0,null,null,null,0,null,null,null,0,0,"","",""]
[null,null,"",null,null,null,0,null,null,null,0,null,null,null,0,null,null,null,0,0,"","",""]
[null,null,"",null,null,null,0,null,null,null,0,null,null,null,0,null,null,null,0,0,"","",""]
[null,null,"",null,null,null,0,null,null,null,0,null,null,null,0,null,null,null,0,0,"","",""]
[null,null,"",null,null,null,0,null,null,null,0,null,null,null,0,null,null,null,0,0,"","",""]
[null,null,"",null,null,null,0,null,null,null,0,null,null,null,0,null,null,null,0,0,"","",""]
[null,null,"",null,null,null,0,null,null,null,0,null,null,null,0,null,null,null,0,0,"","",""]
[null,null,{"$f":"IF($B1543<>\"\",VLOOKUP($B1543,Tbl_Reference,2,0),\"\")","v":""},null,null,null,0,null,null,null,0,null,null,null,0,null,null,null,0,0,{"$f":"IF($B1543<>\"\",VLOOKUP($B1543,Tbl_Reference,3,0),\"\")","v":""},{"$f":"IF($B1543<>\"\",VLOOKUP($B1543,Tbl_Reference,4,0),\"\")","v":""},""]
[null,null,"",null,null,null,0,null,null,null,0,null,null,null,0,null,null,null,0,0,"","",""]
[null,null,"",null,null,null,0,null,null,null,0,null,null,null,0,null,null,null,0,0,"","",""]
[null,null,"",null,null,null,0,null,null,null,0,null,null,null,0,null,null,null,0,0,"","",""]
[null,null,"",null,null,null,0,null,null,null,0,null,null,null,0,null,null,null,0,0,"","",""]
[null,null,"",null,null,null,0,null,null,null,0,null,null,null,0,null,null,null,0,0,"","",""]
[null,null,"",null,null,null,0,null,null,null,0,null,null,null,0,null,null,null,0,0,"","",""]
[null,null,"",null,null,null,0,null,null,null,0,null,null,null,0,null,null,null,0,0,"","",""]
[null,null,"",null,null,null,0,null,null,null,0,null,null,null,0,null,null,null,0,0,"","",""]
[null,null,"",null,null,null,0,null,null,null,0,null,null,null,0,null,null,null,0,0,"","",""]
[null,null,"",null,null,null,0,null,null,null,0,null,null,null,0,null,null,null,0,0,"","",""]
[null,null,"",null,null,null,0,null,null,null,0,null,null,null,0,null,null,null,0,0,"","",""]
[null,null,"",null,null,null,0,null,null,null,0,null,null,null,0,null,null,null,0,0,"","",""]
[null,null,"",null,null,null,0,null,null,null,0,null,null,null,0,null,null,null,0,0,"","",""]
[null,null,"",null,null,null,0,null,null,null,0,null,null,null,0,null,null,null,0,0,"","",""]
[null,null,"",null,null,null,0,null,null,null,0,null,null,null,0,null,null,null,0,0,"","",""]
[null,null,"",null,null,null,0,null,null,null,0,null,null,null,0,null,null,null,0,0,"","",""]
[null,null,"",null,null,null,0,null,null,null,0,null,null,null,0,null,null,null,0,0,"","",""]
[null,null,"",null,null,null,0,null,null,null,0,null,null,null,0,null,null,null,0,0,"","",""]
[null,null,"",null,null,null,0,null,null,null,0,null,null,null,0,null,null,null,0,0,"","",""]
[null,null,"",null,null,null,0,null,null,null,0,null,null,null,0,null,null,null,0,0,"","",""]
[null,null,"",null,null,null,0,null,null,null,0,null,null,null,0,null,null,null,0,0,"","",""]
[null,null,"",null,null,null,0,null,null,null,0,null,null,null,0,null,null,null,0,0,"","",""]
[null,null,"",null,null,null,0,null,null,null,0,null,null,null,0,null,null,null,0,0,"","",""]
[null,null,"",null,null,null,0,null,null,null,0,null,null,null,0,null,null,null,0,0,"","",""]
[null,null,"",null,null,null,0,null,null,null,0,null,null,null,0,null,null,null,0,0,"","",""]
[null,null,"",null,null,null,0,null,null,null,0,null,null,null,0,null,null,null,0,0,"","",""]
[null,null,"",null,null,null,0,null,null,null,0,null,null,null,0,null,null,null,0,0,"","",""]
[null,null,"",null,null,null,0,null,null,null,0,null,null,null,0,null,null,null,0,0,"","",""]
[null,null,"",null,null,null,0,null,null,null,0,null,null,null,0,null,null,null,0,0,"","",""]
[null,null,"",null,null,null,0,null,null,null,0,null,null,null,0,null,null,null,0,0,"","",""]
[null,null,"",null,null,null,0,null,null,null,0,null,null,null,0,null,null,null,0,0,"","",""]
[null,null,"",null,null,null,0,null,null,null,0,null,null,null,0,null,null,null,0,0,"","",""]
[null,null,"",null,null,null,0,null,null,null,0,null,null,null,0,null,null,null,0,0,"","",""]
[null,null,"",null,null,null,0,null,null,null,0,null,null,null,0,null,null,null,0,0,"","",""]
[null,null,"",null,null,null,0,null,null,null,0,null,null,null,0,null,null,null,0,0,"","",""]
[null,null,"",null,null,null,0,null,null,null,0,null,null,null,0,null,null,null,0,0,"","",""]
[null,null,"",null,null,null,0,null,null,null,0,null,null,null,0,null,null,null,0,0,"","",""]
[null,null,"",null,null,null,0,null,null,null,0,null,null,null,0,null,null,null,0,0,"","",""]
[null,null,"",null,null,null,0,null,null,null,0,null,null,null,0,null,null,null,0,0,"","",""]
[null,null,"",null,null,null,0,null,null,null,0,null,null,null,0,null,null,null,0,0,"","",""]
[null,null,"",null,null,null,0,null,null,null,0,null,null,null,0,null,null,null,0,0,"","",""]
[null,null,"",null,null,null,0,null,null,null,0,null,null,null,0,null,null,null,0,0,"","",""]
[null,null,"",null,null,null,0,null,null,null,0,null,null,null,0,null,null,null,0,0,"","",""]
[null,null,"",null,null,null,0,null,null,null,0,null,null,null,0,null,null,null,0,0,"","",""]
[null,null,"",null,null,null,0,null,null,null,0,null,null,null,0,null,null,null,0,0,"","",""]
[null,null,"",null,null,null,0,null,null,null,0,null,null,null,0,null,null,null,0,0,"","",""]
[null,null,"",null,null,null,0,null,null,null,0,null,null,null,0,null,null,null,0,0,"","",""]
[null,null,"",null,null,null,0,null,null,null,0,null,null,null,0,null,null,null,0,0,"","",""]
[null,null,"",null,null,null,0,null,null,null,0,null,null,null,0,null,null,null,0,0,"","",""]
[null,null,"",null,null,null,0,null,null,null,0,null,null,null,0,null,null,null,0,0,"","",""]
[null,null,"",null,null,null,{"$f":"SUM(D1992:F1992)","v":0},null,null,null,{"$f":"SUM(H1992:J1992)","v":0},null,null,null,{"$f":"SUM(L1992:N1992)","v":0},null,null,null,{"$f":"SUM(P1992:R1992)","v":0},{"$f":"G1992+K1992+O1992+S1992","v":0},"","",{"$f":"IF(B1992<>\"\",IF(V1992<>0,ROUND(T1992*V1992,2),ROUND(T1992*U1992,2)),\"\")","v":""}]
[null,null,"",null,null,null,0,null,null,null,0,null,null,null,0,null,null,null,0,0,"","",""]
[null,null,"",null,null,null,0,null,null,null,0,null,null,null,0,null,null,null,0,0,"","",""]
[null,null,"",null,null,null,0,null,null,null,0,null,null,null,0,null,null,null,0,0,"","",""]
[null,null,"",null,null,null,0,null,null,null,0,null,null,null,0,null,null,null,0,0,"","",""]
[null,null,"",null,null,null,0,null,null,null,0,null,null,null,0,null,null,null,0,0,"","",""]
[null,null,"",null,null,null,0,null,null,null,0,null,null,null,0,null,null,null,0,0,"","",""]
[null,null,"",null,null,null,0,null,null,null,0,null,null,null,0,null,null,null,0,0,"","",""]
[null,null,"",null,null,null,0,null,null,null,0,null,null,null,0,null,null,null,0,0,"","",""]
[null,null,"",null,null,null,0,null,null,null,0,null,null,null,0,null,null,null,0,0,"","",""]
[null,null,"",null,null,null,0,null,null,null,0,null,null,null,0,null,null,null,0,0,"","",""]
[null,null,"",null,null,null,0,null,null,null,0,null,null,null,0,null,null,null,0,0,"","",""]
[null,null,"",null,null,null,0,null,null,null,0,null,null,null,0,null,null,null,0,0,"","",""]
[null,null,"",null,null,null,0,null,null,null,0,null,null,null,0,null,null,null,0,0,"","",""]
[null,null,{"$f":"IF($B2119<>\"\",VLOOKUP($B2119,Tbl_Reference,2,0),\"\")","v":""},null,null,null,0,null,null,null,0,null,null,null,0,null,null,null,0,0,{"$f":"IF($B2119<>\"\",VLOOKUP($B2119,Tbl_Reference,3,0),\"\")","v":""},{"$f":"IF($B2119<>\"\",VLOOKUP($B2119,Tbl_Reference,4,0),\"\")","v":""},""]
[null,null,"",null,null,null,0,null,null,null,0,null,null,null,0,null,null,null,0,0,"","",""]
[null,null,"",null,null,null,0,null,null,null,0,null,null,null,0,null,null,null,0,0,"","",""]
[null,null,"",null,null,null,0,null,null,null,0,null,null,null,0,null,null,null,0,0,"","",""]
[null,null,"",null,null,null,0,null,null,null,0,null,null,null,0,null,null,null,0,0,"","",""]
[null,null,"",null,null,null,0,null,null,null,0,null,null,null,0,null,null,null,0,0,"","",""]
[null,null,"",null,null,null,0,null,null,null,0,null,null,null,0,null,null,null,0,0,"","",""]
[null,null,"",null,null,null,0,null,null,null,0,null,null,null,0,null,null,null,0,0,"","",""]
[null,null,"",null,null,null,0,null,null,null,0,null,null,null,0,null,null,null,0,0,"","",""]
[null,null,"",null,null,null,0,null,null,null,0,null,null,null,0,null,null,null,0,0,"","",""]
[null,null,"",null,null,null,0,null,null,null,0,null,null,null,0,null,null,null,0,0,"","",""]
[null,null,"",null,null,null,0,null,null,null,0,null,null,null,0,null,null,null,0,0,"","",""]
[null,null,"",null,null,null,0,null,null,null,0,null,null,null,0,null,null,null,0,0,"","",""]
[null,null,"",null,null,null,0,null,null,null,0,null,null,null,0,null,null,null,0,0,"","",""]
[null,null,"",null,null,null,0,null,null,null,0,null,null,null,0,null,null,null,0,0,"","",""]
[null,null,"",null,null,null,0,null,null,null,0,null,null,null,0,null,null,null,0,0,"","",""]
[null,null,"",null,null,null,0,null,null,null,0,null,null,null,0,null,null,null,0,0,"","",""]
[null,null,"",null,null,null,0,null,null,null,0,null,null,null,0,null,null,null,0,0,"","",""]
[null,null,"",null,null,null,0,null,null,null,0,null,null,null,0,null,null,null,0,0,"","",""]
[null,null,"",null,null,null,0,null,null,null,0,null,null,null,0,null,null,null,0,0,"","",""]
[null,null,"",null,null,null,0,null,null,null,0,null,null,null,0,null,null,null,0,0,"","",""]
[null,null,"",null,null,null,0,null,null,null,0,null,null,null,0,null,null,null,0,0,"","",""]
[null,null,{"$f":"IF($B2311<>\"\",VLOOKUP($B2311,Tbl_Reference,2,0),\"\")","v":""},null,null,null,0,null,null,null,0,null,null,null,0,null,null,null,0,0,{"$f":"IF($B2311<>\"\",VLOOKUP($B2311,Tbl_Reference,3,0),\"\")","v":""},{"$f":"IF($B2311<>\"\",VLOOKUP($B2311,Tbl_Reference,4,0),\"\")","v":""},""]
[null,null,"",null,null,null,0,null,null,null,0,null,null,null,0,null,null,null,0,0,"","",""]
[null,null,"",null,null,null,0,null,null,null,0,null,null,null,0,null,null,null,0,0,"","",""]
[null,null,"",null,null,null,0,null,null,null,0,null,null,null,0,null,null,null,0,0,"","",""]
[null,null,"",null,null,null,0,null,null,null,0,null,null,null,0,null,null,null,0,0,"","",""]
[null,null,"",null,null,null,0,null,null,null,0,null,null,null,0,null,null,null,0,0,"","",""]
[null,null,"",null,null,null,0,null,null,null,0,null,null,null,0,null,null,null,0,0,"","",""]
[null,null,"",null,null,null,0,null,null,null,0,null,null,null,0,null,null,null,0,0,"","",""]
[null,null,"",null,null,null,0,null,null,null,0,null,null,null,0,null,null,null,0,0,"","",""]
[null,null,"",null,null,null,0,null,null,null,0,null,null,null,0,null,null,null,0,0,"","",""]
[null,null,"",null,null,null,0,null,null,null,0,null,null,null,0,null,null,null,0,0,"","",""]
[null,null,"",null,null,null,0,null,null,null,0,null,null,null,0,null,null,null,0,0,"","",""]
[null,null,"",null,null,null,0,null,null,null,0,null,null,null,0,null,null,null,0,0,"","",""]
[null,null,"",null,null,null,0,null,null,null,0,null,null,null,0,null,null,null,0,0,"","",""]
[null,null,"",null,null,null,0,null,null,null,0,null,null,null,0,null,null,null,0,0,"","",""]
[null,null,{"$f":"IF($B2439<>\"\",VLOOKUP($B2439,Tbl_Reference,2,0),\"\")","v":""},null,null,null,0,null,null,null,0,null,null,null,0,null,null,null,0,0,{"$f":"IF($B2439<>\"\",VLOOKUP($B2439,Tbl_Reference,3,0),\"\")","v":""},{"$f":"IF($B2439<>\"\",VLOOKUP($B2439,Tbl_Reference,4,0),\"\")","v":""},""]
[null,null,"",null,null,null,0,null,null,null,0,null,null,null,0,null,null,null,0,0,"","",""]
[null,null,"",null,null,null,0,null,null,null,0,null,null,null,0,null,null,null,0,0,"","",""]
[null,null,"",null,null,null,0,null,null,null,0,null,null,null,0,null,null,null,0,0,"","",""]
[null,null,"",null,null,null,0,null,null,null,0,null,null,null,0,null,null,null,0,0,"","",""]
[null,null,"",null,null,null,0,null,null,null,0,null,null,null,0,null,null,null,0,0,"","",""]
[null,null,"",null,null,null,0,null,null,null,0,null,null,null,0,null,null,null,0,0,"","",""]
[null,null,"",null,null,null,0,null,null,null,0,null,null,null,0,null,null,null,0,0,"","",""]
[null,null,"",null,null,null,0,null,null,null,0,null,null,null,0,null,null,null,0,0,"","",""]
[null,null,"",null,null,null,0,null,null,null,0,null,null,null,0,null,null,null,0,0,"","",""]
[null,null,"",null,null,null,0,null,null,null,0,null,null,null,0,null,null,null,0,0,"","",""]
[null,null,"",null,null,null,0,null,null,null,0,null,null,null,0,null,null,null,0,0,"","",""]
[null,null,"",null,null,null,0,null,null,null,0,null,null,null,0,null,null,null,0,0,"","",""]
[null,null,"",null,null,null,0,null,null,null,0,null,null,null,0,null,null,null,0,0,"","",""]
[null,null,"",null,null,null,0,null,null,null,0,null,null,null,0,null,null,null,0,0,"","",""]
[null,null,{"$f":"IF($B2567<>\"\",VLOOKUP($B2567,Tbl_Reference,2,0),\"\")","v":""},null,null,null,0,null,null,null,0,null,null,null,0,null,null,null,0,0,{"$f":"IF($B2567<>\"\",VLOOKUP($B2567,Tbl_Reference,3,0),\"\")","v":""},{"$f":"IF($B2567<>\"\",VLOOKUP($B2567,Tbl_Reference,4,0),\"\")","v":""},""]
[null,null,"",null,null,null,0,null,null,null,0,null,null,null,0,null,null,null,0,0,"","",""]
[null,null,"",null,null,null,0,null,null,null,0,null,null,null,0,null,null,null,0,0,"","",""]
[null,null,"",null,null,null,0,null,null,null,0,null,null,null,0,null,null,null,0,0,"","",""]
[null,null,"",null,null,null,0,null,null,null,0,null,null,null,0,null,null,null,0,0,"","",""]
[null,null,"",null,null,null,0,null,null,null,0,null,null,null,0,null,null,null,0,0,"","",""]
[null,null,"",null,null,null,0,null,null,null,0,null,null,null,0,null,null,null,0,0,"","",""]
[null,null,"",null,null,null,{"$f":"SUM(D2632:F2632)","v":0},null,null,null,{"$f":"SUM(H2632:J2632)","v":0},null,null,null,{"$f":"SUM(L2632:N2632)","v":0},null,null,null,{"$f":"SUM(P2632:R2632)","v":0},{"$f":"G2632+K2632+O2632+S2632","v":0},"","",{"$f":"IF(B2632<>\"\",IF(V2632<>0,ROUND(T2632*V2632,2),ROUND(T2632*U2632,2)),\"\")","v":""}]
[null,null,"",null,null,null,0,null,null,null,0,null,null,null,0,null,null,null,0,0,"","",""]
[null,null,"",null,null,null,0,null,null,null,0,null,null,null,0,null,null,null,0,0,"","",""]
[null,null,"",null,null,null,0,null,null,null,0,null,null,null,0,null,null,null,0,0,"","",""]
[null,null,"",null,null,null,0,null,null,null,0,null,null,null,0,null,null,null,0,0,"","",""]
[null,null,"",null,null,null,0,null,null,null,0,null,null,null,0,null,null,null,0,0,"","",""]
[null,null,"",null,null,null,0,null,null,null,0,null,null,null,0,null,null,null,0,0,"","",""]
[null,null,"",null,null,null,0,null,null,null,0,null,null,null,0,null,null,null,0,0,"","",""]
[null,null,"",null,null,null,0,null,null,null,0,null,null,null,0,null,null,null,0,0,"","",""]
[null,null,"",null,null,null,0,null,null,null,0,null,null,null,0,null,null,null,0,0,"","",""]
[null,null,"",null,null,null,0,null,null,null,0,null,null,null,0,null,null,null,0,0,"","",""]
[null,null,"",null,null,null,0,null,null,null,0,null,null,null,0,null,null,null,0,0,"","",""]
[null,null,"",null,null,null,0,null,null,null,0,null,null,null,0,null,null,null,0,0,"","",""]
[null,null,"",null,null,null,0,null,null,null,0,null,null,null,0,null,null,null,0,0,"","",""]
[null,null,"",null,null,null,0,null,null,null,0,null,null,null,0,null,null,null,0,0,"","",""]
[null,null,"",null,null,null,0,null,null,null,0,null,null,null,0,null,null,null,0,0,"","",""]
[null,null,"",null,null,null,0,null,null,null,0,null,null,null,0,null,null,null,0,0,"","",""]
[null,null,"",null,null,null,0,null,null,null,0,null,null,null,0,null,null,null,0,0,"","",""]
[null,null,"",null,null,null,0,null,null,null,0,null,null,null,0,null,null,null,0,0,"","",""]
[null,null,"",null,null,null,0,null,null,null,0,null,null,null,0,null,null,null,0,0,"","",""]
[null,null,"",null,null,null,0,null,null,null,0,null,null,null,0,null,null,null,0,0,"","",""]
[null,null,"",null,null,null,0,null,null,null,0,null,null,null,0,null,null,null,0,0,"","",""]
[null,null,"",null,null,null,0,null,null,null,0,null,null,null,0,null,null,null,0,0,"","",""]
[null,null,"",null,null,null,0,null,null,null,0,null,null,null,0,null,null,null,0,0,"","",""]
[null,null,"",null,null,null,0,null,null,null,0,null,null,null,0,null,null,null,0,0,"","",""]
[null,null,"",null,null,null,0,null,null,null,0,null,null,null,0,null,null,null,0,0,"","",""]
[null,null,"",null,null,null,0,null,null,null,0,null,null,null,0,null,null,null,0,0,"","",""]
[null,null,"",null,null,null,0,null,null,null,0,null,null,null,0,null,null,null,0,0,"","",""]
[null,null,"",null,null,null,0,null,null,null,0,null,null,null,0,null,null,null,0,0,"","",""]
[null,null,"",null,null,null,0,null,null,null,0,null,null,null,0,null,null,null,0,0,"","",""]
[null,null,"",null,null,null,0,null,null,null,0,null,null,null,0,null,null,null,0,0,"","",""]
[null,null,"",null,null,null,0,null,null,null,0,null,null,null,0,null,null,null,0,0,"","",""]
[null,null,"",null,null,null,0,null,null,null,0,null,null,null,0,null,null,null,0,0,"","",""]
[null,null,"",null,null,null,0,null,null,null,0,null,null,null,0,null,null,null,0,0,"","",""]
[null,null,"",null,null,null,0,null,null,null,0,null,null,null,0,null,null,null,0,0,"","",""]
[null,null,"",null,null,null,0,null,null,null,0,null,null,null,0,null,null,null,0,0,"","",""]
[null,null,"",null,null,null,0,null,null,null,0,null,null,null,0,null,null,null,0,0,"","",""]
[null,null,"",null,null,null,0,null,null,null,0,null,null,null,0,null,null,null,0,0,"","",""]
[null,null,"",null,null,null,0,null,null,null,0,null,null,null,0,null,null,null,0,0,"","",""]
[null,null,"",null,null,null,0,null,null,null,0,null,null,null,0,null,null,null,0,0,"","",""]
[null,null,"",null,null,null,0,null,null,null,0,null,null,null,0,null,null,null,0,0,"","",""]
[null,null,"",null,null,null,0,null,null,null,0,null,null,null,0,null,null,null,0,0,"","",""]
[null,null,"",null,null,null,0,null,null,null,0,null,null,null,0,null,null,null,0,0,"","",""]
[null,null,"",null,null,null,0,null,null,null,0,null,null,null,0,null,null,null,0,0,"","",""]
[null,null,"",null,null,null,0,null,null,null,0,null,null,null,0,null,null,null,0,0,"","",""]
[null,null,"",null,null,null,0,null,null,null,0,null,null,null,0,null,null,null,0,0,"","",""]
[null,null,"",null,null,null,0,null,null,null,0,null,null,null,0,null,null,null,0,0,"","",""]
[null,null,"",null,null,null,0,null,null,null,0,null,null,null,0,null,null,null,0,0,"","",""]
[null,null,"",null,null,null,0,null,null,null,0,null,null,null,0,null,null,null,0,0,"","",""]
[null,null,"",null,null,null,0,null,null,null,0,null,null,null,0,null,null,null,0,0,"","",""]
[null,null,"",null,null,null,0,null,null,null,0,null,null,null,0,null,null,null,0,0,"","",""]
[null,null,"",null,null,null,0,null,null,null,0,null,null,null,0,null,null,null,0,0,"","",""]
[null,null,"",null,null,null,0,null,null,null,0,null,null,null,0,null,null,null,0,0,"","",""]
[null,null,"",null,null,null,0,null,null,null,0,null,null,null,0,null,null,null,0,0,"","",""]
[null,null,"",null,null,null,0,null,null,null,0,null,null,null,0,null,null,null,0,0,"","",""]
[null,null,"",null,null,null,0,null,null,null,0,null,null,null,0,null,null,null,0,0,"","",""]
[null,null,"",null,null,null,0,null,null,null,0,null,null,null,0,null,null,null,0,0,"","",""]
[null,null,"",null,null,null,0,null,null,null,0,null,null,null,0,null,null,null,0,0,"","",""]
[null,null,{"$f":"IF($B3143<>\"\",VLOOKUP($B3143,Tbl_Reference,2,0),\"\")","v":""},null,null,null,0,null,null,null,0,null,null,null,0,null,null,null,0,0,{"$f":"IF($B3143<>\"\",VLOOKUP($B3143,Tbl_Reference,3,0),\"\")","v":""},{"$f":"IF($B3143<>\"\",VLOOKUP($B3143,Tbl_Reference,4,0),\"\")","v":""},""]
[null,null,"",null,null,null,0,null,null,null,0,null,null,null,0,null,null,null,0,0,"","",""]
[null,null,"",null,null,null,0,null,null,null,0,null,null,null,0,null,null,null,0,0,"","",""]
[null,null,"",null,null,null,0,null,null,null,0,null,null,null,0,null,null,null,0,0,"","",""]
[null,null,"",null,null,null,0,null,null,null,0,null,null,null,0,null,null,null,0,0,"","",""]
[null,null,"",null,null,null,0,null,null,null,0,null,null,null,0,null,null,null,0,0,"","",""]
[null,null,"",null,null,null,0,null,null,null,0,null,null,null,0,null,null,null,0,0,"","",""]
[null,null,"",null,null,null,0,null,null,null,0,null,null,null,0,null,null,null,0,0,"","",""]
[null,null,"",null,null,null,0,null,null,null,0,null,null,null,0,null,null,null,0,0,"","",""]
[null,null,"",null,null,null,0,null,null,null,0,null,null,null,0,null,null,null,0,0,"","",""]
[null,null,"",null,null,null,0,null,null,null,0,null,null,null,0,null,null,null,0,0,"","",""]
[null,null,"",null,null,null,0,null,null,null,0,null,null,null,0,null,null,null,0,0,"","",""]
[null,null,"",null,null,null,0,null,null,null,0,null,null,null,0,null,null,null,0,0,"","",""]
[null,null,"",null,null,null,0,null,null,null,0,null,null,null,0,null,null,null,0,0,"","",""]
[null,null,"",null,null,null,0,null,null,null,0,null,null,null,0,null,null,null,0,0,"","",""]
[null,null,"",null,null,null,0,null,null,null,0,null,null,null,0,null,null,null,0,0,"","",""]
[null,null,"",null,null,null,0,null,null,null,0,null,null,null,0,null,null,null,0,0,"","",""]
[null,null,"",null,null,null,0,null,null,null,0,null,null,null,0,null,null,null,0,0,"","",""]
[null,null,"",null,null,null,0,null,null,null,0,null,null,null,0,null,null,null,0,0,"","",""]
[null,null,"",null,null,null,0,null,null,null,0,null,null,null,0,null,null,null,0,0,"","",""]
[null,null,"",null,null,null,0,null,null,null,0,null,null,null,0,null,null,null,0,0,"","",""]
[null,null,"",null,null,null,0,null,null,null,0,null,null,null,0,null,null,null,0,0,"","",""]
[null,null,{"$f":"IF($B3335<>\"\",VLOOKUP($B3335,Tbl_Reference,2,0),\"\")","v":""},null,null,null,0,null,null,null,0,null,null,null,0,null,null,null,0,0,{"$f":"IF($B3335<>\"\",VLOOKUP($B3335,Tbl_Reference,3,0),\"\")","v":""},{"$f":"IF($B3335<>\"\",VLOOKUP($B3335,Tbl_Reference,4,0),\"\")","v":""},""]
[null,null,"",null,null,null,0,null,null,null,0,null,null,null,0,null,null,null,0,0,"","",""]
[null,null,"",null,null,null,0,null,null,null,0,null,null,null,0,null,null,null,0,0,"","",""]
[null,null,"",null,null,null,0,null,null,null,0,null,null,null,0,null,null,null,0,0,"","",""]
[null,null,"",null,null,null,0,null,null,null,0,null,null,null,0,null,null,null,0,0,"","",""]
[null,null,"",null,null,null,0,null,null,null,0,null,null,null,0,null,null,null,0,0,"","",""]
[null,null,"",null,null,null,0,null,null,null,0,null,null,null,0,null,null,null,0,0,"","",""]
[null,null,"",null,null,null,0,null,null,null,0,null,null,null,0,null,null,null,0,0,"","",""]
[null,null,"",null,null,null,0,null,null,null,0,null,null,null,0,null,null,null,0,0,"","",""]
[null,null,"",null,null,null,0,null,null,null,0,null,null,null,0,null,null,null,0,0,"","",""]
[null,null,"",null,null,null,0,null,null,null,0,null,null,null,0,null,null,null,0,0,"","",""]
[null,null,"",null,null,null,0,null,null,null,0,null,null,null,0,null,null,null,0,0,"","",""]
[null,null,"",null,null,null,0,null,null,null,0,null,null,null,0,null,null,null,0,0,"","",""]
[null,null,"",null,null,null,0,null,null,null,0,null,null,null,0,null,null,null,0,0,"","",""]
[null,null,"",null,null,null,0,null,null,null,0,null,null,null,0,null,null,null,0,0,"","",""]
[null,null,{"$f":"IF($B3463<>\"\",VLOOKUP($B3463,Tbl_Reference,2,0),\"\")","v":""},null,null,null,0,null,null,null,0,null,null,null,0,null,null,null,0,0,{"$f":"IF($B3463<>\"\",VLOOKUP($B3463,Tbl_Reference,3,0),\"\")","v":""},{"$f":"IF($B3463<>\"\",VLOOKUP($B3463,Tbl_Reference,4,0),\"\")","v":""},""]
[null,null,"",null,null,null,0,null,null,null,0,null,null,null,0,null,null,null,0,0,"","",""]
[null,null,"",null,null,null,0,null,null,null,0,null,null,null,0,null,null,null,0,0,"","",""]
[null,null,"",null,null,null,0,null,null,null,0,null,null,null,0,null,null,null,0,0,"","",""]
[null,null,"",null,null,null,0,null,null,null,0,null,null,null,0,null,null,null,0,0,"","",""]
[null,null,"",null,null,null,0,null,null,null,0,null,null,null,0,null,null,null,0,0,"","",""]
[null,null,"",null,null,null,0,null,null,null,0,null,null,null,0,null,null,null,0,0,"","",""]
[null,null,"",null,null,null,0,null,null,null,0,null,null,null,0,null,null,null,0,0,"","",""]
[null,null,"",null,null,null,0,null,null,null,0,null,null,null,0,null,null,null,0,0,"","",""]
[null,null,"",null,null,null,0,null,null,null,0,null,null,null,0,null,null,null,0,0,"","",""]
[null,null,"",null,null,null,0,null,null,null,0,null,null,null,0,null,null,null,0,0,"","",""]
[null,null,"",null,null,null,0,null,null,null,0,null,null,null,0,null,null,null,0,0,"","",""]
[null,null,"",null,null,null,0,null,null,null,0,null,null,null,0,null,null,null,0,0,"","",""]
[null,null,"",null,null,null,0,null,null,null,0,null,null,null,0,null,null,null,0,0,"","",""]
[null,null,"",null,null,null,0,null,null,null,0,null,null,null,0,null,null,null,0,0,"","",""]
[null,null,"",null,null,null,0,null,null,null,0,null,null,null,0,null,null,null,0,0,"","",""]
[null,null,"",null,null,null,0,null,null,null,0,null,null,null,0,null,null,null,0,0,"","",""]
[null,null,"",null,null,null,0,null,null,null,0,null,null,null,0,null,null,null,0,0,"","",""]
[null,null,"",null,null,null,0,null,null,null,0,null,null,null,0,null,null,null,0,0,"","",""]
[null,null,"",null,null,null,0,null,null,null,0,null,null,null,0,null,null,null,0,0,"","",""]
[null,null,"",null,null,null,0,null,null,null,0,null,null,null,0,null,null,null,0,0,"","",""]
[null,null,"",null,null,null,0,null,null,null,0,null,null,null,0,null,null,null,0,0,"","",""]
[null,null,{"$f":"IF($B3655<>\"\",VLOOKUP($B3655,Tbl_Reference,2,0),\"\")","v":""},null,null,null,0,null,null,null,0,null,null,null,0,null,null,null,0,0,{"$f":"IF($B3655<>\"\",VLOOKUP($B3655,Tbl_Reference,3,0),\"\")","v":""},{"$f":"IF($B3655<>\"\",VLOOKUP($B3655,Tbl_Reference,4,0),\"\")","v":""},""]
[null,null,"",null,null,null,0,null,null,null,0,null,null,null,0,null,null,null,0,0,"","",""]
[null,null,"",null,null,null,0,null,null,null,0,null,null,null,0,null,null,null,0,0,"","",""]
[null,null,"",null,null,null,0,null,null,null,0,null,null,null,0,null,null,null,0,0,"","",""]
[null,null,"",null,null,null,0,null,null,null,0,null,null,null,0,null,null,null,0,0,"","",""]
[null,null,"",null,null,null,0,null,null,null,0,null,null,null,0,null,null,null,0,0,"","",""]
[null,null,"",null,null,null,0,null,null,null,0,null,null,null,0,null,null,null,0,0,"","",""]
[null,null,"",null,null,null,0,null,null,null,0,null,null,null,0,null,null,null,0,0,"","",""]
[null,null,"",null,null,null,0,null,null,null,0,null,null,null,0,null,null,null,0,0,"","",""]
[null,null,"",null,null,null,0,null,null,null,0,null,null,null,0,null,null,null,0,0,"","",""]
[null,null,"",null,null,null,0,null,null,null,0,null,null,null,0,null,null,null,0,0,"","",""]
[null,null,"",null,null,null,0,null,null,null,0,null,null,null,0,null,null,null,0,0,"","",""]
[null,null,"",null,null,null,0,null,null,null,0,null,null,null,0,null,null,null,0,0,"","",""]
[null,null,"",null,null,null,0,null,null,null,0,null,null,null,0,null,null,null,0,0,"","",""]
[null,null,"",null,null,null,0,null,null,null,0,null,null,null,0,null,null,null,0,0,"","",""]
[null,null,"",null,null,null,0,null,null,null,0,null,null,null,0,null,null,null,0,0,"","",""]
[null,null,"",null,null,null,0,null,null,null,0,null,null,null,0,null,null,null,0,0,"","",""]
[null,null,"",null,null,null,0,null,null,null,0,null,null,null,0,null,null,null,0,0,"","",""]
[null,null,"",null,null,null,0,null,null,null,0,null,null,null,0,null,null,null,0,0,"","",""]
[null,null,"",null,null,null,0,null,null,null,0,null,null,null,0,null,null,null,0,0,"","",""]
[null,null,"",null,null,null,0,null,null,null,0,null,null,null,0,null,null,null,0,0,"","",""]
[null,null,"",null,null,null,0,null,null,null,0,null,null,null,0,null,null,null,0,0,"","",""]
[null,null,"",null,null,null,0,null,null,null,0,null,null,null,0,null,null,null,0,0,"","",""]
[null,null,"",null,null,null,0,null,null,null,0,null,null,null,0,null,null,null,0,0,"","",""]
[null,null,"",null,null,null,0,null,null,null,0,null,null,null,0,null,null,null,0,0,"","",""]
[null,null,"",null,null,null,0,null,null,null,0,null,null,null,0,null,null,null,0,0,"","",""]
[null,null,"",null,null,null,0,null,null,null,0,null,null,null,0,null,null,null,0,0,"","",""]
[null,null,"",null,null,null,0,null,null,null,0,null,null,null,0,null,null,null,0,0,"","",""]
[null,null,"",null,null,null,0,null,null,null,0,null,null,null,0,null,null,null,0,0,"","",""]
[null,null,"",null,null,null,0,null,null,null,0,null,null,null,0,null,null,null,0,0,"","",""]
[null,null,"",null,null,null,0,null,null,null,0,null,null,null,0,null,null,null,0,0,"","",""]
[null,null,"",null,null,null,0,null,null,null,0,null,null,null,0,null,null,null,0,0,"","",""]
[null,null,"",null,null,null,0,null,null,null,0,null,null,null,0,null,null,null,0,0,"","",""]
[null,null,"",null,null,null,0,null,null,null,0,null,null,null,0,null,null,null,0,0,"","",""]
[null,null,"",null,null,null,0,null,null,null,0,null,null,null,0,null,null,null,0,0,"","",""]
[null,null,"",null,null,null,0,null,null,null,0,null,null,null,0,null,null,null,0,0,"","",""]
[null,null,"",null,null,null,0,null,null,null,0,null,null,null,0,null,null,null,0,0,"","",""]
[null,null,"",null,null,null,0,null,null,null,0,null,null,null,0,null,null,null,0,0,"","",""]
[null,null,"",null,null,null,0,null,null,null,0,null,null,null,0,null,null,null,0,0,"","",""]
[null,null,"",null,null,null,0,null,null,null,0,null,null,null,0,null,null,null,0,0,"","",""]
[null,null,"",null,null,null,0,null,null,null,0,null,null,null,0,null,null,null,0,0,"","",""]
[null,null,"",null,null,null,0,null,null,null,0,null,null,null,0,null,null,null,0,0,"","",""]
[null,null,"",null,null,null,0,null,null,null,0,null,null,null,0,null,null,null,0,0,"","",""]
[null,null,"",null,null,null,0,null,null,null,0,null,null,null,0,null,null,null,0,0,"","",""]
[null,null,"",null,null,null,0,null,null,null,0,null,null,null,0,null,null,null,0,0,"","",""]
[null,null,"",null,null,null,0,null,null,null,0,null,null,null,0,null,null,null,0,0,"","",""]
[null,null,"",null,null,null,0,null,null,null,0,null,null,null,0,null,null,null,0,0,"","",""]
[null,null,"",null,null,null,0,null,null,null,0,null,null,null,0,null,null,null,0,0,"","",""]
[null,null,"",null,null,null,0,null,null,null,0,null,null,null,0,null,null,null,0,0,"","",""]
[null,null,"",null,null,null,0,null,null,null,0,null,null,null,0,null,null,null,0,0,"","",""]
[null,null,"",null,null,null,0,null,null,null,0,null,null,null,0,null,null,null,0,0,"","",""]
[null,null,"",null,null,null,0,null,null,null,0,null,null,null,0,null,null,null,0,0,"","",""]
[null,null,"",null,null,null,0,null,null,null,0,null,null,null,0,null,null,null,0,0,"","",""]
[null,null,"",null,null,null,0,null,null,null,0,null,null,null,0,null,null,null,0,0,"","",""]
[null,null,"",null,null,null,0,null,null,null,0,null,null,null,0,null,null,null,0,0,"","",""]
[null,null,"",null,null,null,0,null,null,null,0,null,null,null,0,null,null,null,0,0,"","",""]
[null,null,"",null,null,null,0,null,null,null,0,null,null,null,0,null,null,null,0,0,"","",""]
[null,null,"",null,null,null,0,null,null,null,0,null,null,null,0,null,null,null,0,0,"","",""]
[null,null,"",null,null,null,0,null,null,null,0,null,null,null,0,null,null,null,0,0,"","",""]
[null,null,"",null,null,null,0,null,null,null,0,null,null,null,0,null,null,null,0,0,"","",""]
[null,null,"",null,null,null,0,null,null,null,0,null,null,null,0,null,null,null,0,0,"","",""]
[null,null,"",null,null,null,0,null,null,null,0,null,null,null,0,null,null,null,0,0,"","",""]
[null,null,"",null,null,null,0,null,null,null,0,null,null,null,0,null,null,null,0,0,"","",""]
[null,null,"",null,null,null,0,null,null,null,0,null,null,null,0,null,null,null,0,0,"","",""]
[null,null,"",null,null,null,0,null,null,null,0,null,null,null,0,null,null,null,0,0,"","",""]
[null,null,"",null,null,null,0,null,null,null,0,null,null,null,0,null,null,null,0,0,"","",""]
[null,null,"",null,null,null,0,null,null,null,0,null,null,null,0,null,null,null,0,0,"","",""]
[null,null,"",null,null,null,0,null,null,null,0,null,null,null,0,null,null,null,0,0,"","",""]
[null,null,"",null,null,null,0,null,null,null,0,null,null,null,0,null,null,null,0,0,"","",""]
[null,null,"",null,null,null,0,null,null,null,0,null,null,null,0,null,null,null,0,0,"","",""]
[null,null,"",null,null,null,0,null,null,null,0,null,null,null,0,null,null,null,0,0,"","",""]
[null,null,"",null,null,null,0,null,null,null,0,null,null,null,0,null,null,null,0,0,"","",""]
[null,null,"",null,null,null,0,null,null,null,0,null,null,null,0,null,null,null,0,0,"","",""]
[null,null,"",null,null,null,0,null,null,null,0,null,null,null,0,null,null,null,0,0,"","",""]
[null,null,"",null,null,null,0,null,null,null,0,null,null,null,0,null,null,null,0,0,"","",""]
[null,null,"",null,null,null,0,null,null,null,0,null,null,null,0,null,null,null,0,0,"","",""]
[null,null,"",null,null,null,0,null,null,null,0,null,null,null,0,null,null,null,0,0,"","",""]
[null,null,"",null,null,null,0,null,null,null,0,null,null,null,0,null,null,null,0,0,"","",""]
[null,null,"",null,null,null,0,null,null,null,0,null,null,null,0,null,null,null,0,0,"","",""]
[null,null,"",null,null,null,0,null,null,null,0,null,null,null,0,null,null,null,0,0,"","",""]
[null,null,{"$f":"IF($B4359<>\"\",VLOOKUP($B4359,Tbl_Reference,2,0),\"\")","v":""},null,null,null,0,null,null,null,0,null,null,null,0,null,null,null,0,0,{"$f":"IF($B4359<>\"\",VLOOKUP($B4359,Tbl_Reference,3,0),\"\")","v":""},{"$f":"IF($B4359<>\"\",VLOOKUP($B4359,Tbl_Reference,4,0),\"\")","v":""},""]
[null,null,"",null,null,null,0,null,null,null,0,null,null,null,0,null,null,null,0,0,"","",""]
[null,null,"",null,null,null,0,null,null,null,0,null,null,null,0,null,null,null,0,0,"","",""]
[null,null,"",null,null,null,0,null,null,null,0,null,null,null,0,null,null,null,0,0,"","",""]
[null,null,"",null,null,null,0,null,null,null,0,null,null,null,0,null,null,null,0,0,"","",""]
[null,null,"",null,null,null,0,null,null,null,0,null,null,null,0,null,null,null,0,0,"","",""]
[null,null,"",null,null,null,0,null,null,null,0,null,null,null,0,null,null,null,0,0,"","",""]
[null,null,"",null,null,null,0,null,null,null,0,null,null,null,0,null,null,null,0,0,"","",""]
[null,null,"",null,null,null,0,null,null,null,0,null,null,null,0,null,null,null,0,0,"","",""]
[null,null,"",null,null,null,0,null,null,null,0,null,null,null,0,null,null,null,0,0,"","",""]
[null,null,"",null,null,null,0,null,null,null,0,null,null,null,0,null,null,null,0,0,"","",""]
[null,null,"",null,null,null,0,null,null,null,0,null,null,null,0,null,null,null,0,0,"","",""]
[null,null,"",null,null,null,0,null,null,null,0,null,null,null,0,null,null,null,0,0,"","",""]
[null,null,"",null,null,null,0,null,null,null,0,null,null,null,0,null,null,null,0,0,"","",""]
[null,null,"",null,null,null,0,null,null,null,0,null,null,null,0,null,null,null,0,0,"","",""]
[null,null,"",null,null,null,0,null,null,null,0,null,null,null,0,null,null,null,0,0,"","",""]
[null,null,"",null,null,null,0,null,null,null,0,null,null,null,0,null,null,null,0,0,"","",""]
[null,null,"",null,null,null,0,null,null,null,0,null,null,null,0,null,null,null,0,0,"","",""]
[null,null,"",null,null,null,0,null,null,null,0,null,null,null,0,null,null,null,0,0,"","",""]
[null,null,"",null,null,null,0,null,null,null,0,null,null,null,0,null,null,null,0,0,"","",""]
[null,null,"",null,null,null,0,null,null,null,0,null,null,null,0,null,null,null,0,0,"","",""]
[null,null,"",null,null,null,0,null,null,null,0,null,null,null,0,null,null,null,0,0,"","",""]
[null,null,{"$f":"IF($B4551<>\"\",VLOOKUP($B4551,Tbl_Reference,2,0),\"\")","v":""},null,null,null,0,null,null,null,0,null,null,null,0,null,null,null,0,0,{"$f":"IF($B4551<>\"\",VLOOKUP($B4551,Tbl_Reference,3,0),\"\")","v":""},{"$f":"IF($B4551<>\"\",VLOOKUP($B4551,Tbl_Reference,4,0),\"\")","v":""},""]
[null,null,"",null,null,null,0,null,null,null,0,null,null,null,0,null,null,null,0,0,"","",""]
[null,null,"",null,null,null,0,null,null,null,0,null,null,null,0,null,null,null,0,0,"","",""]
[null,null,"",null,null,null,0,null,null,null,0,null,null,null,0,null,null,null,0,0,"","",""]
[null,null,"",null,null,null,0,null,null,null,0,null,null,null,0,null,null,null,0,0,"","",""]
[null,null,"",null,null,null,0,null,null,null,0,null,null,null,0,null,null,null,0,0,"","",""]
[null,null,"",null,null,null,0,null,null,null,0,null,null,null,0,null,null,null,0,0,"","",""]
[null,null,"",null,null,null,0,null,null,null,0,null,null,null,0,null,null,null,0,0,"","",""]
[null,null,"",null,null,null,0,null,null,null,0,null,null,null,0,null,null,null,0,0,"","",""]
[null,null,"",null,null,null,0,null,null,null,0,null,null,null,0,null,null,null,0,0,"","",""]
[null,null,"",null,null,null,0,null,null,null,0,null,null,null,0,null,null,null,0,0,"","",""]
[null,null,"",null,null,null,0,null,null,null,0,null,null,null,0,null,null,null,0,0,"","",""]
[null,null,"",null,null,null,0,null,null,null,0,null,null,null,0,null,null,null,0,0,"","",""]
[null,null,"",null,null,null,0,null,null,null,0,null,null,null,0,null,null,null,0,0,"","",""]
[null,null,"",null,null,null,0,null,null,null,0,null,null,null,0,null,null,null,0,0,"","",""]
[null,null,{"$f":"IF($B4679<>\"\",VLOOKUP($B4679,Tbl_Reference,2,0),\"\")","v":""},null,null,null,0,null,null,null,0,null,null,null,0,null,null,null,0,0,{"$f":"IF($B4679<>\"\",VLOOKUP($B4679,Tbl_Reference,3,0),\"\")","v":""},{"$f":"IF($B4679<>\"\",VLOOKUP($B4679,Tbl_Reference,4,0),\"\")","v":""},""]
[null,null,"",null,null,null,0,null,null,null,0,null,null,null,0,null,null,null,0,0,"","",""]
[null,null,"",null,null,null,0,null,null,null,0,null,null,null,0,null,null,null,0,0,"","",""]
[null,null,"",null,null,null,0,null,null,null,0,null,null,null,0,null,null,null,0,0,"","",""]
[null,null,"",null,null,null,0,null,null,null,0,null,null,null,0,null,null,null,0,0,"","",""]
[null,null,"",null,null,null,0,null,null,null,0,null,null,null,0,null,null,null,0,0,"","",""]
[null,null,"",null,null,null,0,null,null,null,0,null,null,null,0,null,null,null,0,0,"","",""]
[null,null,"",null,null,null,0,null,null,null,0,null,null,null,0,null,null,null,0,0,"","",""]
[null,null,"",null,null,null,0,null,null,null,0,null,null,null,0,null,null,null,0,0,"","",""]
[null,null,"",null,null,null,0,null,null,null,0,null,null,null,0,null,null,null,0,0,"","",""]
[null,null,"",null,null,null,0,null,null,null,0,null,null,null,0,null,null,null,0,0,"","",""]
[null,null,"",null,null,null,0,null,null,null,0,null,null,null,0,null,null,null,0,0,"","",""]
[null,null,"",null,null,null,0,null,null,null,0,null,null,null,0,null,null,null,0,0,"","",""]
[null,null,"",null,null,null,0,null,null,null,0,null,null,null,0,null,null,null,0,0,"","",""]
[null,null,"",null,null,null,0,null,null,null,0,null,null,null,0,null,null,null,0,0,"","",""]
[null,null,"",null,null,null,0,null,null,null,0,null,null,null,0,null,null,null,0,0,"","",""]
[null,null,"",null,null,null,0,null,null,null,0,null,null,null,0,null,null,null,0,0,"","",""]
[null,null,"",null,null,null,0,null,null,null,0,null,null,null,0,null,null,null,0,0,"","",""]
[null,null,"",null,null,null,0,null,null,null,0,null,null,null,0,null,null,null,0,0,"","",""]
[null,null,"",null,null,null,0,null,null,null,0,null,null,null,0,null,null,null,0,0,"","",""]
[null,null,"",null,null,null,0,null,null,null,0,null,null,null,0,null,null,null,0,0,"","",""]
[null,null,"",null,null,null,0,null,null,null,0,null,null,null,0,null,null,null,0,0,"","",""]
[null,null,{"$f":"IF($B4871<>\"\",VLOOKUP($B4871,Tbl_Reference,2,0),\"\")","v":""},null,null,null,0,null,null,null,0,null,null,null,0,null,null,null,0,0,{"$f":"IF($B4871<>\"\",VLOOKUP($B4871,Tbl_Reference,3,0),\"\")","v":""},{"$f":"IF($B4871<>\"\",VLOOKUP($B4871,Tbl_Reference,4,0),\"\")","v":""},""]
[null,null,"",null,null,null,0,null,null,null,0,null,null,null,0,null,null,null,0,0,"","",""]
[null,null,"",null,null,null,0,null,null,null,0,null,null,null,0,null,null,null,0,0,"","",""]
[null,null,"",null,null,null,0,null,null,null,0,null,null,null,0,null,null,null,0,0,"","",""]
[null,null,"",null,null,null,0,null,null,null,0,null,null,null,0,null,null,null,0,0,"","",""]
[null,null,"",null,null,null,0,null,null,null,0,null,null,null,0,null,null,null,0,0,"","",""]
[null,null,"",null,null,null,0,null,null,null,0,null,null,null,0,null,null,null,0,0,"","",""]
[null,null,"",null,null,null,0,null,null,null,0,null,null,null,0,null,null,null,0,0,"","",""]
[null,null,"",null,null,null,0,null,null,null,0,null,null,null,0,null,null,null,0,0,"","",""]
[null,null,"",null,null,null,0,null,null,null,0,null,null,null,0,null,null,null,0,0,"","",""]
[null,null,"",null,null,null,0,null,null,null,0,null,null,null,0,null,null,null,0,0,"","",""]
[null,null,"",null,null,null,0,null,null,null,0,null,null,null,0,null,null,null,0,0,"","",""]
[null,null,"",null,null,null,0,null,null,null,0,null,null,null,0,null,null,null,0,0,"","",""]
[null,null,"",null,null,null,0,null,null,null,0,null,null,null,0,null,null,null,0,0,"","",""]
[null,null,"",null,null,null,0,null,null,null,0,null,null,null,0,null,null,null,0,0,"","",""]
[null,null,"",null,null,null,0,null,null,null,0,null,null,null,0,null,null,null,0,0,"","",""]
[null,null,"",null,null,null,0,null,null,null,0,null,null,null,0,null,null,null,0,0,"","",""]
[null,null,"",null,null,null,0,null,null,null,0,null,null,null,0,null,null,null,0,0,"","",""]
[null,null,"",null,null,null,0,null,null,null,0,null,null,null,0,null,null,null,0,0,"","",""]
[null,null,"",null,null,null,0,null,null,null,0,null,null,null,0,null,null,null,0,0,"","",""]
[null,null,"",null,null,null,0,null,null,null,0,null,null,null,0,null,null,null,0,0,"","",""]
[null,null,"",null,null,null,0,null,null,null,0,null,null,null,0,null,null,null,0,0,"","",""]
[null,null,"",null,null,null,0,null,null,null,0,null,null,null,0,null,null,null,0,0,"","",""]
[null,null,"",null,null,null,0,null,null,null,0,null,null,null,0,null,null,null,0,0,"","",""]
[null,null,"",null,null,null,0,null,null,null,0,null,null,null,0,null,null,null,0,0,"","",""]
[null,null,"",null,null,null,0,null,null,null,0,null,null,null,0,null,null,null,0,0,"","",""]
[null,null,"",null,null,null,0,null,null,null,0,null,null,null,0,null,null,null,0,0,"","",""]
[null,null,"",null,null,null,0,null,null,null,0,null,null,null,0,null,null,null,0,0,"","",""]
[null,null,"",null,null,null,0,null,null,null,0,null,null,null,0,null,null,null,0,0,"","",""]
[null,null,"",null,null,null,0,null,null,null,0,null,null,null,0,null,null,null,0,0,"","",""]
[null,null,"",null,null,null,0,null,null,null,0,null,null,null,0,null,null,null,0,0,"","",""]
[null,null,"",null,null,null,0,null,null,null,0,null,null,null,0,null,null,null,0,0,"","",""]
[null,null,"",null,null,null,0,null,null,null,0,null,null,null,0,null,null,null,0,0,"","",""]
[null,null,"",null,null,null,0,null,null,null,0,null,null,null,0,null,null,null,0,0,"","",""]
[null,null,"",null,null,null,0,null,null,null,0,null,null,null,0,null,null,null,0,0,"","",""]
[null,null,"",null,null,null,0,null,null,null,0,null,null,null,0,null,null,null,0,0,"","",""]
[null,null,"",null,null,null,0,null,null,null,0,null,null,null,0,null,null,null,0,0,"","",""]
[null,null,"",null,null,null,0,null,null,null,0,null,null,null,0,null,null,null,0,0,"","",""]
[null,null,"",null,null,null,0,null,null,null,0,null,null,null,0,null,null,null,0,0,"","",""]
[null,null,"",null,null,null,0,null,null,null,0,null,null,null,0,null,null,null,0,0,"","",""]
[null,null,"",null,null,null,0,null,null,null,0,null,null,null,0,null,null,null,0,0,"","",""]
[null,null,"",null,null,null,0,null,null,null,0,null,null,null,0,null,null,null,0,0,"","",""]
[null,null,"",null,null,null,0,null,null,null,0,null,null,null,0,null,null,null,0,0,"","",""]
[null,null,"",null,null,null,0,null,null,null,0,null,null,null,0,null,null,null,0,0,"","",""]
[null,null,"",null,null,null,0,null,null,null,0,null,null,null,0,null,null,null,0,0,"","",""]
[null,null,"",null,null,null,0,null,null,null,0,null,null,null,0,null,null,null,0,0,"","",""]
[null,null,"",null,null,null,0,null,null,null,0,null,null,null,0,null,null,null,0,0,"","",""]
[null,null,"",null,null,null,0,null,null,null,0,null,null,null,0,null,null,null,0,0,"","",""]
[null,null,"",null,null,null,0,null,null,null,0,null,null,null,0,null,null,null,0,0,"","",""]
[null,null,"",null,null,null,0,null,null,null,0,null,null,null,0,null,null,null,0,0,"","",""]
[null,null,"",null,null,null,0,null,null,null,0,null,null,null,0,null,null,null,0,0,"","",""]
[null,null,"",null,null,null,0,null,null,null,0,null,null,null,0,null,null,null,0,0,"","",""]
[null,null,"",null,null,null,0,null,null,null,0,null,null,null,0,null,null,null,0,0,"","",""]
[null,null,"",null,null,null,0,null,null,null,0,null,null,null,0,null,null,null,0,0,"","",""]
[null,null,"",null,null,null,0,null,null,null,0,null,null,null,0,null,null,null,0,0,"","",""]
[null,null,"",null,null,null,0,null,null,null,0,null,null,null,0,null,null,null,0,0,"","",""]
[null,null,"",null,null,null,0,null,null,null,0,null,null,null,0,null,null,null,0,0,"","",""]
[null,null,"",null,null,null,0,null,null,null,0,null,null,null,0,null,null,null,0,0,"","",""]
[null,null,{"$f":"IF($B5383<>\"\",VLOOKUP($B5383,Tbl_Reference,2,0),\"\")","v":""},null,null,null,0,null,null,null,0,null,null,null,0,null,null,null,0,0,{"$f":"IF($B5383<>\"\",VLOOKUP($B5383,Tbl_Reference,3,0),\"\")","v":""},{"$f":"IF($B5383<>\"\",VLOOKUP($B5383,Tbl_Reference,4,0),\"\")","v":""},""]
[null,null,"",null,null,null,0,null,null,null,0,null,null,null,0,null,null,null,0,0,"","",""]
[null,null,"",null,null,null,0,null,null,null,0,null,null,null,0,null,null,null,0,0,"","",""]
[null,null,"",null,null,null,0,null,null,null,0,null,null,null,0,null,null,null,0,0,"","",""]
[null,null,"",null,null,null,0,null,null,null,0,null,null,null,0,null,null,null,0,0,"","",""]
[null,null,"",null,null,null,0,null,null,null,0,null,null,null,0,null,null,null,0,0,"","",""]
[null,null,"",null,null,null,0,null,null,null,0,null,null,null,0,null,null,null,0,0,"","",""]
[null,null,{"$f":"IF($B5447<>\"\",VLOOKUP($B5447,Tbl_Reference,2,0),\"\")","v":""},null,null,null,0,null,null,null,0,null,null,null,0,null,null,null,0,0,{"$f":"IF($B5447<>\"\",VLOOKUP($B5447,Tbl_Reference,3,0),\"\")","v":""},{"$f":"IF($B5447<>\"\",VLOOKUP($B5447,Tbl_Reference,4,0),\"\")","v":""},""]
[null,null,"",null,null,null,0,null,null,null,0,null,null,null,0,null,null,null,0,0,"","",""]
[null,null,"",null,null,null,0,null,null,null,0,null,null,null,0,null,null,null,0,0,"","",""]
[null,null,"",null,null,null,0,null,null,null,0,null,null,null,0,null,null,null,0,0,"","",""]
[null,null,"",null,null,null,0,null,null,null,0,null,null,null,0,null,null,null,0,0,"","",""]
[null,null,"",null,null,null,0,null,null,null,0,null,null,null,0,null,null,null,0,0,"","",""]
[null,null,"",null,null,null,0,null,null,null,0,null,null,null,0,null,null,null,0,0,"","",""]
[null,null,"",null,null,null,0,null,null,null,0,null,null,null,0,null,null,null,0,0,"","",""]
[null,null,"",null,null,null,0,null,null,null,0,null,null,null,0,null,null,null,0,0,"","",""]
[null,null,"",null,null,null,0,null,null,null,0,null,null,null,0,null,null,null,0,0,"","",""]
[null,null,"",null,null,null,0,null,null,null,0,null,null,null,0,null,null,null,0,0,"","",""]
[null,null,"",null,null,null,0,null,null,null,0,null,null,null,0,null,null,null,0,0,"","",""]
[null,null,"",null,null,null,0,null,null,null,0,null,null,null,0,null,null,null,0,0,"","",""]
[null,null,"",null,null,null,0,null,null,null,0,null,null,null,0,null,null,null,0,0,"","",""]
[null,null,"",null,null,null,0,null,null,null,0,null,null,null,0,null,null,null,0,0,"","",""]
[null,null,{"$f":"IF($B5575<>\"\",VLOOKUP($B5575,Tbl_Reference,2,0),\"\")","v":""},null,null,null,0,null,null,null,0,null,null,null,0,null,null,null,0,0,{"$f":"IF($B5575<>\"\",VLOOKUP($B5575,Tbl_Reference,3,0),\"\")","v":""},{"$f":"IF($B5575<>\"\",VLOOKUP($B5575,Tbl_Reference,4,0),\"\")","v":""},""]
[null,null,"",null,null,null,0,null,null,null,0,null,null,null,0,null,null,null,0,0,"","",""]
[null,null,"",null,null,null,0,null,null,null,0,null,null,null,0,null,null,null,0,0,"","",""]
[null,null,"",null,null,null,0,null,null,null,0,null,null,null,0,null,null,null,0,0,"","",""]
[null,null,"",null,null,null,0,null,null,null,0,null,null,null,0,null,null,null,0,0,"","",""]
[null,null,"",null,null,null,0,null,null,null,0,null,null,null,0,null,null,null,0,0,"","",""]
[null,null,"",null,null,null,0,null,null,null,0,null,null,null,0,null,null,null,0,0,"","",""]
[null,null,"",null,null,null,0,null,null,null,0,null,null,null,0,null,null,null,0,0,"","",""]
[null,null,"",null,null,null,0,null,null,null,0,null,null,null,0,null,null,null,0,0,"","",""]
[null,null,"",null,null,null,0,null,null,null,0,null,null,null,0,null,null,null,0,0,"","",""]
[null,null,"",null,null,null,0,null,null,null,0,null,null,null,0,null,null,null,0,0,"","",""]
[null,null,"",null,null,null,0,null,null,null,0,null,null,null,0,null,null,null,0,0,"","",""]
[null,null,"",null,null,null,0,null,null,null,0,null,null,null,0,null,null,null,0,0,"","",""]
[null,null,"",null,null,null,0,null,null,null,0,null,null,null,0,null,null,null,0,0,"","",""]
[null,null,"",null,null,null,0,null,null,null,0,null,null,null,0,null,null,null,0,0,"","",""]
[null,null,{"$f":"IF($B5703<>\"\",VLOOKUP($B5703,Tbl_Reference,2,0),\"\")","v":""},null,null,null,0,null,null,null,0,null,null,null,0,null,null,null,0,0,{"$f":"IF($B5703<>\"\",VLOOKUP($B5703,Tbl_Reference,3,0),\"\")","v":""},{"$f":"IF($B5703<>\"\",VLOOKUP($B5703,Tbl_Reference,4,0),\"\")","v":""},""]
[null,null,"",null,null,null,0,null,null,null,0,null,null,null,0,null,null,null,0,0,"","",""]
[null,null,"",null,null,null,0,null,null,null,0,null,null,null,0,null,null,null,0,0,"","",""]
[null,null,"",null,null,null,0,null,null,null,0,null,null,null,0,null,null,null,0,0,"","",""]
[null,null,"",null,null,null,0,null,null,null,0,null,null,null,0,null,null,null,0,0,"","",""]
[null,null,"",null,null,null,0,null,null,null,0,null,null,null,0,null,null,null,0,0,"","",""]
[null,null,"",null,null,null,0,null,null,null,0,null,null,null,0,null,null,null,0,0,"","",""]
[null,null,"",null,null,null,0,null,null,null,0,null,null,null,0,null,null,null,0,0,"","",""]
[null,null,"",null,null,null,0,null,null,null,0,null,null,null,0,null,null,null,0,0,"","",""]
[null,null,"",null,null,null,0,null,null,null,0,null,null,null,0,null,null,null,0,0,"","",""]
[null,null,"",null,null,null,0,null,null,null,0,null,null,null,0,null,null,null,0,0,"","",""]
[null,null,"",null,null,null,0,null,null,null,0,null,null,null,0,null,null,null,0,0,"","",""]
[null,null,"",null,null,null,0,null,null,null,0,null,null,null,0,null,null,null,0,0,"","",""]
[null,null,"",null,null,null,0,null,null,null,0,null,null,null,0,null,null,null,0,0,"","",""]
[null,null,"",null,null,null,0,null,null,null,0,null,null,null,0,null,null,null,0,0,"","",""]
[null,null,"",null,null,null,0,null,null,null,0,null,null,null,0,null,null,null,0,0,"","",""]
[null,null,"",null,null,null,0,null,null,null,0,null,null,null,0,null,null,null,0,0,"","",""]
[null,null,"",null,null,null,0,null,null,null,0,null,null,null,0,null,null,null,0,0,"","",""]
[null,null,"",null,null,null,0,null,null,null,0,null,null,null,0,null,null,null,0,0,"","",""]
[null,null,"",null,null,null,0,null,null,null,0,null,null,null,0,null,null,null,0,0,"","",""]
[null,null,"",null,null,null,0,null,null,null,0,null,null,null,0,null,null,null,0,0,"","",""]
[null,null,"",null,null,null,0,null,null,null,0,null,null,null,0,null,null,null,0,0,"","",""]
[null,null,{"$f":"IF($B5895<>\"\",VLOOKUP($B5895,Tbl_Reference,2,0),\"\")","v":""},null,null,null,0,null,null,null,0,null,null,null,0,null,null,null,0,0,{"$f":"IF($B5895<>\"\",VLOOKUP($B5895,Tbl_Reference,3,0),\"\")","v":""},{"$f":"IF($B5895<>\"\",VLOOKUP($B5895,Tbl_Reference,4,0),\"\")","v":""},""]
[null,null,"",null,null,null,0,null,null,null,0,null,null,null,0,null,null,null,0,0,"","",""]
[null,null,"",null,null,null,0,null,null,null,0,null,null,null,0,null,null,null,0,0,"","",""]
[null,null,"",null,null,null,0,null,null,null,0,null,null,null,0,null,null,null,0,0,"","",""]
[null,null,"",null,null,null,0,null,null,null,0,null,null,null,0,null,null,null,0,0,"","",""]
[null,null,"",null,null,null,0,null,null,null,0,null,null,null,0,null,null,null,0,0,"","",""]
[null,null,"",null,null,null,0,null,null,null,0,null,null,null,0,null,null,null,0,0,"","",""]
[null,null,"",null,null,null,0,null,null,null,0,null,null,null,0,null,null,null,0,0,"","",""]
[null,null,"",null,null,null,0,null,null,null,0,null,null,null,0,null,null,null,0,0,"","",""]
[null,null,"",null,null,null,0,null,null,null,0,null,null,null,0,null,null,null,0,0,"","",""]
[null,null,"",null,null,null,0,null,null,null,0,null,null,null,0,null,null,null,0,0,"","",""]
[null,null,"",null,null,null,0,null,null,null,0,null,null,null,0,null,null,null,0,0,"","",""]
[null,null,"",null,null,null,0,null,null,null,0,null,null,null,0,null,null,null,0,0,"","",""]
[null,null,"",null,null,null,0,null,null,null,0,null,null,null,0,null,null,null,0,0,"","",""]
[null,null,{"$f":"IF($B6023<>\"\",VLOOKUP($B6023,Tbl_Reference,2,0),\"\")","v":""},null,null,null,0,null,null,null,0,null,null,null,0,null,null,null,0,0,{"$f":"IF($B6023<>\"\",VLOOKUP($B6023,Tbl_Reference,3,0),\"\")","v":""},{"$f":"IF($B6023<>\"\",VLOOKUP($B6023,Tbl_Reference,4,0),\"\")","v":""},""]
[null,null,"",null,null,null,0,null,null,null,0,null,null,null,0,null,null,null,0,0,"","",""]
[null,null,"",null,null,null,0,null,null,null,0,null,null,null,0,null,null,null,0,0,"","",""]
[null,null,"",null,null,null,0,null,null,null,0,null,null,null,0,null,null,null,0,0,"","",""]
[null,null,"",null,null,null,0,null,null,null,0,null,null,null,0,null,null,null,0,0,"","",""]
[null,null,"",null,null,null,0,null,null,null,0,null,null,null,0,null,null,null,0,0,"","",""]
[null,null,"",null,null,null,0,null,null,null,0,null,null,null,0,null,null,null,0,0,"","",""]
[null,null,"",null,null,null,0,null,null,null,0,null,null,null,0,null,null,null,0,0,"","",""]
[null,null,"",null,null,null,0,null,null,null,0,null,null,null,0,null,null,null,0,0,"","",""]
[null,null,"",null,null,null,0,null,null,null,0,null,null,null,0,null,null,null,0,0,"","",""]
[null,null,"",null,null,null,0,null,null,null,0,null,null,null,0,null,null,null,0,0,"","",""]
[null,null,"",null,null,null,0,null,null,null,0,null,null,null,0,null,null,null,0,0,"","",""]
[null,null,"",null,null,null,0,null,null,null,0,null,null,null,0,null,null,null,0,0,"","",""]
[null,null,"",null,null,null,0,null,null,null,0,null,null,null,0,null,null,null,0,0,"","",""]
[null,null,"",null,null,null,0,null,null,null,0,null,null,null,0,null,null,null,0,0,"","",""]
[null,null,"",null,null,null,0,null,null,null,0,null,null,null,0,null,null,null,0,0,"","",""]
[null,null,"",null,null,null,0,null,null,null,0,null,null,null,0,null,null,null,0,0,"","",""]
[null,null,"",null,null,null,0,null,null,null,0,null,null,null,0,null,null,null,0,0,"","",""]
[null,null,"",null,null,null,0,null,null,null,0,null,null,null,0,null,null,null,0,0,"","",""]
[null,null,"",null,null,null,0,null,null,null,0,null,null,null,0,null,null,null,0,0,"","",""]
[null,null,"",null,null,null,0,null,null,null,0,null,null,null,0,null,null,null,0,0,"","",""]
[null,null,"",null,null,null,0,null,null,null,0,null,null,null,0,null,null,null,0,0,"","",""]
[null,null,"",null,null,null,0,null,null,null,0,null,null,null,0,null,null,null,0,0,"","",""]
[null,null,"",null,null,null,0,null,null,null,0,null,null,null,0,null,null,null,0,0,"","",""]
[null,null,"",null,null,null,0,null,null,null,0,null,null,null,0,null,null,null,0,0,"","",""]
[null,null,"",null,null,null,0,null,null,null,0,null,null,null,0,null,null,null,0,0,"","",""]
[null,null,"",null,null,null,0,null,null,null,0,null,null,null,0,null,null,null,0,0,"","",""]
[null,null,"",null,null,null,0,null,null,null,0,null,null,null,0,null,null,null,0,0,"","",""]
[null,null,"",null,null,null,0,null,null,null,0,null,null,null,0,null,null,null,0,0,"","",""]
[null,null,"",null,null,null,0,null,null,null,0,null,null,null,0,null,null,null,0,0,"","",""]
[null,null,"",null,null,null,0,null,null,null,0,null,null,null,0,null,null,null,0,0,"","",""]
[null,null,"",null,null,null,0,null,null,null,0,null,null,null,0,null,null,null,0,0,"","",""]
[null,null,"",null,null,null,0,null,null,null,0,null,null,null,0,null,null,null,0,0,"","",""]
[null,null,"",null,null,null,0,null,null,null,0,null,null,null,0,null,null,null,0,0,"","",""]
[null,null,"",null,null,null,0,null,null,null,0,null,null,null,0,null,null,null,0,0,"","",""]
[null,null,"",null,null,null,0,null,null,null,0,null,null,null,0,null,null,null,0,0,"","",""]
[null,null,"",null,null,null,0,null,null,null,0,null,null,null,0,null,null,null,0,0,"","",""]
[null,null,"",null,null,null,0,null,null,null,0,null,null,null,0,null,null,null,0,0,"","",""]
[null,null,"",null,null,null,0,null,null,null,0,null,null,null,0,null,null,null,0,0,"","",""]
[null,null,"",null,null,null,0,null,null,null,0,null,null,null,0,null,null,null,0,0,"","",""]
[null,null,"",null,null,null,0,null,null,null,0,null,null,null,0,null,null,null,0,0,"","",""]
[null,null,"",null,null,null,0,null,null,null,0,null,null,null,0,null,null,null,0,0,"","",""]
[null,null,"",null,null,null,0,null,null,null,0,null,null,null,0,null,null,null,0,0,"","",""]
[null,null,"",null,null,null,0,null,null,null,0,null,null,null,0,null,null,null,0,0,"","",""]
[null,null,"",null,null,null,0,null,null,null,0,null,null,null,0,null,null,null,0,0,"","",""]
[null,null,"",null,null,null,0,null,null,null,0,null,null,null,0,null,null,null,0,0,"","",""]
[null,null,"",null,null,null,0,null,null,null,0,null,null,null,0,null,null,null,0,0,"","",""]
[null,null,"",null,null,null,0,null,null,null,0,null,null,null,0,null,null,null,0,0,"","",""]
[null,null,"",null,null,null,0,null,null,null,0,null,null,null,0,null,null,null,0,0,"","",""]
[null,null,"",null,null,null,0,null,null,null,0,null,null,null,0,null,null,null,0,0,"","",""]
[null,null,"",null,null,null,0,null,null,null,0,null,null,null,0,null,null,null,0,0,"","",""]
[null,null,{"$f":"IF($B6471<>\"\",VLOOKUP($B6471,Tbl_Reference,2,0),\"\")","v":""},null,null,null,0,null,null,null,0,null,null,null,0,null,null,null,0,0,{"$f":"IF($B6471<>\"\",VLOOKUP($B6471,Tbl_Reference,3,0),\"\")","v":""},{"$f":"IF($B6471<>\"\",VLOOKUP($B6471,Tbl_Reference,4,0),\"\")","v":""},""]
[null,null,"",null,null,null,0,null,null,null,0,null,null,null,0,null,null,null,0,0,"","",""]
[null,null,"",null,null,null,0,null,null,null,0,null,null,null,0,null,null,null,0,0,"","",""]
[null,null,"",null,null,null,0,null,null,null,0,null,null,null,0,null,null,null,0,0,"","",""]
[null,null,"",null,null,null,0,null,null,null,0,null,null,null,0,null,null,null,0,0,"","",""]
[null,null,"",null,null,null,0,null,null,null,0,null,null,null,0,null,null,null,0,0,"","",""]
[null,null,"",null,null,null,0,null,null,null,0,null,null,null,0,null,null,null,0,0,"","",""]
[null,null,"",null,null,null,0,null,null,null,0,null,null,null,0,null,null,null,0,0,"","",""]
[null,null,"",null,null,null,0,null,null,null,0,null,null,null,0,null,null,null,0,0,"","",""]
[null,null,"",null,null,null,0,null,null,null,0,null,null,null,0,null,null,null,0,0,"","",""]
[null,null,"",null,null,null,0,null,null,null,0,null,null,null,0,null,null,null,0,0,"","",""]
[null,null,"",null,null,null,0,null,null,null,0,null,null,null,0,null,null,null,0,0,"","",""]
[null,null,"",null,null,null,0,null,null,null,0,null,null,null,0,null,null,null,0,0,"","",""]
[null,null,"",null,null,null,0,null,null,null,0,null,null,null,0,null,null,null,0,0,"","",""]
[null,null,"",null,null,null,0,null,null,null,0,null,null,null,0,null,null,null,0,0,"","",""]
[null,null,{"$f":"IF($B6599<>\"\",VLOOKUP($B6599,Tbl_Reference,2,0),\"\")","v":""},null,null,null,0,null,null,null,0,null,null,null,0,null,null,null,0,0,{"$f":"IF($B6599<>\"\",VLOOKUP($B6599,Tbl_Reference,3,0),\"\")","v":""},{"$f":"IF($B6599<>\"\",VLOOKUP($B6599,Tbl_Reference,4,0),\"\")","v":""},""]
[null,null,"",null,null,null,0,null,null,null,0,null,null,null,0,null,null,null,0,0,"","",""]
[null,null,"",null,null,null,0,null,null,null,0,null,null,null,0,null,null,null,0,0,"","",""]
[null,null,"",null,null,null,0,null,null,null,0,null,null,null,0,null,null,null,0,0,"","",""]
[null,null,"",null,null,null,0,null,null,null,0,null,null,null,0,null,null,null,0,0,"","",""]
[null,null,"",null,null,null,0,null,null,null,0,null,null,null,0,null,null,null,0,0,"","",""]
[null,null,"",null,null,null,0,null,null,null,0,null,null,null,0,null,null,null,0,0,"","",""]
[null,null,{"$f":"IF($B6663<>\"\",VLOOKUP($B6663,Tbl_Reference,2,0),\"\")","v":""},null,null,null,0,null,null,null,0,null,null,null,0,null,null,null,0,0,{"$f":"IF($B6663<>\"\",VLOOKUP($B6663,Tbl_Reference,3,0),\"\")","v":""},{"$f":"IF($B6663<>\"\",VLOOKUP($B6663,Tbl_Reference,4,0),\"\")","v":""},""]
[null,null,"",null,null,null,0,null,null,null,0,null,null,null,0,null,null,null,0,0,"","",""]
[null,null,"",null,null,null,0,null,null,null,0,null,null,null,0,null,null,null,0,0,"","",""]
[null,null,"",null,null,null,0,null,null,null,0,null,null,null,0,null,null,null,0,0,"","",""]
[null,null,"",null,null,null,0,null,null,null,0,null,null,null,0,null,null,null,0,0,"","",""]
[null,null,"",null,null,null,0,null,null,null,0,null,null,null,0,null,null,null,0,0,"","",""]
[null,null,"",null,null,null,0,null,null,null,0,null,null,null,0,null,null,null,0,0,"","",""]
[null,null,"",null,null,null,0,null,null,null,0,null,null,null,0,null,null,null,0,0,"","",""]
[null,null,"",null,null,null,0,null,null,null,0,null,null,null,0,null,null,null,0,0,"","",""]
[null,null,"",null,null,null,0,null,null,null,0,null,null,null,0,null,null,null,0,0,"","",""]
[null,null,"",null,null,null,0,null,null,null,0,null,null,null,0,null,null,null,0,0,"","",""]
[null,null,"",null,null,null,0,null,null,null,0,null,null,null,0,null,null,null,0,0,"","",""]
[null,null,"",null,null,null,0,null,null,null,0,null,null,null,0,null,null,null,0,0,"","",""]
[null,null,"",null,null,null,0,null,null,null,0,null,null,null,0,null,null,null,0,0,"","",""]
[null,null,"",null,null,null,0,null,null,null,0,null,null,null,0,null,null,null,0,0,"","",""]
[null,null,{"$f":"IF($B6791<>\"\",VLOOKUP($B6791,Tbl_Reference,2,0),\"\")","v":""},null,null,null,0,null,null,null,0,null,null,null,0,null,null,null,0,0,{"$f":"IF($B6791<>\"\",VLOOKUP($B6791,Tbl_Reference,3,0),\"\")","v":""},{"$f":"IF($B6791<>\"\",VLOOKUP($B6791,Tbl_Reference,4,0),\"\")","v":""},""]
[null,null,"",null,null,null,0,null,null,null,0,null,null,null,0,null,null,null,0,0,"","",""]
[null,null,"",null,null,null,0,null,null,null,0,null,null,null,0,null,null,null,0,0,"","",""]
[null,null,"",null,null,null,0,null,null,null,0,null,null,null,0,null,null,null,0,0,"","",""]
[null,null,"",null,null,null,0,null,null,null,0,null,null,null,0,null,null,null,0,0,"","",""]
[null,null,"",null,null,null,0,null,null,null,0,null,null,null,0,null,null,null,0,0,"","",""]
[null,null,"",null,null,null,0,null,null,null,0,null,null,null,0,null,null,null,0,0,"","",""]
[null,null,"",null,null,null,0,null,null,null,0,null,null,null,0,null,null,null,0,0,"","",""]
[null,null,"",null,null,null,0,null,null,null,0,null,null,null,0,null,null,null,0,0,"","",""]
[null,null,"",null,null,null,0,null,null,null,0,null,null,null,0,null,null,null,0,0,"","",""]
[null,null,"",null,null,null,0,null,null,null,0,null,null,null,0,null,null,null,0,0,"","",""]
[null,null,"",null,null,null,0,null,null,null,0,null,null,null,0,null,null,null,0,0,"","",""]
[null,null,"",null,null,null,0,null,null,null,0,null,null,null,0,null,null,null,0,0,"","",""]
[null,null,"",null,null,null,0,null,null,null,0,null,null,null,0,null,null,null,0,0,"","",""]
[null,null,"",null,null,null,0,null,null,null,0,null,null,null,0,null,null,null,0,0,"","",""]
[null,null,{"$f":"IF($B6919<>\"\",VLOOKUP($B6919,Tbl_Reference,2,0),\"\")","v":""},null,null,null,0,null,null,null,0,null,null,null,0,null,null,null,0,0,{"$f":"IF($B6919<>\"\",VLOOKUP($B6919,Tbl_Reference,3,0),\"\")","v":""},{"$f":"IF($B6919<>\"\",VLOOKUP($B6919,Tbl_Reference,4,0),\"\")","v":""},""]
[null,null,"",null,null,null,0,null,null,null,0,null,null,null,0,null,null,null,0,0,"","",""]
[null,null,"",null,null,null,0,null,null,null,0,null,null,null,0,null,null,null,0,0,"","",""]
[null,null,"",null,null,null,0,null,null,null,0,null,null,null,0,null,null,null,0,0,"","",""]
[null,null,"",null,null,null,0,null,null,null,0,null,null,null,0,null,null,null,0,0,"","",""]
[null,null,"",null,null,null,0,null,null,null,0,null,null,null,0,null,null,null,0,0,"","",""]
[null,null,"",null,null,null,0,null,null,null,0,null,null,null,0,null,null,null,0,0,"","",""]
[null,null,"",null,null,null,0,null,null,null,0,null,null,null,0,null,null,null,0,0,"","",""]
[null,null,"",null,null,null,0,null,null,null,0,null,null,null,0,null,null,null,0,0,"","",""]
[null,null,"",null,null,null,0,null,null,null,0,null,null,null,0,null,null,null,0,0,"","",""]
[null,null,"",null,null,null,0,null,null,null,0,null,null,null,0,null,null,null,0,0,"","",""]
[null,null,"",null,null,null,0,null,null,null,0,null,null,null,0,null,null,null,0,0,"","",""]
[null,null,"",null,null,null,0,null,null,null,0,null,null,null,0,null,null,null,0,0,"","",""]
[null,null,"",null,null,null,0,null,null,null,0,null,null,null,0,null,null,null,0,0,"","",""]
[null,null,"",null,null,null,0,null,null,null,0,null,null,null,0,null,null,null,0,0,"","",""]
[null,null,"",null,null,null,0,null,null,null,0,null,null,null,0,null,null,null,0,0,"","",""]
[null,null,"",null,null,null,0,null,null,null,0,null,null,null,0,null,null,null,0,0,"","",""]
[null,null,"",null,null,null,0,null,null,null,0,null,null,null,0,null,null,null,0,0,"","",""]
[null,null,"",null,null,null,0,null,null,null,0,null,null,null,0,null,null,null,0,0,"","",""]
[null,null,"",null,null,null,0,null,null,null,0,null,null,null,0,null,null,null,0,0,"","",""]
[null,null,"",null,null,null,0,null,null,null,0,null,null,null,0,null,null,null,0,0,"","",""]
[null,null,"",null,null,null,0,null,null,null,0,null,null,null,0,null,null,null,0,0,"","",""]
[null,null,{"$f":"IF($B7111<>\"\",VLOOKUP($B7111,Tbl_Reference,2,0),\"\")","v":""},null,null,null,0,null,null,null,0,null,null,null,0,null,null,null,0,0,{"$f":"IF($B7111<>\"\",VLOOKUP($B7111,Tbl_Reference,3,0),\"\")","v":""},{"$f":"IF($B7111<>\"\",VLOOKUP($B7111,Tbl_Reference,4,0),\"\")","v":""},""]
[null,null,"",null,null,null,0,null,null,null,0,null,null,null,0,null,null,null,0,0,"","",""]
[null,null,"",null,null,null,0,null,null,null,0,null,null,null,0,null,null,null,0,0,"","",""]
[null,null,"",null,null,null,0,null,null,null,0,null,null,null,0,null,null,null,0,0,"","",""]
[null,null,"",null,null,null,0,null,null,null,0,null,null,null,0,null,null,null,0,0,"","",""]
[null,null,"",null,null,null,0,null,null,null,0,null,null,null,0,null,null,null,0,0,"","",""]
[null,null,"",null,null,null,0,null,null,null,0,null,null,null,0,null,null,null,0,0,"","",""]
[null,null,"",null,null,null,0,null,null,null,0,null,null,null,0,null,null,null,0,0,"","",""]
[null,null,"",null,null,null,0,null,null,null,0,null,null,null,0,null,null,null,0,0,"","",""]
[null,null,"",null,null,null,0,null,null,null,0,null,null,null,0,null,null,null,0,0,"","",""]
[null,null,"",null,null,null,0,null,null,null,0,null,null,null,0,null,null,null,0,0,"","",""]
[null,null,"",null,null,null,0,null,null,null,0,null,null,null,0,null,null,null,0,0,"","",""]
[null,null,"",null,null,null,0,null,null,null,0,null,null,null,0,null,null,null,0,0,"","",""]
[null,null,"",null,null,null,0,null,null,null,0,null,null,null,0,null,null,null,0,0,"","",""]
[null,null,"",null,null,null,0,null,null,null,0,null,null,null,0,null,null,null,0,0,"","",""]
[null,null,"",null,null,null,0,null,null,null,0,null,null,null,0,null,null,null,0,0,"","",""]
[null,null,"",null,null,null,0,null,null,null,0,null,null,null,0,null,null,null,0,0,"","",""]
[null,null,"",null,null,null,0,null,null,null,0,null,null,null,0,null,null,null,0,0,"","",""]
[null,null,"",null,null,null,0,null,null,null,0,null,null,null,0,null,null,null,0,0,"","",""]
[null,null,"",null,null,null,0,null,null,null,0,null,null,null,0,null,null,null,0,0,"","",""]
[null,null,"",null,null,null,0,null,null,null,0,null,null,null,0,null,null,null,0,0,"","",""]
[null,null,"",null,null,null,0,null,null,null,0,null,null,null,0,null,null,null,0,0,"","",""]
[null,null,"",null,null,null,0,null,null,null,0,null,null,null,0,null,null,null,0,0,"","",""]
[null,null,"",null,null,null,0,null,null,null,0,null,null,null,0,null,null,null,0,0,"","",""]
[null,null,"",null,null,null,0,null,null,null,0,null,null,null,0,null,null,null,0,0,"","",""]
[null,null,"",null,null,null,0,null,null,null,0,null,null,null,0,null,null,null,0,0,"","",""]
[null,null,"",null,null,null,0,null,null,null,0,null,null,null,0,null,null,null,0,0,"","",""]
[null,null,"",null,null,null,0,null,null,null,0,null,null,null,0,null,null,null,0,0,"","",""]
[null,null,"",null,null,null,0,null,null,null,0,null,null,null,0,null,null,null,0,0,"","",""]
[null,null,"",null,null,null,0,null,null,null,0,null,null,null,0,null,null,null,0,0,"","",""]
[null,null,"",null,null,null,0,null,null,null,0,null,null,null,0,null,null,null,0,0,"","",""]
[null,null,"",null,null,null,0,null,null,null,0,null,null,null,0,null,null,null,0,0,"","",""]
[null,null,"",null,null,null,0,null,null,null,0,null,null,null,0,null,null,null,0,0,"","",""]
[null,null,"",null,null,null,0,null,null,null,0,null,null,null,0,null,null,null,0,0,"","",""]
[null,null,"",null,null,null,0,null,null,null,0,null,null,null,0,null,null,null,0,0,"","",""]
[null,null,"",null,null,null,0,null,null,null,0,null,null,null,0,null,null,null,0,0,"","",""]
[null,null,"",null,null,null,0,null,null,null,0,null,null,null,0,null,null,null,0,0,"","",""]
[null,null,"",null,null,null,0,null,null,null,0,null,null,null,0,null,null,null,0,0,"","",""]
[null,null,"",null,null,null,0,null,null,null,0,null,null,null,0,null,null,null,0,0,"","",""]
[null,null,"",null,null,null,0,null,null,null,0,null,null,null,0,null,null,null,0,0,"","",""]
[null,null,"",null,null,null,0,null,null,null,0,null,null,null,0,null,null,null,0,0,"","",""]
[null,null,"",null,null,null,0,null,null,null,0,null,null,null,0,null,null,null,0,0,"","",""]
[null,null,"",null,null,null,0,null,null,null,0,null,null,null,0,null,null,null,0,0,"","",""]
[null,null,{"$f":"IF($B7495<>\"\",VLOOKUP($B7495,Tbl_Reference,2,0),\"\")","v":""},null,null,null,0,null,null,null,0,null,null,null,0,null,null,null,0,0,{"$f":"IF($B7495<>\"\",VLOOKUP($B7495,Tbl_Reference,3,0),\"\")","v":""},{"$f":"IF($B7495<>\"\",VLOOKUP($B7495,Tbl_Reference,4,0),\"\")","v":""},""]
[null,null,"",null,null,null,0,null,null,null,0,null,null,null,0,null,null,null,0,0,"","",""]
[null,null,"",null,null,null,0,null,null,null,0,null,null,null,0,null,null,null,0,0,"","",""]
[null,null,"",null,null,null,0,null,null,null,0,null,null,null,0,null,null,null,0,0,"","",""]
[null,null,"",null,null,null,0,null,null,null,0,null,null,null,0,null,null,null,0,0,"","",""]
[null,null,"",null,null,null,0,null,null,null,0,null,null,null,0,null,null,null,0,0,"","",""]
[null,null,"",null,null,null,0,null,null,null,0,null,null,null,0,null,null,null,0,0,"","",""]
[null,null,"",null,null,null,0,null,null,null,0,null,null,null,0,null,null,null,0,0,"","",""]
[null,null,"",null,null,null,0,null,null,null,0,null,null,null,0,null,null,null,0,0,"","",""]
[null,null,"",null,null,null,0,null,null,null,0,null,null,null,0,null,null,null,0,0,"","",""]
[null,null,"",null,null,null,0,null,null,null,0,null,null,null,0,null,null,null,0,0,"","",""]
[null,null,"",null,null,null,0,null,null,null,0,null,null,null,0,null,null,null,0,0,"","",""]
[null,null,"",null,null,null,0,null,null,null,0,null,null,null,0,null,null,null,0,0,"","",""]
[null,null,"",null,null,null,0,null,null,null,0,null,null,null,0,null,null,null,0,0,"","",""]
[null,null,"",null,null,null,0,null,null,null,0,null,null,null,0,null,null,null,0,0,"","",""]
[null,null,"",null,null,null,{"$f":"SUM(D7624:F7624)","v":0},null,null,null,{"$f":"SUM(H7624:J7624)","v":0},null,null,null,{"$f":"SUM(L7624:N7624)","v":0},null,null,null,{"$f":"SUM(P7624:R7624)","v":0},{"$f":"G7624+K7624+O7624+S7624","v":0},"","",{"$f":"IF(B7624<>\"\",IF(V7624<>0,ROUND(T7624*V7624,2),ROUND(T7624*U7624,2)),\"\")","v":""}]
[null,null,"",null,null,null,0,null,null,null,0,null,null,null,0,null,null,null,0,0,"","",""]
[null,null,"",null,null,null,0,null,null,null,0,null,null,null,0,null,null,null,0,0,"","",""]
[null,null,"",null,null,null,0,null,null,null,0,null,null,null,0,null,null,null,0,0,"","",""]
[null,null,"",null,null,null,0,null,null,null,0,null,null,null,0,null,null,null,0,0,"","",""]
[null,null,"",null,null,null,0,null,null,null,0,null,null,null,0,null,null,null,0,0,"","",""]
[null,null,"",null,null,null,0,null,null,null,0,null,null,null,0,null,null,null,0,0,"","",""]
[null,null,{"$f":"IF($B7687<>\"\",VLOOKUP($B7687,Tbl_Reference,2,0),\"\")","v":""},null,null,null,0,null,null,null,0,null,null,null,0,null,null,null,0,0,{"$f":"IF($B7687<>\"\",VLOOKUP($B7687,Tbl_Reference,3,0),\"\")","v":""},{"$f":"IF($B7687<>\"\",VLOOKUP($B7687,Tbl_Reference,4,0),\"\")","v":""},""]
[null,null,"",null,null,null,0,null,null,null,0,null,null,null,0,null,null,null,0,0,"","",""]
[null,null,"",null,null,null,0,null,null,null,0,null,null,null,0,null,null,null,0,0,"","",""]
[null,null,"",null,null,null,0,null,null,null,0,null,null,null,0,null,null,null,0,0,"","",""]
[null,null,"",null,null,null,0,null,null,null,0,null,null,null,0,null,null,null,0,0,"","",""]
[null,null,"",null,null,null,0,null,null,null,0,null,null,null,0,null,null,null,0,0,"","",""]
[null,null,"",null,null,null,0,null,null,null,0,null,null,null,0,null,null,null,0,0,"","",""]
[null,null,"",null,null,null,0,null,null,null,0,null,null,null,0,null,null,null,0,0,"","",""]
[null,null,"",null,null,null,0,null,null,null,0,null,null,null,0,null,null,null,0,0,"","",""]
[null,null,"",null,null,null,0,null,null,null,0,null,null,null,0,null,null,null,0,0,"","",""]
[null,null,"",null,null,null,0,null,null,null,0,null,null,null,0,null,null,null,0,0,"","",""]
[null,null,"",null,null,null,0,null,null,null,0,null,null,null,0,null,null,null,0,0,"","",""]
[null,null,"",null,null,null,0,null,null,null,0,null,null,null,0,null,null,null,0,0,"","",""]
[null,null,"",null,null,null,0,null,null,null,0,null,null,null,0,null,null,null,0,0,"","",""]
[null,null,"",null,null,null,0,null,null,null,0,null,null,null,0,null,null,null,0,0,"","",""]
[null,null,{"$f":"IF($B7815<>\"\",VLOOKUP($B7815,Tbl_Reference,2,0),\"\")","v":""},null,null,null,0,null,null,null,0,null,null,null,0,null,null,null,0,0,{"$f":"IF($B7815<>\"\",VLOOKUP($B7815,Tbl_Reference,3,0),\"\")","v":""},{"$f":"IF($B7815<>\"\",VLOOKUP($B7815,Tbl_Reference,4,0),\"\")","v":""},""]
[null,null,"",null,null,null,0,null,null,null,0,null,null,null,0,null,null,null,0,0,"","",""]
[null,null,"",null,null,null,0,null,null,null,0,null,null,null,0,null,null,null,0,0,"","",""]
[null,null,"",null,null,null,0,null,null,null,0,null,null,null,0,null,null,null,0,0,"","",""]
[null,null,"",null,null,null,0,null,null,null,0,null,null,null,0,null,null,null,0,0,"","",""]
[null,null,"",null,null,null,0,null,null,null,0,null,null,null,0,null,null,null,0,0,"","",""]
[null,null,"",null,null,null,0,null,null,null,0,null,null,null,0,null,null,null,0,0,"","",""]
[null,null,"",null,null,null,0,null,null,null,0,null,null,null,0,null,null,null,0,0,"","",""]
[null,null,"",null,null,null,0,null,null,null,0,null,null,null,0,null,null,null,0,0,"","",""]
[null,null,"",null,null,null,0,null,null,null,0,null,null,null,0,null,null,null,0,0,"","",""]
[null,null,"",null,null,null,0,null,null,null,0,null,null,null,0,null,null,null,0,0,"","",""]
[null,null,"",null,null,null,0,null,null,null,0,null,null,null,0,null,null,null,0,0,"","",""]
[null,null,"",null,null,null,0,null,null,null,0,null,null,null,0,null,null,null,0,0,"","",""]
[null,null,"",null,null,null,0,null,null,null,0,null,null,null,0,null,null,null,0,0,"","",""]
[null,null,"",null,null,null,0,null,null,null,0,null,null,null,0,null,null,null,0,0,"","",""]
[null,null,"",null,null,null,0,null,null,null,0,null,null,null,0,null,null,null,0,0,"","",""]
[null,null,"",null,null,null,0,null,null,null,0,null,null,null,0,null,null,null,0,0,"","",""]
[null,null,"",null,null,null,0,null,null,null,0,null,null,null,0,null,null,null,0,0,"","",""]
[null,null,"",null,null,null,0,null,null,null,0,null,null,null,0,null,null,null,0,0,"","",""]
[null,null,"",null,null,null,0,null,null,null,0,null,null,null,0,null,null,null,0,0,"","",""]
[null,null,"",null,null,null,0,null,null,null,0,null,null,null,0,null,null,null,0,0,"","",""]
[null,null,"",null,null,null,0,null,null,null,0,null,null,null,0,null,null,null,0,0,"","",""]
[null,null,"",null,null,null,0,null,null,null,0,null,null,null,0,null,null,null,0,0,"","",""]
[null,null,"",null,null,null,0,null,null,null,0,null,null,null,0,null,null,null,0,0,"","",""]
[null,null,"",null,null,null,0,null,null,null,0,null,null,null,0,null,null,null,0,0,"","",""]
[null,null,"",null,null,null,0,null,null,null,0,null,null,null,0,null,null,null,0,0,"","",""]
[null,null,"",null,null,null,0,null,null,null,0,null,null,null,0,null,null,null,0,0,"","",""]
[null,null,"",null,null,null,0,null,null,null,0,null,null,null,0,null,null,null,0,0,"","",""]
[null,null,"",null,null,null,0,null,null,null,0,null,null,null,0,null,null,null,0,0,"","",""]
[null,null,"",null,null,null,0,null,null,null,0,null,null,null,0,null,null,null,0,0,"","",""]
[null,null,"",null,null,null,0,null,null,null,0,null,null,null,0,null,null,null,0,0,"","",""]
[null,null,"",null,null,null,0,null,null,null,0,null,null,null,0,null,null,null,0,0,"","",""]
[null,null,"",null,null,null,0,null,null,null,0,null,null,null,0,null,null,null,0,0,"","",""]
[null,null,"",null,null,null,0,null,null,null,0,null,null,null,0,null,null,null,0,0,"","",""]
[null,null,"",null,null,null,0,null,null,null,0,null,null,null,0,null,null,null,0,0,"","",""]
[null,null,"",null,null,null,0,null,null,null,0,null,null,null,0,null,null,null,0,0,"","",""]
[null,null,"",null,null,null,0,null,null,null,0,null,null,null,0,null,null,null,0,0,"","",""]
[null,null,{"$f":"IF($B8135<>\"\",VLOOKUP($B8135,Tbl_Reference,2,0),\"\")","v":""},null,null,null,0,null,null,null,0,null,null,null,0,null,null,null,0,0,{"$f":"IF($B8135<>\"\",VLOOKUP($B8135,Tbl_Reference,3,0),\"\")","v":""},{"$f":"IF($B8135<>\"\",VLOOKUP($B8135,Tbl_Reference,4,0),\"\")","v":""},""]
[null,null,"",null,null,null,0,null,null,null,0,null,null,null,0,null,null,null,0,0,"","",""]
[null,null,"",null,null,null,0,null,null,null,0,null,null,null,0,null,null,null,0,0,"","",""]
[null,null,"",null,null,null,0,null,null,null,0,null,null,null,0,null,null,null,0,0,"","",""]
[null,null,"",null,null,null,0,null,null,null,0,null,null,null,0,null,null,null,0,0,"","",""]
[null,null,"",null,null,null,0,null,null,null,0,null,null,null,0,null,null,null,0,0,"","",""]
[null,null,"",null,null,null,0,null,null,null,0,null,null,null,0,null,null,null,0,0,"","",""]
[null,null,"",null,null,null,0,null,null,null,0,null,null,null,0,null,null,null,0,0,"","",""]
[null,null,"",null,null,null,0,null,null,null,0,null,null,null,0,null,null,null,0,0,"","",""]
[null,null,"",null,null,null,0,null,null,null,0,null,null,null,0,null,null,null,0,0,"","",""]
[null,null,"",null,null,null,0,null,null,null,0,null,null,null,0,null,null,null,0,0,"","",""]
[null,null,"",null,null,null,0,null,null,null,0,null,null,null,0,null,null,null,0,0,"","",""]
[null,null,"",null,null,null,0,null,null,null,0,null,null,null,0,null,null,null,0,0,"","",""]
[null,null,"",null,null,null,0,null,null,null,0,null,null,null,0,null,null,null,0,0,"","",""]
[null,null,"",null,null,null,{"$f":"SUM(D8264:F8264)","v":0},null,null,null,{"$f":"SUM(H8264:J8264)","v":0},null,null,null,{"$f":"SUM(L8264:N8264)","v":0},null,null,null,{"$f":"SUM(P8264:R8264)","v":0},{"$f":"G8264+K8264+O8264+S8264","v":0},"","",{"$f":"IF(B8264<>\"\",IF(V8264<>0,ROUND(T8264*V8264,2),ROUND(T8264*U8264,2)),\"\")","v":""}]
[null,null,"",null,null,null,0,null,null,null,0,null,null,null,0,null,null,null,0,0,"","",""]
[null,null,"",null,null,null,0,null,null,null,0,null,null,null,0,null,null,null,0,0,"","",""]
[null,null,"",null,null,null,0,null,null,null,0,null,null,null,0,null,null,null,0,0,"","",""]
[null,null,"",null,null,null,0,null,null,null,0,null,null,null,0,null,null,null,0,0,"","",""]
[null,null,"",null,null,null,0,null,null,null,0,null,null,null,0,null,null,null,0,0,"","",""]
[null,null,"",null,null,null,0,null,null,null,0,null,null,null,0,null,null,null,0,0,"","",""]
[null,null,"",null,null,null,0,null,null,null,0,null,null,null,0,null,null,null,0,0,"","",""]
[null,null,"",null,null,null,0,null,null,null,0,null,null,null,0,null,null,null,0,0,"","",""]
[null,null,"",null,null,null,0,null,null,null,0,null,null,null,0,null,null,null,0,0,"","",""]
[null,null,"",null,null,null,0,null,null,null,0,null,null,null,0,null,null,null,0,0,"","",""]
[null,null,"",null,null,null,0,null,null,null,0,null,null,null,0,null,null,null,0,0,"","",""]
[null,null,"",null,null,null,0,null,null,null,0,null,null,null,0,null,null,null,0,0,"","",""]
[null,null,"",null,null,null,0,null,null,null,0,null,null,null,0,null,null,null,0,0,"","",""]
[null,null,"",null,null,null,0,null,null,null,0,null,null,null,0,null,null,null,0,0,"","",""]
[null,null,"",null,null,null,0,null,null,null,0,null,null,null,0,null,null,null,0,0,"","",""]
[null,null,"",null,null,null,0,null,null,null,0,null,null,null,0,null,null,null,0,0,"","",""]
[null,null,"",null,null,null,0,null,null,null,0,null,null,null,0,null,null,null,0,0,"","",""]
[null,null,"",null,null,null,0,null,null,null,0,null,null,null,0,null,null,null,0,0,"","",""]
[null,null,"",null,null,null,0,null,null,null,0,null,null,null,0,null,null,null,0,0,"","",""]
[null,null,"",null,null,null,0,null,null,null,0,null,null,null,0,null,null,null,0,0,"","",""]
[null,null,"",null,null,null,0,null,null,null,0,null,null,null,0,null,null,null,0,0,"","",""]
[null,null,"",null,null,null,0,null,null,null,0,null,null,null,0,null,null,null,0,0,"","",""]
[null,null,"",null,null,null,0,null,null,null,0,null,null,null,0,null,null,null,0,0,"","",""]
[null,null,"",null,null,null,0,null,null,null,0,null,null,null,0,null,null,null,0,0,"","",""]
[null,null,"",null,null,null,0,null,null,null,0,null,null,null,0,null,null,null,0,0,"","",""]
[null,null,"",null,null,null,0,null,null,null,0,null,null,null,0,null,null,null,0,0,"","",""]
[null,null,"",null,null,null,0,null,null,null,0,null,null,null,0,null,null,null,0,0,"","",""]
[null,null,"",null,null,null,0,null,null,null,0,null,null,null,0,null,null,null,0,0,"","",""]
[null,null,"",null,null,null,0,null,null,null,0,null,null,null,0,null,null,null,0,0,"","",""]
[null,null,"",null,null,null,0,null,null,null,0,null,null,null,0,null,null,null,0,0,"","",""]
[null,null,"",null,null,null,0,null,null,null,0,null,null,null,0,null,null,null,0,0,"","",""]
[null,null,"",null,null,null,0,null,null,null,0,null,null,null,0,null,null,null,0,0,"","",""]
[null,null,"",null,null,null,0,null,null,null,0,null,null,null,0,null,null,null,0,0,"","",""]
[null,null,"",null,null,null,0,null,null,null,0,null,null,null,0,null,null,null,0,0,"","",""]
[null,null,"",null,null,null,0,null,null,null,0,null,null,null,0,null,null,null,0,0,"","",""]
[null,null,"",null,null,null,0,null,null,null,0,null,null,null,0,null,null,null,0,0,"","",""]
[null,null,"",null,null,null,0,null,null,null,0,null,null,null,0,null,null,null,0,0,"","",""]
[null,null,"",null,null,null,0,null,null,null,0,null,null,null,0,null,null,null,0,0,"","",""]
[null,null,"",null,null,null,0,null,null,null,0,null,null,null,0,null,null,null,0,0,"","",""]
[null,null,"",null,null,null,0,null,null,null,0,null,null,null,0,null,null,null,0,0,"","",""]
[null,null,"",null,null,null,0,null,null,null,0,null,null,null,0,null,null,null,0,0,"","",""]
[null,null,"",null,null,null,0,null,null,null,0,null,null,null,0,null,null,null,0,0,"","",""]
[null,null,"",null,null,null,0,null,null,null,0,null,null,null,0,null,null,null,0,0,"","",""]
[null,null,"",null,null,null,0,null,null,null,0,null,null,null,0,null,null,null,0,0,"","",""]
[null,null,"",null,null,null,0,null,null,null,0,null,null,null,0,null,null,null,0,0,"","",""]
[null,null,"",null,null,null,0,null,null,null,0,null,null,null,0,null,null,null,0,0,"","",""]
[null,null,"",null,null,null,0,null,null,null,0,null,null,null,0,null,null,null,0,0,"","",""]
[null,null,"",null,null,null,0,null,null,null,0,null,null,null,0,null,null,null,0,0,"","",""]
[null,null,"",null,null,null,0,null,null,null,0,null,null,null,0,null,null,null,0,0,"","",""]
[null,null,"",null,null,null,0,null,null,null,0,null,null,null,0,null,null,null,0,0,"","",""]
[null,null,{"$f":"IF($B8711<>\"\",VLOOKUP($B8711,Tbl_Reference,2,0),\"\")","v":""},null,null,null,0,null,null,null,0,null,null,null,0,null,null,null,0,0,{"$f":"IF($B8711<>\"\",VLOOKUP($B8711,Tbl_Reference,3,0),\"\")","v":""},{"$f":"IF($B8711<>\"\",VLOOKUP($B8711,Tbl_Reference,4,0),\"\")","v":""},""]
[null,null,"",null,null,null,0,null,null,null,0,null,null,null,0,null,null,null,0,0,"","",""]
[null,null,"",null,null,null,0,null,null,null,0,null,null,null,0,null,null,null,0,0,"","",""]
[null,null,"",null,null,null,0,null,null,null,0,null,null,null,0,null,null,null,0,0,"","",""]
[null,null,"",null,null,null,0,null,null,null,0,null,null,null,0,null,null,null,0,0,"","",""]
[null,null,"",null,null,null,0,null,null,null,0,null,null,null,0,null,null,null,0,0,"","",""]
[null,null,"",null,null,null,0,null,null,null,0,null,null,null,0,null,null,null,0,0,"","",""]
[null,null,"",null,null,null,0,null,null,null,0,null,null,null,0,null,null,null,0,0,"","",""]
[null,null,"",null,null,null,0,null,null,null,0,null,null,null,0,null,null,null,0,0,"","",""]
[null,null,"",null,null,null,0,null,null,null,0,null,null,null,0,null,null,null,0,0,"","",""]
[null,null,"",null,null,null,0,null,null,null,0,null,null,null,0,null,null,null,0,0,"","",""]
[null,null,"",null,null,null,0,null,null,null,0,null,null,null,0,null,null,null,0,0,"","",""]
[null,null,"",null,null,null,0,null,null,null,0,null,null,null,0,null,null,null,0,0,"","",""]
[null,null,"",null,null,null,0,null,null,null,0,null,null,null,0,null,null,null,0,0,"","",""]
[null,null,"",null,null,null,0,null,null,null,0,null,null,null,0,null,null,null,0,0,"","",""]
[null,null,"",null,null,null,0,null,null,null,0,null,null,null,0,null,null,null,0,0,"","",""]
[null,null,"",null,null,null,0,null,null,null,0,null,null,null,0,null,null,null,0,0,"","",""]
[null,null,"",null,null,null,0,null,null,null,0,null,null,null,0,null,null,null,0,0,"","",""]
[null,null,"",null,null,null,0,null,null,null,0,null,null,null,0,null,null,null,0,0,"","",""]
[null,null,"",null,null,null,0,null,null,null,0,null,null,null,0,null,null,null,0,0,"","",""]
[null,null,"",null,null,null,0,null,null,null,0,null,null,null,0,null,null,null,0,0,"","",""]
[null,null,"",null,null,null,0,null,null,null,0,null,null,null,0,null,null,null,0,0,"","",""]
[null,null,"",null,null,null,{"$f":"SUM(D8904:F8904)","v":0},null,null,null,{"$f":"SUM(H8904:J8904)","v":0},null,null,null,{"$f":"SUM(L8904:N8904)","v":0},null,null,null,{"$f":"SUM(P8904:R8904)","v":0},{"$f":"G8904+K8904+O8904+S8904","v":0},"","",{"$f":"IF(B8904<>\"\",IF(V8904<>0,ROUND(T8904*V8904,2),ROUND(T8904*U8904,2)),\"\")","v":""}]
[null,null,"",null,null,null,0,null,null,null,0,null,null,null,0,null,null,null,0,0,"","",""]
[null,null,"",null,null,null,0,null,null,null,0,null,null,null,0,null,null,null,0,0,"","",""]
[null,null,"",null,null,null,0,null,null,null,0,null,null,null,0,null,null,null,0,0,"","",""]
[null,null,"",null,null,null,0,null,null,null,0,null,null,null,0,null,null,null,0,0,"","",""]
[null,null,"",null,null,null,0,null,null,null,0,null,null,null,0,null,null,null,0,0,"","",""]
[null,null,"",null,null,null,0,null,null,null,0,null,null,null,0,null,null,null,0,0,"","",""]
[null,null,"",null,null,null,0,null,null,null,0,null,null,null,0,null,null,null,0,0,"","",""]
[null,null,"",null,null,null,0,null,null,null,0,null,null,null,0,null,null,null,0,0,"","",""]
[null,null,"",null,null,null,0,null,null,null,0,null,null,null,0,null,null,null,0,0,"","",""]
[null,null,"",null,null,null,0,null,null,null,0,null,null,null,0,null,null,null,0,0,"","",""]
[null,null,"",null,null,null,0,null,null,null,0,null,null,null,0,null,null,null,0,0,"","",""]
[null,null,"",null,null,null,0,null,null,null,0,null,null,null,0,null,null,null,0,0,"","",""]
[null,null,"",null,null,null,0,null,null,null,0,null,null,null,0,null,null,null,0,0,"","",""]
[null,null,"",null,null,null,0,null,null,null,0,null,null,null,0,null,null,null,0,0,"","",""]
[null,null,{"$f":"IF($B9031<>\"\",VLOOKUP($B9031,Tbl_Reference,2,0),\"\")","v":""},null,null,null,0,null,null,null,0,null,null,null,0,null,null,null,0,0,{"$f":"IF($B9031<>\"\",VLOOKUP($B9031,Tbl_Reference,3,0),\"\")","v":""},{"$f":"IF($B9031<>\"\",VLOOKUP($B9031,Tbl_Reference,4,0),\"\")","v":""},""]
[null,null,"",null,null,null,0,null,null,null,0,null,null,null,0,null,null,null,0,0,"","",""]
[null,null,"",null,null,null,0,null,null,null,0,null,null,null,0,null,null,null,0,0,"","",""]
[null,null,"",null,null,null,0,null,null,null,0,null,null,null,0,null,null,null,0,0,"","",""]
[null,null,"",null,null,null,0,null,null,null,0,null,null,null,0,null,null,null,0,0,"","",""]
[null,null,"",null,null,null,0,null,null,null,0,null,null,null,0,null,null,null,0,0,"","",""]
[null,null,"",null,null,null,0,null,null,null,0,null,null,null,0,null,null,null,0,0,"","",""]
[null,null,"",null,null,null,0,null,null,null,0,null,null,null,0,null,null,null,0,0,"","",""]
[null,null,"",null,null,null,0,null,null,null,0,null,null,null,0,null,null,null,0,0,"","",""]
[null,null,"",null,null,null,0,null,null,null,0,null,null,null,0,null,null,null,0,0,"","",""]
[null,null,"",null,null,null,0,null,null,null,0,null,null,null,0,null,null,null,0,0,"","",""]
[null,null,"",null,null,null,0,null,null,null,0,null,null,null,0,null,null,null,0,0,"","",""]
[null,null,"",null,null,null,0,null,null,null,0,null,null,null,0,null,null,null,0,0,"","",""]
[null,null,"",null,null,null,0,null,null,null,0,null,null,null,0,null,null,null,0,0,"","",""]
[null,null,"",null,null,null,0,null,null,null,0,null,null,null,0,null,null,null,0,0,"","",""]
[null,null,"",null,null,null,0,null,null,null,0,null,null,null,0,null,null,null,0,0,"","",""]
[null,null,"",null,null,null,0,null,null,null,0,null,null,null,0,null,null,null,0,0,"","",""]
[null,null,"",null,null,null,0,null,null,null,0,null,null,null,0,null,null,null,0,0,"","",""]
[null,null,"",null,null,null,0,null,null,null,0,null,null,null,0,null,null,null,0,0,"","",""]
[null,null,"",null,null,null,0,null,null,null,0,null,null,null,0,null,null,null,0,0,"","",""]
[null,null,"",null,null,null,0,null,null,null,0,null,null,null,0,null,null,null,0,0,"","",""]
[null,null,"",null,null,null,0,null,null,null,0,null,null,null,0,null,null,null,0,0,"","",""]
[null,null,"",null,null,null,0,null,null,null,0,null,null,null,0,null,null,null,0,0,"","",""]
[null,null,"",null,null,null,0,null,null,null,0,null,null,null,0,null,null,null,0,0,"","",""]
[null,null,"",null,null,null,0,null,null,null,0,null,null,null,0,null,null,null,0,0,"","",""]
[null,null,"",null,null,null,0,null,null,null,0,null,null,null,0,null,null,null,0,0,"","",""]
[null,null,"",null,null,null,0,null,null,null,0,null,null,null,0,null,null,null,0,0,"","",""]
[null,null,"",null,null,null,0,null,null,null,0,null,null,null,0,null,null,null,0,0,"","",""]
[null,null,"",null,null,null,0,null,null,null,0,null,null,null,0,null,null,null,0,0,"","",""]
[null,null,"",null,null,null,0,null,null,null,0,null,null,null,0,null,null,null,0,0,"","",""]
[null,null,"",null,null,null,0,null,null,null,0,null,null,null,0,null,null,null,0,0,"","",""]
[null,null,"",null,null,null,0,null,null,null,0,null,null,null,0,null,null,null,0,0,"","",""]
[null,null,"",null,null,null,0,null,null,null,0,null,null,null,0,null,null,null,0,0,"","",""]
[null,null,"",null,null,null,0,null,null,null,0,null,null,null,0,null,null,null,0,0,"","",""]
[null,null,"",null,null,null,0,null,null,null,0,null,null,null,0,null,null,null,0,0,"","",""]
[null,null,"",null,null,null,0,null,null,null,0,null,null,null,0,null,null,null,0,0,"","",""]
[null,null,"",null,null,null,0,null,null,null,0,null,null,null,0,null,null,null,0,0,"","",""]
[null,null,"",null,null,null,0,null,null,null,0,null,null,null,0,null,null,null,0,0,"","",""]
[null,null,"",null,null,null,0,null,null,null,0,null,null,null,0,null,null,null,0,0,"","",""]
[null,null,"",null,null,null,0,null,null,null,0,null,null,null,0,null,null,null,0,0,"","",""]
[null,null,"",null,null,null,0,null,null,null,0,null,null,null,0,null,null,null,0,0,"","",""]
[null,null,"",null,null,null,0,null,null,null,0,null,null,null,0,null,null,null,0,0,"","",""]
[null,null,"",null,null,null,0,null,null,null,0,null,null,null,0,null,null,null,0,0,"","",""]
[null,null,"",null,null,null,0,null,null,null,0,null,null,null,0,null,null,null,0,0,"","",""]
[null,null,"",null,null,null,0,null,null,null,0,null,null,null,0,null,null,null,0,0,"","",""]
[null,null,"",null,null,null,0,null,null,null,0,null,null,null,0,null,null,null,0,0,"","",""]
[null,null,"",null,null,null,0,null,null,null,0,null,null,null,0,null,null,null,0,0,"","",""]
[null,null,"",null,null,null,0,null,null,null,0,null,null,null,0,null,null,null,0,0,"","",""]
[null,null,"",null,null,null,0,null,null,null,0,null,null,null,0,null,null,null,0,0,"","",""]
[null,null,"",null,null,null,0,null,null,null,0,null,null,null,0,null,null,null,0,0,"","",""]
[null,null,"",null,null,null,0,null,null,null,0,null,null,null,0,null,null,null,0,0,"","",""]
[null,null,"",null,null,null,0,null,null,null,0,null,null,null,0,null,null,null,0,0,"","",""]
[null,null,"",null,null,null,0,null,null,null,0,null,null,null,0,null,null,null,0,0,"","",""]
[null,null,"",null,null,null,0,null,null,null,0,null,null,null,0,null,null,null,0,0,"","",""]
[null,null,"",null,null,null,0,null,null,null,0,null,null,null,0,null,null,null,0,0,"","",""]
[null,null,"",null,null,null,0,null,null,null,0,null,null,null,0,null,null,null,0,0,"","",""]
[null,null,"",null,null,null,0,null,null,null,0,null,null,null,0,null,null,null,0,0,"","",""]
[null,null,"",null,null,null,0,null,null,null,0,null,null,null,0,null,null,null,0,0,"","",""]
[null,null,"",null,null,null,0,null,null,null,0,null,null,null,0,null,null,null,0,0,"","",""]
[null,null,"",null,null,null,0,null,null,null,0,null,null,null,0,null,null,null,0,0,"","",""]
[null,null,"",null,null,null,0,null,null,null,0,null,null,null,0,null,null,null,0,0,"","",""]
[null,null,"",null,null,null,0,null,null,null,0,null,null,null,0,null,null,null,0,0,"","",""]
[null,null,"",null,null,null,0,null,null,null,0,null,null,null,0,null,null,null,0,0,"","",""]
[null,null,"",null,null,null,0,null,null,null,0,null,null,null,0,null,null,null,0,0,"","",""]
[null,null,"",null,null,null,0,null,null,null,0,null,null,null,0,null,null,null,0,0,"","",""]
[null,null,"",null,null,null,0,null,null,null,0,null,null,null,0,null,null,null,0,0,"","",""]
[null,null,"",null,null,null,0,null,null,null,0,null,null,null,0,null,null,null,0,0,"","",""]
[null,null,"",null,null,null,0,null,null,null,0,null,null,null,0,null,null,null,0,0,"","",""]
[null,null,"",null,null,null,0,null,null,null,0,null,null,null,0,null,null,null,0,0,"","",""]
[null,null,"",null,null,null,0,null,null,null,0,null,null,null,0,null,null,null,0,0,"","",""]
[null,null,"",null,null,null,0,null,null,null,0,null,null,null,0,null,null,null,0,0,"","",""]
[null,null,"",null,null,null,0,null,null,null,0,null,null,null,0,null,null,null,0,0,"","",""]
[null,null,"",null,null,null,0,null,null,null,0,null,null,null,0,null,null,null,0,0,"","",""]
[null,null,"",null,null,null,0,null,null,null,0,null,null,null,0,null,null,null,0,0,"","",""]
[null,null,"",null,null,null,0,null,null,null,0,null,null,null,0,null,null,null,0,0,"","",""]
[null,null,"",null,null,null,0,null,null,null,0,null,null,null,0,null,null,null,0,0,"","",""]
[null,null,"",null,null,null,0,null,null,null,0,null,null,null,0,null,null,null,0,0,"","",""]
[null,null,"",null,null,null,0,null,null,null,0,null,null,null,0,null,null,null,0,0,"","",""]
[null,null,"",null,null,null,0,null,null,null,0,null,null,null,0,null,null,null,0,0,"","",""]
[null,null,"",null,null,null,0,null,null,null,0,null,null,null,0,null,null,null,0,0,"","",""]
[null,null,"",null,null,null,0,null,null,null,0,null,null,null,0,null,null,null,0,0,"","",""]
[null,null,"",null,null,null,0,null,null,null,0,null,null,null,0,null,null,null,0,0,"","",""]
[null,null,"",null,null,null,0,null,null,null,0,null,null,null,0,null,null,null,0,0,"","",""]
[null,null,"",null,null,null,0,null,null,null,0,null,null,null,0,null,null,null,0,0,"","",""]
[null,null,"",null,null,null,0,null,null,null,0,null,null,null,0,null,null,null,0,0,"","",""]
[null,null,"",null,null,null,0,null,null,null,0,null,null,null,0,null,null,null,0,0,"","",""]
[null,null,"",null,null,null,0,null,null,null,0,null,null,null,0,null,null,null,0,0,"","",""]
[null,null,"",null,null,null,0,null,null,null,0,null,null,null,0,null,null,null,0,0,"","",""]
[null,null,"",null,null,null,0,null,null,null,0,null,null,null,0,null,null,null,0,0,"","",""]
[null,null,"",null,null,null,0,null,null,null,0,null,null,null,0,null,null,null,0,0,"","",""]
[null,null,"",null,null,null,0,null,null,null,0,null,null,null,0,null,null,null,0,0,"","",""]
[null,null,"",null,null,null,0,null,null,null,0,null,null,null,0,null,null,null,0,0,"","",""]
[null,null,"",null,null,null,0,null,null,null,0,null,null,null,0,null,null,null,0,0,"","",""]
[null,null,"",null,null,null,0,null,null,null,0,null,null,null,0,null,null,null,0,0,"","",""]
[null,null,"",null,null,null,0,null,null,null,0,null,null,null,0,null,null,null,0,0,"","",""]
[null,null,"",null,null,null,0,null,null,null,0,null,null,null,0,null,null,null,0,0,"","",""]
[null,null,"",null,null,null,0,null,null,null,0,null,null,null,0,null,null,null,0,0,"","",""]
[null,null,"",null,null,null,0,null,null,null,0,null,null,null,0,null,null,null,0,0,"","",""]
[null,null,"",null,null,null,0,null,null,null,0,null,null,null,0,null,null,null,0,0,"","",""]
[null,null,"",null,null,null,0,null,null,null,0,null,null,null,0,null,null,null,0,0,"","",""]
[null,null,"",null,null,null,0,null,null,null,0,null,null,null,0,null,null,null,0,0,"","",""]
[null,null,"",null,null,null,0,null,null,null,0,null,null,null,0,null,null,null,0,0,"","",""]
[null,null,"",null,null,null,0,null,null,null,0,null,null,null,0,null,null,null,0,0,"","",""]
[null,null,"",null,null,null,0,null,null,null,0,null,null,null,0,null,null,null,0,0,"","",""]
[null,null,"",null,null,null,0,null,null,null,0,null,null,null,0,null,null,null,0,0,"","",""]
[null,null,"",null,null,null,0,null,null,null,0,null,null,null,0,null,null,null,0,0,"","",""]
[null,null,"",null,null,null,0,null,null,null,0,null,null,null,0,null,null,null,0,0,"","",""]
[null,null,"",null,null,null,0,null,null,null,0,null,null,null,0,null,null,null,0,0,"","",""]
[null,null,"",null,null,null,0,null,null,null,0,null,null,null,0,null,null,null,0,0,"","",""]
[null,null,"",null,null,null,0,null,null,null,0,null,null,null,0,null,null,null,0,0,"","",""]
[null,null,"",null,null,null,0,null,null,null,0,null,null,null,0,null,null,null,0,0,"","",""]
[null,null,"",null,null,null,0,null,null,null,0,null,null,null,0,null,null,null,0,0,"","",""]
[null,null,"",null,null,null,0,null,null,null,0,null,null,null,0,null,null,null,0,0,"","",""]
[null,null,"",null,null,null,0,null,null,null,0,null,null,null,0,null,null,null,0,0,"","",""]
[null,null,"",null,null,null,0,null,null,null,0,null,null,null,0,null,null,null,0,0,"","",""]
[null,null,"",null,null,null,0,null,null,null,0,null,null,null,0,null,null,null,0,0,"","",""]
[null,null,"",null,null,null,0,null,null,null,0,null,null,null,0,null,null,null,0,0,"","",""]
[null,null,"",null,null,null,0,null,null,null,0,null,null,null,0,null,null,null,0,0,"","",""]
[null,null,"",null,null,null,0,null,null,null,0,null,null,null,0,null,null,null,0,0,"","",""]
[null,null,"",null,null,null,0,null,null,null,0,null,null,null,0,null,null,null,0,0,"","",""]
[null,null,"",null,null,null,0,null,null,null,0,null,null,null,0,null,null,null,0,0,"","",""]
[null,null,"",null,null,null,0,null,null,null,0,null,null,null,0,null,null,null,0,0,"","",""]
[null,null,"",null,null,null,0,null,null,null,0,null,null,null,0,null,null,null,0,0,"","",""]
[null,null,"",null,null,null,0,null,null,null,0,null,null,null,0,null,null,null,0,0,"","",""]
[null,null,"",null,null,null,0,null,null,null,0,null,null,null,0,null,null,null,0,0,"","",""]
[null,null,"",null,null,null,0,null,null,null,0,null,null,null,0,null,null,null,0,0,"","",""]
[null,null,"",null,null,null,0,null,null,null,0,null,null,null,0,null,null,null,0,0,"","",""]
[null,null,{"$f":"IF($B9799<>\"\",VLOOKUP($B9799,Tbl_Reference,2,0),\"\")","v":""},null,null,null,0,null,null,null,0,null,null,null,0,null,null,null,0,0,{"$f":"IF($B9799<>\"\",VLOOKUP($B9799,Tbl_Reference,3,0),\"\")","v":""},{"$f":"IF($B9799<>\"\",VLOOKUP($B9799,Tbl_Reference,4,0),\"\")","v":""},""]
[null,null,"",null,null,null,{"$f":"SUM(D9800:F9800)","v":0},null,null,null,{"$f":"SUM(H9800:J9800)","v":0},null,null,null,{"$f":"SUM(L9800:N9800)","v":0},null,null,null,{"$f":"SUM(P9800:R9800)","v":0},{"$f":"G9800+K9800+O9800+S9800","v":0},"","",{"$f":"IF(B9800<>\"\",IF(V9800<>0,ROUND(T9800*V9800,2),ROUND(T9800*U9800,2)),\"\")","v":""}]
[null,null,"",null,null,null,0,null,null,null,0,null,null,null,0,null,null,null,0,0,"","",""]
[null,null,"",null,null,null,0,null,null,null,0,null,null,null,0,null,null,null,0,0,"","",""]
[null,null,"",null,null,null,0,null,null,null,0,null,null,null,0,null,null,null,0,0,"","",""]
[null,null,"",null,null,null,0,null,null,null,0,null,null,null,0,null,null,null,0,0,"","",""]
[null,null,"",null,null,null,0,null,null,null,0,null,null,null,0,null,null,null,0,0,"","",""]
[null,null,"",null,null,null,0,null,null,null,0,null,null,null,0,null,null,null,0,0,"","",""]
[null,null,"",null,null,null,0,null,null,null,0,null,null,null,0,null,null,null,0,0,"","",""]
[null,null,"",null,null,null,0,null,null,null,0,null,null,null,0,null,null,null,0,0,"","",""]
[null,null,"",null,null,null,0,null,null,null,0,null,null,null,0,null,null,null,0,0,"","",""]
[null,null,"",null,null,null,0,null,null,null,0,null,null,null,0,null,null,null,0,0,"","",""]
[null,null,"",null,null,null,0,null,null,null,0,null,null,null,0,null,null,null,0,0,"","",""]
[null,null,"",null,null,null,0,null,null,null,0,null,null,null,0,null,null,null,0,0,"","",""]
[null,null,"",null,null,null,0,null,null,null,0,null,null,null,0,null,null,null,0,0,"","",""]
[null,null,"",null,null,null,0,null,null,null,0,null,null,null,0,null,null,null,0,0,"","",""]
[null,null,"",null,null,null,0,null,null,null,0,null,null,null,0,null,null,null,0,0,"","",""]
[null,null,"",null,null,null,0,null,null,null,0,null,null,null,0,null,null,null,0,0,"","",""]
[null,null,"",null,null,null,0,null,null,null,0,null,null,null,0,null,null,null,0,0,"","",""]
[null,null,"",null,null,null,0,null,null,null,0,null,null,null,0,null,null,null,0,0,"","",""]
[null,null,"",null,null,null,0,null,null,null,0,null,null,null,0,null,null,null,0,0,"","",""]
[null,null,"",null,null,null,0,null,null,null,0,null,null,null,0,null,null,null,0,0,"","",""]
[null,null,"",null,null,null,0,null,null,null,0,null,null,null,0,null,null,null,0,0,"","",""]
[null,null,"",null,null,null,0,null,null,null,0,null,null,null,0,null,null,null,0,0,"","",""]
[null,null,"",null,null,null,0,null,null,null,0,null,null,null,0,null,null,null,0,0,"","",""]
[null,null,"",null,null,null,0,null,null,null,0,null,null,null,0,null,null,null,0,0,"","",""]
[null,null,"",null,null,null,0,null,null,null,0,null,null,null,0,null,null,null,0,0,"","",""]
[null,null,"",null,null,null,0,null,null,null,0,null,null,null,0,null,null,null,0,0,"","",""]
[null,null,"",null,null,null,0,null,null,null,0,null,null,null,0,null,null,null,0,0,"","",""]
[null,null,"",null,null,null,0,null,null,null,0,null,null,null,0,null,null,null,0,0,"","",""]
[null,null,"",null,null,null,0,null,null,null,0,null,null,null,0,null,null,null,0,0,"","",""]
[null,null,"",null,null,null,0,null,null,null,0,null,null,null,0,null,null,null,0,0,"","",""]
[null,null,"",null,null,null,0,null,null,null,0,null,null,null,0,null,null,null,0,0,"","",""]
[null,null,"",null,null,null,0,null,null,null,0,null,null,null,0,null,null,null,0,0,"","",""]
[null,null,"",null,null,null,0,null,null,null,0,null,null,null,0,null,null,null,0,0,"","",""]
[null,null,"",null,null,null,0,null,null,null,0,null,null,null,0,null,null,null,0,0,"","",""]
[null,null,"",null,null,null,0,null,null,null,0,null,null,null,0,null,null,null,0,0,"","",""]
[null,null,"",null,null,null,0,null,null,null,0,null,null,null,0,null,null,null,0,0,"","",""]
[null,null,"",null,null,null,0,null,null,null,0,null,null,null,0,null,null,null,0,0,"","",""]
[null,null,"",null,null,null,0,null,null,null,0,null,null,null,0,null,null,null,0,0,"","",""]
[null,null,"",null,null,null,0,null,null,null,0,null,null,null,0,null,null,null,0,0,"","",""]
[null,null,"",null,null,null,0,null,null,null,0,null,null,null,0,null,null,null,0,0,"","",""]
[null,null,"",null,null,null,0,null,null,null,0,null,null,null,0,null,null,null,0,0,"","",""]
[null,null,"",null,null,null,0,null,null,null,0,null,null,null,0,null,null,null,0,0,"","",""]
[null,null,"",null,null,null,0,null,null,null,0,null,null,null,0,null,null,null,0,0,"","",""]
[null,null,"",null,null,null,0,null,null,null,0,null,null,null,0,null,null,null,0,0,"","",""]
[null,null,"",null,null,null,0,null,null,null,0,null,null,null,0,null,null,null,0,0,"","",""]
[null,null,"",null,null,null,0,null,null,null,0,null,null,null,0,null,null,null,0,0,"","",""]
[null,null,"",null,null,null,0,null,null,null,0,null,null,null,0,null,null,null,0,0,"","",""]
[null,null,"",null,null,null,0,null,null,null,0,null,null,null,0,null,null,null,0,0,"","",""]
[null,null,"",null,null,null,0,null,null,null,0,null,null,null,0,null,null,null,0,0,"","",""]
[null,null,"",null,null,null,0,null,null,null,0,null,null,null,0,null,null,null,0,0,"","",""]
[null,null,"",null,null,null,0,null,null,null,0,null,null,null,0,null,null,null,0,0,"","",""]
[null,null,"",null,null,null,0,null,null,null,0,null,null,null,0,null,null,null,0,0,"","",""]
[null,null,"",null,null,null,0,null,null,null,0,null,null,null,0,null,null,null,0,0,"","",""]
[null,null,"",null,null,null,0,null,null,null,0,null,null,null,0,null,null,null,0,0,"","",""]
[null,null,"",null,null,null,0,null,null,null,0,null,null,null,0,null,null,null,0,0,"","",""]
[null,null,"",null,null,null,0,null,null,null,0,null,null,null,0,null,null,null,0,0,"","",""]
[null,null,"",null,null,null,0,null,null,null,0,null,null,null,0,null,null,null,0,0,"","",""]
[null,null,"",null,null,null,0,null,null,null,0,null,null,null,0,null,null,null,0,0,"","",""]
[null,null,"",null,null,null,0,null,null,null,0,null,null,null,0,null,null,null,0,0,"","",""]
[null,null,"",null,null,null,0,null,null,null,0,null,null,null,0,null,null,null,0,0,"","",""]
[null,null,"",null,null,null,0,null,null,null,0,null,null,null,0,null,null,null,0,0,"","",""]
[null,null,"",null,null,null,0,null,null,null,0,null,null,null,0,null,null,null,0,0,"","",""]
[null,null,{"$f":"IF($B9863<>\"\",VLOOKUP($B9863,Tbl_Reference,2,0),\"\")","v":""},null,null,null,0,null,null,null,0,null,null,null,0,null,null,null,0,0,{"$f":"IF($B9863<>\"\",VLOOKUP($B9863,Tbl_Reference,3,0),\"\")","v":""},{"$f":"IF($B9863<>\"\",VLOOKUP($B9863,Tbl_Reference,4,0),\"\")","v":""},""]
[null,null,"",null,null,null,{"$f":"SUM(D9864:F9864)","v":0},null,null,null,{"$f":"SUM(H9864:J9864)","v":0},null,null,null,{"$f":"SUM(L9864:N9864)","v":0},null,null,null,{"$f":"SUM(P9864:R9864)","v":0},{"$f":"G9864+K9864+O9864+S9864","v":0},"","",{"$f":"IF(B9864<>\"\",IF(V9864<>0,ROUND(T9864*V9864,2),ROUND(T9864*U9864,2)),\"\")","v":""}]
[null,null,"",null,null,null,0,null,null,null,0,null,null,null,0,null,null,null,0,0,"","",""]
[null,null,"",null,null,null,0,null,null,null,0,null,null,null,0,null,null,null,0,0,"","",""]
[null,null,"",null,null,null,0,null,null,null,0,null,null,null,0,null,null,null,0,0,"","",""]
[null,null,"",null,null,null,0,null,null,null,0,null,null,null,0,null,null,null,0,0,"","",""]
[null,null,"",null,null,null,0,null,null,null,0,null,null,null,0,null,null,null,0,0,"","",""]
[null,null,"",null,null,null,0,null,null,null,0,null,null,null,0,null,null,null,0,0,"","",""]
[null,null,"",null,null,null,0,null,null,null,0,null,null,null,0,null,null,null,0,0,"","",""]
[null,null,"",null,null,null,0,null,null,null,0,null,null,null,0,null,null,null,0,0,"","",""]
[null,null,"",null,null,null,0,null,null,null,0,null,null,null,0,null,null,null,0,0,"","",""]
[null,null,"",null,null,null,0,null,null,null,0,null,null,null,0,null,null,null,0,0,"","",""]
[null,null,"",null,null,null,0,null,null,null,0,null,null,null,0,null,null,null,0,0,"","",""]
[null,null,"",null,null,null,0,null,null,null,0,null,null,null,0,null,null,null,0,0,"","",""]
[null,null,"",null,null,null,0,null,null,null,0,null,null,null,0,null,null,null,0,0,"","",""]
[null,null,"",null,null,null,0,null,null,null,0,null,null,null,0,null,null,null,0,0,"","",""]
[null,null,"",null,null,null,0,null,null,null,0,null,null,null,0,null,null,null,0,0,"","",""]
[null,null,"",null,null,null,0,null,null,null,0,null,null,null,0,null,null,null,0,0,"","",""]
[null,null,"",null,null,null,0,null,null,null,0,null,null,null,0,null,null,null,0,0,"","",""]
[null,null,"",null,null,null,0,null,null,null,0,null,null,null,0,null,null,null,0,0,"","",""]
[null,null,"",null,null,null,0,null,null,null,0,null,null,null,0,null,null,null,0,0,"","",""]
[null,null,"",null,null,null,0,null,null,null,0,null,null,null,0,null,null,null,0,0,"","",""]
[null,null,"",null,null,null,0,null,null,null,0,null,null,null,0,null,null,null,0,0,"","",""]
[null,null,"",null,null,null,0,null,null,null,0,null,null,null,0,null,null,null,0,0,"","",""]
[null,null,"",null,null,null,0,null,null,null,0,null,null,null,0,null,null,null,0,0,"","",""]
[null,null,"",null,null,null,0,null,null,null,0,null,null,null,0,null,null,null,0,0,"","",""]
[null,null,"",null,null,null,0,null,null,null,0,null,null,null,0,null,null,null,0,0,"","",""]
[null,null,"",null,null,null,0,null,null,null,0,null,null,null,0,null,null,null,0,0,"","",""]
[null,null,"",null,null,null,0,null,null,null,0,null,null,null,0,null,null,null,0,0,"","",""]
[null,null,"",null,null,null,0,null,null,null,0,null,null,null,0,null,null,null,0,0,"","",""]
[null,null,"",null,null,null,0,null,null,null,0,null,null,null,0,null,null,null,0,0,"","",""]
[null,null,"",null,null,null,0,null,null,null,0,null,null,null,0,null,null,null,0,0,"","",""]
[null,null,"",null,null,null,0,null,null,null,0,null,null,null,0,null,null,null,0,0,"","",""]
[null,null,"",null,null,null,0,null,null,null,0,null,null,null,0,null,null,null,0,0,"","",""]
[null,null,"",null,null,null,0,null,null,null,0,null,null,null,0,null,null,null,0,0,"","",""]
[null,null,"",null,null,null,0,null,null,null,0,null,null,null,0,null,null,null,0,0,"","",""]
[null,null,"",null,null,null,0,null,null,null,0,null,null,null,0,null,null,null,0,0,"","",""]
[null,null,"",null,null,null,0,null,null,null,0,null,null,null,0,null,null,null,0,0,"","",""]
[null,null,"",null,null,null,0,null,null,null,0,null,null,null,0,null,null,null,0,0,"","",""]
[null,null,"",null,null,null,0,null,null,null,0,null,null,null,0,null,null,null,0,0,"","",""]
[null,null,"",null,null,null,0,null,null,null,0,null,null,null,0,null,null,null,0,0,"","",""]
[null,null,"",null,null,null,0,null,null,null,0,null,null,null,0,null,null,null,0,0,"","",""]
[null,null,"",null,null,null,0,null,null,null,0,null,null,null,0,null,null,null,0,0,"","",""]
[null,null,"",null,null,null,0,null,null,null,0,null,null,null,0,null,null,null,0,0,"","",""]
[null,null,"",null,null,null,0,null,null,null,0,null,null,null,0,null,null,null,0,0,"","",""]
[null,null,"",null,null,null,0,null,null,null,0,null,null,null,0,null,null,null,0,0,"","",""]
[null,null,"",null,null,null,0,null,null,null,0,null,null,null,0,null,null,null,0,0,"","",""]
[null,null,"",null,null,null,0,null,null,null,0,null,null,null,0,null,null,null,0,0,"","",""]
[null,null,"",null,null,null,0,null,null,null,0,null,null,null,0,null,null,null,0,0,"","",""]
[null,null,"",null,null,null,0,null,null,null,0,null,null,null,0,null,null,null,0,0,"","",""]
[null,null,"",null,null,null,0,null,null,null,0,null,null,null,0,null,null,null,0,0,"","",""]
[null,null,"",null,null,null,0,null,null,null,0,null,null,null,0,null,null,null,0,0,"","",""]
[null,null,"",null,null,null,0,null,null,null,0,null,null,null,0,null,null,null,0,0,"","",""]
[null,null,"",null,null,null,0,null,null,null,0,null,null,null,0,null,null,null,0,0,"","",""]
[null,null,"",null,null,null,0,null,null,null,0,null,null,null,0,null,null,null,0,0,"","",""]
[null,null,"",null,null,null,0,null,null,null,0,null,null,null,0,null,null,null,0,0,"","",""]
[null,null,"",null,null,null,0,null,null,null,0,null,null,null,0,null,null,null,0,0,"","",""]
[null,null,"",null,null,null,0,null,null,null,0,null,null,null,0,null,null,null,0,0,"","",""]
[null,null,"",null,null,null,0,null,null,null,0,null,null,null,0,null,null,null,0,0,"","",""]
[null,null,"",null,null,null,0,null,null,null,0,null,null,null,0,null,null,null,0,0,"","",""]
[null,null,"",null,null,null,0,null,null,null,0,null,null,null,0,null,null,null,0,0,"","",""]
[null,null,"",null,null,null,0,null,null,null,0,null,null,null,0,null,null,null,0,0,"","",""]
[null,null,"",null,null,null,0,null,null,null,0,null,null,null,0,null,null,null,0,0,"","",""]
[null,null,"",null,null,null,0,null,null,null,0,null,null,null,0,null,null,null,0,0,"","",""]
[null,null,{"$f":"IF($B9927<>\"\",VLOOKUP($B9927,Tbl_Reference,2,0),\"\")","v":""},null,null,null,0,null,null,null,0,null,null,null,0,null,null,null,0,0,{"$f":"IF($B9927<>\"\",VLOOKUP($B9927,Tbl_Reference,3,0),\"\")","v":""},{"$f":"IF($B9927<>\"\",VLOOKUP($B9927,Tbl_Reference,4,0),\"\")","v":""},""]
[null,null,"",null,null,null,{"$f":"SUM(D9928:F9928)","v":0},null,null,null,{"$f":"SUM(H9928:J9928)","v":0},null,null,null,{"$f":"SUM(L9928:N9928)","v":0},null,null,null,{"$f":"SUM(P9928:R9928)","v":0},{"$f":"G9928+K9928+O9928+S9928","v":0},"","",{"$f":"IF(B9928<>\"\",IF(V9928<>0,ROUND(T9928*V9928,2),ROUND(T9928*U9928,2)),\"\")","v":""}]
[null,null,"",null,null,null,0,null,null,null,0,null,null,null,0,null,null,null,0,0,"","",""]
[null,null,"",null,null,null,0,null,null,null,0,null,null,null,0,null,null,null,0,0,"","",""]
[null,null,"",null,null,null,0,null,null,null,0,null,null,null,0,null,null,null,0,0,"","",""]
[null,null,"",null,null,null,0,null,null,null,0,null,null,null,0,null,null,null,0,0,"","",""]
[null,null,"",null,null,null,0,null,null,null,0,null,null,null,0,null,null,null,0,0,"","",""]
[null,null,"",null,null,null,0,null,null,null,0,null,null,null,0,null,null,null,0,0,"","",""]
[null,null,"",null,null,null,0,null,null,null,0,null,null,null,0,null,null,null,0,0,"","",""]
[null,null,"",null,null,null,0,null,null,null,0,null,null,null,0,null,null,null,0,0,"","",""]
[null,null,"",null,null,null,0,null,null,null,0,null,null,null,0,null,null,null,0,0,"","",""]
[null,null,"",null,null,null,0,null,null,null,0,null,null,null,0,null,null,null,0,0,"","",""]
[null,null,"",null,null,null,0,null,null,null,0,null,null,null,0,null,null,null,0,0,"","",""]
[null,null,"",null,null,null,0,null,null,null,0,null,null,null,0,null,null,null,0,0,"","",""]
[null,null,"",null,null,null,0,null,null,null,0,null,null,null,0,null,null,null,0,0,"","",""]
[null,null,"",null,null,null,0,null,null,null,0,null,null,null,0,null,null,null,0,0,"","",""]
[null,null,"",null,null,null,0,null,null,null,0,null,null,null,0,null,null,null,0,0,"","",""]
[null,null,"",null,null,null,0,null,null,null,0,null,null,null,0,null,null,null,0,0,"","",""]
[null,null,"",null,null,null,0,null,null,null,0,null,null,null,0,null,null,null,0,0,"","",""]
[null,null,"",null,null,null,0,null,null,null,0,null,null,null,0,null,null,null,0,0,"","",""]
[null,null,"",null,null,null,0,null,null,null,0,null,null,null,0,null,null,null,0,0,"","",""]
[null,null,"",null,null,null,0,null,null,null,0,null,null,null,0,null,null,null,0,0,"","",""]
[null,null,"",null,null,null,0,null,null,null,0,null,null,null,0,null,null,null,0,0,"","",""]
[null,null,"",null,null,null,0,null,null,null,0,null,null,null,0,null,null,null,0,0,"","",""]
[null,null,"",null,null,null,0,null,null,null,0,null,null,null,0,null,null,null,0,0,"","",""]
[null,null,"",null,null,null,0,null,null,null,0,null,null,null,0,null,null,null,0,0,"","",""]
[null,null,"",null,null,null,0,null,null,null,0,null,null,null,0,null,null,null,0,0,"","",""]
[null,null,"",null,null,null,0,null,null,null,0,null,null,null,0,null,null,null,0,0,"","",""]
[null,null,"",null,null,null,0,null,null,null,0,null,null,null,0,null,null,null,0,0,"","",""]
[null,null,"",null,null,null,0,null,null,null,0,null,null,null,0,null,null,null,0,0,"","",""]
[null,null,"",null,null,null,0,null,null,null,0,null,null,null,0,null,null,null,0,0,"","",""]
[null,null,"",null,null,null,0,null,null,null,0,null,null,null,0,null,null,null,0,0,"","",""]
[null,null,"",null,null,null,0,null,null,null,0,null,null,null,0,null,null,null,0,0,"","",""]
[null,null,"",null,null,null,0,null,null,null,0,null,null,null,0,null,null,null,0,0,"","",""]
[null,null,"",null,null,null,0,null,null,null,0,null,null,null,0,null,null,null,0,0,"","",""]
[null,null,"",null,null,null,0,null,null,null,0,null,null,null,0,null,null,null,0,0,"","",""]
[null,null,"",null,null,null,0,null,null,null,0,null,null,null,0,null,null,null,0,0,"","",""]
[null,null,"",null,null,null,0,null,null,null,0,null,null,null,0,null,null,null,0,0,"","",""]
[null,null,"",null,null,null,0,null,null,null,0,null,null,null,0,null,null,null,0,0,"","",""]
[null,null,"",null,null,null,0,null,null,null,0,null,null,null,0,null,null,null,0,0,"","",""]
[null,null,"",null,null,null,0,null,null,null,0,null,null,null,0,null,null,null,0,0,"","",""]
[null,null,"",null,null,null,0,null,null,null,0,null,null,null,0,null,null,null,0,0,"","",""]
[null,null,"",null,null,null,0,null,null,null,0,null,null,null,0,null,null,null,0,0,"","",""]
[null,null,"",null,null,null,0,null,null,null,0,null,null,null,0,null,null,null,0,0,"","",""]
[null,null,"",null,null,null,0,null,null,null,0,null,null,null,0,null,null,null,0,0,"","",""]
[null,null,"",null,null,null,0,null,null,null,0,null,null,null,0,null,null,null,0,0,"","",""]
[null,null,"",null,null,null,0,null,null,null,0,null,null,null,0,null,null,null,0,0,"","",""]
[null,null,"",null,null,null,0,null,null,null,0,null,null,null,0,null,null,null,0,0,"","",""]
[null,null,"",null,null,null,0,null,null,null,0,null,null,null,0,null,null,null,0,0,"","",""]
[null,null,"",null,null,null,0,null,null,null,0,null,null,null,0,null,null,null,0,0,"","",""]
[null,null,"",null,null,null,0,null,null,null,0,null,null,null,0,null,null,null,0,0,"","",""]
[null,null,"",null,null,null,0,null,null,null,0,null,null,null,0,null,null,null,0,0,"","",""]
[null,null,"",null,null,null,0,null,null,null,0,null,null,null,0,null,null,null,0,0,"","",""]
[null,null,"",null,null,null,0,null,null,null,0,null,null,null,0,null,null,null,0,0,"","",""]
[null,null,"",null,null,null,0,null,null,null,0,null,null,null,0,null,null,null,0,0,"","",""]
[null,null,"",null,null,null,0,null,null,null,0,null,null,null,0,null,null,null,0,0,"","",""]
[null,null,"",null,null,null,0,null,null,null,0,null,null,null,0,null,null,null,0,0,"","",""]
[null,null,"",null,null,null,0,null,null,null,0,null,null,null,0,null,null,null,0,0,"","",""]
[null,null,"",null,null,null,0,null,null,null,0,null,null,null,0,null,null,null,0,0,"","",""]
[null,null,"",null,null,null,0,null,null,null,0,null,null,null,0,null,null,null,0,0,"","",""]
[null,null,"",null,null,null,0,null,null,null,0,null,null,null,0,null,null,null,0,0,"","",""]
[null,null,"",null,null,null,0,null,null,null,0,null,null,null,0,null,null,null,0,0,"","",""]
[null,null,"",null,null,null,0,null,null,null,0,null,null,null,0,null,null,null,0,0,"","",""]
[null,null,"",null,null,null,0,null,null,null,0,null,null,null,0,null,null,null,0,0,"","",""]
[null,null,{"$f":"IF($B9991<>\"\",VLOOKUP($B9991,Tbl_Reference,2,0),\"\")","v":""},null,null,null,0,null,null,null,0,null,null,null,0,null,null,null,0,0,{"$f":"IF($B9991<>\"\",VLOOKUP($B9991,Tbl_Reference,3,0),\"\")","v":""},{"$f":"IF($B9991<>\"\",VLOOKUP($B9991,Tbl_Reference,4,0),\"\")","v":""},""]
[null,null,"",null,null,null,{"$f":"SUM(D9992:F9992)","v":0},null,null,null,{"$f":"SUM(H9992:J9992)","v":0},null,null,null,{"$f":"SUM(L9992:N9992)","v":0},null,null,null,{"$f":"SUM(P9992:R9992)","v":0},{"$f":"G9992+K9992+O9992+S9992","v":0},"","",{"$f":"IF(B9992<>\"\",IF(V9992<>0,ROUND(T9992*V9992,2),ROUND(T9992*U9992,2)),\"\")","v":""}]
[null,null,"",null,null,null,0,null,null,null,0,null,null,null,0,null,null,null,0,0,"","",""]
[null,null,"",null,null,null,0,null,null,null,0,null,null,null,0,null,null,null,0,0,"","",""]
[null,null,"",null,null,null,0,null,null,null,0,null,null,null,0,null,null,null,0,0,"","",""]
[null,null,"",null,null,null,0,null,null,null,0,null,null,null,0,null,null,null,0,0,"","",""]
[null,null,"",null,null,null,0,null,null,null,0,null,null,null,0,null,null,null,0,0,"","",""]
[null,null,"",null,null,null,0,null,null,null,0,null,null,null,0,null,null,null,0,0,"","",""]
[null,null,"",null,null,null,0,null,null,null,0,null,null,null,0,null,null,null,0,0,"","",""]
[null,null,"",null,null,null,0,null,null,null,0,null,null,null,0,null,null,null,0,0,"","",""]
[null,null,"",null,null,null,0,null,null,null,0,null,null,null,0,null,null,null,0,0,"","",""]
[null,null,"",null,null,null,0,null,null,null,0,null,null,null,0,null,null,null,0,0,"","",""]
[null,null,"",null,null,null,0,null,null,null,0,null,null,null,0,null,null,null,0,0,"","",""]
[null,null,"",null,null,null,0,null,null,null,0,null,null,null,0,null,null,null,0,0,"","",""]

{"sheet":"Reference","index":1,"n_rows":901,"n_cols":10,"rows_kept":901,"cut":false,"hidden":false,"merged":[]}
["CATEGORY LIST","CATEGORYLOOKUP","CATEGORY","ITEM","UNIT OF MEASURE","UNIT PRICE","MARKED UP PRICE"]
["Common Electrical Supplies","Lst_Electrical","Common Electrical Supplies","BALLAST, 18 watts","piece",133.59,{"$f":"ROUND((F2*1.1),2)","v":146.94999999999999},null,"count all rows - filled up",{"$f":"COUNTA(Input!B7:B10004)","v":0}]
["Common Computer Consumables and Supplies","Lst_CompSupplies","Common Electrical Supplies","BALLAST, 36 watts","piece",130.52000000000001,{"$f":"ROUND((F3*1.1),2)","v":143.57},null,"count all rows - ppmp filled up",{"$f":"COUNTA(PPMP!B13:B14)","v":0}]
["Common Office Supplies","Lst_OfficeSupplies","Common Electrical Supplies","BATTERY, size AA, alkaline, 2 pcs./packet","packet",37.71,41.48]
["Common Office Devices","Lst_OfficeDevices","Common Electrical Supplies","BATTERY, size AAA, alkaline, 2 pcs./packet","packet",32.49,35.74]
["Common Janitorial Supplies","Lst_JanSupplies","Common Electrical Supplies","BATTERY, size C, 1.5 volts","piece",200,220]
["Legal Size Paper","Lst_LegalPaper","Common Electrical Supplies","BATTERY, size D, alkaline, 2 pcs./packet","packet",168.17,184.99]
["Common Office Equipment","Lst_OfficeEquip","Common Electrical Supplies","COMPACT FLUORESCENT LIGHT, 18 watts","piece",183.27,201.6]
["Medical Supplies and Materials","Lst_Medical","Common Electrical Supplies","CORD COVER","meter",68,74.8]
["Handbooks on Procurement","Lst_Handbook","Common Electrical Supplies","EXTENSION WIRE, 4 meters with 3 socket outlet","set",497,546.70000000000005]
["Seminars and Trainings","Lst_Seminars","Common Electrical Supplies","FLAT CORD WIRE #16","meter",96,105.6]
["Tarpaulin","Lst_Tarp","Common Electrical Supplies","FLUORESCENT LAMP, tubular, 18 watts","piece",64.97,71.47]
[null,null,"Common Electrical Supplies","FLUORESCENT LAMP, tubular, 36 watts","piece",66.89,73.58]
[null,null,"Common Electrical Supplies","FLUORESCENT LIGHTING FIXTURE, 1 x 18W","set",601.97,662.17]
[null,null,"Common Electrical Supplies","FLUORESCENT LIGHTING FIXTURE, 1 x 36W","set",707.07,777.78]
[null,null,"Common Electrical Supplies","FLUORESCENT LIGHTING FIXTURE, 13000h, T8, cool","piece",228,250.8]
[null,null,"Common Electrical Supplies","FUSE, 30 amperes","piece",22.93,25.22]
[null,null,"Common Electrical Supplies","FUSE, 60 amperes","piece",51.6,56.76]
[null,null,"Common Electrical Supplies","OUTLET, 4 Gangs, Heavy Duty","piece",378,415.8]
[null,null,"Common Electrical Supplies","STARTER, 4-40 watts","piece",9.56,10.52]
[null,null,"Common Electrical Supplies","TAPE, Electrical","roll",40.04,44.04]
[null,null,"Common Electrical Supplies","UNINTERRUPTIBLE POWER SUPPLY, 600 VA","unit",2300,2530]
[null,null,"Common Computer Consumables and Supplies","COMPACT DISK RECORDABLE, min. of 700MB, 1x - 52x minimum speed, 80 min recording time","piece",28,30.8]
[null,null,"Common Computer Consumables and Supplies","COMPACT DISK REWRITABLE, 700MB min. capacity, 80 minutes recording time, 4x - 10x min speed","piece",48,52.8]
[null,null,"Common Computer Consumables and Supplies","COMPACT DISK STORAGE CASE, 50 CDs capacity, min, made of durable plastic or nylon fabric, double sided sleeves, with closure","piece",369,405.9]
[null,null,"Common Computer Consumables and Supplies","COMPUTER CONTINUOUS FORMS, 1 ply, 11\" x 14-7/8\", 2000 sheets/box","box",1428.77,1571.65]
[null,null,"Common Computer Consumables and Supplies","COMPUTER CONTINUOUS FORMS, 1 ply, 11\" x 9-1/2\", 2000 sheets/box","box",1021.39,1123.53]
[null,null,"Common Computer Consumables and Supplies","COMPUTER CONTINUOUS FORMS, 2 ply, 11\" x 14-7/8\", 1000 sets/box","box",1660.37,1826.41]
[null,null,"Common Computer Consumables and Supplies","COMPUTER CONTINUOUS FORMS, 2 ply, 11\" x 9-1/2\", 1000 sets/box","box",1143.1600000000001,1257.48]
[null,null,"Common Computer Consumables and Supplies","COMPUTER CONTINUOUS FORMS, 3 ply,  11\" x 14-7/8\", 500 sets/box","box",1431.05,1574.16]
[null,null,"Common Computer Consumables and Supplies","COMPUTER CONTINUOUS FORMS, 3 ply, 11 x 9-1/2\", 500 sets/box","box",953.3,1048.6300000000001]
[null,null,"Common Computer Consumables and Supplies","COOLER, Netbook","piece",1175,1292.5]
[null,null,"Common Computer Consumables and Supplies","DISKETTE, floppy disk, 3.5\", double sided, high density, formatted 10s/pack","pack",98.99,108.89]
[null,null,"Common Computer Consumables and Supplies","DRUM UNIT, Brother DR3000","cart",9849.84,10834.82]
[null,null,"Common Computer Consumables and Supplies","DRUM UNIT, Brother DR3115","cart",7849.84,8634.82]
[null,null,"Common Computer Consumables and Supplies","DRUM UNIT, Brother DR4000","cart",7591.58,8350.74]
[null,null,"Common Computer Consumables and Supplies","DRUM UNIT, Brother DR7000","cart",9129.1200000000008,10042.030000000001]
[null,null,"Common Computer Consumables and Supplies","DVD RECORDABLE, 16x speed, 4.7GB capacity","piece",40,44]
[null,null,"Common Computer Consumables and Supplies","DVD REWRITABLE, 4x speed, 4.7GB capacity","piece",47.01,51.71]
[null,null,"Common Computer Consumables and Supplies","EXTERNAL HARD DRIVE, 1TB, 2.5\" HDD, USB 3.0(backward compatible with USB 2.0), 5400 RPM, with dual-color LED light to indicate USB 3.0/USB 2.0 transmission, USB powered","piece",4000,4400]
[null,null,"Common Computer Consumables and Supplies","EXTERNAL HARD DRIVE, 500GB, 2.5\"HDD, USB 3.0 (backward compatible with USB 2.0), 5400 RPM, with dual-color LED light to indicate USB 3.0/ USB 2.0 transmission, USB powered, with USB 3.0 cable and product guide","piece",3750,4125]
[null,null,"Common Computer Consumables and Supplies","FLASH DRIVE, 16GB, USB 2.0,  plug and play","piece",514.79999999999995,566.28]
[null,null,"Common Computer Consumables and Supplies","FLASH DRIVE, 4GB, USB 2.0, plug and play","piece",469,515.9]
[null,null,"Common Computer Consumables and Supplies","FLASH DRIVE, 8GB, USB 2.0,  plug and play","piece",530,583]
[null,null,"Common Computer Consumables and Supplies","HDMI, Type D, Micro, for Acer Laptop","piece",1500,1650]
[null,null,"Common Computer Consumables and Supplies","IMAGING UNIT, Hewlett Packard Part No. CE314A, color imaging unit","cart",6956.04,7651.64]
[null,null,"Common Computer Consumables and Supplies","IMAGING UNIT, Samsung  Part No.SCXR6555A","cart",19110,21021]
[null,null,"Common Computer Consumables and Supplies","INK CARTRIDGE, Brother LC39BK, black","cart",1251.71,1376.88]
[null,null,"Common Computer Consumables and Supplies","INK CARTRIDGE, Brother LC39C, cyan","cart",821.73,903.9]
[null,null,"Common Computer Consumables and Supplies","INK CARTRIDGE, Brother LC39M, magenta","cart",821.73,903.9]
[null,null,"Common Computer Consumables and Supplies","INK CARTRIDGE, Brother LC39Y, yellow","cart",821.73,903.9]
[null,null,"Common Computer Consumables and Supplies","INK CARTRIDGE, Brother LC67B, black","cart",1672.13,1839.34]
[null,null,"Common Computer Consumables and Supplies","INK CARTRIDGE, Brother LC67HYBK, black","cart",2904.72,3195.19]
[null,null,"Common Computer Consumables and Supplies","INK CARTRIDGE, Brother LC67HYC, cyan","cart",1586.13,1744.74]
[null,null,"Common Computer Consumables and Supplies","INK CARTRIDGE, Brother LC67HYM, magenta","cart",1586.13,1744.74]
[null,null,"Common Computer Consumables and Supplies","INK CARTRIDGE, Brother LC67HYY, yellow","cart",1586.13,1744.74]
[null,null,"Common Computer Consumables and Supplies","INK CARTRIDGE, Brother LC67M, Magenta","cart",1003.28,1103.6099999999999]
[null,null,"Common Computer Consumables and Supplies","INK CARTRIDGE, Brother LC67Y, Yellow","cart",1003.28,1103.6099999999999]
[null,null,"Common Computer Consumables and Supplies","INK CARTRIDGE, Brother Part No. LC38B, Black","cart",1232.5999999999999,1355.86]
[null,null,"Common Computer Consumables and Supplies","INK CARTRIDGE, Brother Part No. LC38C, Cyan","cart",812.18,893.4]
[null,null,"Common Computer Consumables and Supplies","INK CARTRIDGE, Brother Part No. LC38M, Magenta+","cart",812.18,893.4]
[null,null,"Common Computer Consumables and Supplies","INK CARTRIDGE, Brother Part No. LC38Y, Yellow","cart",812.18,893.4]
[null,null,"Common Computer Consumables and Supplies","INK CARTRIDGE, Brother Part No. LC40BK, black","cart",1184.82,1303.3]
[null,null,"Common Computer Consumables and Supplies","INK CARTRIDGE, Brother Part No. LC40C, Cyan","cart",668.85,735.74]
[null,null,"Common Computer Consumables and Supplies","INK CARTRIDGE, Brother Part No. LC40M, Magenta","cart",716.63,788.29]
[null,null,"Common Computer Consumables and Supplies","INK CARTRIDGE, Brother Part No. LC40Y, Yellow","cart",668.85,735.74]
[null,null,"Common Computer Consumables and Supplies","INK CARTRIDGE, Brother Part No. LC67C, Cyan","cart",1003.28,{"$f":"ROUND((F67*1.1),2)","v":1103.6099999999999}]
[null,null,"Common Computer Consumables and Supplies","INK CARTRIDGE, Canon Part No. CL-741, colored","cart",1735.19,1908.71]
[null,null,"Common Computer Consumables and Supplies","INK CARTRIDGE, Canon Part No. CL-811, colored","cart",1641.55,1805.71]
[null,null,"Common Computer Consumables and Supplies","INK CARTRIDGE, Canon Part No. CL-831, color","cart",1868.96,2055.86]
[null,null,"Common Computer Consumables and Supplies","INK CARTRIDGE, Canon Part No. CL-98, colored","cart",1270.82,1397.9]
[null,null,"Common Computer Consumables and Supplies","INK CARTRIDGE, Canon Part No. CLI-726, black","cart",984.17,1082.5899999999999]
[null,null,"Common Computer Consumables and Supplies","INK CARTRIDGE, Canon Part No. CLI-726, cyan","cart",986,1084.5999999999999]
[null,null,"Common Computer Consumables and Supplies","INK CARTRIDGE, Canon Part No. CLI-726, magenta","cart",986,1084.5999999999999]
[null,null,"Common Computer Consumables and Supplies","INK CARTRIDGE, Canon Part No. CLI-726, Yellow","cart",986,1084.5999999999999]
[null,null,"Common Computer Consumables and Supplies","INK CARTRIDGE, Canon Part No. PG-740, black","cart",1323.37,1455.71]
[null,null,"Common Computer Consumables and Supplies","INK CARTRIDGE, Canon Part No. PG-810, black","cart",999,1098.9000000000001]
[null,null,"Common Computer Consumables and Supplies","INK CARTRIDGE, Canon Part No. PG-830, black","cart",1429.43,1572.37]
[null,null,"Common Computer Consumables and Supplies","INK CARTRIDGE, Canon Part No. PGI-725, black","cart",1041.5,1145.6500000000001]
[null,null,"Common Computer Consumables and Supplies","INK CARTRIDGE, Epson C13T028091, black, for printer Stylus C60/CX3100 ","cart",2132.6799999999998,2345.9499999999998]
[null,null,"Common Computer Consumables and Supplies","INK CARTRIDGE, Epson C13T029091, color, for printer Stylus C60/ C50/ CX3100 ","cart",1947.31,2142.04]
[null,null,"Common Computer Consumables and Supplies","INK CARTRIDGE, Epson C13T032190, black, for printer Stylus C80/C82/ CX5100 ","cart",2300.84,2530.92]
[null,null,"Common Computer Consumables and Supplies","INK CARTRIDGE, Epson C13T032290, Cyan, for  printer Stylus C80 ","cart",1098.83,1208.71]
[null,null,"Common Computer Consumables and Supplies","INK CARTRIDGE, Epson C13T032390, Magenta, for  printer Stylus C80 ","cart",1098.83,1208.71]
[null,null,"Common Computer Consumables and Supplies","INK CARTRIDGE, Epson C13T032490, Yellow, for  printer Stylus C80 ","cart",1098.83,1208.71]
[null,null,"Common Computer Consumables and Supplies","INK CARTRIDGE, Epson C13T038190, black, for printer Stylus C41SX/UX ","cart",903.9,994.29]
[null,null,"Common Computer Consumables and Supplies","INK CARTRIDGE, Epson C13T042290, Cyan, for printer Stylus C82/CX5100 ","cart",1001.36,1101.5]
[null,null,"Common Computer Consumables and Supplies","INK CARTRIDGE, Epson C13T042390, Magenta, for printer Stylus C82/CX5100 ","cart",1001.36,1101.5]
[null,null,"Common Computer Consumables and Supplies","INK CARTRIDGE, Epson C13T042490, Yellow, for printer Stylus C82/CX5100 ","cart",1001.36,1101.5]
[null,null,"Common Computer Consumables and Supplies","INK CARTRIDGE, Epson C13T046190, black, for printer Stylus C63/C83 ","cart",1150.42,1265.46]
[null,null,"Common Computer Consumables and Supplies","INK CARTRIDGE, Epson C13T047290, Cyan, for printer Stylus C63/C83 ","cart",708.98,779.88]
[null,null,"Common Computer Consumables and Supplies","INK CARTRIDGE, Epson C13T047390, Magenta, for printer Stylus C63/C83 ","cart",708.98,779.88]
[null,null,"Common Computer Consumables and Supplies","INK CARTRIDGE, Epson C13T047490, Yellow, for printer Stylus C63/C83 ","cart",708.98,779.88]
[null,null,"Common Computer Consumables and Supplies","INK CARTRIDGE, Epson C13T062190, black, High Cap, for printer Stylus CX3700/4700/C67","cart",1177.18,1294.9000000000001]
[null,null,"Common Computer Consumables and Supplies","INK CARTRIDGE, Epson C13T063190, black, Std Cap, for printer Stylus CX3700/4700/C67","cart",903.9,994.29]
[null,null,"Common Computer Consumables and Supplies","INK CARTRIDGE, Epson C13T063290, Cyan, Std Cap, for printer Stylus CX3700/4700/C67","cart",726.18,798.8]
[null,null,"Common Computer Consumables and Supplies","INK CARTRIDGE, Epson C13T063390, Magenta, Std Cap, for printer Stylus CX3700/4700/C67","cart",726.18,798.8]
[null,null,"Common Computer Consumables and Supplies","INK CARTRIDGE, Epson C13T063490, Yellow, Std Cap, for printer Stylus CX3700/4700/C67","cart",726.18,798.8]
[null,null,"Common Computer Consumables and Supplies","INK CARTRIDGE, Epson C13T075190, Black, for printer Stylus color C59/CX2900","cart",540.80999999999995,594.89]
[null,null,"Common Computer Consumables and Supplies","INK CARTRIDGE, Epson C13T075290, Cyan, for printer Stylus color C59/CX2900","cart",540.80999999999995,594.89]
[null,null,"Common Computer Consumables and Supplies","INK CARTRIDGE, Epson C13T075390, Magenta, for printer Stylus color C59/CX2900","cart",540.80999999999995,594.89]
[null,null,"Common Computer Consumables and Supplies","INK CARTRIDGE, Epson C13T075490, Yellow, for printer Stylus color C59/CX2900","cart",540.80999999999995,594.89]
[null,null,"Common Computer Consumables and Supplies","INK CARTRIDGE, Epson C13T103190, Black, for printer Stylus T40W/TX600FW","cart",1591.86,1751.05]
[null,null,"Common Computer Consumables and Supplies","INK CARTRIDGE, Epson C13T103290, Cyan, for printer StylusT40W/TX600FW","cart",1060.6099999999999,1166.67]
[null,null,"Common Computer Consumables and Supplies","INK CARTRIDGE, Epson C13T103390, Magenta, for printer Stylus T40W/TX600FW","cart",1060.6099999999999,1166.67]
[null,null,"Common Computer Consumables and Supplies","INK CARTRIDGE, Epson C13T103490, Yellow, for printer Stylus T40W/TX600FW","cart",1060.6099999999999,1166.67]
[null,null,"Common Computer Consumables and Supplies","INK CARTRIDGE, Epson C13T104190, black, for printer C110, CX7300/8300, TX200/400, Pigment High Cap","cart",1060.6099999999999,1166.67]
[null,null,"Common Computer Consumables and Supplies","INK CARTRIDGE, Epson C13T104193, Black, for printer C110, CX7300/8300, TX200/400 Pigment High Cap - Double Pack","cart",1767.68,1944.45]
[null,null,"Common Computer Consumables and Supplies","INK CARTRIDGE, Epson C13T105190, Black,  for printer Stylus T10/T11/ T13/ T30/T20E/C79/C90/TX100/TX110/TX111/TX200/TX210/TX400/TX550W/TX300F/TX510FN/TX600FW/CX3900/CX5500/CX5900/CX6900F/CX8300/CX9300F, Pigment - 73N","cart",783.51,861.86]
[null,null,"Common Computer Consumables and Supplies","INK CARTRIDGE, Epson C13T105290, Cyan,  for printer Stylus T10/T11/ T13/ T30/T20E/C79/C90/TX100/TX110/TX111/TX200/TX210/TX400/TX550W/TX300F/TX510FN/TX600FW/CX3900/CX5500/CX5900/CX6900F/CX8300/CX9300F, Pigment - 73N","cart",783.51,861.86]
[null,null,"Common Computer Consumables and Supplies","INK CARTRIDGE, Epson C13T105390, Magenta,  for printer Stylus T10/T11/ T13/ T30/T20E/C79/C90/TX100/TX110/TX111/TX200/ TX210/TX400/TX550W/ TX300F/TX510FN/TX600FW/CX3900/CX5500/CX5900/CX6900F/CX8300/CX9300F, Pigment - 73N","cart",783.51,861.86]
[null,null,"Common Computer Consumables and Supplies","INK CARTRIDGE, Epson C13T105490, Yellow,  for printer Stylus T10/T11/ T13/ T30/T20E/C79/C90/TX100/TX110/TX111/TX200/ TX210/TX400/TX550W/ TX300F/TX510FN/TX600FW/CX3900/CX5500/CX5900/CX6900F/CX8300/CX9300F, Pigment - 73N","cart",783.51,861.86]
[null,null,"Common Computer Consumables and Supplies","INK CARTRIDGE, Epson C13T107190, Black, for printer T10/T11/ T13/T20E/ TX100/TX110/TX111/CX5500) Pigment - 91N","cart",523.61,575.97]
[null,null,"Common Computer Consumables and Supplies","INK CARTRIDGE, Epson C13T107290, Cyan, for printer T10/T11/ T13/T20E/ TX100/TX110/TX111/CX5500) Pigment - 91N","cart",523.61,575.97]
[null,null,"Common Computer Consumables and Supplies","INK CARTRIDGE, Epson C13T107390, Magenta, for printer T10/T11/ T13/ T20E/TX100/TX110/TX111/CX5500) Pigment - 91N","cart",523.61,575.97]
[null,null,"Common Computer Consumables and Supplies","INK CARTRIDGE, Epson C13T107490, Yellow, for printer T10/T11/ T13/T20E/ TX100/TX110/TX111/CX5500) Pigment - 91N","cart",523.61,575.97]
[null,null,"Common Computer Consumables and Supplies","INK CARTRIDGE, Epson C13T111190, Black, for printer Stylus Photo R270/ 290/390/RX590, High Cap","cart",1761.94,1938.13]
[null,null,"Common Computer Consumables and Supplies","INK CARTRIDGE, Epson C13T111290, Cyan, for printer Stylus Photo R270/ 290/390/RX590, High Cap","cart",1761.94,1938.13]
[null,null,"Common Computer Consumables and Supplies","INK CARTRIDGE, Epson C13T111390, Magenta, for printer Stylus Photo R270/ 290/390/RX590, High Cap","cart",1761.94,1938.13]
[null,null,"Common Computer Consumables and Supplies","INK CARTRIDGE, Epson C13T111490, Yellow, for printer Stylus Photo R270/ 290/390/RX590, High Cap","cart",1761.94,1938.13]
[null,null,"Common Computer Consumables and Supplies","INK CARTRIDGE, Epson C13T111590, Light Cyan, for printer Stylus Photo R270/ 290/390/RX590, High Cap","cart",1761.94,1938.13]
[null,null,"Common Computer Consumables and Supplies","INK CARTRIDGE, Epson C13T111690, Light Magenta, for printer Stylus Photo R270/ 290/390/RX590, High Cap","cart",1761.94,1938.13]
[null,null,"Common Computer Consumables and Supplies","INK CARTRIDGE, Epson C13T112190, Black,  for printer Stylus Photo R270/290/390, RX590, Std Cap","cart",1230.68,1353.75]
[null,null,"Common Computer Consumables and Supplies","INK CARTRIDGE, Epson C13T112290, Cyan,  for printer Stylus Photo R270/290/390, RX590, Std Cap","cart",1230.68,1353.75]
[null,null,"Common Computer Consumables and Supplies","INK CARTRIDGE, Epson C13T112390, Magenta,  for printer Stylus Photo R270/290/390, RX590, Std Cap","cart",1230.68,1353.75]
[null,null,"Common Computer Consumables and Supplies","INK CARTRIDGE, Epson C13T112490, Yellow,  for printer Stylus Photo R270/290/390, RX590, Std Cap","cart",1230.68,1353.75]
[null,null,"Common Computer Consumables and Supplies","INK CARTRIDGE, Epson C13T112590, Light Cyan,  for printer Stylus Photo R270/290/390, RX590, Std Cap","cart",1230.68,1353.75]
[null,null,"Common Computer Consumables and Supplies","INK CARTRIDGE, Epson C13T112690, Light Magenta, for printer Stylus Photo R270/290/390, RX590, Std Cap","cart",1230.68,1353.75]
[null,null,"Common Computer Consumables and Supplies","INK CARTRIDGE, Epson C13T141190, Black, for ME 32/320/620F - 141","cart",567.57000000000005,624.33000000000004]
[null,null,"Common Computer Consumables and Supplies","INK CARTRIDGE, Epson C13T141290, Cyan, for ME 32/320/620F - 141","cart",638.27,702.1]
[null,null,"Common Computer Consumables and Supplies","INK CARTRIDGE, Epson C13T141390, Magenta, for ME 32/320/620F - 141","cart",638.46,{"$f":"ROUND((F131*1.1),2)","v":702.31}]
[null,null,"Common Computer Consumables and Supplies","INK CARTRIDGE, Epson C13T141490, Yellow, for ME 32/320/620F - 141","cart",638.27,702.1]
[null,null,"Common Computer Consumables and Supplies","INK CARTRIDGE, Epson C13T143190, Black, for printer ME 960FWD/900WD - 143","cart",1079.72,1187.69]
[null,null,"Common Computer Consumables and Supplies","INK CARTRIDGE, Epson C13T143290, Cyan, for printer ME Office 960FWD/ 900WD - 143","cart",850.4,935.44]
[null,null,"Common Computer Consumables and Supplies","INK CARTRIDGE, Epson C13T143390, Magenta, for printer ME Office 960FWD/ 900WD - 143","cart",850.4,935.44]
[null,null,"Common Computer Consumables and Supplies","INK CARTRIDGE, Epson C13T143490, Yellow, for printer ME Office 960FWD/ 900WD - 143","cart",850.4,935.44]
[null,null,"Common Computer Consumables and Supplies","INK CARTRIDGE, Epson C13T664200 (T6642), Cyan, original, for Epson L100, L110, L200, L210, L300, L350 and L356","cart",468.2,515.02]
[null,null,"Common Computer Consumables and Supplies","INK CARTRIDGE, Epson C13TO38191, black, for printer Stylus C41SX/UX (Double Pack)","cart",1563.12,1719.43]
[null,null,"Common Computer Consumables and Supplies","INK CARTRIDGE, Epson C13TO39090, color, for printer Stylus C41SX/UX ","cart",1416.05,1557.66]
[null,null,"Common Computer Consumables and Supplies","INK CARTRIDGE, EPSON T6441, Black, for Epson L100, L110, L200, L210, L300, L350, L355","cart",468.2,515.02]
[null,null,"Common Computer Consumables and Supplies","INK CARTRIDGE, EPSON T664,Yellow, for Epson L100, L110, L200, L210, L300, L350, L358","cart",468.2,515.02]
[null,null,"Common Computer Consumables and Supplies","INK CARTRIDGE, EPSON T6643, Magenta for Epson L100, L110, L200, L210, L300, L350, L357","cart",468.2,515.02]
[null,null,"Common Computer Consumables and Supplies","INK CARTRIDGE, HP  C4937A (HP 18) , cyan,  for HP Officejet Pro K5300, K5400dn, K5400dtn, K8600, K8600dn, L7380, L7580, L7590","cart",1137.05,1250.76]
[null,null,"Common Computer Consumables and Supplies","INK CARTRIDGE, HP  C8771WA(HP 02), cyan , 4 ml, for HP Photosmart D6160, D7160, D7260, D7360, D7460, 8230, HP Photosmart C5180, C6180, C6280, C7180, C7820, C8180, 3110, 3310 All-in-One","cart",783.51,861.86]
[null,null,"Common Computer Consumables and Supplies","INK CARTRIDGE, HP  C9364WA (HP 98), black , 11 ml, HP Deskjet D4160, HP Photosmart D5160, 8030, HP Photosmart C4180, 2575 All-in-One","cart",1347.26,1481.99]
[null,null,"Common Computer Consumables and Supplies","INK CARTRIDGE, HP  C9393A(HP 88XL ), yellow 17 ml, for HP Officejet Pro K550, K550dtn, K5400dn, K5400dtn, K8600, 600dn, HP Officejet Pro L7580, L7590 All-in-One  ","cart",1823.09,2005.4]
[null,null,"Common Computer Consumables and Supplies","INK CARTRIDGE, HP  C9396A(HP 88XL), black 58.5 ml, for HP Officejet Pro K550, K550dtn, K5400dn, K5400dtn, K8600, 600dn, HP Officejet Pro L7580, L7590 All-in-One  ","cart",2694.51,2963.96]
[null,null,"Common Computer Consumables and Supplies","INK CARTRIDGE, HP 51645A (HP 45), black, for HP Deskjet, HP Officejet, HP Officejet Pro, HP Photosmart","cart",2407.86,2648.65]
[null,null,"Common Computer Consumables and Supplies","INK CARTRIDGE, HP C1823DA (HP 23), tricolor, for HP Deskjet 710c, 720c, 810c, 830c, 880c, 890c, 895cxi, 1120c, 1125c, HP Officejet Pro 1170c, 1175c, r45, r65, t45, t65 All-in-One, HP PSC 500 All-in-One","cart",2942.94,3237.23]
[null,null,"Common Computer Consumables and Supplies","INK CARTRIDGE, HP C4814AA (HP13), black, 28 ml, for HP Officejet Pro K850, HP Business Inkjet CP1700, 1000, 1100, 1200, 2000, 2200, 2230, 2250, 2280, 2300, 2500, 2600, 2800, 3000 printer series","cart",1838.38,2022.22]
[null,null,"Common Computer Consumables and Supplies","INK CARTRIDGE, HP C4815A (HP 13), cyan, for HP Officejet Pro K850, HP Business Inkjet CP1700, 1000, 1100, 1200, 2000, 2200, 2230, 2250, 2280, 2300, 2500, 2600, 2800, 3000 printer series","cart",1838.38,2022.22]
[null,null,"Common Computer Consumables and Supplies","INK CARTRIDGE, HP C4816A (HP 13), magenta, 14 ml, for HP Officejet Pro K850, HP Business Inkjet CP1700, 1000, 1100, 1200, 2000, 2200, 2230, 2250, 2280, 2300, 2500, 2600, 2800, 3000 printer series","cart",1838.38,2022.22]
[null,null,"Common Computer Consumables and Supplies","INK CARTRIDGE, HP C4817A (HP 13), yellow , 14 ml, HP Officejet Pro K850, HP Business Inkjet CP1700, 1000, 1100, 1200, 2000, 2200, 2230, 2250, 2280, 2300, 2500, 2600, 2800, 3000 printer series","cart",1838.38,2022.22]
[null,null,"Common Computer Consumables and Supplies","INK CARTRIDGE, HP C4836A (HP 11), cyan  28 ml, HP Officejet 9110, 9120, 9130 All-in-One, HP Business Inkjet 1100 printer series, 1200 printer series,  2230, 2280 printer series, 2300 printer series, 2600 printer series, HP Colour Printer cp1700 series","cart",2627.63,2890.39]
[null,null,"Common Computer Consumables and Supplies","INK CARTRIDGE, HP C4837A (HP 11), magenta, 28 ml, for HP Officejet 9110, 9120, 9130 All-in-One, HP Business Inkjet Printer Series: 1100, 1200,  2230, 2280, 2300, 2600, HP Colour Printer cp1700 series ","cart",2627.63,2890.39]
[null,null,"Common Computer Consumables and Supplies","INK CARTRIDGE, HP C4838A, (HP11), yellow, for HP: Business Inkjet, Color Inkjet:, Color LaserJet, Officejet, Officejet Pro","cart",2627.63,2890.39]
[null,null,"Common Computer Consumables and Supplies","INK CARTRIDGE, HP C483A (HP 11) , yellow  28 ml, for HP Officejet 9110, 9120, 9130 All-in-One, HP Business Inkjet Printer Series: 1100, 1200,  2230, 2280, 2300, 2600, HP Colour Printer cp1700 series","cart",2627.63,2890.39]
[null,null,"Common Computer Consumables and Supplies","INK CARTRIDGE, HP C4844A (HP 10), black, 69mL, for HP Officejet 9110, 9120, 9130 All-in-One, HP Business Inkjet Printer Series: 1100+, 1200+, 2000, 2230+, 2280+, 2300+, 2500, 2600+, HP Colour Printer cp1700 series","cart",2627.63,2890.39]
[null,null,"Common Computer Consumables and Supplies","INK CARTRIDGE, HP C4902AA (HP940), black, for HP Officejet Pro 8000, 8500","cart",2627.63,2890.39]
[null,null,"Common Computer Consumables and Supplies","INK CARTRIDGE, HP C4906AA (HP 940XL), black, HP Officejet Pro 8000, 8500","cart",2522.52,2774.77]
[null,null,"Common Computer Consumables and Supplies","INK CARTRIDGE, HP C4908AA (HP 940XL), magenta, for HP Officejet Pro 8000, 8500","cart",1823.09,2005.4]
[null,null,"Common Computer Consumables and Supplies","INK CARTRIDGE, HP C4909AA (HP 940XL ), yellow, for HP Officejet Pro 8000, 8500","cart",1823.09,2005.4]
[null,null,"Common Computer Consumables and Supplies","INK CARTRIDGE, HP C4936A (HP 18 ), black, for HP Officejet Pro K5300, K5400dn, K5400dtn, K8600, K8600dn, L7380, L7580, L7590","cart",1517.33,1669.06]
[null,null,"Common Computer Consumables and Supplies","INK CARTRIDGE, HP C4938A (HP 18) , magenta,  for HP Officejet Pro K5300, K5400dn, K5400dtn, K8600, K8600dn, L7380, L7580, L7590","cart",1137.05,1250.76]
[null,null,"Common Computer Consumables and Supplies","INK CARTRIDGE, HP C4939A (HP18) , yellow,  for HP Officejet Pro K5300, K5400dn, K5400dtn, K8600, K8600dn, L7380, L7580, L7590","cart",1137.05,1250.76]
[null,null,"Common Computer Consumables and Supplies","INK CARTRIDGE, HP C6578A/D (HP 78), tricolor, for HP Deskjet, HP Officejet, HP PSC, HP Photosmart","cart",2675.4,2942.94]
[null,null,"Common Computer Consumables and Supplies","INK CARTRIDGE, HP C6614D (HP 20), black, 28mL, for HP Deskjet 610c, 630c, 640c, 656c","cart",2522.52,2774.77]
[null,null,"Common Computer Consumables and Supplies","INK CARTRIDGE, HP C6615DA (HP 15), black, for HP Deskjet 810c, 840c, 845c, 920c, 948c, 3820, HP Officejet 5110, v40 All-in-One, HP PSC 500, 750, 950 All-in-One","cart",2274.09,2501.5]
[null,null,"Common Computer Consumables and Supplies","INK CARTRIDGE, HP C6625A (HP 17), tricolor, for HP Deskjet 840c, 845c","cart",2474.75,2722.23]
[null,null,"Common Computer Consumables and Supplies","INK CARTRIDGE, HP C6656AA (HP 56), black, for HP Deskjet 840c, 845c","cart",1605.24,1765.76]
[null,null,"Common Computer Consumables and Supplies","INK CARTRIDGE, HP C6657AA (HP 57), tri-color, for HP Deskjet 450 printer series, HP Officejet, HP PSC, HP PSC, Photosmart All-in-One, HP Photosmart","cart",2675.4,2942.94]
[null,null,"Common Computer Consumables and Supplies","INK CARTRIDGE, HP C6658A, colored for HP Photosmart","cart",1966.42,2163.06]
[null,null,"Common Computer Consumables and Supplies","INK CARTRIDGE, HP C8721A (HP 02), black , 10 ml, for HP Photosmart D6160, D7160, D7260, D7360, D7460, 8230, HP Photosmart C5180, C6180, C6280, C7180, C7820, C8180, 3110, 3310 All-in-One","cart",1461.92,1608.11]
[null,null,"Common Computer Consumables and Supplies","INK CARTRIDGE, HP C8727AA (HP 27), black, 10mL, for HP Deskjet 3320, 3325, 3420, 3535, 3550, 3650, 3744, 3745, 3845, HP PSC 1110, 1210, 1315 All-in-One","cart",1471.47,1618.62]
[null,null,"Common Computer Consumables and Supplies","INK CARTRIDGE, HP C8765WA (HP 94), black, 11 mL, for HP Deskjet 3320, 3325, 3420, 3535, 3550, 3650, 3744, 3745, 3845, HP Officejet 4110, 4255 All-in-One, HP PSC 1110, 1210, 1315 All-in-One","cart",1624.35,1786.79]
[null,null,"Common Computer Consumables and Supplies","INK CARTRIDGE, HP C8766WA (HP 95), tri-color, for HP Deskjet 460, 5740, 6540, 6840, HP Officejet 7410 All-in-One, HP PSC 2355 All-in-One, HP Photosmart 325, 375, 2610, 2710, 8150, 8450","cart",1949.22,2144.14]
[null,null,"Common Computer Consumables and Supplies","INK CARTRIDGE, HP C8767WA(HP 96), black , 21 ml, for HP Deskjet 5740, 6540, 6840, 9800, 9860, 9808, HP Photosmart 8030, 8150, 8450, 875,  HP Officejet K7100, 7210, 7410 All-in-One","cart",2426.9699999999998,2669.67]
[null,null,"Common Computer Consumables and Supplies","INK CARTRIDGE, HP C8772WA(HP 02), magenta, 3.5 ml, for HP Photosmart D6160, D7160, D7260, D7360, D7460, 8230, HP Photosmart C5180, C6180, C6280, C7180, C7820, C8180, 3110, 3310 All-in-One","cart",783.51,861.86]
[null,null,"Common Computer Consumables and Supplies","INK CARTRIDGE, HP C8773WA(HP 02), yellow, 6 ml, for HP Photosmart D6160, D7160, D7260, D7360, D7460, 8230, HP Photosmart C5180, C6180, C6280, C7180, C7820, C8180, 3110, 3310 All-in-One","cart",783.51,861.86]
[null,null,"Common Computer Consumables and Supplies","INK CARTRIDGE, HP C8774WA(HP 02), light cyan , 5.5 ml, for HP Photosmart D6160, D7160, D7260, D7360, D7460, 8230, HP Photosmart C5180, C6180, C6280, C7180, C7820, C8180, 3110, 3310 All-in-One","cart",783.51,861.86]
[null,null,"Common Computer Consumables and Supplies","INK CARTRIDGE, HP C8775WA(HP 02), light magenta , 5.5 ml, for HP Photosmart D6160, D7160, D7260, D7360, D7460, 8230, HP Photosmart C5180, C6180, C6280, C7180, C7820, C8180, 3110, 3310 All-in-One","cart",783.51,861.86]
[null,null,"Common Computer Consumables and Supplies","INK CARTRIDGE, HP C9351AA (HP 21), black, for HP Deskjet 3920, 3940, HP PSC 1410, 1402","cart",1152.33,1267.56]
[null,null,"Common Computer Consumables and Supplies","INK CARTRIDGE, HP C9352AA (HP 22), tri-color, for HP Deskjet 3920, 3940, HP Officejet 5610, HP PSC 1410, 1402","cart",1328.15,1460.97]
[null,null,"Common Computer Consumables and Supplies","INK CARTRIDGE, HP C9361WA (HP 93), tri-color, for HP Deskjet D4160, 5440, HP Officejet 6310 All-in-One, HP PSC 1510 All-in-One, HP Photosmart 7830, C3180, C4180 All-in-One","cart",1557.47,1713.22]
[null,null,"Common Computer Consumables and Supplies","INK CARTRIDGE, HP C9362WA (HP 92), black, for HP Deskjet 5440, HP Officejet 6310 All-in-One, HP PSC 1510 All-in-One, HP Photosmart 7830, C3180 All-in-One","cart",1102.6500000000001,1212.92]
[null,null,"Common Computer Consumables and Supplies","INK CARTRIDGE, HP C9363WA (HP 97), tricolor , 14 ml, for HP Deskjet 5740, 6540, 6840, 9800, 9860, 9808, HP Photosmart 2575, 2610, 2710 All-in-On,  HP PSC 1610, 2355 All-in-One","cart",2694.51,2963.96]
[null,null,"Common Computer Consumables and Supplies","INK CARTRIDGE, HP C9391A(HP  88XL), cyan , 17 ml, for HP Officejet Pro K550, K550dtn, K5400dn, K5400dtn, K8600, 600dn, HP Officejet Pro L7580, L7590 All-in-One  ","cart",1823.09,2005.4]
[null,null,"Common Computer Consumables and Supplies","INK CARTRIDGE, HP C9392A( HP 88XL), magenta 17 ml, for HP Officejet Pro K550, K550dtn, K5400dn, K5400dtn, K8600, 600dn, HP Officejet Pro L7580, L7590 All-in-One  ","cart",1823.09,2005.4]
[null,null,"Common Computer Consumables and Supplies","INK CARTRIDGE, HP CB314A (HP 900), black, for HP Deskjet 900, 910, 915","cart",479.66,527.63]
[null,null,"Common Computer Consumables and Supplies","INK CARTRIDGE, HP CB315A (HP 900), tri-color, for HP Deskjet 900, 910, 915","cart",649.74,714.71]
[null,null,"Common Computer Consumables and Supplies","INK CARTRIDGE, HP CB316WA( HP 564), black, for HP Photosmart D5400, C5380, C6380, Photosmart Pro B8550","cart",875.24,962.76]
[null,null,"Common Computer Consumables and Supplies","INK CARTRIDGE, HP CB317WA(HP 564), photo, for HP Photosmart D5400, C5380, C6380, Photosmart Pro B8550","cart",731.91,805.1]
[null,null,"Common Computer Consumables and Supplies","INK CARTRIDGE, HP CB318WA(HP 564), cyan, for HP Photosmart D5400, C5380, C6380, Photosmart Pro B8550","cart",731.91,805.1]
[null,null,"Common Computer Consumables and Supplies","INK CARTRIDGE, HP CB319WA(HP 564), magenta, for HP Photosmart D5400, C5380, C6380, Photosmart Pro B8550","cart",731.91,805.1]
[null,null,"Common Computer Consumables and Supplies","INK CARTRIDGE, HP CB320WA ( HP 564), yellow, for HP Photosmart D5400, C5380, C6380, Photosmart Pro B8550","cart",731.91,{"$f":"ROUND((F195*1.1),2)","v":805.1}]
[null,null,"Common Computer Consumables and Supplies","INK CARTRIDGE, HP CB323WA(HP 564XL), cyan, for HP Photosmart D5400, C5380, C6380, Photosmart Pro B8550","cart",1454.27,1599.7]
[null,null,"Common Computer Consumables and Supplies","INK CARTRIDGE, HP CB324WA(564XL), magenta, for HP Photosmart D5400, C5380, C6380, Photosmart Pro B8550","cart",1454.27,1599.7]
[null,null,"Common Computer Consumables and Supplies","INK CARTRIDGE, HP CB325WA(564XL), yellow, for HP Photosmart D5400, C5380, C6380, Photosmart Pro B8550","cart",1454.27,1599.7]
[null,null,"Common Computer Consumables and Supplies","INK CARTRIDGE, HP CB335WA(HP74 ), black , 4.5 ml, for HP Deskjet D4260, D4360, HP Photosmart C4280, C4380, C4480, C5280 All-in-One, HP Officejet J5780, J6480 All-in-One","cart",1176.44,1294.08]
[null,null,"Common Computer Consumables and Supplies","INK CARTRIDGE, HP CB336WA (HP74XL), black , 18 ml,  for HP Deskjet D4260, D4360, HP Photosmart C4280, C4380, C4480, C5280 All-in-One, HP Officejet J5780, J6480 All-in-One","cart",2436.5300000000002,2680.18]
[null,null,"Common Computer Consumables and Supplies","INK CARTRIDGE, HP CB337WA (HP75),tricolor, 3.5 ml,  for HP Deskjet D4260, D4360, HP Photosmart C4280, C4380, C4480, C5280 All-in-One, HP Officejet J5780, J6480 All-in-One","cart",1352.99,1488.29]
[null,null,"Common Computer Consumables and Supplies","INK CARTRIDGE, HP CB338WA (HP 75XL), tricolor, 12 ml,  for HP Deskjet D4260, D4360, HP Photosmart C4280, C4380, C4480, C5280 All-in-One, HP Officejet J5780, J6480 All-in-One","cart",2694.51,2963.96]
[null,null,"Common Computer Consumables and Supplies","INK CARTRIDGE, HP CC640WA (HP 60), black, 4 ml, for HP Deskjet D2560, F4230, F4250, F4280 All-in-One","cart",1102.6500000000001,1212.92]
[null,null,"Common Computer Consumables and Supplies","INK CARTRIDGE, HP CC641WA (HP60XL), black  12 ml, for HP Deskjet D2560, F4230, F4250, F4280 All-in-One","cart",2321.87,2554.06]
[null,null,"Common Computer Consumables and Supplies","INK CARTRIDGE, HP CC643WA (HP 60), tricolor,13 ml, for HP Deskjet D2560, F4230, F4250, F4280 All-in-One","cart",1324.32,1456.75]
[null,null,"Common Computer Consumables and Supplies","INK CARTRIDGE, HP CC644WA (HP60XL), tricolor , 11 ml, for HP Deskjet D2560, F4230, F4250, F4280 All-in-One","cart",2713.62,2984.98]
[null,null,"Common Computer Consumables and Supplies","INK CARTRIDGE, HP CC653AA (HP 901), black officejet , 4 ml","cart",1104.56,1215.02]
[null,null,"Common Computer Consumables and Supplies","INK CARTRIDGE, HP CC656AA(HP 901), tricolor officejet, 9 ml","cart",1693.15,1862.47]
[null,null,"Common Computer Consumables and Supplies","INK CARTRIDGE, HP CC660AA(HP702), black, 20 ml, for HP Officejet J3508, J3608, J5508 All-in-One","cart",1844.12,2028.53]
[null,null,"Common Computer Consumables and Supplies","INK CARTRIDGE, HP CD887AA (HP703), black deskjet, for HP Deskjet D730, F735 All-in-One","cart",611.52,672.67]
[null,null,"Common Computer Consumables and Supplies","INK CARTRIDGE, HP CD888AA(HP 703), tricolor deskjet, for HP Deskjet D730, F735 All-in-One","cart",603.88,664.27]
[null,null,"Common Computer Consumables and Supplies","INK CARTRIDGE, HP CD971AA (HP 920), black, for HP Officejet 6000, 7000","cart",1400.76,1540.84]
[null,null,"Common Computer Consumables and Supplies","INK CARTRIDGE, HP CD972AA (HP920XL), cyan, for HP Officejet 6000, 7000","cart",1051.05,1156.1600000000001]
[null,null,"Common Computer Consumables and Supplies","INK CARTRIDGE, HP CD973AA (HP920XL), magenta, for HP Officejet 6000, 7000","cart",1051.05,1156.1600000000001]
[null,null,"Common Computer Consumables and Supplies","INK CARTRIDGE, HP CD974AA (HP 920XL), yellow, for HP Officejet 6000, 7000","cart",1051.05,1156.1600000000001]
[null,null,"Common Computer Consumables and Supplies","INK CARTRIDGE, HP CD975AA (HP920XL), black, for HP Officejet 6000, 7000","cart",2102.1,2312.31]
[null,null,"Common Computer Consumables and Supplies","INK CARTRIDGE, HP CH561WA (HP 61), black","cart",1117.94,1229.73]
[null,null,"Common Computer Consumables and Supplies","INK CARTRIDGE, HP CH562WA (HP 61), color ink","cart",1383.56,1521.92]
[null,null,"Common Computer Consumables and Supplies","INK CARTRIDGE, HP CN 639WA, black, for HP Deskjet D2650","cart",1494.4,1643.84]
[null,null,"Common Computer Consumables and Supplies","INK CARTRIDGE, HP CN 640WA, color, for HP Deskjet D2650","cart",1947.31,2142.04]
[null,null,"Common Computer Consumables and Supplies","INK CARTRIDGE, HP CN045AA (950XL), black","cart",2834.01,3117.41]
[null,null,"Common Computer Consumables and Supplies","INK CARTRIDGE, HP CN046AA (951XL), Cyan","cart",2102.1,2312.31]
[null,null,"Common Computer Consumables and Supplies","INK CARTRIDGE, HP CN047AA (951XL), Magenta","cart",2102.1,2312.31]
[null,null,"Common Computer Consumables and Supplies","INK CARTRIDGE, HP CN048AA (950XL), Yellow","cart",2102.1,2312.31]
[null,null,"Common Computer Consumables and Supplies","INK CARTRIDGE, HP CN692AA(HP 704), black, for HP Ink Advantage 2010 K010a1, Ink Advantage All-in-One 20601 K110a","cart",611.52,672.67]
[null,null,"Common Computer Consumables and Supplies","INK CARTRIDGE, HP CN693AA  (HP704), tricolor, for HP Ink Advantage 2010 K010a1, Ink Advantage All-in-One 20601 K110a","cart",611.52,672.67]
[null,null,"Common Computer Consumables and Supplies","INK CARTRIDGE, HP CZ107AA, (HP 678), black","cart",568,624.79999999999995]
[null,null,"Common Computer Consumables and Supplies","INK CARTRIDGE, HP CZ108AA, (HP 678), tricolor","cart",568,624.79999999999995]
[null,null,"Common Computer Consumables and Supplies","INK CARTRIDGE, HP CZ121A (HP 685A), black","cart",668.85,735.74]
[null,null,"Common Computer Consumables and Supplies","INK CARTRIDGE, HP CZ121A (HP 685A), Cyan","cart",653.55999999999995,718.92]
[null,null,"Common Computer Consumables and Supplies","INK CARTRIDGE, HP CZ121A (HP 685A), Magenta","cart",439.53,483.48]
[null,null,"Common Computer Consumables and Supplies","INK CARTRIDGE, HP CZ121A (HP 685A), Yellow","cart",439.53,483.48]
[null,null,"Common Computer Consumables and Supplies","INK CARTRIDGE, HP Q8893AA (C8728AA) (HP 28), tri-color, for HP Deskjet 3320, 3325, 3420, 3535, 3550, 3650, 3744, 3745, 3845, HP Officejet 4110, 4255 All-in-One, HP PSC 1110, 1210, 1315 All-in-One","cart",1681.68,1849.85]
[null,null,"Common Computer Consumables and Supplies","INK CARTRIDGE, HPC4907AA (HP 940XL), cyan, for HP Officejet Pro 8000, 8500","cart",1823.09,2005.4]
[null,null,"Common Computer Consumables and Supplies","INK CARTRIDGE, Lexmark # 17, black, PN 10N0217","cart",1844.12,2028.53]
[null,null,"Common Computer Consumables and Supplies","INK CARTRIDGE, Lexmark # 27, colored, PN 10N0227","cart",2197.65,2417.42]
[null,null,"Common Computer Consumables and Supplies","INK CARTRIDGE, Lexmark Black #14, PN 18C2090A","cart",1844.12,2028.53]
[null,null,"Common Computer Consumables and Supplies","INK CARTRIDGE, Lexmark Black #34, PN 18C0034A","cart",3114.93,3426.42]
[null,null,"Common Computer Consumables and Supplies","INK CARTRIDGE, Lexmark Color #15, PN 18C2110A","cart",2289.38,2518.3200000000002]
[null,null,"Common Computer Consumables and Supplies","INK CARTRIDGE, Lexmark Color #35, PN 18C0035A","cart",3764.67,4141.1400000000003]
[null,null,"Common Computer Consumables and Supplies","INK CARTRIDGE, Lexmark Photo #31, PN 18C0031A","cart",3888.89,4277.78]
[null,null,"Common Computer Consumables and Supplies","INK CARTRIDGE, EPSON PART NO. C13TO38191, BLACK, (double pack), for Stylus Color C41SX & C41UX","cart",1593.77,1753.15]
[null,null,"Common Computer Consumables and Supplies","INK REFILL, Brother MFC-J220, Black, 100ml","bottle",500,550]
[null,null,"Common Computer Consumables and Supplies","INK REFILL, Brother MFC-J220, Cyan, 100ml","bottle",500,550]
[null,null,"Common Computer Consumables and Supplies","INK REFILL, Brother MFC-J220, Magenta 100ml","bottle",500,550]
[null,null,"Common Computer Consumables and Supplies","INK REFILL, Brother MFC-J220, Yellow, 100ml","bottle",500,550]
[null,null,"Common Computer Consumables and Supplies","INK REFILL, EPSON T6641, Black, for Epson L100, L110, L200, L210, L300, L350, L355, L120","bottle",410,451]
[null,null,"Common Computer Consumables and Supplies","INK REFILL, EPSON T6642, Cyan, for Epson L100, L110, L200, L210, L300, L350, L355, L120","bottle",410,451]
[null,null,"Common Computer Consumables and Supplies","INK REFILL, EPSON T6643, Magenta, for Epson L100, L110, L200, L210, L300, L350, L355, L120","bottle",410,451]
[null,null,"Common Computer Consumables and Supplies","INK REFILL, EPSON T6644, Yellow, for Epson L100, L110, L200, L210, L300, L350, L355, L120","bottle",410,451]
[null,null,"Common Computer Consumables and Supplies","INK, Colored for Brother DCP J100","cart",4205,4625.5]
[null,null,"Common Computer Consumables and Supplies","MOUSE, optical, USB connection type","piece",302.02,332.22]
[null,null,"Common Computer Consumables and Supplies","PHOTOCONDUCTOR KIT, HP CE3114A, color, HP Laserjet M175nw, Laserjet Pro CP1025nw/M275","cart",6956.04,7651.64]
[null,null,"Common Computer Consumables and Supplies","PHOTOCONDUCTOR KIT, Lexmark PN 12A8302","cart",7720.44,8492.48]
[null,null,"Common Computer Consumables and Supplies","PHOTOCONDUCTOR KIT, Lexmark PN E250X22G","cart",4299.75,4729.7299999999996]
[null,null,"Common Computer Consumables and Supplies","PHOTOCONDUCTOR KIT, Lexmark PN E260X22G","cart",4299.75,4729.7299999999996]
[null,null,"Common Computer Consumables and Supplies","PHOTOCONDUCTOR UNIT, Epson C13S051099, for printer EPL 6200/6200L","cart",6354.08,6989.49]
[null,null,"Common Computer Consumables and Supplies","PRINTHEAD, HP 11 , yellow C4813A, 8 ml, HP Officejet 9110, 9120, 9130 All-in-One, HP Business Inkjet 1100+ printer series, 1200+ printer series, 2230, 2280 printer series 2300 printer series, 2600 printer series, HP Colour Printer cp1700 series","cart",2694.51,2963.96]
[null,null,"Common Computer Consumables and Supplies","PRINTHEAD, HP 11, black, C4810A , 8 ml, for HP Officejet 9110, 9120, 9130 All-in-One, HP Business Inkjet 1100+ printer series, 1200+ printer series, 2230, 2280 printer series 2300 printer series, 2600 printer series, HP Colour Printer cp1700 series","cart",2694.51,{"$f":"ROUND((F259*1.1),2)","v":2963.96}]
[null,null,"Common Computer Consumables and Supplies","PRINTHEAD, HP 11, cyan, C4811A, 8 ml, HP Officejet 9110, 9120, 9130 All-in-One, HP Business Inkjet 1100+ printer series, 1200+ printer series, 2230, 2280 printer series 2300 printer series, 2600 printer series , HP Colour Printer cp1700 series","cart",2971.61,3268.77]
[null,null,"Common Computer Consumables and Supplies","PRINTHEAD, HP 11, magenta C4812A, 8 ml, HP Officejet 9110, 9120, 9130 All-in-One, HP Business Inkjet 1100+ printer series, 1200+ printer series, 2230, 2280 printer series 2300 printer series, 2600 printer series, HP Colour Printer cp1700 series","cart",2694.51,2963.96]
[null,null,"Common Computer Consumables and Supplies","RAM, 2 GB, DDR3","piece",2500,2750]
[null,null,"Common Computer Consumables and Supplies","REFILLABLE CARTRIDGE, (CISS - Bro LCi535/539) for Brother MFC-J200 Printer","set",2570,2827]
[null,null,"Common Computer Consumables and Supplies","RIBBON CARTRIDGE, Epson C13SO15505 for printer DFX-9000 ","cart",2115.48,2327.0300000000002]
[null,null,"Common Computer Consumables and Supplies","RIBBON CARTRIDGE, Epson C13SO15506(7753) Fabric, for printer LQ 300/300+II & 580","cart",228,250.8]
[null,null,"Common Computer Consumables and Supplies","RIBBON CARTRIDGE, Epson C13SO15508(S015016), black, for printer LQ 670/680/680Pro","cart",645.91999999999996,710.51]
[null,null,"Common Computer Consumables and Supplies","RIBBON CARTRIDGE, Epson C13SO15568, Color, for printer LX-300","cart",2293.1999999999998,2522.52]
[null,null,"Common Computer Consumables and Supplies","RIBBON CARTRIDGE, Epson C13SO15577(#8766), for printer DFX-5000+/ 8000/8500 Black Ribbon (S015055)","cart",1761.94,1938.13]
[null,null,"Common Computer Consumables and Supplies","RIBBON CARTRIDGE, Epson C13SO15587, black for printer DLQ-3000/3000+/3500","cart",1930.11,2123.12]
[null,null,"Common Computer Consumables and Supplies","RIBBON CARTRIDGE, Epson C13SO15589(S015337), for printer LQ-590","cart",699.43,769.37]
[null,null,"Common Computer Consumables and Supplies","RIBBON CARTRIDGE, Epson Part No. C13SO15632, black for printer LX310","cart",139.5,153.44999999999999]
[null,null,"Common Computer Consumables and Supplies","RIBBON CARTRIDGE, for Fujitsu DL3850","cart",821.73,903.9]
[null,null,"Common Computer Consumables and Supplies","RIBBON CARTRIDGE, Lexmark 11A3550 for Printer Models 23xx series","cart",2140.3200000000002,2354.35]
[null,null,"Common Computer Consumables and Supplies","RIBBON, Epson RN 7754","cart",238.88,262.77]
[null,null,"Common Computer Consumables and Supplies","RIBBON, Epson RN 8750","cart",141.03,155.13]
[null,null,"Common Computer Consumables and Supplies","RIBBON, Epson RN 8755","cart",155.75,171.33]
[null,null,"Common Computer Consumables and Supplies","RIBBON, Epson RN SO 15083/SO 15086","cart",1331.97,1465.17]
[null,null,"Common Computer Consumables and Supplies","RIBBON, Epson RN SO 15327","cart",615.34,676.87]
[null,null,"Common Computer Consumables and Supplies","RIBBON, Refill","piece",42,46.2]
[null,null,"Common Computer Consumables and Supplies","TONER CARTRIDGE HP C9720A, original, black, for HP Laserjet 4600/4650 printer series","cart",12058.41,13264.25]
[null,null,"Common Computer Consumables and Supplies","TONER CARTRIDGE HP C9721A, original, Cyan for HP Laserjet 4600/4650 printer series","cart",16319.94,17951.93]
[null,null,"Common Computer Consumables and Supplies","TONER CARTRIDGE HP C9722A, original, Yellow for HP Laserjet 4600/4650 printer series","cart",16319.94,17951.93]
[null,null,"Common Computer Consumables and Supplies","TONER CARTRIDGE HP C9723A, original, Magenta for HP Laserjet 4600/4650 printer series","cart",16319.94,17951.93]
[null,null,"Common Computer Consumables and Supplies","TONER CARTRIDGE, Brother Part No. TN-150BK, black","cart",5952.77,6548.05]
[null,null,"Common Computer Consumables and Supplies","TONER CARTRIDGE, Brother Part No. TN-150C, Cyan","cart",6812.72,7493.99]
[null,null,"Common Computer Consumables and Supplies","TONER CARTRIDGE, Brother Part No. TN-150M, Magenta","cart",6812.72,7493.99]
[null,null,"Common Computer Consumables and Supplies","TONER CARTRIDGE, Brother Part No. TN-150Y, Yellow","cart",6812.72,7493.99]
[null,null,"Common Computer Consumables and Supplies","TONER CARTRIDGE, Brother Part No. TN3030","cart",6497.4,7147.14]
[null,null,"Common Computer Consumables and Supplies","TONER CARTRIDGE, Brother Part No. TN3145, Black","cart",5408.13,5948.94]
[null,null,"Common Computer Consumables and Supplies","TONER CARTRIDGE, Brother Part No. TN3290, Black","cart",8654.92,9520.41]
[null,null,"Common Computer Consumables and Supplies","TONER CARTRIDGE, Brother Part No. TN3350, Black","cart",9134.58,10048.040000000001]
[null,null,"Common Computer Consumables and Supplies","TONER CARTRIDGE, Brother Part No. TN4100, Black","cart",8878.51,9766.36]
[null,null,"Common Computer Consumables and Supplies","TONER CARTRIDGE, Brother TN-155BK, black","cart",8408.4,9249.24]
[null,null,"Common Computer Consumables and Supplies","TONER CARTRIDGE, Brother TN-155C, cyan","cart",11274.9,12402.39]
[null,null,"Common Computer Consumables and Supplies","TONER CARTRIDGE, Brother TN-155M, magenta","cart",11274.9,12402.39]
[null,null,"Common Computer Consumables and Supplies","TONER CARTRIDGE, Brother TN-155Y, yellow","cart",11274.9,12402.39]
[null,null,"Common Computer Consumables and Supplies","TONER CARTRIDGE, Brother TN-2025","cart",5226.59,5749.25]
[null,null,"Common Computer Consumables and Supplies","TONER CARTRIDGE, Brother TN-2130","cart",3344.25,3678.68]
[null,null,"Common Computer Consumables and Supplies","TONER CARTRIDGE, Brother TN-2150","cart",5255.25,5780.78]
[null,null,"Common Computer Consumables and Supplies","TONER CARTRIDGE, Brother TN3060","cart",9249.24,10174.16]
[null,null,"Common Computer Consumables and Supplies","TONER CARTRIDGE, Developer, Epson C13S050087, for printer EPL-5900/5900L","cart",9732.7199999999993,10705.99]
[null,null,"Common Computer Consumables and Supplies","TONER CARTRIDGE, Developer, Epson C13S050166, 6K, for printer EPL-6200","cart",10128.59,11141.45]
[null,null,"Common Computer Consumables and Supplies","TONER CARTRIDGE, Developer, Epson C13S050167, 3K, for printer EPL-6200/6200L","cart",6010.1,6611.11]
[null,null,"Common Computer Consumables and Supplies","TONER CARTRIDGE, Developer, Epson C13S050520, 1.8K, for printer AL-M1200","cart",6636.9,7300.59]
[null,null,"Common Computer Consumables and Supplies","TONER CARTRIDGE, Developer, Epson C13S050521, 3.2K, for printer AL-M1200","cart",9812.99,10794.29]
[null,null,"Common Computer Consumables and Supplies","TONER CARTRIDGE, Developer, Epson C13SO50005, for printer EPL-5500","cart",5718.34,6290.17]
[null,null,"Common Computer Consumables and Supplies","TONER CARTRIDGE, Developer, Epson C13SO50010, for printer EPL-5700L/5800","cart",9547.36,10502.1]
[null,null,"Common Computer Consumables and Supplies","TONER CARTRIDGE, for Kyocera Mita KM-1505/1510/1810","cart",7063.06,7769.37]
[null,null,"Common Computer Consumables and Supplies","TONER CARTRIDGE, Fuji Xerox 106R02625, for Phaser 4600 DN (4K pages)","cart",21869.48,24056.43]
[null,null,"Common Computer Consumables and Supplies","TONER CARTRIDGE, Fuji Xerox CT201160, for DP-C2255 Heavy Duty A3 size, black (15k pages)","cart",16461.349999999999,18107.490000000002]
[null,null,"Common Computer Consumables and Supplies","TONER CARTRIDGE, Fuji Xerox CT350567, for DP C3290 FS Multifunction Device, Black","cart",14007.63,15408.39]
[null,null,"Common Computer Consumables and Supplies","TONER CARTRIDGE, Fuji Xerox CT350670, for DP-3300DX Full Color Laser Printer, black (6k pages, standard yield)","cart",9046.67,9951.34]
[null,null,"Common Computer Consumables and Supplies","TONER CARTRIDGE, Fuji Xerox CWAA0762, for Phaser 3435D (4K pages, standard yield)","cart",10443.620000000001,11487.98]
[null,null,"Common Computer Consumables and Supplies","TONER CARTRIDGE, HP C4092A, black, for HP Laserjet 1100 printer series, 3200 All-in-One","cart",5398.58,5938.44]
[null,null,"Common Computer Consumables and Supplies","TONER CARTRIDGE, HP C4096A, balck, for HP Laserjet 2100, 2200 printer series","cart",9835.92,10819.51]
[null,null,"Common Computer Consumables and Supplies","TONER CARTRIDGE, HP C4127X, high cap, black, for HP Laserjet 2100, 2200 printer series","cart",13734.36,15107.8]
[null,null,"Common Computer Consumables and Supplies","TONER CARTRIDGE, HP C4129X, black, HP Laserjet 5000, 5100 printer series","cart",17678.66,19446.53]
[null,null,"Common Computer Consumables and Supplies","TONER CARTRIDGE, HP C7115A, black, for HP Laserjet 1000, 1200 printer series, 3300 mfp printer series, 3380 All-in-One","cart",6034.94,6638.43]
[null,null,"Common Computer Consumables and Supplies","TONER CARTRIDGE, HP C8543XC, high cap, black, for HP Laserjet 9000, 9040, 9050, HP Laserjet M9040, M9050 MFP series","cart",21787.31,23966.04]
[null,null,"Common Computer Consumables and Supplies","TONER CARTRIDGE, HP CB380A, black, for HP Color LaserJet CP6015 printer series  ","cart",16070.26,17677.29]
[null,null,"Common Computer Consumables and Supplies","TONER CARTRIDGE, HP CB381A, cyan, for HP Color LaserJet CP6015 printer series  ","cart",25148.76,27663.64]
[null,null,"Common Computer Consumables and Supplies","TONER CARTRIDGE, HP CB382A, yellow, for HP Color LaserJet CP6015 printer series  ","cart",25148.76,27663.64]
[null,null,"Common Computer Consumables and Supplies","TONER CARTRIDGE, HP CB383A, magenta, for HP Color LaserJet CP6015 printer series  ","cart",25148.76,{"$f":"ROUND((F323*1.1),2)","v":27663.64}]
[null,null,"Common Computer Consumables and Supplies","TONER CARTRIDGE, HP CB390A, black, for HP Color LaserJet CM6030/CM6040 MFP ","cart",25148.76,27663.64]
[null,null,"Common Computer Consumables and Supplies","TONER CARTRIDGE, HP CB435A, black, for HP Laserjet P1005, P1006 printer series","cart",4997.2700000000004,5497]
[null,null,"Common Computer Consumables and Supplies","TONER CARTRIDGE, HP CB436A, black, for HP Laserjet P1505 printer series","cart",5478.84,6026.72]
[null,null,"Common Computer Consumables and Supplies","TONER CARTRIDGE, HP CB540A, black, for HP Color LaserJet CP1215, CP1510 printer series, CM1312 MFP  ","cart",5408.13,5948.94]
[null,null,"Common Computer Consumables and Supplies","TONER CARTRIDGE, HP CB541A, cyan, for HP Color LaserJet CP1215, CP1510 printer series, CM1312 MFP  ","cart",4968.6000000000004,5465.46]
[null,null,"Common Computer Consumables and Supplies","TONER CARTRIDGE, HP CB542A, yellow, for HP Color LaserJet CP1215, CP1510 printer series, CM1312 MFP  ","cart",4968.6000000000004,5465.46]
[null,null,"Common Computer Consumables and Supplies","TONER CARTRIDGE, HP CB543A, magenta, for HP Color LaserJet CP1215, CP1510 printer series, CM1312 MFP  ","cart",4968.6000000000004,5465.46]
[null,null,"Common Computer Consumables and Supplies","TONER CARTRIDGE, HP CC364A, black, for HP LaserJet P4014, P4015, P4515 printer series ","cart",11848.2,13033.02]
[null,null,"Common Computer Consumables and Supplies","TONER CARTRIDGE, HP CC364XC, high cap, black, for HP LaserJet P4015, P4515 printer series ","cart",21728.07,23900.880000000001]
[null,null,"Common Computer Consumables and Supplies","TONER CARTRIDGE, HP CC530A, black, for HP Color LaserJet CP2025 printer series  ","cart",9488.1200000000008,10436.93]
[null,null,"Common Computer Consumables and Supplies","TONER CARTRIDGE, HP CC531A, cyan, for HP Color LaserJet CP2025 printer series  ","cart",8899.5300000000007,9789.48]
[null,null,"Common Computer Consumables and Supplies","TONER CARTRIDGE, HP CC532A, yellow, for HP Color LaserJet CP2025 printer series  ","cart",8899.5300000000007,9789.48]
[null,null,"Common Computer Consumables and Supplies","TONER CARTRIDGE, HP CC533A, magenta, for HP Color LaserJet CP2025 printer series  ","cart",8899.5300000000007,9789.48]
[null,null,"Common Computer Consumables and Supplies","TONER CARTRIDGE, HP CE250A, black, for HP Color LaserJet CP3520 printer series  ","cart",9843.56,10827.92]
[null,null,"Common Computer Consumables and Supplies","TONER CARTRIDGE, HP CE251A, cyan, for HP Color LaserJet CP3520 printer series  ","cart",19389.009999999998,21327.91]
[null,null,"Common Computer Consumables and Supplies","TONER CARTRIDGE, HP CE252A, yellow, for HP Color LaserJet CP3520 printer series  ","cart",19389.009999999998,21327.91]
[null,null,"Common Computer Consumables and Supplies","TONER CARTRIDGE, HP CE253A, magenta, for HP Color LaserJet CP3520 printer series   ","cart",19389.009999999998,21327.91]
[null,null,"Common Computer Consumables and Supplies","TONER CARTRIDGE, HP CE255A, black, for HP LaserJet P3010  printer series","cart",11678.12,12845.93]
[null,null,"Common Computer Consumables and Supplies","TONER CARTRIDGE, HP CE255X, black, for HP LaserJet P3010  printer series","cart",16505.310000000001,18155.84]
[null,null,"Common Computer Consumables and Supplies","TONER CARTRIDGE, HP CE260A, black, for HP Color LaserJet Enterprise CP4020 Printer Series ","cart",12153.96,13369.36]
[null,null,"Common Computer Consumables and Supplies","TONER CARTRIDGE, HP CE261A, cyan, for HP Color LaserJet Enterprise CP4020 Printer Series ","cart",20956.03,23051.63]
[null,null,"Common Computer Consumables and Supplies","TONER CARTRIDGE, HP CE262A, yellow, for HP Color LaserJet Enterprise CP4020 Printer Series ","cart",20956.03,23051.63]
[null,null,"Common Computer Consumables and Supplies","TONER CARTRIDGE, HP CE263A, magenta, for HP Color LaserJet Enterprise CP4020 Printer Series ","cart",20956.03,23051.63]
[null,null,"Common Computer Consumables and Supplies","TONER CARTRIDGE, HP CE270A, black, for HP Color LaserJet Enterprise CP5520 Printer Series","cart",18578.740000000002,20436.61]
[null,null,"Common Computer Consumables and Supplies","TONER CARTRIDGE, HP CE271A, cyan, for HP Color LaserJet Enterprise CP5520 Printer Series","cart",30296.99,33326.69]
[null,null,"Common Computer Consumables and Supplies","TONER CARTRIDGE, HP CE272A, yellow, for HP Color LaserJet Enterprise CP5520 Printer Series","cart",30296.99,33326.69]
[null,null,"Common Computer Consumables and Supplies","TONER CARTRIDGE, HP CE273A, magenta, for HP Color LaserJet Enterprise CP5520 Printer Series","cart",30296.99,33326.69]
[null,null,"Common Computer Consumables and Supplies","TONER CARTRIDGE, HP CE278A, black, for HP LaserJet P1566, P1606dn, M1536dnf printer ","cart",5641.27,6205.4]
[null,null,"Common Computer Consumables and Supplies","TONER CARTRIDGE, HP CE285A, black, for HP LaserJet P1102, P1102w,  printer ","cart",4974.33,5471.76]
[null,null,"Common Computer Consumables and Supplies","TONER CARTRIDGE, HP CE310A, black, for HP Color LaserJet Pro CP1020 Printer Series","cart",4139.2299999999996,4553.1499999999996]
[null,null,"Common Computer Consumables and Supplies","TONER CARTRIDGE, HP CE311A, cyan, for HP Color LaserJet Pro CP1020 Printer Series","cart",4509.96,4960.96]
[null,null,"Common Computer Consumables and Supplies","TONER CARTRIDGE, HP CE312A, yellow, for HP Color LaserJet Pro CP1020 Printer Series","cart",4509.96,4960.96]
[null,null,"Common Computer Consumables and Supplies","TONER CARTRIDGE, HP CE313A, magenta, for HP Color LaserJet Pro CP1020 Printer Series","cart",4509.96,4960.96]
[null,null,"Common Computer Consumables and Supplies","TONER CARTRIDGE, HP CE320A, black, for HP Color LaserJet Pro CP1520, CM1415 Color MFP Printer Series","cart",5316.4,5848.04]
[null,null,"Common Computer Consumables and Supplies","TONER CARTRIDGE, HP CE321A, cyan, for HP Color LaserJet Pro CP1520, CM1415 Color MFP Printer Series","cart",5140.59,5654.65]
[null,null,"Common Computer Consumables and Supplies","TONER CARTRIDGE, HP CE322A, yellow, for HP Color LaserJet Pro CP1520, CM1415 Color MFP Printer Series","cart",5046.95,5551.65]
[null,null,"Common Computer Consumables and Supplies","TONER CARTRIDGE, HP CE323A, magenta, for HP Color LaserJet Pro CP1520, CM1415 Color MFP Printer Series","cart",5140.59,5654.65]
[null,null,"Common Computer Consumables and Supplies","TONER CARTRIDGE, HP CE390A, black, for HP  Laserjet Enterprise 600, M601, 600, M602, 600, M603, M4555 MFP Series","cart",13377,14714.7]
[null,null,"Common Computer Consumables and Supplies","TONER CARTRIDGE, HP CE390X, high cap, black, for HP  Laserjet Enterprise 600, M601, 600, M602, 600, M603, M4555 MFP Series","cart",22335.77,24569.35]
[null,null,"Common Computer Consumables and Supplies","TONER CARTRIDGE, HP CE400A, black, for HP Laserjet Enterprise 500 Color M551 Series","cart",12119.56,13331.52]
[null,null,"Common Computer Consumables and Supplies","TONER CARTRIDGE, HP CE401A, cyan, for HP Laserjet Enterprise 500 Color M551 Series","cart",17741.72,19515.89]
[null,null,"Common Computer Consumables and Supplies","TONER CARTRIDGE, HP CE402A, yellow, for HP Laserjet Enterprise 500 Color M551 Series","cart",17741.72,19515.89]
[null,null,"Common Computer Consumables and Supplies","TONER CARTRIDGE, HP CE403A, magenta, for HP Laserjet Enterprise 500 Color M551 Series","cart",17741.72,19515.89]
[null,null,"Common Computer Consumables and Supplies","TONER CARTRIDGE, HP CE410A (HP #305), black","cart",6688.5,7357.35]
[null,null,"Common Computer Consumables and Supplies","TONER CARTRIDGE, HP CE411A (HP #305), Cyan","cart",9908.5400000000009,10899.39]
[null,null,"Common Computer Consumables and Supplies","TONER CARTRIDGE, HP CE412A (HP #305), Yellow","cart",9908.5400000000009,10899.39]
[null,null,"Common Computer Consumables and Supplies","TONER CARTRIDGE, HP CE413A (HP #305), Magenta","cart",9908.5400000000009,10899.39]
[null,null,"Common Computer Consumables and Supplies","TONER CARTRIDGE, HP CE505A, black, for HP LaserJet P2035, P2055  printer series ","cart",6726.72,7399.39]
[null,null,"Common Computer Consumables and Supplies","TONER CARTRIDGE, HP CE505XC, high cap, black, for HP LaserJet P2055  printer series ","cart",12350.79,13585.87]
[null,null,"Common Computer Consumables and Supplies","TONER CARTRIDGE, HP CE740A, black, for HP Color Laserjet Professional CP5220,  Printer Series","cart",11376.18,12513.8]
[null,null,"Common Computer Consumables and Supplies","TONER CARTRIDGE, HP CE741A, cyan, for HP Color Laserjet Professional CP5220,  Printer Series","cart",20178.25,22196.080000000002]
[null,null,"Common Computer Consumables and Supplies","TONER CARTRIDGE, HP CE742A, yellow, for HP Color Laserjet Professional CP5220,  Printer Series","cart",20178.25,22196.080000000002]
[null,null,"Common Computer Consumables and Supplies","TONER CARTRIDGE, HP CE743A, magenta, for HP Color Laserjet Professional CP5220,  Printer Series","cart",20178.25,22196.080000000002]
[null,null,"Common Computer Consumables and Supplies","TONER CARTRIDGE, HP CF210A, (#131), black","cart",5478.84,6026.72]
[null,null,"Common Computer Consumables and Supplies","TONER CARTRIDGE, HP CF211A, (#131), Cyan","cart",6858.58,7544.44]
[null,null,"Common Computer Consumables and Supplies","TONER CARTRIDGE, HP CF212A, (#131), Yellow","cart",7407.04,8147.74]
[null,null,"Common Computer Consumables and Supplies","TONER CARTRIDGE, HP CF213A, (#131), Magenta","cart",7408.14,8148.95]
[null,null,"Common Computer Consumables and Supplies","TONER CARTRIDGE, HP Q1338A, black, for HP Laserjet 4200 printer series","cart",11766.03,12942.63]
[null,null,"Common Computer Consumables and Supplies","TONER CARTRIDGE, HP Q1339A, black, HP Laserjet 4300 printer series","cart",16086.8,17695.48]
[null,null,"Common Computer Consumables and Supplies","TONER CARTRIDGE, HP Q2612A, black, for HP Laserjet 1010, 1012, 1015, 1018, 1020, 1022, 3015, 3020, 3030, 3050, 3052, 3055, M1005, M1319f MFP Printer","cart",5498.54,6048.39]
[null,null,"Common Computer Consumables and Supplies","TONER CARTRIDGE, HP Q2613A, black, for HP Laserjet 1300 printer series","cart",6115.2,6726.72]
[null,null,"Common Computer Consumables and Supplies","TONER CARTRIDGE, HP Q2624A","cart",6543.26,7197.59]
[null,null,"Common Computer Consumables and Supplies","TONER CARTRIDGE, HP Q3960A, black, for HP Color Laserjet 2550 printer series, 2820, 2840 All-in-One","cart",6497.4,7147.14]
[null,null,"Common Computer Consumables and Supplies","TONER CARTRIDGE, HP Q3961A, cyan, for HP Color Laserjet 2550 printer series, 2820, 2840 All-in-One","cart",7844.66,{"$f":"ROUND((F387*1.1),2)","v":8629.1299999999992}]
[null,null,"Common Computer Consumables and Supplies","TONER CARTRIDGE, HP Q3962A, yellow, for HP Color Laserjet 2550 printer series, 2820, 2840 All-in-One","cart",7844.66,8629.1299999999992]
[null,null,"Common Computer Consumables and Supplies","TONER CARTRIDGE, HP Q3963A, magenta, for HP Color Laserjet 2550 printer series, 2820, 2840 All-in-One","cart",7844.66,8629.1299999999992]
[null,null,"Common Computer Consumables and Supplies","TONER CARTRIDGE, HP Q3971A, cyan, for HP Color LaserJet 2550 Printer Series, HP Color LaserJet 2820, 2840 All-in-One","cart",5897.35,6487.09]
[null,null,"Common Computer Consumables and Supplies","TONER CARTRIDGE, HP Q3972A, yellow, for HP Color LaserJet 2550 Printer Series, HP Color LaserJet 2820, 2840 All-in-One","cart",5897.35,6487.09]
[null,null,"Common Computer Consumables and Supplies","TONER CARTRIDGE, HP Q3973A, magenta, for HP Color LaserJet 2550 Printer Series, HP Color LaserJet 2820, 2840 All-in-One","cart",5897.35,6487.09]
[null,null,"Common Computer Consumables and Supplies","TONER CARTRIDGE, HP Q5942A, black, for HP Laserjet 4250, 4350 printer series","cart",11439.25,12583.18]
[null,null,"Common Computer Consumables and Supplies","TONER CARTRIDGE, HP Q5942A, original black, for HP Laserjet 4250/4350 printer series","cart",11439.25,12583.18]
[null,null,"Common Computer Consumables and Supplies","TONER CARTRIDGE, HP Q5949A, black, for HP Laserjet 1160, 1320 printer series, 3390, 3392 All-in-One","cart",6487.85,7136.64]
[null,null,"Common Computer Consumables and Supplies","TONER CARTRIDGE, HP Q5950A, black, for HP Color LaserJet 4700 Printer Series","cart",14045.85,15450.44]
[null,null,"Common Computer Consumables and Supplies","TONER CARTRIDGE, HP Q5951A, cyan, for HP Color LaserJet 4700 Printer Series","cart",19927.91,21920.7]
[null,null,"Common Computer Consumables and Supplies","TONER CARTRIDGE, HP Q5952A, yellow, for HP Color LaserJet 4700 Printer Series","cart",19927.91,21920.7]
[null,null,"Common Computer Consumables and Supplies","TONER CARTRIDGE, HP Q5953A, magenta, for HP Color LaserJet 4700 Printer Series","cart",19927.91,21920.7]
[null,null,"Common Computer Consumables and Supplies","TONER CARTRIDGE, HP Q6000A, black, for HP Color LaserJet 1600, 2600n, 2605, CM1015MFP, CM1017MFP   Printer","cart",5836.19,6419.81]
[null,null,"Common Computer Consumables and Supplies","TONER CARTRIDGE, HP Q6001A, cyan, for HP Color LaserJet 1600, 2600n, 2605, CM1015MFP, CM1017MFP   Printer","cart",6640.73,7304.8]
[null,null,"Common Computer Consumables and Supplies","TONER CARTRIDGE, HP Q6002A, yellow, for HP Color LaserJet 1600, 2600n, 2605, CM1015MFP, CM1017MFP   Printer","cart",6640.73,7304.8]
[null,null,"Common Computer Consumables and Supplies","TONER CARTRIDGE, HP Q6003A, magenta, for HP Color LaserJet 1600, 2600n, 2605, CM1015MFP, CM1017MFP   Printer","cart",6640.73,7304.8]
[null,null,"Common Computer Consumables and Supplies","TONER CARTRIDGE, HP Q6460A, black, for HP Color LaserJet 4730MFP, CM4730 Printer Series","cart",11104.82,12215.3]
[null,null,"Common Computer Consumables and Supplies","TONER CARTRIDGE, HP Q6461A, cyan, for HP Color LaserJet 4730MFP, CM4730 Printer Series","cart",23889.41,26278.35]
[null,null,"Common Computer Consumables and Supplies","TONER CARTRIDGE, HP Q6462A, yellow, for HP Color LaserJet 4730MFP, CM4730 Printer Series","cart",23889.41,26278.35]
[null,null,"Common Computer Consumables and Supplies","TONER CARTRIDGE, HP Q6463A, magenta, for HP Color LaserJet 4730MFP, CM4730 Printer Series","cart",23889.41,26278.35]
[null,null,"Common Computer Consumables and Supplies","TONER CARTRIDGE, HP Q6470A, black, for HP Color LaserJet 3600 Printer Series","cart",10155.049999999999,11170.56]
[null,null,"Common Computer Consumables and Supplies","TONER CARTRIDGE, HP Q6471A, cyan, for HP Color LaserJet 3600 Printer Series","cart",10097.719999999999,11107.49]
[null,null,"Common Computer Consumables and Supplies","TONER CARTRIDGE, HP Q6472A, yellow, for HP Color LaserJet 3600 Printer Series","cart",10739.82,11813.8]
[null,null,"Common Computer Consumables and Supplies","TONER CARTRIDGE, HP Q6473A, magenta, for HP Color LaserJet 3600 Printer Series","cart",10739.82,11813.8]
[null,null,"Common Computer Consumables and Supplies","TONER CARTRIDGE, HP Q6511A","cart",9512.9599999999991,10464.26]
[null,null,"Common Computer Consumables and Supplies","TONER CARTRIDGE, HP Q7516AC, black","cart",14345.88,15780.47]
[null,null,"Common Computer Consumables and Supplies","TONER CARTRIDGE, HP Q7551A, black, for HP Laserjet P3005, M3027, M3035 MFP Printer Series","cart",10202.83,11223.11]
[null,null,"Common Computer Consumables and Supplies","TONER CARTRIDGE, HP Q7553A, black, for HP Laserjet P3005, M3027, M3035 MFP Printer Series","cart",6185.91,6804.5]
[null,null,"Common Computer Consumables and Supplies","TONER CARTRIDGE, HP Q7570A, black, HP Laserjet M5025, M5035 MFP Printer Series","cart",13625.43,14987.97]
[null,null,"Common Computer Consumables and Supplies","TONER CARTRIDGE, HP Q7581A, cyan, for HP Color LaserJet 3800, CP3505 Printer Series","cart",13073.15,14380.47]
[null,null,"Common Computer Consumables and Supplies","TONER CARTRIDGE, HP Q7582A, yellow, for HP Color LaserJet 3800, CP3505 Printer Series","cart",13073.15,14380.47]
[null,null,"Common Computer Consumables and Supplies","TONER CARTRIDGE, HP Q7583A, magenta, for HP Color LaserJet 3800, CP3505 Printer Series","cart",13073.15,14380.47]
[null,null,"Common Computer Consumables and Supplies","TONER CARTRIDGE, Kyocera Mita TK 564C, for Printer FS-C5300DN","cart",19364.16,21300.58]
[null,null,"Common Computer Consumables and Supplies","TONER CARTRIDGE, Kyocera Mita TK 564K, for Printer FS-C5300DN","cart",14881.51,16369.66]
[null,null,"Common Computer Consumables and Supplies","TONER CARTRIDGE, Kyocera Mita TK174","cart",10191.36,11210.5]
[null,null,"Common Computer Consumables and Supplies","TONER CARTRIDGE, Kyocera Mita TK330, for printer FS4000DN","cart",14777.76,16255.54]
[null,null,"Common Computer Consumables and Supplies","TONER CARTRIDGE, Kyocera Mita TK364 for printer FS4020DN ","cart",15288,16816.8]
[null,null,"Common Computer Consumables and Supplies","TONER CARTRIDGE, Kyocera TK-120, original, for Kyocera Laser Printer model FS1030D","cart",9843.56,10827.92]
[null,null,"Common Computer Consumables and Supplies","TONER CARTRIDGE, Kypcera Mita TK 564Y, for Printer FS-C5300DN","cart",19364.16,21300.58]
[null,null,"Common Computer Consumables and Supplies","TONER CARTRIDGE, Lexmark 1382920","cart",26604.799999999999,29265.279999999999]
[null,null,"Common Computer Consumables and Supplies","TONER CARTRIDGE, Lexmark 34217HR(12A8400)","cart",8658.74,9524.61]
[null,null,"Common Computer Consumables and Supplies","TONER CARTRIDGE, Lexmark E360H11P","cart",16306.56,17937.22]
[null,null,"Common Computer Consumables and Supplies","TONER CARTRIDGE, Lexmark E450A11P","cart",12522.78,13775.06]
[null,null,"Common Computer Consumables and Supplies","TONER CARTRIDGE, Lexmark T650A11P","cart",17695.86,19465.45]
[null,null,"Common Computer Consumables and Supplies","TONER CARTRIDGE, Lexmark X340A11G","cart",11179.35,12297.29]
[null,null,"Common Computer Consumables and Supplies","TONER CARTRIDGE, Samsung CLT-508L, Cyan, original, for CLP-620ND, CLP-670N, CLP-670ND","cart",10319.4,11351.34]
[null,null,"Common Computer Consumables and Supplies","TONER CARTRIDGE, Samsung CLT-K508L, Magenta, original, for CLP-620ND, CLP-620ND, CLP-670N","cart",9268.35,10195.19]
[null,null,"Common Computer Consumables and Supplies","TONER CARTRIDGE, Samsung CLT-M508L, Black, original, for CLP-620ND, CLP-670N, CLP-670ND","cart",10319.4,11351.34]
[null,null,"Common Computer Consumables and Supplies","TONER CARTRIDGE, Samsung CLT-Y508L, Yellow, original, for CLP-620ND, CLP-670N, CLP-670ND","cart",10319.4,11351.34]
[null,null,"Common Computer Consumables and Supplies","TONER CARTRIDGE, Samsung ML-2010D3","cart",5733,6306.3]
[null,null,"Common Computer Consumables and Supplies","TONER CARTRIDGE, Samsung ML-2250D5","cart",8790.6,9669.66]
[null,null,"Common Computer Consumables and Supplies","TONER CARTRIDGE, Samsung MLTD101S","cart",5733,6306.3]
[null,null,"Common Computer Consumables and Supplies","TONER CARTRIDGE, Samsung MLT-D205E, Black, original, for ML-3310ND, ML-3710ND, SCX-4833FR, SCX-5637FR, SCX-5737FW","cart",14714.7,16186.17]
[null,null,"Common Computer Consumables and Supplies","TONER CARTRIDGE, Samsung MLTD205L","cart",8790.6,9669.66]
[null,null,"Common Computer Consumables and Supplies","TONER CARTRIDGE, Samsung Part No. ML D2850B, for printer ML D2851ND","cart",8981.7000000000007,9879.8700000000008]
[null,null,"Common Computer Consumables and Supplies","TONER CARTRIDGE, Samsung Part No. MLD3050B for printer ML-D3050 / ML-D3051","cart",12230.4,13453.44]
[null,null,"Common Computer Consumables and Supplies","TONER CARTRIDGE, Samsung Part No. MLTD103-S","cart",5350.8,5885.88]
[null,null,"Common Computer Consumables and Supplies","TONER CARTRIDGE, Samsung Part No. MLTD104-S, for Samsung ML 1660","cart",4586.3999999999996,5045.04]
[null,null,"Common Computer Consumables and Supplies","TONER CARTRIDGE, Samsung Part No. MLTD105L, for printer ML 2580n","cart",5255.25,5780.78]
[null,null,"Common Computer Consumables and Supplies","TONER CARTRIDGE, Samsung Part No. SCX-D655A for printer model MFP 6545","cart",7739.55,8513.51]
[null,null,"Common Computer Consumables and Supplies","TONER CARTRIDGE, TK 100, for Kyocera Mita KM-1500","cart",5327.48,5860.23]
[null,null,"Common Computer Consumables and Supplies","TONER CARTRIDGE, TN-3250, low yield, for Brother HL5350DN","cart",6411.41,7052.55]
[null,null,"Common Computer Consumables and Supplies","TONER CARTRIDGE, TN-3320, for printer 5450DN","cart",6130.49,6743.54]
[null,null,"Common Computer Consumables and Supplies","TONER CARTRIDGE,Brother TN-2260, black, original, for HL2240D, 2270DW, DCP7065, MFC7360, 7470D, 7860DW","cart",3114.93,{"$f":"ROUND((F451*1.1),2)","v":3426.42}]
[null,null,"Common Computer Consumables and Supplies","TONER CARTRIDGE,Epson C13S050440, Std Cap, for printer AL-M2010D/DN","cart",10439.790000000001,11483.77]
[null,null,"Common Computer Consumables and Supplies","TONER REFILL, Xerox Phaser 3124","cart",2500,2750]
[null,null,"Common Computer Consumables and Supplies","UNIVERSAL INK, Black, 100 ml","bottle",105,115.5]
[null,null,"Common Computer Consumables and Supplies","UNIVERSAL INK, Cyan, 100 ml","bottle",105,115.5]
[null,null,"Common Computer Consumables and Supplies","UNIVERSAL INK, Magenta, 100 ml","bottle",105,115.5]
[null,null,"Common Computer Consumables and Supplies","UNIVERSAL INK, Yellow, 100 ml","bottle",105,115.5]
[null,null,"Common Computer Consumables and Supplies","USB EXTENSION","meter",950,1045]
[null,null,"Common Computer Consumables and Supplies","WIFI ADAPTER, USB","piece",2050,2255]
[null,null,"Common Office Supplies","ACETATE, gauge #3, 50m in length","roll",1372.8,1510.08]
[null,null,"Common Office Supplies","AIR FRESHENER, 280mL/can","can",255,280.5]
[null,null,"Common Office Supplies","ALCOHOL, 70%, ethyl","bottle",94,103.4]
[null,null,"Common Office Supplies","AUDIO CASSETTE TAPE, 90min. recording time","piece",42.04,46.24]
[null,null,"Common Office Supplies","AUTOMATIC NUMBER STAMP, with 7 digits","unit",1250,1375]
[null,null,"Common Office Supplies","BALLPEN, Black","piece",8,8.8000000000000007]
[null,null,"Common Office Supplies","BINDER, 3-ring, D-type, A4, 64mm(2.5\"), with insert clear-view pocket on front, back and spine for label","pair",204.86,225.35]
[null,null,"Common Office Supplies","BINDER, 3-ring, D-type, legal, 64MM(2.5\"), with insert clear-view pocket on front, back and spine for label","pair",216.42,238.06]
[null,null,"Common Office Supplies","CARBON FILM, polyehtylene, 216mm x 330mm, 100s/box","box",558.62,614.48]
[null,null,"Common Office Supplies","CARBON FILM, polyethylene, 210mm x 297mm(A-4), 100s/box","box",491.92,541.11]
[null,null,"Common Office Supplies","CARTOLINA, assorted color, 20s/pack","pack",161.30000000000001,177.43]
[null,null,"Common Office Supplies","CARTOLINA, white, 20s/pack","pack",114.4,125.84]
[null,null,"Common Office Supplies","CHALK, white, dustless, 100 pcs/box","box",56.89,62.58]
[null,null,"Common Office Supplies","CLEARBOOK, A4 SIZE, for 210mm x 297mm (A4 size) documents, refillable, plastic, overall size (min) of cover 302mm(L) x 242mm(W) and 0.48mm thickness, assorted colors, 0.06mm(min) thickness of pocket, with twenty(20) clear transparent plastic pockets","piece",82.37,90.61]
[null,null,"Common Office Supplies","CLEARBOOK, LEGAL SIZE, for 216mm x 330mm (legal size) documents, refillable, plastic, overall size(min) of cover 353mm(L) x 242mm(W) and 0.48mm thickness, assorted colors, 0.06mm(min thickness of pocket, with twenty(20) clear transparent plastic pocket","piece",65,71.5]
[null,null,"Common Office Supplies","CLIP, backfold, 19mm, 12s/box","box",16.010000000000002,17.61]
[null,null,"Common Office Supplies","CLIP, backfold, 25mm, 12s/box","box",36.61,40.270000000000003]
[null,null,"Common Office Supplies","CLIP, backfold, 32mm, 12s/box","box",45.5,50.05]
[null,null,"Common Office Supplies","CLIP, backfold, 41mm","box",77,84.7]
[null,null,"Common Office Supplies","CLIP, backfold, 50mm, 12s/box","box",89,97.9]
[null,null,"Common Office Supplies","CLIP, bulldog, 73mm (3\")","piece",18.3,20.13]
[null,null,"Common Office Supplies","COLUMNAR NOTEBOOK, 12 cols","piece",38.22,42.04]
[null,null,"Common Office Supplies","COLUMNAR PAD, 14 cols, 50 gsm min.","pad",77.77,85.55]
[null,null,"Common Office Supplies","COLUMNAR PAD, 16 cols, 50 gsm min. ","pad",76.599999999999994,84.26]
[null,null,"Common Office Supplies","COLUMNAR PAD, 18 cols, 50 gsm min.","pad",144.13999999999999,158.55000000000001]
[null,null,"Common Office Supplies","CORKBOARD, 1 x 1 sq. ft.","piece",455,500.5]
[null,null,"Common Office Supplies","CORRECTION FLUID, Water Based","bottle",25,27.5]
[null,null,"Common Office Supplies","CORRECTION PEN","piece",55,60.5]
[null,null,"Common Office Supplies","CORRECTION TAPE, disposable, usable length of 6 meters(min), 5mm width","pair",65,71.5]
[null,null,"Common Office Supplies","DATA FILE BOX, (5\"x9\"x15-3/4\")","box",135,148.5]
[null,null,"Common Office Supplies","DATA FOLDER, w/ finger ring, (3\" x 9\" x 15\")","piece",169.29,186.22]
[null,null,"Common Office Supplies","EDP BINDER, TB, for 11\" X 14-7/8\" CCF, plastic, spring rod type, assorted colors","piece",76.44,84.08]
[null,null,"Common Office Supplies","EDP BINDER, TB, for 11\" X 9-1/2\" CCF","piece",70.41,77.45]
[null,null,"Common Office Supplies","ENVELOPE, documentary (10\"x15\"), 500s/box","box",1116.28,1227.9100000000001]
[null,null,"Common Office Supplies","ENVELOPE, documentary, A4, 500s/box","box",887.74,976.51]
[null,null,"Common Office Supplies","ENVELOPE, expandable, red","piece",15.75,17.329999999999998]
[null,null,"Common Office Supplies","ENVELOPE, expanding, kraft, legal size, 100s/box","box",1367.76,1504.54]
[null,null,"Common Office Supplies","ENVELOPE, expanding, legal size","piece",16.75,18.43]
[null,null,"Common Office Supplies","ENVELOPE, expanding, plastic, 0.50mm, min. plastic thickness with elastic strap, 380mm x 260mm min, expansion, assorted colors","piece",165,181.5]
[null,null,"Common Office Supplies","ENVELOPE, expanding, plastic, legal size","piece",77.069999999999993,84.78]
[null,null,"Common Office Supplies","ENVELOPE, mailing white with window, 500s","box",429.79,472.77]
[null,null,"Common Office Supplies","ENVELOPE, mailing white, 500s/box","box",365,401.5]
[null,null,"Common Office Supplies","ENVELOPE, pay, kraft, (4\"x7-1/2\"), 500s/box","box",252.36,277.60000000000002]
[null,null,"Common Office Supplies","ERASER, felt, for blackboard/whiteboard","piece",22.15,24.37]
[null,null,"Common Office Supplies","ERASER, rubber","piece",65,71.5]
[null,null,"Common Office Supplies","FILE ORGANIZER, expanding, legal, plastic, assorted colors","piece",99,108.9]
[null,null,"Common Office Supplies","FILE TAB DIVIDER, A4, for 210mm x 297mm (A4 size) documents, bristol board, 297mm x 210mm Leaf Size(min), 65mm x 12mm Tab Size, 153 gsm., 0.22mm (min) thickness, five (5) colors per set","set",2000,2200]
[null,null,"Common Office Supplies","FILE TAB DIVIDER, LEGAL SIZE, for 216mm x 330mm (legal size) documents, bristol board, 330mm x 2216mm Leaf size, 68mm x 15mm Tab size, 153 GSM. 0.22mm (min) thickness, five(5) colors per set","set",36.61,40.270000000000003]
[null,null,"Common Office Supplies","FOLDER, clear plastic, L-type, A4 size, 50s/pack","pack",366.08,402.69]
[null,null,"Common Office Supplies","FOLDER, clear plastic, L-type, legal size, 50s/pack","pack",400.4,440.44]
[null,null,"Common Office Supplies","FOLDER, expanding","piece",15.75,17.329999999999998]
[null,null,"Common Office Supplies","FOLDER, morocco/fancy, A4 size, 50s/pack","bundle",640.64,704.7]
[null,null,"Common Office Supplies","FOLDER, morocco/fancy, legal size, 50s/pack","pack",514.79999999999995,566.28]
[null,null,"Common Office Supplies","FOLDER, pressboard, plain, legal, 100s/box","pack",1600,1760]
[null,null,"Common Office Supplies","FOLDER, pressboard, plain, legal, 50s/box","box",800,880]
[null,null,"Common Office Supplies","FOLDER, tagboard, A4 size, 100s/box","pack",546.83000000000004,{"$f":"ROUND((F515*1.1),2)","v":601.51}]
[null,null,"Common Office Supplies","FOLDER, tagboard, legal size, 100s/box","pack",659.96,725.96]
[null,null,"Common Office Supplies","GLUE, 120ml","bottle",68,74.8]
[null,null,"Common Office Supplies","GLUE, all purpose, 200 grams","jar",130,143]
[null,null,"Common Office Supplies","GLUE, all purpose, 300 grams min.","jar",130,143]
[null,null,"Common Office Supplies","GLUE, all purpose, in bottle, 40g ","bottle",33,36.299999999999997]
[null,null,"Common Office Supplies","ILLUSTRATION BOARD, (30\"x40\"), 2 ply","piece",77.11,84.82]
[null,null,"Common Office Supplies","INDEX CARD BOX, 4-3/8\"x5-5/8\" x 4\"(3\" x 5\")","box",66.89,73.58]
[null,null,"Common Office Supplies","INDEX CARD BOX, 5-3/8\"x8-7/8\" x 6\"(5\" x 8\")","box",90.77,99.85]
[null,null,"Common Office Supplies","INDEX CARD, 5\" x 8\",ruled both sides, 500s/pack","pack",306.55,337.21]
[null,null,"Common Office Supplies","INDEX CARD,3\"x 5\",ruled both sides, 500s/pack","pack",112.79,124.07]
[null,null,"Common Office Supplies","INDEX TAB, self-adhesive, 5 set/box, assorted colors","box",111.85,123.04]
[null,null,"Common Office Supplies","INK REFILL, Marker, Black","bottle",98,107.8]
[null,null,"Common Office Supplies","INK REFILL, Parker Pen, Fine 0.5","piece",310,341]
[null,null,"Common Office Supplies","INK,  for Self Inking Stamp","piece",320,352]
[null,null,"Common Office Supplies","INK, Risograph CZ13, Black","tube",2500,2750]
[null,null,"Common Office Supplies","LEAD, for mechanical pencil,0.5mm, 12 pcs/tube","tube",36.049999999999997,39.659999999999997]
[null,null,"Common Office Supplies","LINEN BOARD, 8.5\" x 13\", 10 sheets, assorted colors","pack",49,53.9]
[null,null,"Common Office Supplies","LINEN PAPER, 8.5\" x 13\", 10 sheets, assorted colors","pack",49,53.9]
[null,null,"Common Office Supplies","LINEN PAPER, 8.5\" x 13\", 20 pcs 85 gsm (assorted colors: powder blue, soft green)","pack",39,42.9]
[null,null,"Common Office Supplies","LOOSELEAF COVER, 216mm x 355mm, 50 pcs/bundle","bundle",1187.47,1306.22]
[null,null,"Common Office Supplies","MAGAZINE FILE BOX, 110mm x 220mm x 265mm, with open end","piece",96.49,106.14]
[null,null,"Common Office Supplies","MAGAZINE FILE BOX, 112mm x 200mm x 240mm, with open end","piece",63.06,69.37]
[null,null,"Common Office Supplies","MANILA PAPER, 1200mm x 900mm, 60gsm., 0.14mm thickness, pale yellow, 10 sheets per sleeves","sleeve",45,49.5]
[null,null,"Common Office Supplies","MAP PIN, round head, 100s/case","case",88.77,97.65]
[null,null,"Common Office Supplies","MARKER, fluorescent, 3 colors/set","set",78.209999999999994,86.03]
[null,null,"Common Office Supplies","MARKER, permanent, bullet type, black","piece",47,51.7]
[null,null,"Common Office Supplies","MARKER, permanent, bullet type, blue","piece",47,51.7]
[null,null,"Common Office Supplies","MARKER, permanent, bullet type, red","piece",47,51.7]
[null,null,"Common Office Supplies","MARKER, permanent, chisel type, black","piece",47,51.7]
[null,null,"Common Office Supplies","MARKER, permanent, chisel type, blue","piece",47,51.7]
[null,null,"Common Office Supplies","MARKER, permanent, chisel type, red","piece",47,51.7]
[null,null,"Common Office Supplies","MARKING PEN, whiteboard, bullet type, black","piece",25.96,28.56]
[null,null,"Common Office Supplies","MARKING PEN, whiteboard, bullet type, blue","piece",25.96,28.56]
[null,null,"Common Office Supplies","MARKING PEN, whiteboard, bullet type, red","piece",25.96,28.56]
[null,null,"Common Office Supplies","MASTER ROLL, Risograph CZ13","roll",3500,3850]
[null,null,"Common Office Supplies","NAMEPLATE","piece",263,289.3]
[null,null,"Common Office Supplies","NOTE BOOK, stenographer's, 40 leaves, ruled both sides","piece",18.5,20.350000000000001]
[null,null,"Common Office Supplies","NOTE PAD, (2\"x2\"), 400 sheets/pad","pad",29,31.9]
[null,null,"Common Office Supplies","NOTE PAD, (2\"x3\"), 100 sheets/pad","pad",68.64,75.5]
[null,null,"Common Office Supplies","NOTE PAD, (3\"x3\"), 100 sheets/pad","pad",84.44,92.88]
[null,null,"Common Office Supplies","NOTE PAD, (3\"x4\"), 100 sheets/pad","pad",118.93,130.82]
[null,null,"Common Office Supplies","OIL, for general purpose, 120 mL ","bottle",81.180000000000007,89.3]
[null,null,"Common Office Supplies","PAPER BRITE, Multicolored, Legal","ream",245,269.5]
[null,null,"Common Office Supplies","PAPER BRITE, Multicolored, Short/Letter","ream",230,253]
[null,null,"Common Office Supplies","PAPER CLIP, gem type, 32mm, 100s/box","box",14.87,16.36]
[null,null,"Common Office Supplies","PAPER CLIP, gem type,jumbo, 48mm, 100s/box","box",29.74,32.71]
[null,null,"Common Office Supplies","PAPER FASTENER, for paper, metal, 50 sets/box","box",125.6,138.16]
[null,null,"Common Office Supplies","PAPER FASTENER, Plastic Coated, 50s/box cortan long","box",45,49.5]
[null,null,"Common Office Supplies","PAPER, bond, Premium Grade,210mm x 297mm (A4), 70 gsm","ream",225.26,247.79]
[null,null,"Common Office Supplies","PAPER, for Plain Paper Copier, 210mm x 297mm (A4) 70gsm","ream",187.98,206.78]
[null,null,"Common Office Supplies","PAPER, for Plain Paper Copier, 254mm 356mm(B4), 70gsm","ream",273.27,300.60000000000002]
[null,null,"Common Office Supplies","PAPER, mimeo, Groundwood, 210mm x 297mm (A4), 60gsm","ream",157.44,173.18]
[null,null,"Common Office Supplies","PAPER, mimeograph, Whitewove, 210mm x 297mm, 70 gsm., 480 sheets ream","ream",189.01,207.91]
[null,null,"Common Office Supplies","PAPER, multicopy, 210mm x 297mm(A4), 80gsm","ream",259.23,285.14999999999998]
[null,null,"Common Office Supplies","PAPER, ruled pad,216mmx330mm, 90 sheets/pad","pad",38.43,42.27]
[null,null,"Common Office Supplies","PAPER, thermal, 216mmx30M, 1/2\" core","roll",78.47,86.32]
[null,null,"Common Office Supplies","PAPER, thermal,210mmx30M, 1/2\" core","roll",65.89,72.48]
[null,null,"Common Office Supplies","PARCHMENT PAPER, A4 size, 80 gsm,100sheets/pack","ream",202.49,222.74]
[null,null,"Common Office Supplies","PENCIL, lead, w/eraser, 0ne(1) dozen per box","box",99,108.9]
[null,null,"Common Office Supplies","PENCIL, mechanical, for 0.5mm lead","piece",275,302.5]
[null,null,"Common Office Supplies","PHILIPPINE NATIONAL FLAG, Type I, 1828mm x 914.4mm, 100% cotton","piece",658.94,724.83]
[null,null,"Common Office Supplies","PHOTO PAPER, A4, 20s per ream","ream",190,209]
[null,null,"Common Office Supplies","PUSH PIN, flat head type, assorted colors, 100s/case","case",48,52.8]
[null,null,"Common Office Supplies","RECORD BOOK, 300 pages, smythe sewn","book",132.69999999999999,{"$f":"ROUND((F579*1.1),2)","v":145.97}]
[null,null,"Common Office Supplies","RECORD BOOK, 500 pages, smythe sewn","book",191.07,210.18]
[null,null,"Common Office Supplies","RIBBON CARTRIDGE, fabric, Iwata E2A time recorder","piece",859.95,945.95]
[null,null,"Common Office Supplies","RIBBON, nylon, manual typewriter","spool",35.46,39.01]
[null,null,"Common Office Supplies","RING BINDER, 10mm x 1.12m,  plastic, 10 pcs/bundle","bundle",81.2,89.32]
[null,null,"Common Office Supplies","RING BINDER, 11mm x 1.12m,  plastic, 10 pcs/bundle","bundle",97.46,107.21]
[null,null,"Common Office Supplies","RING BINDER, 12.7mm x 1.12m (1/2\"x44\"), plastic","piece",97.46,107.21]
[null,null,"Common Office Supplies","RING BINDER, 14mm x 1.12m,  plastic, 10 pcs/bundle","bundle",136.62,150.28]
[null,null,"Common Office Supplies","RING BINDER, 16mm x 1.12m,  plastic, 10 pcs/bundle","bundle",167.21,183.93]
[null,null,"Common Office Supplies","RING BINDER, 19mm x 1.12m(3/4\"x44\"), plastic, 10 pcs/ bundle","bundle",184.41,202.85]
[null,null,"Common Office Supplies","RING BINDER, 22mm x 1.12m, plastic, 10 pcs/bundle","bundle",272.3,299.52999999999997]
[null,null,"Common Office Supplies","RING BINDER, 25mm x 1.12m (1\"x44\"), plastic, 10 pcs/bundle","bundle",209.25,230.18]
[null,null,"Common Office Supplies","RING BINDER, 28mm x 1.12m,  plastic, 10 pcs/bundle","piece",417.54,459.29]
[null,null,"Common Office Supplies","RING BINDER, 32mm x 1.12m,  plastic, 10 pcs/bundle","piece",472,519.20000000000005]
[null,null,"Common Office Supplies","RING BINDER, 50mm x 1.12m(2\" x 44\"), plastic, 10 pcs/bundle","piece",376.47,414.12]
[null,null,"Common Office Supplies","RING BINDER, 6mm x 1.12m,  plastic, 10 pcs/bundle","bundle",61.13,67.239999999999995]
[null,null,"Common Office Supplies","RING BINDER, 8mm x 1.12m,  plastic, 10 pcs/bundle","bundle",66.87,73.56]
[null,null,"Common Office Supplies","RUBBER BAND, 1.0mm min thickness, min. 350grams/box or approx 220pcs","box",305,335.5]
[null,null,"Common Office Supplies","RUBBER STAMP","piece",90,99]
[null,null,"Common Office Supplies","RULER, plastic, 300mm","piece",15,16.5]
[null,null,"Common Office Supplies","RULER, plastic, 450mm","piece",34.32,37.75]
[null,null,"Common Office Supplies","SCHOOL FORM, DEPED FORM 1 (SCHOOL REGISTER), 8 sheets with 6-half sheet inserts in between each sheet/16 pages with 6 inserts (6 half-sheet per insert), saddle stitch binding, soft cover in uncoated, glossy or matte finish cover, 0.26mm","piece",342.07,376.28]
[null,null,"Common Office Supplies","SCHOOL FORM, DEPED FORM 1 (SF1), Bristol Board, 214mmx340mm, min 220gsm, offset printing, 100 pcs/pack","pack",80.87,88.96]
[null,null,"Common Office Supplies","SCHOOL FORM, DEPED FORM 137-E (Grade 1 to K12), Bristol board size (min): 214mm (W) x 340mm (L), Thickness (min)  0.25mm, Weight (min) 220gsm, Offset (back to back) printing, 100s/ pack","pack",342.07,376.28]
[null,null,"Common Office Supplies","SIGN PEN,  blue","piece",96.82,106.5]
[null,null,"Common Office Supplies","SIGN PEN, black","piece",96.82,106.5]
[null,null,"Common Office Supplies","SIGN PEN, green","piece",28,30.8]
[null,null,"Common Office Supplies","SIGN PEN, red","piece",96.82,106.5]
[null,null,"Common Office Supplies","SPECIAL PAPER, 8.5\" x 11\"","ream",1430,1573]
[null,null,"Common Office Supplies","SPECIAL PAPER, Long, Offwhite/Stationary","pack",38,41.8]
[null,null,"Common Office Supplies","SPECIALTY PAPER, short, 10's per pack","pack",32,35.200000000000003]
[null,null,"Common Office Supplies","STAMP PAD INK, violet, 50mL","bottle",27,29.7]
[null,null,"Common Office Supplies","STAMP PAD, felt pad, min 60mm x 100mm ","piece",68.38,75.22]
[null,null,"Common Office Supplies","STAMP, Self Inking","piece",446,490.6]
[null,null,"Common Office Supplies","STAPLE BINDER","piece",87,95.7]
[null,null,"Common Office Supplies","STAPLE WIRE, (26/16)standard, 5000 pcs/box","box",41,45.1]
[null,null,"Common Office Supplies","STAPLE WIRE, HEAVY DUTY, 23/13, for use with heavy duty staplers, metal, non-rust, chisel point. 0.60mm thickness, 13mm width, 13mm leg length, 100 staples per strip, 1,000 staples per box, 40-90 sheets of 70gsm bond paper","box",66.92,73.61]
[null,null,"Common Office Supplies","STAPLE WIRE, HEAVY DUTY, 23/17, for heavy duty staplers, metal, non-rust, chisel point, 0.60mm thickness, 13mm width, 17mm Leg Length, 100 staples per trip, 1,000 staples per box, 90-135 sheets of 70 gsm bond paper ","box",91.26,100.39]
[null,null,"Common Office Supplies","STATIONARY PAPER, (4 x 6, 100L) Letter Head","ream",105,115.5]
[null,null,"Common Office Supplies","STENCIL PAPER, ordinary, universal, 24 pcs/quire","quire",334.43,367.87]
[null,null,"Common Office Supplies","STORAGE BOX, plastic, with rollers","piece",1380,1518]
[null,null,"Common Office Supplies","TAPE, adding machine, GSP bond","roll",17.84,19.62]
[null,null,"Common Office Supplies","TAPE, Adhesive, big, 2\" wide","piece",141,155.1]
[null,null,"Common Office Supplies","TAPE, Double Adhesive , 24mm","piece",28,30.8]
[null,null,"Common Office Supplies","TAPE, masking, 24mm, 50 meters length","roll",121.26,133.38999999999999]
[null,null,"Common Office Supplies","TAPE, masking, 48mm, 50 meters length","roll",231.09,254.2]
[null,null,"Common Office Supplies","TAPE, packaging, 48mm, 50 meters length","roll",73.22,80.540000000000006]
[null,null,"Common Office Supplies","TAPE, transparent, 24mm, 50 meters","roll",38.21,42.03]
[null,null,"Common Office Supplies","TAPE, transparent, 48mm, 50 meters","roll",73.22,80.540000000000006]
[null,null,"Common Office Supplies","TIME CARD, for Amano Bundy Clock,100s/bndl","bundle",152.83000000000001,168.11]
[null,null,"Common Office Supplies","TIME CARD, for Kitano Time Recorder,100s/bndl","bundle",152.88,168.17]
[null,null,"Common Office Supplies","TOILET TISSUE, 12 rolls/pack","pack",166.25,182.88]
[null,null,"Common Office Supplies","TONER, Develop INEO 164 Copier","piece",3500,3850]
[null,null,"Common Office Supplies","TWINE, plastic, one kilo per roll","roll",118.98,130.88]
[null,null,"Common Office Supplies","WHITEBOARD, 2 x 4 sq. ft.","piece",745,819.5]
[null,null,"Common Office Supplies","WRAPPING PAPER, kraft, 65gsm, approx. 40m","roll",269.98,296.98]
[null,null,"Common Office Devices","BLADE, heavy duty cutter, 10 pcs./pack","pack",17.27,19]
[null,null,"Common Office Devices","CUTTER, heavy duty ","piece",42.75,47.03]
[null,null,"Common Office Devices","LASER POINTER, PEN TYPE, metal, for presentation, green and red color, 50mW laser power, beam light, continuous light, single-point, uses 2 x LR6 1.5V AA or AAA batteries, button switch","piece",1010.7,1111.77]
[null,null,"Common Office Devices","PEA WHISTLE, STAINLESS STEEL, 40mm (min) length, sound ball made of plastic material, with attachment ring","piece",53.51,58.86]
[null,null,"Common Office Devices","PUNCHER, heavy duty","piece",271.55,298.70999999999998]
[null,null,"Common Office Devices","SCISSORS, (6\")","pair",34.17,37.590000000000003]
[null,null,"Common Office Devices","SHARPENER, single cutterhead","piece",445,489.5]
[null,null,"Common Office Devices","STAMPING DATER, self-inking stamp","piece",1052.44,1157.68]
[null,null,"Common Office Devices","STAPLER, heavy duty, standard, with staple remover","piece",220,{"$f":"ROUND((F643*1.1),2)","v":242}]
[null,null,"Common Office Devices","STAPLER, binder type, heavy duty for high volume stapling, 25-153 sheets of 70gsm bond paper stapling capacity, min 100 staples, with adjustable stapler guide","piece",2331.4699999999998,2564.62]
[null,null,"Common Office Devices","STAPLE REMOVER, plier type","piece",38.79,42.67]
[null,null,"Common Office Devices","TAPE DISPENSER, heavy duty, for 24mm(1\")","piece",235,258.5]
[null,null,"Common Office Devices","TAPE DISPENSER,  handheld, for 48mm width packaging tape","piece",64.02,70.42]
[null,null,"Common Office Devices","WASTE BASKET, plastic","piece",210,231]
[null,null,"Common Office Devices","WALL CLOCK, Big","piece",600,660]
[null,null,"Common Janitorial Supplies","BATHROOM SOAP, 90 gms.","piece",69,75.900000000000006]
[null,null,"Common Janitorial Supplies","BATHROOM SOAP, 20 grams","piece",41,45.1]
[null,null,"Common Janitorial Supplies","BOLO, Lampas","piece",150,165]
[null,null,"Common Janitorial Supplies","BROOM, soft (tambo)","piece",228.8,251.68]
[null,null,"Common Janitorial Supplies","BROOM, STICK (tingting)","piece",52.62,57.88]
[null,null,"Common Janitorial Supplies","BRUSH, multipurpose","piece",100,110]
[null,null,"Common Janitorial Supplies","CLEANSER, scouring powder, 350gms.","canister",33,36.299999999999997]
[null,null,"Common Janitorial Supplies","DETERGENT BAR, min 392 grams net mass, four(4) pcs per bar","bar",35,38.5]
[null,null,"Common Janitorial Supplies","DETERGENT LIQUID, 500 ml","bottle",105,115.5]
[null,null,"Common Janitorial Supplies","DETERGENT POWDER, 300 gms","pack",60,66]
[null,null,"Common Janitorial Supplies","DETERGENT POWDER, All Purpose, 110 gms","pack",168,184.8]
[null,null,"Common Janitorial Supplies","DETERGENT POWDER, all purpose, 500gms.","pouch",54.91,60.4]
[null,null,"Common Janitorial Supplies","DISHWASHING LIQUID","bottle",68,74.8]
[null,null,"Common Janitorial Supplies","DISHWASHING PASTE, 500g","box",59,64.900000000000006]
[null,null,"Common Janitorial Supplies","DISINFECTANT SPRAY, 400 grams net content","can",251.68,276.85000000000002]
[null,null,"Common Janitorial Supplies","DOOR MAT","piece",70,77]
[null,null,"Common Janitorial Supplies","DUST PAN, non-rigid plastic, with detachable handle","piece",75,82.5]
[null,null,"Common Janitorial Supplies","FAUCET","piece",85,93.5]
[null,null,"Common Janitorial Supplies","FEATHER DUSTER","piece",60,66]
[null,null,"Common Janitorial Supplies","FLOOR WAX, liquid type, 3.75-5.0L/ plastic container","container",815.1,896.61]
[null,null,"Common Janitorial Supplies","FLOOR WAX, paste, natural, 2kgs.","can",610,671]
[null,null,"Common Janitorial Supplies","FLOOR WAX, paste, red, 2kgs.","can",491.92,541.11]
[null,null,"Common Janitorial Supplies","FLOWER POT, Plastic, Big","piece",380,418]
[null,null,"Common Janitorial Supplies","FLOWER POT, Plastic, Medium","piece",270,297]
[null,null,"Common Janitorial Supplies","FLOWER POT, Plastic, Small","piece",230,253]
[null,null,"Common Janitorial Supplies","FURNITURE CLEANER, 300mL/can min","can",186.47,205.12]
[null,null,"Common Janitorial Supplies","GARBAGE BIN, plastic, with swing cover, colored 20 liters capacity","piece",305,335.5]
[null,null,"Common Janitorial Supplies","GLASS CLEANER, spray type, 1 liter","bottle",210,231]
[null,null,"Common Janitorial Supplies","GLOVES, multipurpose","set",320,352]
[null,null,"Common Janitorial Supplies","HAND SOAP, Family Size","piece",165,181.5]
[null,null,"Common Janitorial Supplies","HOSE, in meters","meter",41,45.1]
[null,null,"Common Janitorial Supplies","INSECTICIDE, 600mL/can","can",258.54000000000002,284.39]
[null,null,"Common Janitorial Supplies","KNIFE","piece",176,193.6]
[null,null,"Common Janitorial Supplies","LIQUID CLEANER, Tiles, 1000 ml","bottle",195,214.5]
[null,null,"Common Janitorial Supplies","MOP BUCKET, heavy duty, hard plastic, min: 370mm(L),  475mm(W), 245mm(H); 30L capacity, with 4 wheel ball caster, with squeezer, with precautionary markings","piece",4118.3999999999996,4530.24]
[null,null,"Common Janitorial Supplies","MOPHANDLE, screw type, aluminum handle","piece",551,606.1]
[null,null,"Common Janitorial Supplies","MOPHANDLE, screw type, wooden handle","piece",367,403.7]
[null,null,"Common Janitorial Supplies","MOPHEAD, 100% rayon, 400g","piece",217.36,239.1]
[null,null,"Common Janitorial Supplies","MOTOR HANDLE","set",521,573.1]
[null,null,"Common Janitorial Supplies","MURIATIC ACID, 500 ml","bottle",85,93.5]
[null,null,"Common Janitorial Supplies","NAILS, 2\"","kilo",39,42.9]
[null,null,"Common Janitorial Supplies","NAILS, 3\"","kilo",67,73.7]
[null,null,"Common Janitorial Supplies","PADLOCK","piece",378,415.8]
[null,null,"Common Janitorial Supplies","RAG, COTTON, (7\") in diameter, assorted colors","kilo",96.1,105.71]
[null,null,"Common Janitorial Supplies","RAINCOAT, for Messenger","set",1450,1595]
[null,null,"Common Janitorial Supplies","RUG, Floor","kilo",69,75.900000000000006]
[null,null,"Common Janitorial Supplies","SCOURING PAD, economy size","pack",69,75.900000000000006]
[null,null,"Common Janitorial Supplies","SHOELACE","pair",50,55]
[null,null,"Common Janitorial Supplies","TOILET BLEACH","gallon",150,165]
[null,null,"Common Janitorial Supplies","TOILET BOWL & URINAL  CLEANER, 900ml","bottle",191,210.1]
[null,null,"Common Janitorial Supplies","TOILET BRUSH, with Handle","piece",250,275]
[null,null,"Common Janitorial Supplies","TOILET DEODORANT CAKE, deoderizer/moth proofer 50gms, 3 pcs/pack","box",43,47.3]
[null,null,"Common Janitorial Supplies","TOILET DEODORANT SPRAY, 220ml","bottle",264,290.39999999999998]
[null,null,"Common Janitorial Supplies","TRASHBAG, plastic, black, (XL), 10 pcs per pack per roll","roll",317.68,349.45]
[null,null,"Common Janitorial Supplies","TRASHBAG, plastic, black, small","roll",106,116.6]
[null,null,"Common Janitorial Supplies","WIPER, for Glass Window Cleaning","piece",200,220]
[null,null,"Legal Size Paper","PAPER, bond, Premium Grade, 216mm x 330mm, (8-1/2\" x 13\"), legal, 70 gsm.","ream",252.71,277.98]
[null,null,"Legal Size Paper","PAPER, mimeo, Groundwood, 216mm x 330mm, (8-1/2\" x 13\"), legal, 60 gsm.","ream",169.9,{"$f":"ROUND((F707*1.1),2)","v":186.89}]
[null,null,"Legal Size Paper","PAPER, for Plain Paper Copier, 216mm x 330mm (8-1/2\" x 13\"), legal, 70 gsm.","ream",207.62,228.38]
[null,null,"Legal Size Paper","PAPER, mimeograph, Whitewove216mm x 330mm, (8-1/2\" x 13\"), legal, 70 gsm.","ream",230,253]
[null,null,"Legal Size Paper","PAPER, multicopy, legal, for laser printing, 216mm x 330mm (8-1/2\" x13\") high quality speed copier,lithographic printing","ream",290.44,319.48]
[null,null,"Common Office Equipment","AIRPOT, 3.8 liters, w/ dispenser","unit",2293.1999999999998,2522.52]
[null,null,"Common Office Equipment","CALCULATOR, compact, electronic, LCD, desktop, display, 12 digits, two-way power source","unit",338.62,372.48]
[null,null,"Common Office Equipment","CALCULATOR, desktop, heavy duty printing,  12 digits, two(2) color print/illuminated display, AC power source, Canon","unit",4324.32,4756.75]
[null,null,"Common Office Equipment","CALCULATOR, desktop, mini-printer type,12 digits, AC/DC power source, with ink roller & adaptor","unit",2047.76,2252.54]
[null,null,"Common Office Equipment","CALCULATOR, scientific, 10 digits, casedot matirx, solar/ cell type power source","unit",910.62,1001.68]
[null,null,"Common Office Equipment","CHAIR, monobloc, without armrest, beige","unit",617.76,679.54]
[null,null,"Common Office Equipment","CHAIR, monobloc, without armrest, white","unit",617.76,679.54]
[null,null,"Common Office Equipment","DIGITAL VOICE RECORDER, 4GB, memory, stereo channel, MP3, WMA, recording and playback format, with earphone jack, built-in microphone, with USB cable, rechargeable batteries, instructional manual, carrying pouch, hand strap, earphone ","unit",13705.12,15075.63]
[null,null,"Common Office Equipment","DOCUMENT CAMERA, w/ DVI port, four (4), reference points demarcate viewing area, 16 times, (1600%) consecutive zoom, PC and Doc Cam VS","unit",55369.599999999999,60906.559999999998]
[null,null,"Common Office Equipment","ELECTRIC FAN, industrial, 18\" metal blade","unit",2516.8000000000002,2768.48]
[null,null,"Common Office Equipment","ELECTRIC FAN, orbit type","unit",2745.6,3020.16]
[null,null,"Common Office Equipment","ELECTRIC FAN, wall type","unit",2054.62,2260.08]
[null,null,"Common Office Equipment","ELECTRIC FAN, with stand","unit",2281.14,2509.25]
[null,null,"Common Office Equipment","ELECTRONIC TIME RECORDER, (bundy clock), electronic, compact design with large clock face, 2-color ribbon, with dot matrix printer, wall or desk mount, 220 volts","unit",7294.14,8023.55]
[null,null,"Common Office Equipment","FACSIMILE TRANSCEIVER, uses thermal paper, 50m/roll, for documents 216mm x 600mm, 15 sec, transmission speed, running width 2018mm, document feeder holds 10 pages, with automatic paper cutter, redial, and fax/tel switchover","unit",7705.98,8476.58]
[null,null,"Common Office Equipment","FIRE EXTINGUISHER, dry chemical, for ABC class, of fire, stored pressure type,non-electrical conductor,non-toxic, non-corrosive, 4.5kg (10lbs.), brand new","unit",2850.85,3135.94]
[null,null,"Common Office Equipment","FIRE EXTINGUISHER, pure HCFC 123, with fire rating of 1A, 1BC for ABC class of fire, stored pressure type,     non-electrical conductor, 4.5kg (10 lbs), brand new","unit",8666.94,9533.6299999999992]
[null,null,"Common Office Equipment","MEGAPHONE, portable sound system, all ABS resin body, 330mm length, 200mm Horn Diameter, 16 watts(min), 300 meters(min), rechargeable, with buyilt-in siren, red or blue color","unit",5948.8,6543.68]
[null,null,"Common Office Equipment","MULTIMEDIA PROJECTOR, 3000 ansi Lumens, 3600 hours lamp life, supports SVGA to SXGA, (compressed) resolution","unit",90456.74,99502.41]
[null,null,"Common Office Equipment","NETWORK SWITCH, 8 Port","unit",1700,1870]
[null,null,"Common Office Equipment","PAPER SHREDDER, 220mm feed opening, 4mm shred width, 0.06m/sec shred speed, 6-8 sheets performance, approx 5kg in weight","unit",12080.64,13288.7]
[null,null,"Common Office Equipment","PAPER TRIMMER/CUTTING MACHINE, 350MM cutting size, 30 sheets cutting cap., automatic clamping, stationery blade guard, A4-A6 format indications","unit",17503.2,19253.52]
[null,null,"Common Office Equipment","PRINTER, automatic data processing, impact, dot matrix, 9-pins, 136 columns, complete w/ ribbons, cables and manual","unit",30576,33633.599999999999]
[null,null,"Common Office Equipment","PRINTER, impact dot matrix, 24-pins, 136 columns, 480 cps print speed, parallel or USB interface, manual/tractor feeder paper handling, 220VAC/60Hz, with power cable, data cable, software driver (if any), manual and ribbon cartridge","unit",40517.769999999997,44569.55]
[null,null,"Common Office Equipment","PRINTER, impact dot matrix, 9-pin, 80 columns, with ribbon, cables and manual, ribbons, cables and manual, LX-310+ II","unit",12829.34,14112.27]
[null,null,"Common Office Equipment","PRINTER, inkjet, wireless capable,  55 ppm speed , with 2.0\" MGD display, 512 MB memory, 500 sheets input tray, duplex printing capable","unit",22000,24200]
[null,null,"Common Office Equipment","PRINTER, laser, 24ppm printing speed, 1200 x 1200 dpi, with power cord, interface cable, software drivers and complete documentation","unit",3637.92,4001.71]
[null,null,"Common Office Equipment","PUNCHING/BINDING MACHINE, two(2) hand lever system, 34cm or 13\" (24 holes) punching, width adjustable to any format, binds 425 sheets, or up to 2\" thick, all metal construction","unit",22877.71,25165.48]
[null,null,"Common Office Equipment","TABLE, monobloc, square, 36\" X 36\", beige, four(4) seater, for indoor and outdoor use","unit",2711.28,2982.41]
[null,null,"Common Office Equipment","TABLE, monobloc, square, 36\" X 36\", white, four(4) seater, for indoor and outdoor use","unit",2711.28,2982.41]
[null,null,"Common Office Equipment","WIRELESS-N ROUTER, 300 MBPS, 2.4GHz Frequency Band, Standard IEEE 802.11G, IEEE 802.11n, IEEE 802.3u, IEEE 802.3, Microsoft Windows 2000/XP/Vista/XP SP3/7 ","unit",2283.42,2511.7600000000002]
[null,null,"Medical Supplies and Materials","Absorbent Cotton Balls 150/pack","pack",75,82.5]
[null,null,"Medical Supplies and Materials","Amoxycillin 250mgs 100/box","box",390,429]
[null,null,"Medical Supplies and Materials","Aneroid BP Apparatus with Stethoscope","piece",1300,1430]
[null,null,"Medical Supplies and Materials","Blood Glucose Testing Trips","box",900,990]
[null,null,"Medical Supplies and Materials","Chlorphenamine Tabs","piece",3,3.3]
[null,null,"Medical Supplies and Materials","Delousing Shampoo","piece",14,15.4]
[null,null,"Medical Supplies and Materials","Diclofenac Sodium Cream","tube",100,110]
[null,null,"Medical Supplies and Materials","Digital Thermometer","piece",200,220]
[null,null,"Medical Supplies and Materials","Ferrous Sulfate Chocolate Coated for Kids 100 tabs/bottle","bottle",75,82.5]
[null,null,"Medical Supplies and Materials","Germicidal Bath Soap","piece",7.27,8]
[null,null,"Medical Supplies and Materials","Iron Tablet","tablet",0.91,1]
[null,null,"Medical Supplies and Materials","Lancet 30g 100/box","box",500,550]
[null,null,"Medical Supplies and Materials","Mefenamic Acid 250mgs 100/box","box",250,275]
[null,null,"Medical Supplies and Materials","Paracetamol 500mgs 100/box","box",250,275]
[null,null,"Medical Supplies and Materials","Povidone Iodine Solution 120ml","bottle",200,220]
[null,null,"Medical Supplies and Materials","Syringes 3cc","piece",5,5.5]
[null,null,"Medical Supplies and Materials","Toothache Drops","bottle",27,29.7]
[null,null,"Medical Supplies and Materials","Toothbrush, Classic, Deep Clean Multilevel Bristle","piece",13.64,15]
[null,null,"Medical Supplies and Materials","Toothpaste twin packs","piece",7.27,8]
[null,null,"Medical Supplies and Materials","Tranexamic Acid 250mgs","capsule",4.5,4.95]
[null,null,"Medical Supplies and Materials","Vitamin C Tabs 100mgs 100/box","box",50,55]
[null,null,"Handbooks on Procurement","HANDBOOK ON PHILIPPINE GOVERNMENT   PROCUREMENT-RA 9184(6th Edition),  6\" x 9\", 300 pages,","piece",63.58,69.94]
[null,null,"Seminars and Trainings","HONORARIA, 500 per hour","hour",500]
[null,null,"Seminars and Trainings","LODGING, 400 per head","head",400]
[null,null,"Seminars and Trainings","MEALS, Breakfast, 100 per head","pax",100]
[null,null,"Seminars and Trainings","MEALS, Dinner, 150 per head","pax",150]
[null,null,"Seminars and Trainings","MEALS, Lunch, 150 per head","pax",150]
[null,null,"Seminars and Trainings","SNACKS (AM and PM), 100 per head","pax",100]
[null,null,"Seminars and Trainings","SNACKS, AM, 50 per head","pax",50]
[null,null,"Seminars and Trainings","SNACKS, PM, 50 per head","pax",50]
[null,null,"Tarpaulin","TARPAULIN, 2\" x 3\", P12 per square foot","piece",72]
[null,null,"Tarpaulin","TARPAULIN, 2\" x 4\", P12 per square foot","piece",96]
[null,null,"Tarpaulin","TARPAULIN, 2\" x 5\", P12 per square foot","piece",120]
[null,null,"Tarpaulin","TARPAULIN, 2\" x 6\", P12 per square foot","piece",144]
[null,null,"Tarpaulin","TARPAULIN, 2\" x 7\", P12 per square foot","piece",168]
[null,null,"Tarpaulin","TARPAULIN, 2\" x 8\", P12 per square foot","piece",192]
[null,null,"Tarpaulin","TARPAULIN, 2\" x 9\", P12 per square foot","piece",216]
[null,null,"Tarpaulin","TARPAULIN, 2\" x 10\", P12 per square foot","piece",240]
[null,null,"Tarpaulin","TARPAULIN, 2\" x 11\", P12 per square foot","piece",264]
[null,null,"Tarpaulin","TARPAULIN, 2\" x 12\", P12 per square foot","piece",288]
[null,null,"Tarpaulin","TARPAULIN, 3\" x 3\", P12 per square foot","piece",108]
[null,null,"Tarpaulin","TARPAULIN, 3\" x 4\", P12 per square foot","piece",144]
[null,null,"Tarpaulin","TARPAULIN, 3\" x 5\", P12 per square foot","piece",180]
[null,null,"Tarpaulin","TARPAULIN, 3\" x 6\", P12 per square foot","piece",216]
[null,null,"Tarpaulin","TARPAULIN, 3\" x 7\", P12 per square foot","piece",252]
[null,null,"Tarpaulin","TARPAULIN, 3\" x 8\", P12 per square foot","piece",288]
[null,null,"Tarpaulin","TARPAULIN, 3\" x 9\", P12 per square foot","piece",324]
[null,null,"Tarpaulin","TARPAULIN, 3\" x 10\", P12 per square foot","piece",360]
[null,null,"Tarpaulin","TARPAULIN, 3\" x 11\", P12 per square foot","piece",396]
[null,null,"Tarpaulin","TARPAULIN, 3\" x 12\", P12 per square foot","piece",432]
[null,null,"Tarpaulin","TARPAULIN, 4\" x 4\", P12 per square foot","piece",192]
[null,null,"Tarpaulin","TARPAULIN, 4\" x 5\", P12 per square foot","piece",240]
[null,null,"Tarpaulin","TARPAULIN, 4\" x 6\", P12 per square foot","piece",288]
[null,null,"Tarpaulin","TARPAULIN, 4\" x 7\", P12 per square foot","piece",336]
[null,null,"Tarpaulin","TARPAULIN, 4\" x 8\", P12 per square foot","piece",384]
[null,null,"Tarpaulin","TARPAULIN, 4\" x 9\", P12 per square foot","piece",432]
[null,null,"Tarpaulin","TARPAULIN, 4\" x 10\", P12 per square foot","piece",480]
[null,null,"Tarpaulin","TARPAULIN, 4\" x 11\", P12 per square foot","piece",528]
[null,null,"Tarpaulin","TARPAULIN, 4\" x 12\", P12 per square foot","piece",576]
[null,null,"Tarpaulin","TARPAULIN, 5\" x 5\", P12 per square foot","piece",300]
[null,null,"Tarpaulin","TARPAULIN, 5\" x 6\", P12 per square foot","piece",360]
[null,null,"Tarpaulin","TARPAULIN, 5\" x 7\", P12 per square foot","piece",420]
[null,null,"Tarpaulin","TARPAULIN, 5\" x 8\", P12 per square foot","piece",480]
[null,null,"Tarpaulin","TARPAULIN, 5\" x 9\", P12 per square foot","piece",540]
[null,null,"Tarpaulin","TARPAULIN, 5\" x 10\", P12 per square foot","piece",600]
[null,null,"Tarpaulin","TARPAULIN, 5\" x 11\", P12 per square foot","piece",660]
[null,null,"Tarpaulin","TARPAULIN, 5\" x 12\", P12 per square foot","piece",720]
[null,null,"Tarpaulin","TARPAULIN, 6\" x 6\", P12 per square foot","piece",432]
[null,null,"Tarpaulin","TARPAULIN, 6\" x 7\", P12 per square foot","piece",504]
[null,null,"Tarpaulin","TARPAULIN, 6\" x 8\", P12 per square foot","piece",576]
[null,null,"Tarpaulin","TARPAULIN, 6\" x 9\", P12 per square foot","piece",648]
[null,null,"Tarpaulin","TARPAULIN, 6\" x 10\", P12 per square foot","piece",720]
[null,null,"Tarpaulin","TARPAULIN, 6\" x 11\", P12 per square foot","piece",792]
[null,null,"Tarpaulin","TARPAULIN, 6\" x 12\", P12 per square foot","piece",864]
[null,null,"Tarpaulin","TARPAULIN, 7\" x 7\", P12 per square foot","piece",588]
[null,null,"Tarpaulin","TARPAULIN, 7\" x 8\", P12 per square foot","piece",672]
[null,null,"Tarpaulin","TARPAULIN, 7\" x 9\", P12 per square foot","piece",756]
[null,null,"Tarpaulin","TARPAULIN, 7\" x 10\", P12 per square foot","piece",840]
[null,null,"Tarpaulin","TARPAULIN, 7\" x 11\", P12 per square foot","piece",924]
[null,null,"Tarpaulin","TARPAULIN, 7\" x 12\", P12 per square foot","piece",1008]
[null,null,"Tarpaulin","TARPAULIN, 8\" x 8\", P12 per square foot","piece",768]
[null,null,"Tarpaulin","TARPAULIN, 8\" x 9\", P12 per square foot","piece",864]
[null,null,"Tarpaulin","TARPAULIN, 8\" x 10\", P12 per square foot","piece",960]
[null,null,"Tarpaulin","TARPAULIN, 8\" x 11\", P12 per square foot","piece",1056]
[null,null,"Tarpaulin","TARPAULIN, 8\" x 12\", P12 per square foot","piece",1152]
[null,null,"Tarpaulin","TARPAULIN, 9\" x 9\", P12 per square foot","piece",972]
[null,null,"Tarpaulin","TARPAULIN, 9\" x 10\", P12 per square foot","piece",1080]
[null,null,"Tarpaulin","TARPAULIN, 9\" x 11\", P12 per square foot","piece",1188]
[null,null,"Tarpaulin","TARPAULIN, 9\" x 12\", P12 per square foot","piece",1296]
[null,null,"Tarpaulin","TARPAULIN, 10\" x 10\", P12 per square foot","piece",1200]
[null,null,"Tarpaulin","TARPAULIN, 10\" x 11\", P12 per square foot","piece",1320]
[null,null,"Tarpaulin","TARPAULIN, 10\" x 12\", P12 per square foot","piece",1440]
[null,null,"Tarpaulin","TARPAULIN, 11\" x 11\", P12 per square foot","piece",1452]
[null,null,"Tarpaulin","TARPAULIN, 11\" x 12\", P12 per square foot","piece",1584]
[null,null,"Tarpaulin","TARPAULIN, 12\" x 12\", P12 per square foot","piece",1728]
[null,null,"Tarpaulin","TARPAULIN, 2\" x 3\", P12 per square foot, with layout","piece",172]
[null,null,"Tarpaulin","TARPAULIN, 2\" x 4\", P12 per square foot, with layout","piece",196]
[null,null,"Tarpaulin","TARPAULIN, 2\" x 5\", P12 per square foot, with layout","piece",220]
[null,null,"Tarpaulin","TARPAULIN, 2\" x 6\", P12 per square foot, with layout","piece",244]
[null,null,"Tarpaulin","TARPAULIN, 2\" x 7\", P12 per square foot, with layout","piece",268]
[null,null,"Tarpaulin","TARPAULIN, 2\" x 8\", P12 per square foot, with layout","piece",292]
[null,null,"Tarpaulin","TARPAULIN, 2\" x 9\", P12 per square foot, with layout","piece",316]
[null,null,"Tarpaulin","TARPAULIN, 2\" x 10\", P12 per square foot, with layout","piece",340]
[null,null,"Tarpaulin","TARPAULIN, 2\" x 11\", P12 per square foot, with layout","piece",364]
[null,null,"Tarpaulin","TARPAULIN, 2\" x 12\", P12 per square foot, with layout","piece",388]
[null,null,"Tarpaulin","TARPAULIN, 3\" x 3\", P12 per square foot, with layout","piece",208]
[null,null,"Tarpaulin","TARPAULIN, 3\" x 4\", P12 per square foot, with layout","piece",244]
[null,null,"Tarpaulin","TARPAULIN, 3\" x 5\", P12 per square foot, with layout","piece",280]
[null,null,"Tarpaulin","TARPAULIN, 3\" x 6\", P12 per square foot, with layout","piece",316]
[null,null,"Tarpaulin","TARPAULIN, 3\" x 7\", P12 per square foot, with layout","piece",352]
[null,null,"Tarpaulin","TARPAULIN, 3\" x 8\", P12 per square foot, with layout","piece",388]
[null,null,"Tarpaulin","TARPAULIN, 3\" x 9\", P12 per square foot, with layout","piece",424]
[null,null,"Tarpaulin","TARPAULIN, 3\" x 10\", P12 per square foot, with layout","piece",460]
[null,null,"Tarpaulin","TARPAULIN, 3\" x 11\", P12 per square foot, with layout","piece",496]
[null,null,"Tarpaulin","TARPAULIN, 3\" x 12\", P12 per square foot, with layout","piece",532]
[null,null,"Tarpaulin","TARPAULIN, 4\" x 4\", P12 per square foot, with layout","piece",292]
[null,null,"Tarpaulin","TARPAULIN, 4\" x 5\", P12 per square foot, with layout","piece",340]
[null,null,"Tarpaulin","TARPAULIN, 4\" x 6\", P12 per square foot, with layout","piece",388]
[null,null,"Tarpaulin","TARPAULIN, 4\" x 7\", P12 per square foot, with layout","piece",436]
[null,null,"Tarpaulin","TARPAULIN, 4\" x 8\", P12 per square foot, with layout","piece",484]
[null,null,"Tarpaulin","TARPAULIN, 4\" x 9\", P12 per square foot, with layout","piece",532]
[null,null,"Tarpaulin","TARPAULIN, 4\" x 10\", P12 per square foot, with layout","piece",580]
[null,null,"Tarpaulin","TARPAULIN, 4\" x 11\", P12 per square foot, with layout","piece",628]
[null,null,"Tarpaulin","TARPAULIN, 4\" x 12\", P12 per square foot, with layout","piece",676]
[null,null,"Tarpaulin","TARPAULIN, 5\" x 5\", P12 per square foot, with layout","piece",400]
[null,null,"Tarpaulin","TARPAULIN, 5\" x 6\", P12 per square foot, with layout","piece",460]
[null,null,"Tarpaulin","TARPAULIN, 5\" x 7\", P12 per square foot, with layout","piece",520]
[null,null,"Tarpaulin","TARPAULIN, 5\" x 8\", P12 per square foot, with layout","piece",580]
[null,null,"Tarpaulin","TARPAULIN, 5\" x 9\", P12 per square foot, with layout","piece",640]
[null,null,"Tarpaulin","TARPAULIN, 5\" x 10\", P12 per square foot, with layout","piece",700]
[null,null,"Tarpaulin","TARPAULIN, 5\" x 11\", P12 per square foot, with layout","piece",760]
[null,null,"Tarpaulin","TARPAULIN, 5\" x 12\", P12 per square foot, with layout","piece",820]
[null,null,"Tarpaulin","TARPAULIN, 6\" x 6\", P12 per square foot, with layout","piece",532]
[null,null,"Tarpaulin","TARPAULIN, 6\" x 7\", P12 per square foot, with layout","piece",604]
[null,null,"Tarpaulin","TARPAULIN, 6\" x 8\", P12 per square foot, with layout","piece",676]
[null,null,"Tarpaulin","TARPAULIN, 6\" x 9\", P12 per square foot, with layout","piece",748]
[null,null,"Tarpaulin","TARPAULIN, 6\" x 10\", P12 per square foot, with layout","piece",820]
[null,null,"Tarpaulin","TARPAULIN, 6\" x 11\", P12 per square foot, with layout","piece",892]
[null,null,"Tarpaulin","TARPAULIN, 6\" x 12\", P12 per square foot, with layout","piece",964]
[null,null,"Tarpaulin","TARPAULIN, 7\" x 7\", P12 per square foot, with layout","piece",688]
[null,null,"Tarpaulin","TARPAULIN, 7\" x 8\", P12 per square foot, with layout","piece",772]
[null,null,"Tarpaulin","TARPAULIN, 7\" x 9\", P12 per square foot, with layout","piece",856]
[null,null,"Tarpaulin","TARPAULIN, 7\" x 10\", P12 per square foot, with layout","piece",940]
[null,null,"Tarpaulin","TARPAULIN, 7\" x 11\", P12 per square foot, with layout","piece",1024]
[null,null,"Tarpaulin","TARPAULIN, 7\" x 12\", P12 per square foot, with layout","piece",1108]
[null,null,"Tarpaulin","TARPAULIN, 8\" x 8\", P12 per square foot, with layout","piece",868]
[null,null,"Tarpaulin","TARPAULIN, 8\" x 9\", P12 per square foot, with layout","piece",964]
[null,null,"Tarpaulin","TARPAULIN, 8\" x 10\", P12 per square foot, with layout","piece",1060]
[null,null,"Tarpaulin","TARPAULIN, 8\" x 11\", P12 per square foot, with layout","piece",1156]
[null,null,"Tarpaulin","TARPAULIN, 8\" x 12\", P12 per square foot, with layout","piece",1252]
[null,null,"Tarpaulin","TARPAULIN, 9\" x 9\", P12 per square foot, with layout","piece",1072]
[null,null,"Tarpaulin","TARPAULIN, 9\" x 10\", P12 per square foot, with layout","piece",1180]
[null,null,"Tarpaulin","TARPAULIN, 9\" x 11\", P12 per square foot, with layout","piece",1288]
[null,null,"Tarpaulin","TARPAULIN, 9\" x 12\", P12 per square foot, with layout","piece",1396]
[null,null,"Tarpaulin","TARPAULIN, 10\" x 10\", P12 per square foot, with layout","piece",1300]
[null,null,"Tarpaulin","TARPAULIN, 10\" x 11\", P12 per square foot, with layout","piece",1420]
[null,null,"Tarpaulin","TARPAULIN, 10\" x 12\", P12 per square foot, with layout","piece",1540]
[null,null,"Tarpaulin","TARPAULIN, 11\" x 11\", P12 per square foot, with layout","piece",1552]
[null,null,"Tarpaulin","TARPAULIN, 11\" x 12\", P12 per square foot, with layout","piece",1684]
[null,null,"Tarpaulin","TARPAULIN, 12\" x 12\", P12 per square foot, with layout","piece",1828]

{"sheet":"PPMP","index":2,"n_rows":22,"n_cols":23,"rows_kept":22,"cut":false,"hidden":false,"merged":[[17,4,17,9],[20,4,20,9],[21,4,21,9],[17,12,17,17],[20,12,20,17],[21,12,21,17],[8,2,8,11],[0,0,0,22],[1,0,1,22],[2,0,2,22],[3,0,3,22],[5,0,5,22],[6,1,6,22],[10,21,11,21],[10,22,11,22],[10,20,11,20],[10,0,11,0],[10,2,11,2],[10,3,10,18],[10,19,11,19],[10,1,11,1]]}
["DEPARTMENT OF EDUCATION"]
["REGION X - NORTHERN MINDANAO"]
["DIVISION OF MALAYBALAY CITY"]
["P-6, Casisang, Malaybalay City"]
[]
[{"$f":"UPPER(Input!R1)","v":""}]
["for CY",{"$f":"\"PROJECT PROCUREMENT MANAGEMENT PLAN FOR CY \" & CONCATENATE(Input!B3)","v":"PROJECT PROCUREMENT MANAGEMENT PLAN FOR CY "}]
[]
[null,"PROGRAM / ACTIVITY / PROJECT:",{"$f":"UPPER(Input!R2)","v":""}]
[]
["Category","ITEM AND SPECIFICATIONS","Unit","QUANTITY REQUIREMENT",null,null,null,null,null,null,null,null,null,null,null,null,null,null,null,"TOTAL QUANTITY","UNIT PRICE","MARKED UP PRICE","TOTAL AMOUNT"]
[null,null,null,"Jan","Feb","Mar","Q1","Apr","May ","June","Q2","Jul","Aug","Sept","Q3","Oct","Nov","Dec","Q4"]
[" ",null,""]
[" ",null,""]
[null,"TOTAL","",null,null,null,null,null,null,null,null,null,null,null,null,null,null,null,null,null,null,null,{"$f":"ROUND(SUM(W13:W14),2)","v":0}]
[]
[]
[null,"Prepared by:",null,null,"Reviewed by:",null,null,null,null,null,null,null,"Approved by:"]
[]
[]
[null,{"$f":"UPPER(Input!B1)","v":""},null,null,{"$f":"UPPER(Input!G3)","v":""},null,null,null,null,null,null,null,{"$f":"UPPER(Input!G1)","v":""}]
[null,{"$f":"UPPER(Input!B2)","v":""},null,null,"SCHOOL BAC SECRETARIAT",null,null,null,null,null,null,null,{"$f":"UPPER(Input!G2)","v":""}]